Workbook

Sheet INGRESO DE DATOS
O2: 24 years | P2: FALSE
O3: Coaseguro (Panamá) | P3: FALSE
O11: Descuento 24 años (por edad) | S11: Type | T11: Nuevo Negocio | V11: Zonas | W11: Guayas/Santa Elena
O12: age | P12: Discount (%) | Q12: Parameter | T12: Pólizas 2020 | W12: El Resto de Ecuador
O13: 24 | P13: 35 | Q13: =1-P13/100 -> 0.65 | T13: Pólizas 2021
O14: 25 | P14: 30 | Q14: =1-P14/100 -> 0.7 | T14: Pólizas 2022
O15: 26 | P15: 25 | Q15: 0.75 | T15: Pólizas 2023
O16: 27 | P16: 20 | Q16: 0.8 | T16: Pólizas Mayo - Agosto 2023
O17: 28 | P17: 15 | Q17: 0.85 | T17: Renovaciones
O18: 29 | P18: 6 | Q18: 0.94
O19: All ages | P19: 0 | Q19: 1 | S19: Type selected | T19: 1 | V19: Zona seleccionada | W19: 2
V20: Nombre de la Zona | W20: =IF(W19=1,"Guayas/Santa Elena","Resto de Ecuador") -> Resto de Ecuador
H21: FALSE
O22: 1. NEW BUSINESS DISCOUNT | U22: 2. PÓLIZAS 2020
O23: Ultimate | P23: Elite | Q23: Premier | R23: Select | U23: Ultimate | V23: Elite | W23: Premier | X23: Select
O24: 0 | P24: 15 | Q24: 15 | R24: 15 | U24: 0 | V24: 15 | W24: 15 | X24: 20
U26: 3. PÓLIZAS 2021
U27: Ultimate | V27: Elite | W27: Premier | X27: Select
U28: 0 | V28: 0 | W28: 15 | X28: 15
O30: Des 24 años: | P30: =IF(P2,IF(C43=O13,Q13,IF(C43=O14,Q14,IF(C43=O15,Q15,IF(C43=O16,Q16,IF(C43=O17,Q17,IF(C43=O18,Q18,Q19)))))),Q19) -> 1 | U30: 4. PÓLIZAS 2022
U31: Ultimate | V31: Elite | W31: Premier | X31: Select
O32: Des var coaseguro: | P32: =IF(P3=TRUE,0.25,1) -> 1 | U32: 0 | V32: 0 | W32: 15 | X32: 15
U34: 5. PÓLIZAS 2023
O35: Descuento si es nuevo negocio: | U35: Ultimate | V35: Elite | W35: Premier | X35: Select
U36: 0 | V36: 0 | W36: 15 | X36: 15
A37: Nombre del Asegurado Titular: | C37: John Doe | O37: NEW BUSINESS DISCOUNT (MULTIPLICATION FACTOR)
O38: Ultimate | P38: Elite | Q38: Premier | R38: Select | U38: 6. PÓLIZAS MAYO - AGOSTO 2023
A39: Número de adultos en la póliza: | C39: 2 | E39: Número de dependientes menores de 16 años (incluyendo los menores de 10 años): | H39: Número de dependientes menores de 10 años: | O39: =IF($T$19=1,(O24/100),IF($T$19=2,(U24/100),IF($T$19=3,(U28/100),IF($T$19=4,(U32/100),IF($T$19=5,(U36/100),IF($T$19=6,(U40/100),IF($T$19=7,(U44/100),0))))))) -> 0 | P39: =IF($T$19=1,(P24/100),IF($T$19=2,(V24/100),IF($T$19=3,(V28/100),IF($T$19=4,(V32/100),IF($T$19=5,(V36/100),IF($T$19=6,(V40/100),IF($T$19=7,(V44/100),0))))))) -> 0.15 | Q39: =IF($T$19=1,(Q24/100),IF($T$19=2,(W24/100),IF($T$19=3,(W28/100),IF($T$19=4,(W32/100),IF($T$19=5,(W36/100),IF($T$19=6,(W40/100),IF($T$19=7,(W44/100),0))))))) -> 0.15 | R39: =IF($T$19=1,(R24/100),IF($T$19=2,(X24/100),IF($T$19=3,(X28/100),IF($T$19=4,(X32/100),IF($T$19=5,(X36/100),IF($T$19=6,(X40/100),IF($T$19=7,(X44/100),0))))))) -> 0.15 | U39: Ultimate | V39: Elite | W39: Premier | X39: Select
U40: 0 | V40: 0 | W40: 41 | X40: 28
A41: Número total de dependientes: | C41: 2
E42: 1 | H42: 1 | O42: Descuento combinado 24 años y Nuevo Negocio | U42: 7. RENOCACIONES
A43: Edad del Asegurado Titular: | C43: 32 | U43: Ultimate | V43: Elite | W43: Premier | X43: Select
L44: =IF($T$19=1,"Para nuevos negocios emitidos a partir del 1 de enero de 2025",IF($T$19=2,"Para renovaciones de pólizas vendidas entre el 1ro de enero y el 31 de diciembre de 2020",IF($T$19=3,"Para renovaciones de pólizas vendidas entre el 1ro de enero y el 31 de diciembre de 2020",IF($T$19=4,"Para renovaciones de pólizas vendidas entre el 1ro de enero y el 31 de diciembre de 2021",IF($T$19=5,"Para renovaciones de pólizas vendidas entre el 1ro de enero y el 31 de diciembre de 2022",IF($T$19=6,"Para renovaciones de pólizas vendidas entre el 1ro de enero al 30 de abril y entre el 1ro de septiembre al 31 de diciembre, de 2023","Para renovaciones de pólizas vendidas entre el 1ro de mayo y el 31 de agosto de 2023")))))) -> Para nuevos negocios emitidos a partir del 1 de enero de 2025 | U44: 0 | V44: 0 | W44: 0 | X44: 0
A45: Edad del/la cónyuge: | C45: 32 | O45: NEW BUSINESS DISCOUNT
O46: Ultimate | P46: Elite | Q46: Premier | R46: Select
O47: =(1-O39)*$P$30 -> 1 | P47: =(1-P39)*$P$30 -> 0.85 | Q47: =(1-Q39)*$P$30 -> 0.85 | R47: =(1-R39)*$P$30 -> 0.85
A49: Tarifas en US$ | Validas: 1 de enero de 2025

Sheet Global Ultimate
C1: FALSE | H1: RESUMEN DE BENEFICIOS | W1: RESUMEN DE BENEFICIOS | AL1: RESUMEN DE BENEFICIOS
A5: Cotización de Seguro Médico Internacional Global Ultimate Health Plan Tarifas en US$ | Validas: 1 de enero de 2025 | D5: REGIÓN
D7: ='INGRESO DE DATOS'!W20 -> Resto de Ecuador
A13: Nombre del Asegurado Titular | B13: =+'INGRESO DE DATOS'!$C$37 -> John Doe
A15: Número de adultos en la póliza | B15: =+'INGRESO DE DATOS'!$C$41 -> 2
A17: Número de Dependientes en la póliza | B17: =+'INGRESO DE DATOS'!$C$39 -> 2 | C17: =IF('INGRESO DE DATOS'!$P$2=TRUE, "Cotización para dependiente de 24 años","") -> 
A19: Número de Dependientes menores de 16 años | B19: =+'INGRESO DE DATOS'!$E$42 -> 1
A21: Edad del Asegurado Titular | B21: =+'INGRESO DE DATOS'!$C$43 -> 32 | C21: Edad del/la conyuge | D21: =+'INGRESO DE DATOS'!$C$45 -> 32 | I21: FALSE
A23: Fecha de la cotización | B23: =NOW() -> 2025-01-07T11:38:50.610
A26: DEDUCIBLES | C26: PLAN 1 | D26: PLAN 2 | E26: PLAN 3
A27: En el país de residencia | C27: $0 | D27: 1000 | E27: 2000
A28: Fuera del país de residencia | C28: $0 | D28: 1000 | E28: 2000
A30: TARIFAS ANUALES
A31: Prima para Asegurado Titular | C31: =VLOOKUP($B$21,Tablas!$A$231:$G$297,3,TRUE)+75 -> 37129 | D31: =VLOOKUP($B$21,Tablas!$A$231:$G$297,4,TRUE)+75 -> 24191 | E31: =VLOOKUP($B$21,Tablas!$A$231:$G$297,3,TRUE)+75 -> 37129
A32: Prima para conyuge | C32: =IF($B$17=1,0,(VLOOKUP($D$21,Tablas!$A$231:$G$297,3,TRUE))) -> 37054 | D32: =IF($B$17=1,0,(VLOOKUP($D$21,Tablas!$A$231:$G$297,4,TRUE))) -> 24116 | E32: =IF($B$17=1,0,(VLOOKUP($D$21,Tablas!$A$231:$G$297,5,TRUE))) -> 0
A33: Prima para hijo (s) | C33: =IF($B$17=1, (IF($B$15=0, 0, (IF($B$19>$B$15, (VLOOKUP($B$15,Tablas!$A$298:$G$300,3,TRUE)), (IF($B$15>4,(IF($B$19=0, (VLOOKUP(3,Tablas!$A$298:$G$300,3,TRUE)), (IF($B$19=1, (VLOOKUP(3,Tablas!$A$298:$G$300,3,TRUE)), (IF($B$19=2, (VLOOKUP(3,Tablas!$A$298:$G$300,3,TRUE)), (VLOOKUP(3,Tablas!$A$298:$G$300,3,TRUE)))))))), (IF($B$15=4,(IF(4-$B$19=0,(VLOOKUP(2,Tablas!$A$298:$G$300,3,TRUE)), (IF(4-$B$19=1,(VLOOKUP(2,Tablas!$A$298:$G$300,3,TRUE)), (IF(4-$B$19=2, (VLOOKUP(2,Tablas!$A$298:$G$300,3,TRUE)), (VLOOKUP(3,Tablas!$A$298:$G$300,3,TRUE)))))))), (IF($B$15=3,(IF(3-$B$19=0,(VLOOKUP(1,Tablas!$A$298:$G$300,3,TRUE)), (IF(3-$B$19=1,(VLOOKUP(1,Tablas!$A$298:$G$300,3,TRUE)), (IF(3-$B$19=2, (VLOOKUP(2,Tablas!$A$298:$G$300,3,TRUE)), (VLOOKUP(3,Tablas!$A$298:$G$300,3,TRUE)))))))), (IF($B$15=2,(IF(2-$B$19=0, 0, (IF(2-$B$19=1,(VLOOKUP(1,Tablas!$A$298:$G$300,3,TRUE)), (IF(2-$B$19=2, (VLOOKUP(2,Tablas!$A$298:$G$300,3,TRUE)), 0)))))), (IF($B$15=1,(IF(1-$B$19=0, 0, (IF(1-$B$19=1,(VLOOKUP(1,Tablas!$A$298:$G$300,3,TRUE)),0)))),0)))))))))))))), (IF($B$15=0, 0, (IF($B$19>$B$15, (VLOOKUP($B$15,Tablas!$A$298:$G$300,3,TRUE)), (IF($B$15=4,(IF(4-$B$19=0, 0, (IF(4-$B$19=1, (VLOOKUP(1,Tablas!$A$298:$G$300,3,TRUE)), (IF(4-$B$19=2, (VLOOKUP(2,Tablas!$A$298:$G$300,3,TRUE)), (IF(4-$B$19=3, (VLOOKUP(3,Tablas!$A$298:$G$300,3,TRUE)), (IF(4-$B$19=4, (VLOOKUP(3,Tablas!$A$298:$G$300,3,TRUE)), 0)))))))))), (IF($B$15=5,(IF(5-$B$19=0, (VLOOKUP(1,Tablas!$A$298:$G$300,3,TRUE)), (IF(5-$B$19=1, (VLOOKUP(1,Tablas!$A$298:$G$300,3,TRUE)), (IF(5-$B$19=2, (VLOOKUP(2,Tablas!$A$298:$G$300,3,TRUE)), (IF(5-$B$19=3, (VLOOKUP(3,Tablas!$A$298:$G$300,3,TRUE)), (IF(5-$B$19=4, (VLOOKUP(3,Tablas!$A$298:$G$300,3,TRUE)), (VLOOKUP(3,Tablas!$A$298:$G$300,3,TRUE)))))))))))), (IF($B$15=6,(IF(6-$B$19=0, (VLOOKUP(2,Tablas!$A$298:$G$300,3,TRUE)), (IF(6-$B$19=1, (VLOOKUP(2,Tablas!$A$298:$G$300,3,TRUE)), (IF(6-$B$19=2, (VLOOKUP(2,Tablas!$A$298:$G$300,3,TRUE)), (IF(6-$B$19=3, (VLOOKUP(3,Tablas!$A$298:$G$300,3,TRUE)), (IF(6-$B$19=4, (VLOOKUP(3,Tablas!$A$298:$G$300,3,TRUE)), (VLOOKUP(3,Tablas!$A$298:$G$300,3,TRUE)))))))))))), (IF($B$15>6,(IF(7-$B$19=0, (VLOOKUP(3,Tablas!$A$298:$G$300,3,TRUE)), (IF(7-$B$19=1, (VLOOKUP(3,Tablas!$A$298:$G$300,3,TRUE)), (IF(7-$B$19=2, (VLOOKUP(3,Tablas!$A$298:$G$300,3,TRUE)), (IF(7-$B$19=3, (VLOOKUP(3,Tablas!$A$298:$G$300,3,TRUE)), (IF(7-$B$19=4, (VLOOKUP(3,Tablas!$A$298:$G$300,3,TRUE)), (VLOOKUP(3,Tablas!$A$298:$G$300,3,TRUE)))))))))))), (IF($B$15=3,(IF(3-$B$19=0,0, (IF(3-$B$19=1,(VLOOKUP(1,Tablas!$A$298:$G$300,3,TRUE)), (IF(3-$B$19=2, (VLOOKUP(2,Tablas!$A$298:$G$300,3,TRUE)), (VLOOKUP(3,Tablas!$A$298:$G$300,3,TRUE)))))))), (IF($B$15=2,(IF(2-$B$19=0, 0, (IF(2-$B$19=1,(VLOOKUP(1,Tablas!$A$298:$G$300,3,TRUE)), (IF(2-$B$19=2, (VLOOKUP(2,Tablas!$A$298:$G$300,3,TRUE)), 0)))))), (IF($B$15=1,(IF(1-$B$19=0, 0, (IF(1-$B$19=1,(VLOOKUP(1,Tablas!$A$298:$G$300,3,TRUE)),0)))),0))))))))))))))))))) -> 10447 | D33: =IF($B$17=1, (IF($B$15=0, 0, (IF($B$19>$B$15, (VLOOKUP($B$15,Tablas!$A$298:$G$300,4,TRUE)), (IF($B$15>4,(IF($B$19=0, (VLOOKUP(3,Tablas!$A$298:$G$300,4,TRUE)), (IF($B$19=1, (VLOOKUP(3,Tablas!$A$298:$G$300,4,TRUE)), (IF($B$19=2, (VLOOKUP(3,Tablas!$A$298:$G$300,4,TRUE)), (VLOOKUP(3,Tablas!$A$298:$G$300,4,TRUE)))))))), (IF($B$15=4,(IF(4-$B$19=0,(VLOOKUP(2,Tablas!$A$298:$G$300,4,TRUE)), (IF(4-$B$19=1,(VLOOKUP(2,Tablas!$A$298:$G$300,4,TRUE)), (IF(4-$B$19=2, (VLOOKUP(2,Tablas!$A$298:$G$300,4,TRUE)), (VLOOKUP(3,Tablas!$A$298:$G$300,4,TRUE)))))))), (IF($B$15=3,(IF(3-$B$19=0,(VLOOKUP(1,Tablas!$A$298:$G$300,4,TRUE)), (IF(3-$B$19=1,(VLOOKUP(1,Tablas!$A$298:$G$300,4,TRUE)), (IF(3-$B$19=2, (VLOOKUP(2,Tablas!$A$298:$G$300,4,TRUE)), (VLOOKUP(3,Tablas!$A$298:$G$300,4,TRUE)))))))), (IF($B$15=2,(IF(2-$B$19=0, 0, (IF(2-$B$19=1,(VLOOKUP(1,Tablas!$A$298:$G$300,4,TRUE)), (IF(2-$B$19=2, (VLOOKUP(2,Tablas!$A$298:$G$300,4,TRUE)), 0)))))), (IF($B$15=1,(IF(1-$B$19=0, 0, (IF(1-$B$19=1,(VLOOKUP(1,Tablas!$A$298:$G$300,4,TRUE)),0)))),0)))))))))))))), (IF($B$15=0, 0, (IF($B$19>$B$15, (VLOOKUP($B$15,Tablas!$A$298:$G$300,4,TRUE)), (IF($B$15=4,(IF(4-$B$19=0, 0, (IF(4-$B$19=1, (VLOOKUP(1,Tablas!$A$298:$G$300,4,TRUE)), (IF(4-$B$19=2, (VLOOKUP(2,Tablas!$A$298:$G$300,4,TRUE)), (IF(4-$B$19=3, (VLOOKUP(3,Tablas!$A$298:$G$300,4,TRUE)), (IF(4-$B$19=4, (VLOOKUP(3,Tablas!$A$298:$G$300,4,TRUE)), 0)))))))))), (IF($B$15=5,(IF(5-$B$19=0, (VLOOKUP(1,Tablas!$A$298:$G$300,4,TRUE)), (IF(5-$B$19=1, (VLOOKUP(1,Tablas!$A$298:$G$300,4,TRUE)), (IF(5-$B$19=2, (VLOOKUP(2,Tablas!$A$298:$G$300,4,TRUE)), (IF(5-$B$19=3, (VLOOKUP(3,Tablas!$A$298:$G$300,4,TRUE)), (IF(5-$B$19=4, (VLOOKUP(3,Tablas!$A$298:$G$300,4,TRUE)), (VLOOKUP(3,Tablas!$A$298:$G$300,4,TRUE)))))))))))), (IF($B$15=6,(IF(6-$B$19=0, (VLOOKUP(2,Tablas!$A$298:$G$300,4,TRUE)), (IF(6-$B$19=1, (VLOOKUP(2,Tablas!$A$298:$G$300,4,TRUE)), (IF(6-$B$19=2, (VLOOKUP(2,Tablas!$A$298:$G$300,4,TRUE)), (IF(6-$B$19=3, (VLOOKUP(3,Tablas!$A$298:$G$300,4,TRUE)), (IF(6-$B$19=4, (VLOOKUP(3,Tablas!$A$298:$G$300,4,TRUE)), (VLOOKUP(3,Tablas!$A$298:$G$300,4,TRUE)))))))))))), (IF($B$15>6,(IF(7-$B$19=0, (VLOOKUP(3,Tablas!$A$298:$G$300,4,TRUE)), (IF(7-$B$19=1, (VLOOKUP(3,Tablas!$A$298:$G$300,4,TRUE)), (IF(7-$B$19=2, (VLOOKUP(3,Tablas!$A$298:$G$300,4,TRUE)), (IF(7-$B$19=3, (VLOOKUP(3,Tablas!$A$298:$G$300,4,TRUE)), (IF(7-$B$19=4, (VLOOKUP(3,Tablas!$A$298:$G$300,4,TRUE)), (VLOOKUP(3,Tablas!$A$298:$G$300,4,TRUE)))))))))))), (IF($B$15=3,(IF(3-$B$19=0,0, (IF(3-$B$19=1,(VLOOKUP(1,Tablas!$A$298:$G$300,4,TRUE)), (IF(3-$B$19=2, (VLOOKUP(2,Tablas!$A$298:$G$300,4,TRUE)), (VLOOKUP(3,Tablas!$A$298:$G$300,4,TRUE)))))))), (IF($B$15=2,(IF(2-$B$19=0, 0, (IF(2-$B$19=1,(VLOOKUP(1,Tablas!$A$298:$G$300,4,TRUE)), (IF(2-$B$19=2, (VLOOKUP(2,Tablas!$A$298:$G$300,4,TRUE)), 0)))))), (IF($B$15=1,(IF(1-$B$19=0, 0, (IF(1-$B$19=1,(VLOOKUP(1,Tablas!$A$298:$G$300,4,TRUE)),0)))),0))))))))))))))))))) -> 7687 | E33: =IF($B$17=1, (IF($B$15=0, 0, (IF($B$19>$B$15, (VLOOKUP($B$15,Tablas!$A$298:$G$300,5,TRUE)), (IF($B$15>4,(IF($B$19=0, (VLOOKUP(3,Tablas!$A$298:$G$300,5,TRUE)), (IF($B$19=1, (VLOOKUP(3,Tablas!$A$298:$G$300,5,TRUE)), (IF($B$19=2, (VLOOKUP(3,Tablas!$A$298:$G$300,5,TRUE)), (VLOOKUP(3,Tablas!$A$298:$G$300,5,TRUE)))))))), (IF($B$15=4,(IF(4-$B$19=0,(VLOOKUP(2,Tablas!$A$298:$G$300,5,TRUE)), (IF(4-$B$19=1,(VLOOKUP(2,Tablas!$A$298:$G$300,5,TRUE)), (IF(4-$B$19=2, (VLOOKUP(2,Tablas!$A$298:$G$300,5,TRUE)), (VLOOKUP(3,Tablas!$A$298:$G$300,5,TRUE)))))))), (IF($B$15=3,(IF(3-$B$19=0,(VLOOKUP(1,Tablas!$A$298:$G$300,5,TRUE)), (IF(3-$B$19=1,(VLOOKUP(1,Tablas!$A$298:$G$300,5,TRUE)), (IF(3-$B$19=2, (VLOOKUP(2,Tablas!$A$298:$G$300,5,TRUE)), (VLOOKUP(3,Tablas!$A$298:$G$300,5,TRUE)))))))), (IF($B$15=2,(IF(2-$B$19=0, 0, (IF(2-$B$19=1,(VLOOKUP(1,Tablas!$A$298:$G$300,5,TRUE)), (IF(2-$B$19=2, (VLOOKUP(2,Tablas!$A$298:$G$300,5,TRUE)), 0)))))), (IF($B$15=1,(IF(1-$B$19=0, 0, (IF(1-$B$19=1,(VLOOKUP(1,Tablas!$A$298:$G$300,5,TRUE)),0)))),0)))))))))))))), (IF($B$15=0, 0, (IF($B$19>$B$15, (VLOOKUP($B$15,Tablas!$A$298:$G$300,5,TRUE)), (IF($B$15=4,(IF(4-$B$19=0, 0, (IF(4-$B$19=1, (VLOOKUP(1,Tablas!$A$298:$G$300,5,TRUE)), (IF(4-$B$19=2, (VLOOKUP(2,Tablas!$A$298:$G$300,5,TRUE)), (IF(4-$B$19=3, (VLOOKUP(3,Tablas!$A$298:$G$300,5,TRUE)), (IF(4-$B$19=4, (VLOOKUP(3,Tablas!$A$298:$G$300,5,TRUE)), 0)))))))))), (IF($B$15=5,(IF(5-$B$19=0, (VLOOKUP(1,Tablas!$A$298:$G$300,5,TRUE)), (IF(5-$B$19=1, (VLOOKUP(1,Tablas!$A$298:$G$300,5,TRUE)), (IF(5-$B$19=2, (VLOOKUP(2,Tablas!$A$298:$G$300,5,TRUE)), (IF(5-$B$19=3, (VLOOKUP(3,Tablas!$A$298:$G$300,5,TRUE)), (IF(5-$B$19=4, (VLOOKUP(3,Tablas!$A$298:$G$300,5,TRUE)), (VLOOKUP(3,Tablas!$A$298:$G$300,5,TRUE)))))))))))), (IF($B$15=6,(IF(6-$B$19=0, (VLOOKUP(2,Tablas!$A$298:$G$300,5,TRUE)), (IF(6-$B$19=1, (VLOOKUP(2,Tablas!$A$298:$G$300,5,TRUE)), (IF(6-$B$19=2, (VLOOKUP(2,Tablas!$A$298:$G$300,5,TRUE)), (IF(6-$B$19=3, (VLOOKUP(3,Tablas!$A$298:$G$300,5,TRUE)), (IF(6-$B$19=4, (VLOOKUP(3,Tablas!$A$298:$G$300,5,TRUE)), (VLOOKUP(3,Tablas!$A$298:$G$300,5,TRUE)))))))))))), (IF($B$15>6,(IF(7-$B$19=0, (VLOOKUP(3,Tablas!$A$298:$G$300,5,TRUE)), (IF(7-$B$19=1, (VLOOKUP(3,Tablas!$A$298:$G$300,5,TRUE)), (IF(7-$B$19=2, (VLOOKUP(3,Tablas!$A$298:$G$300,5,TRUE)), (IF(7-$B$19=3, (VLOOKUP(3,Tablas!$A$298:$G$300,5,TRUE)), (IF(7-$B$19=4, (VLOOKUP(3,Tablas!$A$298:$G$300,5,TRUE)), (VLOOKUP(3,Tablas!$A$298:$G$300,5,TRUE)))))))))))), (IF($B$15=3,(IF(3-$B$19=0,0, (IF(3-$B$19=1,(VLOOKUP(1,Tablas!$A$298:$G$300,5,TRUE)), (IF(3-$B$19=2, (VLOOKUP(2,Tablas!$A$298:$G$300,5,TRUE)), (VLOOKUP(3,Tablas!$A$298:$G$300,5,TRUE)))))))), (IF($B$15=2,(IF(2-$B$19=0, 0, (IF(2-$B$19=1,(VLOOKUP(1,Tablas!$A$298:$G$300,5,TRUE)), (IF(2-$B$19=2, (VLOOKUP(2,Tablas!$A$298:$G$300,5,TRUE)), 0)))))), (IF($B$15=1,(IF(1-$B$19=0, 0, (IF(1-$B$19=1,(VLOOKUP(1,Tablas!$A$298:$G$300,5,TRUE)),0)))),0))))))))))))))))))) -> 0
A34: Total de Prima neta | C34: =SUM(C31:C33) -> 84630 | D34: =SUM(D31:D33) -> 55994 | E34: =SUM(E31:E33) -> 37129
A35: Contribución 3.5% Superintendencia de Bancos Contribución 0.5% Seguro Social Campesino | C35: =C34*Tablas!$X$3 -> 3385.2 | D35: =D34*Tablas!$X$3 -> 2239.76 | E35: =75*Tablas!$X$2 -> 75
A36: VAT (5%)
A37: ITBMS (7%)
A38: TOTAL ANUAL | C38: =C34+C35 -> 88015.2 | D38: =D34+D35 -> 58233.76 | E38: =SUM(E34:E37) -> 37204
A39: Ahorros en tarifas de prima para Dependientes | C39: =IF($B$17=1,IF($B$15=0,0,IF($B$19=0,0,IF($B$19=1,(VLOOKUP(1,Tablas!$A$298:$G$300,3,TRUE)),(VLOOKUP(2,Tablas!$A$298:$G$300,3,TRUE))))), IF($B$15=0,0,IF($B$19=0,0,IF($B$19=1,(VLOOKUP(1,Tablas!$A$298:$G$300,3,TRUE)),IF($B$19=2,(VLOOKUP(2,Tablas!$A$298:$G$300,3,TRUE)), (VLOOKUP(3,Tablas!$A$298:$G$300,3,TRUE))))))) -> 10447 | D39: =IF($B$17=1,IF($B$15=0,0,IF($B$19=0,0,IF($B$19=1,(VLOOKUP(1,Tablas!$A$298:$G$300,4,TRUE)),(VLOOKUP(2,Tablas!$A$298:$G$300,4,TRUE))))), IF($B$15=0,0,IF($B$19=0,0,IF($B$19=1,(VLOOKUP(1,Tablas!$A$298:$G$300,4,TRUE)),IF($B$19=2,(VLOOKUP(2,Tablas!$A$298:$G$300,4,TRUE)), (VLOOKUP(3,Tablas!$A$298:$G$300,4,TRUE))))))) -> 7687 | E39: =IF($B$17=1,IF($B$15=0,0,IF($B$19=0,0,IF($B$19=1,(VLOOKUP(1,Tablas!$A$298:$G$300,5,TRUE)),(VLOOKUP(2,Tablas!$A$298:$G$300,5,TRUE))))), IF($B$15=0,0,IF($B$19=0,0,IF($B$19=1,(VLOOKUP(1,Tablas!$A$298:$G$300,5,TRUE)),IF($B$19=2,(VLOOKUP(2,Tablas!$A$298:$G$300,5,TRUE)), (VLOOKUP(3,Tablas!$A$298:$G$300,5,TRUE))))))) -> 0
A41: TARIFAS SEMIANUALES
A42: Prima para Asegurado Titular | C42: =(C31-75)*Tablas!$K$4+75 -> 19713.62 | D42: =(D31-75)*Tablas!$K$4+75 -> 12856.48 | E42: =VLOOKUP($B$21,Tablas!#REF!,5,TRUE) -> 
A43: Prima para conyuge | C43: =C32*Tablas!$K$4 -> 19638.62 | D43: =D32*Tablas!$K$4 -> 12781.48 | E43: =IF($B$17=1,0,(VLOOKUP($D$21,Tablas!#REF!,5,TRUE))) -> 
A44: Prima para hijo (s) | C44: =C33*Tablas!$K$4 -> 5536.91 | D44: =D33*Tablas!$K$4 -> 4074.11 | E44: =IF($B$17=1, (IF($B$15=0, 0, (IF($B$19>$B$15, (VLOOKUP($B$15,Tablas!#REF!,5,TRUE)), (IF($B$15>4,(IF($B$19=0, (VLOOKUP(3,Tablas!#REF!,5,TRUE)), (IF($B$19=1, (VLOOKUP(3,Tablas!#REF!,5,TRUE)), (IF($B$19=2, (VLOOKUP(3,Tablas!#REF!,5,TRUE)), (VLOOKUP(3,Tablas!#REF!,5,TRUE)))))))), (IF($B$15=4,(IF(4-$B$19=0,(VLOOKUP(2,Tablas!#REF!,5,TRUE)), (IF(4-$B$19=1,(VLOOKUP(2,Tablas!#REF!,5,TRUE)), (IF(4-$B$19=2, (VLOOKUP(2,Tablas!#REF!,5,TRUE)), (VLOOKUP(3,Tablas!#REF!,5,TRUE)))))))), (IF($B$15=3,(IF(3-$B$19=0,(VLOOKUP(1,Tablas!#REF!,5,TRUE)), (IF(3-$B$19=1,(VLOOKUP(1,Tablas!#REF!,5,TRUE)), (IF(3-$B$19=2, (VLOOKUP(2,Tablas!#REF!,5,TRUE)), (VLOOKUP(3,Tablas!#REF!,5,TRUE)))))))), (IF($B$15=2,(IF(2-$B$19=0, 0, (IF(2-$B$19=1,(VLOOKUP(1,Tablas!#REF!,5,TRUE)), (IF(2-$B$19=2, (VLOOKUP(2,Tablas!#REF!,5,TRUE)), 0)))))), (IF($B$15=1,(IF(1-$B$19=0, 0, (IF(1-$B$19=1,(VLOOKUP(1,Tablas!#REF!,5,TRUE)),0)))),0)))))))))))))), (IF($B$15=0, 0, (IF($B$19>$B$15, (VLOOKUP($B$15,Tablas!#REF!,5,TRUE)), (IF($B$15=4,(IF(4-$B$19=0, 0, (IF(4-$B$19=1, (VLOOKUP(1,Tablas!#REF!,5,TRUE)), (IF(4-$B$19=2, (VLOOKUP(2,Tablas!#REF!,5,TRUE)), (IF(4-$B$19=3, (VLOOKUP(3,Tablas!#REF!,5,TRUE)), (IF(4-$B$19=4, (VLOOKUP(3,Tablas!#REF!,5,TRUE)), 0)))))))))), (IF($B$15=5,(IF(5-$B$19=0, (VLOOKUP(1,Tablas!#REF!,5,TRUE)), (IF(5-$B$19=1, (VLOOKUP(1,Tablas!#REF!,5,TRUE)), (IF(5-$B$19=2, (VLOOKUP(2,Tablas!#REF!,5,TRUE)), (IF(5-$B$19=3, (VLOOKUP(3,Tablas!#REF!,5,TRUE)), (IF(5-$B$19=4, (VLOOKUP(3,Tablas!#REF!,5,TRUE)), (VLOOKUP(3,Tablas!#REF!,5,TRUE)))))))))))), (IF($B$15=6,(IF(6-$B$19=0, (VLOOKUP(2,Tablas!#REF!,5,TRUE)), (IF(6-$B$19=1, (VLOOKUP(2,Tablas!#REF!,5,TRUE)), (IF(6-$B$19=2, (VLOOKUP(2,Tablas!#REF!,5,TRUE)), (IF(6-$B$19=3, (VLOOKUP(3,Tablas!#REF!,5,TRUE)), (IF(6-$B$19=4, (VLOOKUP(3,Tablas!#REF!,5,TRUE)), (VLOOKUP(3,Tablas!#REF!,5,TRUE)))))))))))), (IF($B$15>6,(IF(7-$B$19=0, (VLOOKUP(3,Tablas!#REF!,5,TRUE)), (IF(7-$B$19=1, (VLOOKUP(3,Tablas!#REF!,5,TRUE)), (IF(7-$B$19=2, (VLOOKUP(3,Tablas!#REF!,5,TRUE)), (IF(7-$B$19=3, (VLOOKUP(3,Tablas!#REF!,5,TRUE)), (IF(7-$B$19=4, (VLOOKUP(3,Tablas!#REF!,5,TRUE)), (VLOOKUP(3,Tablas!#REF!,5,TRUE)))))))))))), (IF($B$15=3,(IF(3-$B$19=0,0, (IF(3-$B$19=1,(VLOOKUP(1,Tablas!#REF!,5,TRUE)), (IF(3-$B$19=2, (VLOOKUP(2,Tablas!#REF!,5,TRUE)), (VLOOKUP(3,Tablas!#REF!,5,TRUE)))))))), (IF($B$15=2,(IF(2-$B$19=0, 0, (IF(2-$B$19=1,(VLOOKUP(1,Tablas!#REF!,5,TRUE)), (IF(2-$B$19=2, (VLOOKUP(2,Tablas!#REF!,5,TRUE)), 0)))))), (IF($B$15=1,(IF(1-$B$19=0, 0, (IF(1-$B$19=1,(VLOOKUP(1,Tablas!#REF!,5,TRUE)),0)))),0))))))))))))))))))) -> 
A45: Total de Prima neta | C45: =SUM(C42:C44) -> 44889.15 | D45: =SUM(D42:D44) -> 29712.07 | E45: =SUM(E42:E44) -> 
A46: =A35 -> Contribución 3.5% Superintendencia de Bancos Contribución 0.5% Seguro Social Campesino | C46: =C45*Tablas!$X$3 -> 1795.566 | D46: =D45*Tablas!$X$3 -> 1188.4828 | E46: =75*Tablas!$X$2 -> 75
A47: VAT (5%)
A48: ITBMS (7%)
A49: TOTAL de primera cuota | C49: =SUM(C45:C48) -> 46684.716 | D49: =SUM(D45:D48) -> 30900.5528 | E49: =SUM(E45:E48) -> 
A50: Costo de segunda cuota | C50: =C45+C46-78 -> 46606.716 | D50: =D45+D46-78 -> 30822.5528 | E50: =(E45 + E47)+((E31+E32+E33)*0.06*0.07)/2 -> 
A51: TOTAL ANUAL | C51: =C49+C50 -> 93291.432 | D51: =D49+D50 -> 61723.1056 | E51: =E49+E50 -> 
A52: Ahorros en tarifas de prima para Dependientes | C52: =C39*Tablas!$K$4 -> 5536.91 | D52: =D39*Tablas!$K$4 -> 4074.11 | E52: =IF($B$17=1,IF($B$15=0,0,IF($B$19=0,0,IF($B$19=1,(VLOOKUP(1,Tablas!#REF!,5,TRUE)),(VLOOKUP(2,Tablas!#REF!,5,TRUE))))), IF($B$15=0,0,IF($B$19=0,0,IF($B$19=1,(VLOOKUP(1,Tablas!#REF!,5,TRUE)),IF($B$19=2,(VLOOKUP(2,Tablas!#REF!,5,TRUE)), (VLOOKUP(3,Tablas!#REF!,5,TRUE))))))) -> 
A54: TARIFAS TRIMESTRALES
A55: Prima para Asegurado Titular | C55: =(C31-75)*Tablas!K3+75 -> 10264.85 | D55: =(D31-75)*Tablas!K3+75 -> 6706.9 | E55: =VLOOKUP($B$21,Tablas!#REF!,5,TRUE) -> 
A56: Prima para conyuge | C56: =C32*Tablas!K3 -> 10189.85 | D56: =D32*Tablas!K3 -> 6631.9 | E56: =IF($B$17=1,0,(VLOOKUP($D$21,Tablas!#REF!,5,TRUE))) -> 
A57: Prima para hijo (s) | C57: =C33*Tablas!K3 -> 2872.925 | D57: =D33*Tablas!K3 -> 2113.925 | E57: =IF($B$17=1, (IF($B$15=0, 0, (IF($B$19>$B$15, (VLOOKUP($B$15,Tablas!#REF!,5,TRUE)), (IF($B$15>4,(IF($B$19=0, (VLOOKUP(3,Tablas!#REF!,5,TRUE)), (IF($B$19=1, (VLOOKUP(3,Tablas!#REF!,5,TRUE)), (IF($B$19=2, (VLOOKUP(3,Tablas!#REF!,5,TRUE)), (VLOOKUP(3,Tablas!#REF!,5,TRUE)))))))), (IF($B$15=4,(IF(4-$B$19=0,(VLOOKUP(2,Tablas!#REF!,5,TRUE)), (IF(4-$B$19=1,(VLOOKUP(2,Tablas!#REF!,5,TRUE)), (IF(4-$B$19=2, (VLOOKUP(2,Tablas!#REF!,5,TRUE)), (VLOOKUP(3,Tablas!#REF!,5,TRUE)))))))), (IF($B$15=3,(IF(3-$B$19=0,(VLOOKUP(1,Tablas!#REF!,5,TRUE)), (IF(3-$B$19=1,(VLOOKUP(1,Tablas!#REF!,5,TRUE)), (IF(3-$B$19=2, (VLOOKUP(2,Tablas!#REF!,5,TRUE)), (VLOOKUP(3,Tablas!#REF!,5,TRUE)))))))), (IF($B$15=2,(IF(2-$B$19=0, 0, (IF(2-$B$19=1,(VLOOKUP(1,Tablas!#REF!,5,TRUE)), (IF(2-$B$19=2, (VLOOKUP(2,Tablas!#REF!,5,TRUE)), 0)))))), (IF($B$15=1,(IF(1-$B$19=0, 0, (IF(1-$B$19=1,(VLOOKUP(1,Tablas!#REF!,5,TRUE)),0)))),0)))))))))))))), (IF($B$15=0, 0, (IF($B$19>$B$15, (VLOOKUP($B$15,Tablas!#REF!,5,TRUE)), (IF($B$15=4,(IF(4-$B$19=0, 0, (IF(4-$B$19=1, (VLOOKUP(1,Tablas!#REF!,5,TRUE)), (IF(4-$B$19=2, (VLOOKUP(2,Tablas!#REF!,5,TRUE)), (IF(4-$B$19=3, (VLOOKUP(3,Tablas!#REF!,5,TRUE)), (IF(4-$B$19=4, (VLOOKUP(3,Tablas!#REF!,5,TRUE)), 0)))))))))), (IF($B$15=5,(IF(5-$B$19=0, (VLOOKUP(1,Tablas!#REF!,5,TRUE)), (IF(5-$B$19=1, (VLOOKUP(1,Tablas!#REF!,5,TRUE)), (IF(5-$B$19=2, (VLOOKUP(2,Tablas!#REF!,5,TRUE)), (IF(5-$B$19=3, (VLOOKUP(3,Tablas!#REF!,5,TRUE)), (IF(5-$B$19=4, (VLOOKUP(3,Tablas!#REF!,5,TRUE)), (VLOOKUP(3,Tablas!#REF!,5,TRUE)))))))))))), (IF($B$15=6,(IF(6-$B$19=0, (VLOOKUP(2,Tablas!#REF!,5,TRUE)), (IF(6-$B$19=1, (VLOOKUP(2,Tablas!#REF!,5,TRUE)), (IF(6-$B$19=2, (VLOOKUP(2,Tablas!#REF!,5,TRUE)), (IF(6-$B$19=3, (VLOOKUP(3,Tablas!#REF!,5,TRUE)), (IF(6-$B$19=4, (VLOOKUP(3,Tablas!#REF!,5,TRUE)), (VLOOKUP(3,Tablas!#REF!,5,TRUE)))))))))))), (IF($B$15>6,(IF(7-$B$19=0, (VLOOKUP(3,Tablas!#REF!,5,TRUE)), (IF(7-$B$19=1, (VLOOKUP(3,Tablas!#REF!,5,TRUE)), (IF(7-$B$19=2, (VLOOKUP(3,Tablas!#REF!,5,TRUE)), (IF(7-$B$19=3, (VLOOKUP(3,Tablas!#REF!,5,TRUE)), (IF(7-$B$19=4, (VLOOKUP(3,Tablas!#REF!,5,TRUE)), (VLOOKUP(3,Tablas!#REF!,5,TRUE)))))))))))), (IF($B$15=3,(IF(3-$B$19=0,0, (IF(3-$B$19=1,(VLOOKUP(1,Tablas!#REF!,5,TRUE)), (IF(3-$B$19=2, (VLOOKUP(2,Tablas!#REF!,5,TRUE)), (VLOOKUP(3,Tablas!#REF!,5,TRUE)))))))), (IF($B$15=2,(IF(2-$B$19=0, 0, (IF(2-$B$19=1,(VLOOKUP(1,Tablas!#REF!,5,TRUE)), (IF(2-$B$19=2, (VLOOKUP(2,Tablas!#REF!,5,TRUE)), 0)))))), (IF($B$15=1,(IF(1-$B$19=0, 0, (IF(1-$B$19=1,(VLOOKUP(1,Tablas!#REF!,5,TRUE)),0)))),0))))))))))))))))))) -> 
A58: Total de Prima neta | C58: =SUM(C55:C57) -> 23327.625 | D58: =SUM(D55:D57) -> 15452.725 | E58: =SUM(E55:E57) -> 
A59: =A46 -> Contribución 3.5% Superintendencia de Bancos Contribución 0.5% Seguro Social Campesino | C59: =C58*Tablas!$X$3 -> 933.105 | D59: =D58*Tablas!$X$3 -> 618.109 | E59: =75*Tablas!$X$2 -> 75
A60: VAT (5%)
A61: ITBMS (7%)
A62: TOTAL de primera cuota | C62: =SUM(C58:C61) -> 24260.73 | D62: =SUM(D58:D61) -> 16070.834 | E62: =SUM(E58:E61) -> 
A63: Costo de tarifa trimestral 2 a 4 | C63: =C58+C59-78 -> 24182.73 | D63: =D58+D59-78 -> 15992.834 | E63: =(E58 + E60)+((E31+E32+E33)*0.1*0.07)/4 -> 
A64: TOTAL ANUAL | C64: =C62+(C63*3) -> 96808.92 | D64: =D62+(D63*3) -> 64049.336 | E64: =E62+(E63*3) -> 
A65: Ahorros en tarifas de prima para Dependientes | C65: =C39*Tablas!K3 -> 2872.925 | D65: =D39*Tablas!K3 -> 2113.925 | E65: =IF($B$17=1,IF($B$15=0,0,IF($B$19=0,0,IF($B$19=1,(VLOOKUP(1,Tablas!#REF!,5,TRUE)),(VLOOKUP(2,Tablas!#REF!,5,TRUE))))), IF($B$15=0,0,IF($B$19=0,0,IF($B$19=1,(VLOOKUP(1,Tablas!#REF!,5,TRUE)),IF($B$19=2,(VLOOKUP(2,Tablas!#REF!,5,TRUE)), (VLOOKUP(3,Tablas!#REF!,5,TRUE))))))) -> 
A67: TARIFAS MENSUALES
A68: Prima para Asegurado Titular | C68: =(C31-75)*Tablas!$K$2+75 -> 3533.373333 | D68: =(D31-75)*Tablas!$K$2+75 -> 2325.826667 | E68: =VLOOKUP($B$21,Tablas!#REF!,5,TRUE) -> 
A69: Prima para conyuge | C69: =C32*Tablas!$K$2 -> 3458.373333 | D69: =D32*Tablas!$K$2 -> 2250.826667 | E69: =IF($B$17=1,0,(VLOOKUP($D$21,Tablas!#REF!,5,TRUE))) -> 
A70: Prima para hijo (s) | C70: =C33*Tablas!$K$2 -> 975.0533333 | D70: =D33*Tablas!$K$2 -> 717.4533333 | E70: =IF($B$17=1, (IF($B$15=0, 0, (IF($B$19>$B$15, (VLOOKUP($B$15,Tablas!#REF!,5,TRUE)), (IF($B$15>4,(IF($B$19=0, (VLOOKUP(3,Tablas!#REF!,5,TRUE)), (IF($B$19=1, (VLOOKUP(3,Tablas!#REF!,5,TRUE)), (IF($B$19=2, (VLOOKUP(3,Tablas!#REF!,5,TRUE)), (VLOOKUP(3,Tablas!#REF!,5,TRUE)))))))), (IF($B$15=4,(IF(4-$B$19=0,(VLOOKUP(2,Tablas!#REF!,5,TRUE)), (IF(4-$B$19=1,(VLOOKUP(2,Tablas!#REF!,5,TRUE)), (IF(4-$B$19=2, (VLOOKUP(2,Tablas!#REF!,5,TRUE)), (VLOOKUP(3,Tablas!#REF!,5,TRUE)))))))), (IF($B$15=3,(IF(3-$B$19=0,(VLOOKUP(1,Tablas!#REF!,5,TRUE)), (IF(3-$B$19=1,(VLOOKUP(1,Tablas!#REF!,5,TRUE)), (IF(3-$B$19=2, (VLOOKUP(2,Tablas!#REF!,5,TRUE)), (VLOOKUP(3,Tablas!#REF!,5,TRUE)))))))), (IF($B$15=2,(IF(2-$B$19=0, 0, (IF(2-$B$19=1,(VLOOKUP(1,Tablas!#REF!,5,TRUE)), (IF(2-$B$19=2, (VLOOKUP(2,Tablas!#REF!,5,TRUE)), 0)))))), (IF($B$15=1,(IF(1-$B$19=0, 0, (IF(1-$B$19=1,(VLOOKUP(1,Tablas!#REF!,5,TRUE)),0)))),0)))))))))))))), (IF($B$15=0, 0, (IF($B$19>$B$15, (VLOOKUP($B$15,Tablas!#REF!,5,TRUE)), (IF($B$15=4,(IF(4-$B$19=0, 0, (IF(4-$B$19=1, (VLOOKUP(1,Tablas!#REF!,5,TRUE)), (IF(4-$B$19=2, (VLOOKUP(2,Tablas!#REF!,5,TRUE)), (IF(4-$B$19=3, (VLOOKUP(3,Tablas!#REF!,5,TRUE)), (IF(4-$B$19=4, (VLOOKUP(3,Tablas!#REF!,5,TRUE)), 0)))))))))), (IF($B$15=5,(IF(5-$B$19=0, (VLOOKUP(1,Tablas!#REF!,5,TRUE)), (IF(5-$B$19=1, (VLOOKUP(1,Tablas!#REF!,5,TRUE)), (IF(5-$B$19=2, (VLOOKUP(2,Tablas!#REF!,5,TRUE)), (IF(5-$B$19=3, (VLOOKUP(3,Tablas!#REF!,5,TRUE)), (IF(5-$B$19=4, (VLOOKUP(3,Tablas!#REF!,5,TRUE)), (VLOOKUP(3,Tablas!#REF!,5,TRUE)))))))))))), (IF($B$15=6,(IF(6-$B$19=0, (VLOOKUP(2,Tablas!#REF!,5,TRUE)), (IF(6-$B$19=1, (VLOOKUP(2,Tablas!#REF!,5,TRUE)), (IF(6-$B$19=2, (VLOOKUP(2,Tablas!#REF!,5,TRUE)), (IF(6-$B$19=3, (VLOOKUP(3,Tablas!#REF!,5,TRUE)), (IF(6-$B$19=4, (VLOOKUP(3,Tablas!#REF!,5,TRUE)), (VLOOKUP(3,Tablas!#REF!,5,TRUE)))))))))))), (IF($B$15>6,(IF(7-$B$19=0, (VLOOKUP(3,Tablas!#REF!,5,TRUE)), (IF(7-$B$19=1, (VLOOKUP(3,Tablas!#REF!,5,TRUE)), (IF(7-$B$19=2, (VLOOKUP(3,Tablas!#REF!,5,TRUE)), (IF(7-$B$19=3, (VLOOKUP(3,Tablas!#REF!,5,TRUE)), (IF(7-$B$19=4, (VLOOKUP(3,Tablas!#REF!,5,TRUE)), (VLOOKUP(3,Tablas!#REF!,5,TRUE)))))))))))), (IF($B$15=3,(IF(3-$B$19=0,0, (IF(3-$B$19=1,(VLOOKUP(1,Tablas!#REF!,5,TRUE)), (IF(3-$B$19=2, (VLOOKUP(2,Tablas!#REF!,5,TRUE)), (VLOOKUP(3,Tablas!#REF!,5,TRUE)))))))), (IF($B$15=2,(IF(2-$B$19=0, 0, (IF(2-$B$19=1,(VLOOKUP(1,Tablas!#REF!,5,TRUE)), (IF(2-$B$19=2, (VLOOKUP(2,Tablas!#REF!,5,TRUE)), 0)))))), (IF($B$15=1,(IF(1-$B$19=0, 0, (IF(1-$B$19=1,(VLOOKUP(1,Tablas!#REF!,5,TRUE)),0)))),0))))))))))))))))))) -> 
A71: Total de Prima neta | C71: =SUM(C68:C70) -> 7966.8 | D71: =SUM(D68:D70) -> 5294.106667 | E71: =SUM(E68:E70) -> 
A72: =A59 -> Contribución 3.5% Superintendencia de Bancos Contribución 0.5% Seguro Social Campesino | C72: =C71*Tablas!$X$3 -> 318.672 | D72: =D71*Tablas!$X$3 -> 211.7642667 | E72: =75*Tablas!$X$2 -> 75
A73: VAT (5%)
A74: ITBMS (7%)
A75: TOTAL de primera cuota | C75: =SUM(C71:C74) -> 8285.472 | D75: =SUM(D71:D74) -> 5505.870933 | E75: =SUM(E71:E74) -> 
A76: Costo de Tarifa mensual de 2 a 12 | C76: =C71+C72-78 -> 8207.472 | D76: =D71+D72-78 -> 5427.870933 | E76: =(E71 + E73)+((E31+E32+E33)*0.12*0.07)/12 -> 
A77: TOTAL ANUAL | C77: =C75+(C76*11) -> 98567.664 | D77: =D75+(D76*11) -> 65212.4512 | E77: =E75+(E76*11) -> 
A78: Ahorros en tarifas de prima para Dependientes | C78: =C39*Tablas!K2 -> 975.0533333 | D78: =D39*Tablas!K2 -> 717.4533333 | E78: =IF($B$17=1,IF($B$15=0,0,IF($B$19=0,0,IF($B$19=1,(VLOOKUP(1,Tablas!#REF!,5,TRUE)),(VLOOKUP(2,Tablas!#REF!,5,TRUE))))), IF($B$15=0,0,IF($B$19=0,0,IF($B$19=1,(VLOOKUP(1,Tablas!#REF!,5,TRUE)),IF($B$19=2,(VLOOKUP(2,Tablas!#REF!,5,TRUE)), (VLOOKUP(3,Tablas!#REF!,5,TRUE))))))) -> 
A80: Este presupuesto solamente tiene carácter informativo y en ningún momento expresa compromiso legal para suministrarle cobertura de seguro. La emisión de una póliza de seguro Bupa está sujeta a todas las evaluaciones de riesgo por parte de Bupa y a la recepción de todos los pagos de prima requeridos.

Sheet Global Elite
K1: RESUMEN DE BENEFICIOS | Z1: RESUMEN DE BENEFICIOS | AO1: RESUMEN DE BENEFICIOS
A5: Cotización de Seguro Médico Internacional Global Elite Health Plan Tarifas en US$ | Validas: 1 de enero de 2025 | G5: REGIÓN
G7: ='INGRESO DE DATOS'!W20 -> Resto de Ecuador
A13: Nombre del Asegurado Titular | B13: =+'INGRESO DE DATOS'!$C$37 -> John Doe
A15: Número de adultos en la póliza | B15: =+'INGRESO DE DATOS'!$C$39 -> 2
A17: Número de Dependientes en la póliza | B17: =+'INGRESO DE DATOS'!$C$41 -> 2 | C17: =IF('INGRESO DE DATOS'!$P$2=TRUE, "Cotización para dependiente de 24 años","") -> 
A19: Número de Dependientes menores de 10 años | B19: =+'INGRESO DE DATOS'!$H$42 -> 1
A21: Edad del Asegurado Titular | B21: =+'INGRESO DE DATOS'!$C$43 -> 32 | E21: Edad del/la conyuge | G21: =+'INGRESO DE DATOS'!$C$45 -> 32 | L21: FALSE | AA21: FALSE | AP21: FALSE
A23: Fecha de la cotización | B23: =NOW() -> 2025-01-07T11:38:50.610
A25: =IF('INGRESO DE DATOS'!P3=TRUE,"Variante con coaseguro fuera del país de residencia: SI","Variante con coaseguro fuera del país de residencia: NO") -> Variante con coaseguro fuera del país de residencia: NO
A27: DEDUCIBlES | C27: PLAN 1 | D27: PLAN 2 | E27: PLAN 3 | F27: PLAN 4 | G27: PLAN 5
A28: En el país de residencia | C28: 250 | D28: 2000 | E28: 3500 | F28: 5000 | G28: 10000
A29: Fuera del país de residencia | C29: 5000 | D29: 2000 | E29: 3500 | F29: 5000 | G29: 10000
A31: TARIFAS ANUALES
A32: Prima para Asegurado Titular | C32: =VLOOKUP($B$21,Tablas!$A$6:$G$72,3,TRUE)+75 -> 13350.3 | D32: =VLOOKUP($B$21,Tablas!$A$6:$G$72,4,TRUE)+75 -> 11714.05 | E32: =VLOOKUP($B$21,Tablas!$A$6:$G$72,5,TRUE)+75 -> 8921.8 | F32: =VLOOKUP($B$21,Tablas!$A$6:$G$72,6,TRUE)+75 -> 7595.8 | G32: =VLOOKUP($B$21,Tablas!$A$6:$G$72,7,TRUE)+75 -> 5889.85
A33: Prima para conyuge | C33: =IF($B$15=1,0,(VLOOKUP($G$21,Tablas!$A$6:$G$72,3,TRUE))) -> 13275.3 | D33: =IF($B$15=1,0,(VLOOKUP($G$21,Tablas!$A$6:$G$72,4,TRUE))) -> 11639.05 | E33: =IF($B$15=1,0,(VLOOKUP($G$21,Tablas!$A$6:$G$72,5,TRUE))) -> 8846.8 | F33: =IF($B$15=1,0,(VLOOKUP($G$21,Tablas!$A$6:$G$72,6,TRUE))) -> 7520.8 | G33: =IF($B$15=1,0,(VLOOKUP($G$21,Tablas!$A$6:$G$72,7,TRUE))) -> 5814.85
A34: Prima para hijo (s) | C34: =IF($B$15=1, (IF($B$17=0, 0, (IF($B$19>$B$17, (VLOOKUP($B$17,Tablas!$A$73:$G$75,3,TRUE)), (IF($B$17>4,(IF($B$19=0, (VLOOKUP(3,Tablas!$A$73:$G$75,3,TRUE)), (IF($B$19=1, (VLOOKUP(3,Tablas!$A$73:$G$75,3,TRUE)), (IF($B$19=2, (VLOOKUP(3,Tablas!$A$73:$G$75,3,TRUE)), (VLOOKUP(3,Tablas!$A$73:$G$75,3,TRUE)))))))), (IF($B$17=4,(IF(4-$B$19=0,(VLOOKUP(2,Tablas!$A$73:$G$75,3,TRUE)), (IF(4-$B$19=1,(VLOOKUP(2,Tablas!$A$73:$G$75,3,TRUE)), (IF(4-$B$19=2, (VLOOKUP(2,Tablas!$A$73:$G$75,3,TRUE)), (VLOOKUP(3,Tablas!$A$73:$G$75,3,TRUE)))))))), (IF($B$17=3,(IF(3-$B$19=0,(VLOOKUP(1,Tablas!$A$73:$G$75,3,TRUE)), (IF(3-$B$19=1,(VLOOKUP(1,Tablas!$A$73:$G$75,3,TRUE)), (IF(3-$B$19=2, (VLOOKUP(2,Tablas!$A$73:$G$75,3,TRUE)), (VLOOKUP(3,Tablas!$A$73:$G$75,3,TRUE)))))))), (IF($B$17=2,(IF(2-$B$19=0, 0, (IF(2-$B$19=1,(VLOOKUP(1,Tablas!$A$73:$G$75,3,TRUE)), (IF(2-$B$19=2, (VLOOKUP(2,Tablas!$A$73:$G$75,3,TRUE)), 0)))))), (IF($B$17=1,(IF(1-$B$19=0, 0, (IF(1-$B$19=1,(VLOOKUP(1,Tablas!$A$73:$G$75,3,TRUE)),0)))),0)))))))))))))), (IF($B$17=0, 0, (IF($B$19>$B$17, (VLOOKUP($B$17,Tablas!$A$73:$G$75,3,TRUE)), (IF($B$17=4,(IF(4-$B$19=0, 0, (IF(4-$B$19=1, (VLOOKUP(1,Tablas!$A$73:$G$75,3,TRUE)), (IF(4-$B$19=2, (VLOOKUP(2,Tablas!$A$73:$G$75,3,TRUE)), (IF(4-$B$19=3, (VLOOKUP(3,Tablas!$A$73:$G$75,3,TRUE)), (IF(4-$B$19=4, (VLOOKUP(3,Tablas!$A$73:$G$75,3,TRUE)), 0)))))))))), (IF($B$17=5,(IF(5-$B$19=0, (VLOOKUP(1,Tablas!$A$73:$G$75,3,TRUE)), (IF(5-$B$19=1, (VLOOKUP(1,Tablas!$A$73:$G$75,3,TRUE)), (IF(5-$B$19=2, (VLOOKUP(2,Tablas!$A$73:$G$75,3,TRUE)), (IF(5-$B$19=3, (VLOOKUP(3,Tablas!$A$73:$G$75,3,TRUE)), (IF(5-$B$19=4, (VLOOKUP(3,Tablas!$A$73:$G$75,3,TRUE)), (VLOOKUP(3,Tablas!$A$73:$G$75,3,TRUE)))))))))))), (IF($B$17=6,(IF(6-$B$19=0, (VLOOKUP(2,Tablas!$A$73:$G$75,3,TRUE)), (IF(6-$B$19=1, (VLOOKUP(2,Tablas!$A$73:$G$75,3,TRUE)), (IF(6-$B$19=2, (VLOOKUP(2,Tablas!$A$73:$G$75,3,TRUE)), (IF(6-$B$19=3, (VLOOKUP(3,Tablas!$A$73:$G$75,3,TRUE)), (IF(6-$B$19=4, (VLOOKUP(3,Tablas!$A$73:$G$75,3,TRUE)), (VLOOKUP(3,Tablas!$A$73:$G$75,3,TRUE)))))))))))), (IF($B$17>6,(IF(7-$B$19=0, (VLOOKUP(3,Tablas!$A$73:$G$75,3,TRUE)), (IF(7-$B$19=1, (VLOOKUP(3,Tablas!$A$73:$G$75,3,TRUE)), (IF(7-$B$19=2, (VLOOKUP(3,Tablas!$A$73:$G$75,3,TRUE)), (IF(7-$B$19=3, (VLOOKUP(3,Tablas!$A$73:$G$75,3,TRUE)), (IF(7-$B$19=4, (VLOOKUP(3,Tablas!$A$73:$G$75,3,TRUE)), (VLOOKUP(3,Tablas!$A$73:$G$75,3,TRUE)))))))))))), (IF($B$17=3,(IF(3-$B$19=0,0, (IF(3-$B$19=1,(VLOOKUP(1,Tablas!$A$73:$G$75,3,TRUE)), (IF(3-$B$19=2, (VLOOKUP(2,Tablas!$A$73:$G$75,3,TRUE)), (VLOOKUP(3,Tablas!$A$73:$G$75,3,TRUE)))))))), (IF($B$17=2,(IF(2-$B$19=0, 0, (IF(2-$B$19=1,(VLOOKUP(1,Tablas!$A$73:$G$75,3,TRUE)), (IF(2-$B$19=2, (VLOOKUP(2,Tablas!$A$73:$G$75,3,TRUE)), 0)))))), (IF($B$17=1,(IF(1-$B$19=0, 0, (IF(1-$B$19=1,(VLOOKUP(1,Tablas!$A$73:$G$75,3,TRUE)),0)))),0))))))))))))))))))) -> 2731.9 | D34: =IF($B$15=1, (IF($B$17=0, 0, (IF($B$19>$B$17, (VLOOKUP($B$17,Tablas!$A$73:$G$75,4,TRUE)), (IF($B$17>4,(IF($B$19=0, (VLOOKUP(3,Tablas!$A$73:$G$75,4,TRUE)), (IF($B$19=1, (VLOOKUP(3,Tablas!$A$73:$G$75,4,TRUE)), (IF($B$19=2, (VLOOKUP(3,Tablas!$A$73:$G$75,4,TRUE)), (VLOOKUP(3,Tablas!$A$73:$G$75,4,TRUE)))))))), (IF($B$17=4,(IF(4-$B$19=0,(VLOOKUP(2,Tablas!$A$73:$G$75,4,TRUE)), (IF(4-$B$19=1,(VLOOKUP(2,Tablas!$A$73:$G$75,4,TRUE)), (IF(4-$B$19=2, (VLOOKUP(2,Tablas!$A$73:$G$75,4,TRUE)), (VLOOKUP(3,Tablas!$A$73:$G$75,4,TRUE)))))))), (IF($B$17=3,(IF(3-$B$19=0,(VLOOKUP(1,Tablas!$A$73:$G$75,4,TRUE)), (IF(3-$B$19=1,(VLOOKUP(1,Tablas!$A$73:$G$75,4,TRUE)), (IF(3-$B$19=2, (VLOOKUP(2,Tablas!$A$73:$G$75,4,TRUE)), (VLOOKUP(3,Tablas!$A$73:$G$75,4,TRUE)))))))), (IF($B$17=2,(IF(2-$B$19=0, 0, (IF(2-$B$19=1,(VLOOKUP(1,Tablas!$A$73:$G$75,4,TRUE)), (IF(2-$B$19=2, (VLOOKUP(2,Tablas!$A$73:$G$75,4,TRUE)), 0)))))), (IF($B$17=1,(IF(1-$B$19=0, 0, (IF(1-$B$19=1,(VLOOKUP(1,Tablas!$A$73:$G$75,4,TRUE)),0)))),0)))))))))))))), (IF($B$17=0, 0, (IF($B$19>$B$17, (VLOOKUP($B$17,Tablas!$A$73:$G$75,4,TRUE)), (IF($B$17=4,(IF(4-$B$19=0, 0, (IF(4-$B$19=1, (VLOOKUP(1,Tablas!$A$73:$G$75,4,TRUE)), (IF(4-$B$19=2, (VLOOKUP(2,Tablas!$A$73:$G$75,4,TRUE)), (IF(4-$B$19=3, (VLOOKUP(3,Tablas!$A$73:$G$75,4,TRUE)), (IF(4-$B$19=4, (VLOOKUP(3,Tablas!$A$73:$G$75,4,TRUE)), 0)))))))))), (IF($B$17=5,(IF(5-$B$19=0, (VLOOKUP(1,Tablas!$A$73:$G$75,4,TRUE)), (IF(5-$B$19=1, (VLOOKUP(1,Tablas!$A$73:$G$75,4,TRUE)), (IF(5-$B$19=2, (VLOOKUP(2,Tablas!$A$73:$G$75,4,TRUE)), (IF(5-$B$19=3, (VLOOKUP(3,Tablas!$A$73:$G$75,4,TRUE)), (IF(5-$B$19=4, (VLOOKUP(3,Tablas!$A$73:$G$75,4,TRUE)), (VLOOKUP(3,Tablas!$A$73:$G$75,4,TRUE)))))))))))), (IF($B$17=6,(IF(6-$B$19=0, (VLOOKUP(2,Tablas!$A$73:$G$75,4,TRUE)), (IF(6-$B$19=1, (VLOOKUP(2,Tablas!$A$73:$G$75,4,TRUE)), (IF(6-$B$19=2, (VLOOKUP(2,Tablas!$A$73:$G$75,4,TRUE)), (IF(6-$B$19=3, (VLOOKUP(3,Tablas!$A$73:$G$75,4,TRUE)), (IF(6-$B$19=4, (VLOOKUP(3,Tablas!$A$73:$G$75,4,TRUE)), (VLOOKUP(3,Tablas!$A$73:$G$75,4,TRUE)))))))))))), (IF($B$17>6,(IF(7-$B$19=0, (VLOOKUP(3,Tablas!$A$73:$G$75,4,TRUE)), (IF(7-$B$19=1, (VLOOKUP(3,Tablas!$A$73:$G$75,4,TRUE)), (IF(7-$B$19=2, (VLOOKUP(3,Tablas!$A$73:$G$75,4,TRUE)), (IF(7-$B$19=3, (VLOOKUP(3,Tablas!$A$73:$G$75,4,TRUE)), (IF(7-$B$19=4, (VLOOKUP(3,Tablas!$A$73:$G$75,4,TRUE)), (VLOOKUP(3,Tablas!$A$73:$G$75,4,TRUE)))))))))))), (IF($B$17=3,(IF(3-$B$19=0,0, (IF(3-$B$19=1,(VLOOKUP(1,Tablas!$A$73:$G$75,4,TRUE)), (IF(3-$B$19=2, (VLOOKUP(2,Tablas!$A$73:$G$75,4,TRUE)), (VLOOKUP(3,Tablas!$A$73:$G$75,4,TRUE)))))))), (IF($B$17=2,(IF(2-$B$19=0, 0, (IF(2-$B$19=1,(VLOOKUP(1,Tablas!$A$73:$G$75,4,TRUE)), (IF(2-$B$19=2, (VLOOKUP(2,Tablas!$A$73:$G$75,4,TRUE)), 0)))))), (IF($B$17=1,(IF(1-$B$19=0, 0, (IF(1-$B$19=1,(VLOOKUP(1,Tablas!$A$73:$G$75,4,TRUE)),0)))),0))))))))))))))))))) -> 1626.05 | E34: =IF($B$15=1, (IF($B$17=0, 0, (IF($B$19>$B$17, (VLOOKUP($B$17,Tablas!$A$73:$G$75,5,TRUE)), (IF($B$17>4,(IF($B$19=0, (VLOOKUP(3,Tablas!$A$73:$G$75,5,TRUE)), (IF($B$19=1, (VLOOKUP(3,Tablas!$A$73:$G$75,5,TRUE)), (IF($B$19=2, (VLOOKUP(3,Tablas!$A$73:$G$75,5,TRUE)), (VLOOKUP(3,Tablas!$A$73:$G$75,5,TRUE)))))))), (IF($B$17=4,(IF(4-$B$19=0,(VLOOKUP(2,Tablas!$A$73:$G$75,5,TRUE)), (IF(4-$B$19=1,(VLOOKUP(2,Tablas!$A$73:$G$75,5,TRUE)), (IF(4-$B$19=2, (VLOOKUP(2,Tablas!$A$73:$G$75,5,TRUE)), (VLOOKUP(3,Tablas!$A$73:$G$75,5,TRUE)))))))), (IF($B$17=3,(IF(3-$B$19=0,(VLOOKUP(1,Tablas!$A$73:$G$75,5,TRUE)), (IF(3-$B$19=1,(VLOOKUP(1,Tablas!$A$73:$G$75,5,TRUE)), (IF(3-$B$19=2, (VLOOKUP(2,Tablas!$A$73:$G$75,5,TRUE)), (VLOOKUP(3,Tablas!$A$73:$G$75,5,TRUE)))))))), (IF($B$17=2,(IF(2-$B$19=0, 0, (IF(2-$B$19=1,(VLOOKUP(1,Tablas!$A$73:$G$75,5,TRUE)), (IF(2-$B$19=2, (VLOOKUP(2,Tablas!$A$73:$G$75,5,TRUE)), 0)))))), (IF($B$17=1,(IF(1-$B$19=0, 0, (IF(1-$B$19=1,(VLOOKUP(1,Tablas!$A$73:$G$75,5,TRUE)),0)))),0)))))))))))))), (IF($B$17=0, 0, (IF($B$19>$B$17, (VLOOKUP($B$17,Tablas!$A$73:$G$75,5,TRUE)), (IF($B$17=4,(IF(4-$B$19=0, 0, (IF(4-$B$19=1, (VLOOKUP(1,Tablas!$A$73:$G$75,5,TRUE)), (IF(4-$B$19=2, (VLOOKUP(2,Tablas!$A$73:$G$75,5,TRUE)), (IF(4-$B$19=3, (VLOOKUP(3,Tablas!$A$73:$G$75,5,TRUE)), (IF(4-$B$19=4, (VLOOKUP(3,Tablas!$A$73:$G$75,5,TRUE)), 0)))))))))), (IF($B$17=5,(IF(5-$B$19=0, (VLOOKUP(1,Tablas!$A$73:$G$75,5,TRUE)), (IF(5-$B$19=1, (VLOOKUP(1,Tablas!$A$73:$G$75,5,TRUE)), (IF(5-$B$19=2, (VLOOKUP(2,Tablas!$A$73:$G$75,5,TRUE)), (IF(5-$B$19=3, (VLOOKUP(3,Tablas!$A$73:$G$75,5,TRUE)), (IF(5-$B$19=4, (VLOOKUP(3,Tablas!$A$73:$G$75,5,TRUE)), (VLOOKUP(3,Tablas!$A$73:$G$75,5,TRUE)))))))))))), (IF($B$17=6,(IF(6-$B$19=0, (VLOOKUP(2,Tablas!$A$73:$G$75,5,TRUE)), (IF(6-$B$19=1, (VLOOKUP(2,Tablas!$A$73:$G$75,5,TRUE)), (IF(6-$B$19=2, (VLOOKUP(2,Tablas!$A$73:$G$75,5,TRUE)), (IF(6-$B$19=3, (VLOOKUP(3,Tablas!$A$73:$G$75,5,TRUE)), (IF(6-$B$19=4, (VLOOKUP(3,Tablas!$A$73:$G$75,5,TRUE)), (VLOOKUP(3,Tablas!$A$73:$G$75,5,TRUE)))))))))))), (IF($B$17>6,(IF(7-$B$19=0, (VLOOKUP(3,Tablas!$A$73:$G$75,5,TRUE)), (IF(7-$B$19=1, (VLOOKUP(3,Tablas!$A$73:$G$75,5,TRUE)), (IF(7-$B$19=2, (VLOOKUP(3,Tablas!$A$73:$G$75,5,TRUE)), (IF(7-$B$19=3, (VLOOKUP(3,Tablas!$A$73:$G$75,5,TRUE)), (IF(7-$B$19=4, (VLOOKUP(3,Tablas!$A$73:$G$75,5,TRUE)), (VLOOKUP(3,Tablas!$A$73:$G$75,5,TRUE)))))))))))), (IF($B$17=3,(IF(3-$B$19=0,0, (IF(3-$B$19=1,(VLOOKUP(1,Tablas!$A$73:$G$75,5,TRUE)), (IF(3-$B$19=2, (VLOOKUP(2,Tablas!$A$73:$G$75,5,TRUE)), (VLOOKUP(3,Tablas!$A$73:$G$75,5,TRUE)))))))), (IF($B$17=2,(IF(2-$B$19=0, 0, (IF(2-$B$19=1,(VLOOKUP(1,Tablas!$A$73:$G$75,5,TRUE)), (IF(2-$B$19=2, (VLOOKUP(2,Tablas!$A$73:$G$75,5,TRUE)), 0)))))), (IF($B$17=1,(IF(1-$B$19=0, 0, (IF(1-$B$19=1,(VLOOKUP(1,Tablas!$A$73:$G$75,5,TRUE)),0)))),0))))))))))))))))))) -> 1178.95 | F34: =IF($B$15=1, (IF($B$17=0, 0, (IF($B$19>$B$17, (VLOOKUP($B$17,Tablas!$A$73:$G$75,6,TRUE)), (IF($B$17>4,(IF($B$19=0, (VLOOKUP(3,Tablas!$A$73:$G$75,6,TRUE)), (IF($B$19=1, (VLOOKUP(3,Tablas!$A$73:$G$75,6,TRUE)), (IF($B$19=2, (VLOOKUP(3,Tablas!$A$73:$G$75,6,TRUE)), (VLOOKUP(3,Tablas!$A$73:$G$75,6,TRUE)))))))), (IF($B$17=4,(IF(4-$B$19=0,(VLOOKUP(2,Tablas!$A$73:$G$75,6,TRUE)), (IF(4-$B$19=1,(VLOOKUP(2,Tablas!$A$73:$G$75,6,TRUE)), (IF(4-$B$19=2, (VLOOKUP(2,Tablas!$A$73:$G$75,6,TRUE)), (VLOOKUP(3,Tablas!$A$73:$G$75,6,TRUE)))))))), (IF($B$17=3,(IF(3-$B$19=0,(VLOOKUP(1,Tablas!$A$73:$G$75,6,TRUE)), (IF(3-$B$19=1,(VLOOKUP(1,Tablas!$A$73:$G$75,6,TRUE)), (IF(3-$B$19=2, (VLOOKUP(2,Tablas!$A$73:$G$75,6,TRUE)), (VLOOKUP(3,Tablas!$A$73:$G$75,6,TRUE)))))))), (IF($B$17=2,(IF(2-$B$19=0, 0, (IF(2-$B$19=1,(VLOOKUP(1,Tablas!$A$73:$G$75,6,TRUE)), (IF(2-$B$19=2, (VLOOKUP(2,Tablas!$A$73:$G$75,6,TRUE)), 0)))))), (IF($B$17=1,(IF(1-$B$19=0, 0, (IF(1-$B$19=1,(VLOOKUP(1,Tablas!$A$73:$G$75,6,TRUE)),0)))),0)))))))))))))), (IF($B$17=0, 0, (IF($B$19>$B$17, (VLOOKUP($B$17,Tablas!$A$73:$G$75,6,TRUE)), (IF($B$17=4,(IF(4-$B$19=0, 0, (IF(4-$B$19=1, (VLOOKUP(1,Tablas!$A$73:$G$75,6,TRUE)), (IF(4-$B$19=2, (VLOOKUP(2,Tablas!$A$73:$G$75,6,TRUE)), (IF(4-$B$19=3, (VLOOKUP(3,Tablas!$A$73:$G$75,6,TRUE)), (IF(4-$B$19=4, (VLOOKUP(3,Tablas!$A$73:$G$75,6,TRUE)), 0)))))))))), (IF($B$17=5,(IF(5-$B$19=0, (VLOOKUP(1,Tablas!$A$73:$G$75,6,TRUE)), (IF(5-$B$19=1, (VLOOKUP(1,Tablas!$A$73:$G$75,6,TRUE)), (IF(5-$B$19=2, (VLOOKUP(2,Tablas!$A$73:$G$75,6,TRUE)), (IF(5-$B$19=3, (VLOOKUP(3,Tablas!$A$73:$G$75,6,TRUE)), (IF(5-$B$19=4, (VLOOKUP(3,Tablas!$A$73:$G$75,6,TRUE)), (VLOOKUP(3,Tablas!$A$73:$G$75,6,TRUE)))))))))))), (IF($B$17=6,(IF(6-$B$19=0, (VLOOKUP(2,Tablas!$A$73:$G$75,6,TRUE)), (IF(6-$B$19=1, (VLOOKUP(2,Tablas!$A$73:$G$75,6,TRUE)), (IF(6-$B$19=2, (VLOOKUP(2,Tablas!$A$73:$G$75,6,TRUE)), (IF(6-$B$19=3, (VLOOKUP(3,Tablas!$A$73:$G$75,6,TRUE)), (IF(6-$B$19=4, (VLOOKUP(3,Tablas!$A$73:$G$75,6,TRUE)), (VLOOKUP(3,Tablas!$A$73:$G$75,6,TRUE)))))))))))), (IF($B$17>6,(IF(7-$B$19=0, (VLOOKUP(3,Tablas!$A$73:$G$75,6,TRUE)), (IF(7-$B$19=1, (VLOOKUP(3,Tablas!$A$73:$G$75,6,TRUE)), (IF(7-$B$19=2, (VLOOKUP(3,Tablas!$A$73:$G$75,6,TRUE)), (IF(7-$B$19=3, (VLOOKUP(3,Tablas!$A$73:$G$75,6,TRUE)), (IF(7-$B$19=4, (VLOOKUP(3,Tablas!$A$73:$G$75,6,TRUE)), (VLOOKUP(3,Tablas!$A$73:$G$75,6,TRUE)))))))))))), (IF($B$17=3,(IF(3-$B$19=0,0, (IF(3-$B$19=1,(VLOOKUP(1,Tablas!$A$73:$G$75,6,TRUE)), (IF(3-$B$19=2, (VLOOKUP(2,Tablas!$A$73:$G$75,6,TRUE)), (VLOOKUP(3,Tablas!$A$73:$G$75,6,TRUE)))))))), (IF($B$17=2,(IF(2-$B$19=0, 0, (IF(2-$B$19=1,(VLOOKUP(1,Tablas!$A$73:$G$75,6,TRUE)), (IF(2-$B$19=2, (VLOOKUP(2,Tablas!$A$73:$G$75,6,TRUE)), 0)))))), (IF($B$17=1,(IF(1-$B$19=0, 0, (IF(1-$B$19=1,(VLOOKUP(1,Tablas!$A$73:$G$75,6,TRUE)),0)))),0))))))))))))))))))) -> 1093.95 | G34: =IF($B$15=1, (IF($B$17=0, 0, (IF($B$19>$B$17, (VLOOKUP($B$17,Tablas!$A$73:$G$75,7,TRUE)), (IF($B$17>4,(IF($B$19=0, (VLOOKUP(3,Tablas!$A$73:$G$75,7,TRUE)), (IF($B$19=1, (VLOOKUP(3,Tablas!$A$73:$G$75,7,TRUE)), (IF($B$19=2, (VLOOKUP(3,Tablas!$A$73:$G$75,7,TRUE)), (VLOOKUP(3,Tablas!$A$73:$G$75,7,TRUE)))))))), (IF($B$17=4,(IF(4-$B$19=0,(VLOOKUP(2,Tablas!$A$73:$G$75,7,TRUE)), (IF(4-$B$19=1,(VLOOKUP(2,Tablas!$A$73:$G$75,7,TRUE)), (IF(4-$B$19=2, (VLOOKUP(2,Tablas!$A$73:$G$75,7,TRUE)), (VLOOKUP(3,Tablas!$A$73:$G$75,7,TRUE)))))))), (IF($B$17=3,(IF(3-$B$19=0,(VLOOKUP(1,Tablas!$A$73:$G$75,7,TRUE)), (IF(3-$B$19=1,(VLOOKUP(1,Tablas!$A$73:$G$75,7,TRUE)), (IF(3-$B$19=2, (VLOOKUP(2,Tablas!$A$73:$G$75,7,TRUE)), (VLOOKUP(3,Tablas!$A$73:$G$75,7,TRUE)))))))), (IF($B$17=2,(IF(2-$B$19=0, 0, (IF(2-$B$19=1,(VLOOKUP(1,Tablas!$A$73:$G$75,7,TRUE)), (IF(2-$B$19=2, (VLOOKUP(2,Tablas!$A$73:$G$75,7,TRUE)), 0)))))), (IF($B$17=1,(IF(1-$B$19=0, 0, (IF(1-$B$19=1,(VLOOKUP(1,Tablas!$A$73:$G$75,7,TRUE)),0)))),0)))))))))))))), (IF($B$17=0, 0, (IF($B$19>$B$17, (VLOOKUP($B$17,Tablas!$A$73:$G$75,7,TRUE)), (IF($B$17=4,(IF(4-$B$19=0, 0, (IF(4-$B$19=1, (VLOOKUP(1,Tablas!$A$73:$G$75,7,TRUE)), (IF(4-$B$19=2, (VLOOKUP(2,Tablas!$A$73:$G$75,7,TRUE)), (IF(4-$B$19=3, (VLOOKUP(3,Tablas!$A$73:$G$75,7,TRUE)), (IF(4-$B$19=4, (VLOOKUP(3,Tablas!$A$73:$G$75,7,TRUE)), 0)))))))))), (IF($B$17=5,(IF(5-$B$19=0, (VLOOKUP(1,Tablas!$A$73:$G$75,7,TRUE)), (IF(5-$B$19=1, (VLOOKUP(1,Tablas!$A$73:$G$75,7,TRUE)), (IF(5-$B$19=2, (VLOOKUP(2,Tablas!$A$73:$G$75,7,TRUE)), (IF(5-$B$19=3, (VLOOKUP(3,Tablas!$A$73:$G$75,7,TRUE)), (IF(5-$B$19=4, (VLOOKUP(3,Tablas!$A$73:$G$75,7,TRUE)), (VLOOKUP(3,Tablas!$A$73:$G$75,7,TRUE)))))))))))), (IF($B$17=6,(IF(6-$B$19=0, (VLOOKUP(2,Tablas!$A$73:$G$75,7,TRUE)), (IF(6-$B$19=1, (VLOOKUP(2,Tablas!$A$73:$G$75,7,TRUE)), (IF(6-$B$19=2, (VLOOKUP(2,Tablas!$A$73:$G$75,7,TRUE)), (IF(6-$B$19=3, (VLOOKUP(3,Tablas!$A$73:$G$75,7,TRUE)), (IF(6-$B$19=4, (VLOOKUP(3,Tablas!$A$73:$G$75,7,TRUE)), (VLOOKUP(3,Tablas!$A$73:$G$75,7,TRUE)))))))))))), (IF($B$17>6,(IF(7-$B$19=0, (VLOOKUP(3,Tablas!$A$73:$G$75,7,TRUE)), (IF(7-$B$19=1, (VLOOKUP(3,Tablas!$A$73:$G$75,7,TRUE)), (IF(7-$B$19=2, (VLOOKUP(3,Tablas!$A$73:$G$75,7,TRUE)), (IF(7-$B$19=3, (VLOOKUP(3,Tablas!$A$73:$G$75,7,TRUE)), (IF(7-$B$19=4, (VLOOKUP(3,Tablas!$A$73:$G$75,7,TRUE)), (VLOOKUP(3,Tablas!$A$73:$G$75,7,TRUE)))))))))))), (IF($B$17=3,(IF(3-$B$19=0,0, (IF(3-$B$19=1,(VLOOKUP(1,Tablas!$A$73:$G$75,7,TRUE)), (IF(3-$B$19=2, (VLOOKUP(2,Tablas!$A$73:$G$75,7,TRUE)), (VLOOKUP(3,Tablas!$A$73:$G$75,7,TRUE)))))))), (IF($B$17=2,(IF(2-$B$19=0, 0, (IF(2-$B$19=1,(VLOOKUP(1,Tablas!$A$73:$G$75,7,TRUE)), (IF(2-$B$19=2, (VLOOKUP(2,Tablas!$A$73:$G$75,7,TRUE)), 0)))))), (IF($B$17=1,(IF(1-$B$19=0, 0, (IF(1-$B$19=1,(VLOOKUP(1,Tablas!$A$73:$G$75,7,TRUE)),0)))),0))))))))))))))))))) -> 1373.6
A35: Total de Prima neta | C35: =SUM(C32:C34) -> 29357.5 | D35: =SUM(D32:D34) -> 24979.15 | E35: =SUM(E32:E34) -> 18947.55 | F35: =SUM(F32:F34) -> 16210.55 | G35: =SUM(G32:G34) -> 13078.3
A36: Ajuste por la variante con coaseguro fuera del país de residencia | C36: =IF('INGRESO DE DATOS'!$P$3,C35*-15%,0) -> 0 | D36: =IF('INGRESO DE DATOS'!$P$3,D35*-15%,0) -> 0 | E36: =IF('INGRESO DE DATOS'!$P$3,E35*-15%,0) -> 0 | F36: =IF('INGRESO DE DATOS'!$P$3,F35*-15%,0) -> 0 | G36: =IF('INGRESO DE DATOS'!$P$3,G35*-15%,0) -> 0
A37: Contribución 3.5% Superintendencia de Bancos Contribución 0.5% Seguro Social Campesino | C37: =C35*Tablas!$X$3 -> 1174.3 | D37: =D35*Tablas!$X$3 -> 999.166 | E37: =E35*Tablas!$X$3 -> 757.902 | F37: =F35*Tablas!$X$3 -> 648.422 | G37: =G35*Tablas!$X$3 -> 523.132
A38: VAT (5%) :
A39: ITBMS (7%)
A40: TOTAL ANUAL | C40: =SUM(C35:C39) -> 30531.8 | D40: =SUM(D35:D39) -> 25978.316 | E40: =SUM(E35:E39) -> 19705.452 | F40: =SUM(F35:F39) -> 16858.972 | G40: =SUM(G35:G39) -> 13601.432
A41: Ahorros en tarifas de prima para Dependientes | C41: =IF($B$15=1,IF($B$17=0,0,IF($B$19=0,0,IF($B$19=1,(VLOOKUP(1,Tablas!$A$73:$G$75,3,TRUE)),(VLOOKUP(2,Tablas!$A$73:$G$75,3,TRUE))))), IF($B$17=0,0,IF($B$19=0,0,IF($B$19=1,(VLOOKUP(1,Tablas!$A$73:$G$75,3,TRUE)),IF($B$19=2,(VLOOKUP(2,Tablas!$A$73:$G$75,3,TRUE)), (VLOOKUP(3,Tablas!$A$73:$G$75,3,TRUE))))))) -> 2731.9 | D41: =IF($B$15=1,IF($B$17=0,0,IF($B$19=0,0,IF($B$19=1,(VLOOKUP(1,Tablas!$A$73:$G$75,4,TRUE)),(VLOOKUP(2,Tablas!$A$73:$G$75,4,TRUE))))), IF($B$17=0,0,IF($B$19=0,0,IF($B$19=1,(VLOOKUP(1,Tablas!$A$73:$G$75,4,TRUE)),IF($B$19=2,(VLOOKUP(2,Tablas!$A$73:$G$75,4,TRUE)), (VLOOKUP(3,Tablas!$A$73:$G$75,4,TRUE))))))) -> 1626.05 | E41: =IF($B$15=1,IF($B$17=0,0,IF($B$19=0,0,IF($B$19=1,(VLOOKUP(1,Tablas!$A$73:$G$75,5,TRUE)),(VLOOKUP(2,Tablas!$A$73:$G$75,5,TRUE))))), IF($B$17=0,0,IF($B$19=0,0,IF($B$19=1,(VLOOKUP(1,Tablas!$A$73:$G$75,5,TRUE)),IF($B$19=2,(VLOOKUP(2,Tablas!$A$73:$G$75,5,TRUE)), (VLOOKUP(3,Tablas!$A$73:$G$75,5,TRUE))))))) -> 1178.95 | F41: =IF($B$15=1,IF($B$17=0,0,IF($B$19=0,0,IF($B$19=1,(VLOOKUP(1,Tablas!$A$73:$G$75,6,TRUE)),(VLOOKUP(2,Tablas!$A$73:$G$75,6,TRUE))))), IF($B$17=0,0,IF($B$19=0,0,IF($B$19=1,(VLOOKUP(1,Tablas!$A$73:$G$75,6,TRUE)),IF($B$19=2,(VLOOKUP(2,Tablas!$A$73:$G$75,6,TRUE)), (VLOOKUP(3,Tablas!$A$73:$G$75,6,TRUE))))))) -> 1093.95 | G41: =IF($B$15=1,IF($B$17=0,0,IF($B$19=0,0,IF($B$19=1,(VLOOKUP(1,Tablas!$A$73:$G$75,7,TRUE)),(VLOOKUP(2,Tablas!$A$73:$G$75,7,TRUE))))), IF($B$17=0,0,IF($B$19=0,0,IF($B$19=1,(VLOOKUP(1,Tablas!$A$73:$G$75,7,TRUE)),IF($B$19=2,(VLOOKUP(2,Tablas!$A$73:$G$75,7,TRUE)), (VLOOKUP(3,Tablas!$A$73:$G$75,7,TRUE))))))) -> 1373.6
A43: TARIFAS SEMIANUALES
A44: Prima para Asegurado Titular | C44: =(C32-75)*Tablas!$K$4+75 -> 7110.909 | D44: =(D32-75)*Tablas!$K$4+75 -> 6243.6965 | E44: =(E32-75)*Tablas!$K$4+75 -> 4763.804 | F44: =(F32-75)*Tablas!$K$4+75 -> 4061.024 | G44: =(G32-75)*Tablas!$K$4+75 -> 3156.8705
A45: Prima para conyuge | C45: =C33*Tablas!$K$4 -> 7035.909 | D45: =D33*Tablas!$K$4 -> 6168.6965 | E45: =E33*Tablas!$K$4 -> 4688.804 | F45: =F33*Tablas!$K$4 -> 3986.024 | G45: =G33*Tablas!$K$4 -> 3081.8705
A46: Prima para hijo (s) | C46: =C34*Tablas!$K$4 -> 1447.907 | D46: =D34*Tablas!$K$4 -> 861.8065 | E46: =E34*Tablas!$K$4 -> 624.8435 | F46: =F34*Tablas!$K$4 -> 579.7935 | G46: =G34*Tablas!$K$4 -> 728.008
A47: Total de Prima neta | C47: =SUM(C44:C46) -> 15594.725 | D47: =SUM(D44:D46) -> 13274.1995 | E47: =SUM(E44:E46) -> 10077.4515 | F47: =SUM(F44:F46) -> 8626.8415 | G47: =SUM(G44:G46) -> 6966.749
A48: Ajuste por la variante con coaseguro fuera del país de residencia | C48: =IF('INGRESO DE DATOS'!$P$3,C47*-15%,0) -> 0 | D48: =IF('INGRESO DE DATOS'!$P$3,D47*-15%,0) -> 0 | E48: =IF('INGRESO DE DATOS'!$P$3,E47*-15%,0) -> 0 | F48: =IF('INGRESO DE DATOS'!$P$3,F47*-15%,0) -> 0 | G48: =IF('INGRESO DE DATOS'!$P$3,G47*-15%,0) -> 0
A49: =A37 -> Contribución 3.5% Superintendencia de Bancos Contribución 0.5% Seguro Social Campesino | C49: =C47*Tablas!$X$3 -> 623.789 | D49: =D47*Tablas!$X$3 -> 530.96798 | E49: =E47*Tablas!$X$3 -> 403.09806 | F49: =F47*Tablas!$X$3 -> 345.07366 | G49: =G47*Tablas!$X$3 -> 278.66996
A50: VAT (5%) :
A51: ITBMS (7%)
A52: TOTAL de primera cuota | C52: =SUM(C47:C51) -> 16218.514 | D52: =SUM(D47:D51) -> 13805.16748 | E52: =SUM(E47:E51) -> 10480.54956 | F52: =SUM(F47:F51) -> 8971.91516 | G52: =SUM(G47:G51) -> 7245.41896
A53: Costo de segunda cuota | C53: =C47+C49-78 -> 16140.514 | D53: =D47+D49-78 -> 13727.16748 | E53: 10402.54956 | F53: 8893.91516 | G53: 7167.41896
A54: TOTAL ANUAL | C54: =C52+C53 -> 32359.028 | D54: =D52+D53 -> 27532.33496 | E54: =E52+E53 -> 20883.09912 | F54: =F52+F53 -> 17865.83032 | G54: =G52+G53 -> 14412.83792
A55: Ahorros en tarifas de prima para Dependientes | C55: =C41*Tablas!$K$4 -> 1447.907 | D55: =D41*Tablas!$K$4 -> 861.8065 | E55: =E41*Tablas!$K$4 -> 624.8435 | F55: =F41*Tablas!$K$4 -> 579.7935 | G55: =G41*Tablas!$K$4 -> 728.008
A57: TARIFAS TRIMESTRALES
A58: Prima para Asegurado Titular | C58: =(C32-75)*Tablas!$K$3+75 -> 3725.7075 | D58: =(D32-75)*Tablas!$K$3+75 -> 3275.73875 | E58: =(E32-75)*Tablas!$K$3+75 -> 2507.87 | F58: =(F32-75)*Tablas!$K$3+75 -> 2143.22 | G58: =(G32-75)*Tablas!$K$3+75 -> 1674.08375
A59: Prima para conyuge | C59: =C33*Tablas!$K$3 -> 3650.7075 | D59: =D33*Tablas!$K$3 -> 3200.73875 | E59: =E33*Tablas!$K$3 -> 2432.87 | F59: =F33*Tablas!$K$3 -> 2068.22 | G59: =G33*Tablas!$K$3 -> 1599.08375
A60: Prima para hijo (s) | C60: =C34*Tablas!$K$3 -> 751.2725 | D60: =D34*Tablas!$K$3 -> 447.16375 | E60: =E34*Tablas!$K$3 -> 324.21125 | F60: =F34*Tablas!$K$3 -> 300.83625 | G60: =G34*Tablas!$K$3 -> 377.74
A61: Total de Prima neta | C61: =SUM(C58:C60) -> 8127.6875 | D61: =SUM(D58:D60) -> 6923.64125 | E61: =SUM(E58:E60) -> 5264.95125 | F61: =SUM(F58:F60) -> 4512.27625 | G61: =SUM(G58:G60) -> 3650.9075
A62: Ajuste por la variante con coaseguro fuera del país de residencia | C62: =IF('INGRESO DE DATOS'!$P$3,C61*-15%,0) -> 0 | D62: =IF('INGRESO DE DATOS'!$P$3,D61*-15%,0) -> 0 | E62: =IF('INGRESO DE DATOS'!$P$3,E61*-15%,0) -> 0 | F62: =IF('INGRESO DE DATOS'!$P$3,F61*-15%,0) -> 0 | G62: =IF('INGRESO DE DATOS'!$P$3,G61*-15%,0) -> 0
A63: =A37 -> Contribución 3.5% Superintendencia de Bancos Contribución 0.5% Seguro Social Campesino | C63: =C61*Tablas!$X$3 -> 325.1075 | D63: =D61*Tablas!$X$3 -> 276.94565 | E63: =E61*Tablas!$X$3 -> 210.59805 | F63: =F61*Tablas!$X$3 -> 180.49105 | G63: =G61*Tablas!$X$3 -> 146.0363
A64: VAT (5%) :
A65: ITBMS (7%)
A66: TOTAL de primera cuota | C66: =SUM(C61:C65) -> 8452.795 | D66: =SUM(D61:D65) -> 7200.5869 | E66: =SUM(E61:E65) -> 5475.5493 | F66: =SUM(F61:F65) -> 4692.7673 | G66: =SUM(G61:G65) -> 3796.9438
A67: Costo de tarifa trimestral 2 a 4 | C67: =C61+C63-78 -> 8374.795 | D67: =D61+D63-78 -> 7122.5869 | E67: 5397.5493 | F67: 4614.7673 | G67: 3718.9438
A68: TOTAL ANUAL | C68: =C66+(C67*3) -> 33577.18 | D68: =D66+(D67*3) -> 28568.3476 | E68: =E66+(E67*3) -> 21668.1972 | F68: =F66+(F67*3) -> 18537.0692 | G68: =G66+(G67*3) -> 14953.7752
A69: Ahorros en tarifas de prima para Dependientes | C69: =C41*Tablas!$K$3 -> 751.2725 | D69: =D41*Tablas!$K$3 -> 447.16375 | E69: =E41*Tablas!$K$3 -> 324.21125 | F69: =F41*Tablas!$K$3 -> 300.83625 | G69: =G41*Tablas!$K$3 -> 377.74
A71: TARIFAS MENSUALES
A72: Prima para Asegurado Titular | C72: =(C32-75)*Tablas!$K$2+75 -> 1314.028 | D72: =(D32-75)*Tablas!$K$2+75 -> 1161.311333 | E72: =(E32-75)*Tablas!$K$2+75 -> 900.7013333 | F72: =(F32-75)*Tablas!$K$2+75 -> 776.9413333 | G72: =(G32-75)*Tablas!$K$2+75 -> 617.7193333
A73: Prima para conyuge | C73: =C33*Tablas!$K$2 -> 1239.028 | D73: =D33*Tablas!$K$2 -> 1086.311333 | E73: =E33*Tablas!$K$2 -> 825.7013333 | F73: =F33*Tablas!$K$2 -> 701.9413333 | G73: =G33*Tablas!$K$2 -> 542.7193333
A74: Prima para hijo (s) | C74: =C34*Tablas!$K$2 -> 254.9773333 | D74: =D34*Tablas!$K$2 -> 151.7646667 | E74: =E34*Tablas!$K$2 -> 110.0353333 | F74: =F34*Tablas!$K$2 -> 102.102 | G74: =G34*Tablas!$K$2 -> 128.2026667
A75: Total de Prima neta | C75: =SUM(C72:C74) -> 2808.033333 | D75: =SUM(D72:D74) -> 2399.387333 | E75: =SUM(E72:E74) -> 1836.438 | F75: =SUM(F72:F74) -> 1580.984667 | G75: =SUM(G72:G74) -> 1288.641333
A76: Ajuste por la variante con coaseguro fuera del país de residencia | C76: =IF('INGRESO DE DATOS'!$P$3,C75*-15%,0) -> 0 | D76: =IF('INGRESO DE DATOS'!$P$3,D75*-15%,0) -> 0 | E76: =IF('INGRESO DE DATOS'!$P$3,E75*-15%,0) -> 0 | F76: =IF('INGRESO DE DATOS'!$P$3,F75*-15%,0) -> 0 | G76: =IF('INGRESO DE DATOS'!$P$3,G75*-15%,0) -> 0
A77: =A63 -> Contribución 3.5% Superintendencia de Bancos Contribución 0.5% Seguro Social Campesino | C77: =C75*Tablas!$X$3 -> 112.3213333 | D77: =D75*Tablas!$X$3 -> 95.97549333 | E77: =E75*Tablas!$X$3 -> 73.45752 | F77: =F75*Tablas!$X$3 -> 63.23938667 | G77: =G75*Tablas!$X$3 -> 51.54565333
A78: VAT (5%) :
A79: ITBMS (7%)
A80: TOTAL de primera cuota | C80: =SUM(C75:C79) -> 2920.354667 | D80: =SUM(D75:D79) -> 2495.362827 | E80: =SUM(E75:E79) -> 1909.89552 | F80: =SUM(F75:F79) -> 1644.224053 | G80: =SUM(G75:G79) -> 1340.186987
A81: Costo de Tarifa mensual de 2 a 12 | C81: =C75+C77-78 -> 2842.354667 | D81: =D75+D77-78 -> 2417.362827 | E81: 1831.89552 | F81: 1566.224053 | G81: 1262.186987
A82: TOTAL ANUAL | C82: =C80+(C81*11) -> 34186.256 | D82: =D80+(D81*11) -> 29086.35392 | E82: =E80+(E81*11) -> 22060.74624 | F82: =F80+(F81*11) -> 18872.68864 | G82: =G80+(G81*11) -> 15224.24384
A83: Ahorros en tarifas de prima para Dependientes | C83: =C41*Tablas!$K$2 -> 254.9773333 | D83: =D41*Tablas!$K$2 -> 151.7646667 | E83: =E41*Tablas!$K$2 -> 110.0353333 | F83: =F41*Tablas!$K$2 -> 102.102 | G83: =G41*Tablas!$K$2 -> 128.2026667
A85: Este presupuesto solamente tiene carácter informativo y en ningún momento expresa compromiso legal para suministrarle cobertura de seguro. La emisión de una póliza de seguro Bupa está sujeta a todas las evaluaciones de riesgo por parte de Bupa y a la recepción de todos los pagos de prima requeridos.

Sheet Global Premier
J1: RESUMEN DE BENEFICIOS | Y1: RESUMEN DE BENEFICIOS | AN1: RESUMEN DE BENEFICIOS
A5: Cotización de Seguro Médico Internacional Global Premier Health Plan Tarifas en US$ | Validas: 1 de enero de 2025 | G5: REGIÓN
G7: ='INGRESO DE DATOS'!W20 -> Resto de Ecuador
A13: Nombre del Asegurado Titular | B13: =+'INGRESO DE DATOS'!$C$37 -> John Doe
A15: Número de adultos en la póliza | B15: =+'INGRESO DE DATOS'!$C$39 -> 2
A17: Número de Dependientes en la póliza | B17: =+'INGRESO DE DATOS'!$C$41 -> 2 | C17: =IF('INGRESO DE DATOS'!$P$2=TRUE, "Cotización para dependiente de 24 años","") -> 
A19: Edad del Asegurado Titular | B19: =+'INGRESO DE DATOS'!$C$43 -> 32 | D19: Edad del/la conyuge | G19: =+'INGRESO DE DATOS'!$C$45 -> 32
A21: Fecha de la cotización | B21: =NOW() -> 2025-01-07T11:38:50.610 | K21: FALSE | Z21: FALSE | AO21: FALSE
A23: =IF('INGRESO DE DATOS'!P3=TRUE,"Variante con coaseguro fuera del país de residencia: SI","Variante con coaseguro fuera del país de residencia: NO") -> Variante con coaseguro fuera del país de residencia: NO
A25: Deducibles | C25: PLAN 1 | D25: PLAN 2 | E25: PLAN 3 | F25: PLAN 4 | G25: PLAN 5
A26: En el país de residencia | C26: 250 | D26: 2000 | E26: 5000 | F26: 10000 | G26: 20000
A27: Fuera del país de residencia | C27: 5000 | D27: 2000 | E27: 5000 | F27: 10000 | G27: 20000
A29: TARIFAS ANUALES
A30: Prima para Asegurado Titular | C30: =VLOOKUP($B$19,Tablas!$A$81:$G$147,3,TRUE)+75 -> 8496.8 | D30: =VLOOKUP($B$19,Tablas!$A$81:$G$147,4,TRUE)+75 -> 7359.5 | E30: =VLOOKUP($B$19,Tablas!$A$81:$G$147,5,TRUE)+75 -> 5486.95 | F30: =VLOOKUP($B$19,Tablas!$A$81:$G$147,6,TRUE)+75 -> 3846.45 | G30: =VLOOKUP($B$19,Tablas!$A$81:$G$147,7,TRUE)+75 -> 3033
A31: Prima para conyuge | C31: =IF($B$15=1,0,(VLOOKUP($G$19,Tablas!$A$81:$G$147,3,TRUE))) -> 8421.8 | D31: =IF($B$15=1,0,(VLOOKUP($G$19,Tablas!$A$81:$G$147,4,TRUE))) -> 7284.5 | E31: =IF($B$15=1,0,(VLOOKUP($G$19,Tablas!$A$81:$G$147,5,TRUE))) -> 5411.95 | F31: =IF($B$15=1,0,(VLOOKUP($G$19,Tablas!$A$81:$G$147,6,TRUE))) -> 3771.45 | G31: =IF($B$15=1,0,(VLOOKUP($G$19,Tablas!$A$81:$G$147,7,TRUE))) -> 2958
A32: Prima para hijo (s) | C32: =IF($B$17=0,0,(VLOOKUP($B$17,Tablas!$A$148:$G$150,3,TRUE))) -> 1445.85 | D32: =IF($B$17=0,0,(VLOOKUP($B$17,Tablas!$A$148:$G$150,4,TRUE))) -> 1403.35 | E32: =IF($B$17=0,0,(VLOOKUP($B$17,Tablas!$A$148:$G$150,5,TRUE))) -> 1309.85 | F32: =IF($B$17=0,0,(VLOOKUP($B$17,Tablas!$A$148:$G$150,6,TRUE))) -> 1059.95 | G32: =IF($B$17=0,0,(VLOOKUP($B$17,Tablas!$A$148:$G$150,7,TRUE))) -> 950.3
A33: Total de Prima neta | C33: =SUM(C30:C32) -> 18364.45 | D33: =SUM(D30:D32) -> 16047.35 | E33: =SUM(E30:E32) -> 12208.75 | F33: =SUM(F30:F32) -> 8677.85 | G33: =SUM(G30:G32) -> 6941.3
A34: Contribución 3.5% Superintendencia de Bancos Contribución 0.5% Seguro Social Campesino | C34: =C33*Tablas!$X$3 -> 734.578 | D34: =D33*Tablas!$X$3 -> 641.894 | E34: =E33*Tablas!$X$3 -> 488.35 | F34: =F33*Tablas!$X$3 -> 347.114 | G34: =G33*Tablas!$X$3 -> 277.652
A35: VAT (5%) :
A36: ITBMS (7%)
A37: TOTAL ANUAL | C37: =SUM(C33:C36) -> 19099.028 | D37: =SUM(D33:D36) -> 16689.244 | E37: =SUM(E33:E36) -> 12697.1 | F37: =SUM(F33:F36) -> 9024.964 | G37: =SUM(G33:G36) -> 7218.952
A39: TARIFAS SEMESTRALES
A40: Prima para Asegurado Titular | C40: =(C30-75)*Tablas!$K$4+75 -> 4538.554 | D40: =(D30-75)*Tablas!$K$4+75 -> 3935.785 | E40: =(E30-75)*Tablas!$K$4+75 -> 2943.3335 | F40: =(F30-75)*Tablas!$K$4+75 -> 2073.8685 | G40: =(G30-75)*Tablas!$K$4+75 -> 1642.74
A41: Prima para conyuge | C41: =C31*Tablas!$K$4 -> 4463.554 | D41: =D31*Tablas!$K$4 -> 3860.785 | E41: =E31*Tablas!$K$4 -> 2868.3335 | F41: =F31*Tablas!$K$4 -> 1998.8685 | G41: =G31*Tablas!$K$4 -> 1567.74
A42: Prima para hijo (s) | C42: =C32*Tablas!$K$4 -> 766.3005 | D42: =D32*Tablas!$K$4 -> 743.7755 | E42: =E32*Tablas!$K$4 -> 694.2205 | F42: =F32*Tablas!$K$4 -> 561.7735 | G42: =G32*Tablas!$K$4 -> 503.659
A43: Total de Prima neta | C43: =SUM(C40:C42) -> 9768.4085 | D43: =SUM(D40:D42) -> 8540.3455 | E43: =SUM(E40:E42) -> 6505.8875 | F43: =SUM(F40:F42) -> 4634.5105 | G43: =SUM(G40:G42) -> 3714.139
A44: Ajuste por la variante con coaseguro fuera del país de residencia | C44: =IF('INGRESO DE DATOS'!$P$3,C43*-15%,0) -> 0 | D44: =IF('INGRESO DE DATOS'!$P$3,D43*-15%,0) -> 0 | E44: =IF('INGRESO DE DATOS'!$P$3,E43*-15%,0) -> 0 | F44: =IF('INGRESO DE DATOS'!$P$3,F43*-15%,0) -> 0
A45: =A34 -> Contribución 3.5% Superintendencia de Bancos Contribución 0.5% Seguro Social Campesino | C45: =C43*Tablas!$X$3 -> 390.73634 | D45: =D43*Tablas!$X$3 -> 341.61382 | E45: =E43*Tablas!$X$3 -> 260.2355 | F45: =F43*Tablas!$X$3 -> 185.38042 | G45: =G43*Tablas!$X$3 -> 148.56556
A46: VAT (5%) :
A47: ITBMS (7%)
A48: TOTAL de primera cuota | C48: =SUM(C43:C47) -> 10159.14484 | D48: =SUM(D43:D47) -> 8881.95932 | E48: =SUM(E43:E47) -> 6766.123 | F48: =SUM(F43:F47) -> 4819.89092 | G48: =SUM(G43:G47) -> 3862.70456
A49: Costo de segunda cuota | C49: =C43+C45-78 -> 10081.14484 | D49: =D43+D45-78 -> 8803.95932 | E49: 6688.123 | F49: 4741.89092 | G49: =G43+G45-78 -> 3784.70456
A50: TOTAL ANUAL | C50: =C48+C49 -> 20240.28968 | D50: =D48+D49 -> 17685.91864 | E50: =E48+E49 -> 13454.246 | F50: =F48+F49 -> 9561.78184 | G50: =G48+G49 -> 7647.40912
A52: TARIFAS TRIMESTRALES
A53: Prima para Asegurado Titular | C53: =(C30-75)*Tablas!$K$3+75 -> 2390.995 | D53: =(D30-75)*Tablas!$K$3+75 -> 2078.2375 | E53: =(E30-75)*Tablas!$K$3+75 -> 1563.28625 | F53: =(F30-75)*Tablas!$K$3+75 -> 1112.14875 | G53: =(G30-75)*Tablas!$K$3+75 -> 888.45
A54: Prima para conyuge | C54: =C31*Tablas!$K$3 -> 2315.995 | D54: =D31*Tablas!$K$3 -> 2003.2375 | E54: =E31*Tablas!$K$3 -> 1488.28625 | F54: =F31*Tablas!$K$3 -> 1037.14875 | G54: =G31*Tablas!$K$3 -> 813.45
A55: Prima para hijo (s) | C55: =C32*Tablas!$K$3 -> 397.60875 | D55: =D32*Tablas!$K$3 -> 385.92125 | E55: =E32*Tablas!$K$3 -> 360.20875 | F55: =F32*Tablas!$K$3 -> 291.48625 | G55: =G32*Tablas!$K$3 -> 261.3325
A56: Total de Prima neta | C56: =SUM(C53:C55) -> 5104.59875 | D56: =SUM(D53:D55) -> 4467.39625 | E56: =SUM(E53:E55) -> 3411.78125 | F56: =SUM(F53:F55) -> 2440.78375 | G56: =SUM(G53:G55) -> 1963.2325
A57: Ajuste por la variante con coaseguro fuera del país de residencia | C57: =IF('INGRESO DE DATOS'!$P$3,C56*-15%,0) -> 0 | D57: =IF('INGRESO DE DATOS'!$P$3,D56*-15%,0) -> 0 | E57: =IF('INGRESO DE DATOS'!$P$3,E56*-15%,0) -> 0 | F57: =IF('INGRESO DE DATOS'!$P$3,F56*-15%,0) -> 0
A58: =A34 -> Contribución 3.5% Superintendencia de Bancos Contribución 0.5% Seguro Social Campesino | C58: =C56*Tablas!$X$3 -> 204.18395 | D58: =D56*Tablas!$X$3 -> 178.69585 | E58: =E56*Tablas!$X$3 -> 136.47125 | F58: =F56*Tablas!$X$3 -> 97.63135 | G58: =G56*Tablas!$X$3 -> 78.5293
A59: VAT (5%) :
A60: ITBMS (7%)
A61: TOTAL de primera cuota | C61: =SUM(C56:C60) -> 5308.7827 | D61: =SUM(D56:D60) -> 4646.0921 | E61: =SUM(E56:E60) -> 3548.2525 | F61: =SUM(F56:F60) -> 2538.4151 | G61: =SUM(G56:G60) -> 2041.7618
A62: Costo de tarifa trimestral 2 a 4 | C62: =C56+C58-78 -> 5230.7827 | D62: =D56+D58-78 -> 4568.0921 | E62: 3470.2525 | F62: 2460.4151 | G62: =G56+G58-78 -> 1963.7618
A63: TOTAL ANUAL | C63: =C61+(C62*3) -> 21001.1308 | D63: =D61+(D62*3) -> 18350.3684 | E63: =E61+(E62*3) -> 13959.01 | F63: =F61+(F62*3) -> 9919.6604 | G63: =G61+(G62*3) -> 7933.0472
A65: TARIFAS MENSUALES
A66: Prima para Asegurado Titular | C66: =(C30-75)*Tablas!$K$2+75 -> 861.0346667 | D66: =(D30-75)*Tablas!$K$2+75 -> 754.8866667 | E66: =(E30-75)*Tablas!$K$2+75 -> 580.1153333 | F66: =(F30-75)*Tablas!$K$2+75 -> 427.002 | G66: =(G30-75)*Tablas!$K$2+75 -> 351.08
A67: Prima para conyuge | C67: =C31*Tablas!$K$2 -> 786.0346667 | D67: =D31*Tablas!$K$2 -> 679.8866667 | E67: =E31*Tablas!$K$2 -> 505.1153333 | F67: =F31*Tablas!$K$2 -> 352.002 | G67: =G31*Tablas!$K$2 -> 276.08
A68: Prima para hijo (s) | C68: =C32*Tablas!$K$2 -> 134.946 | D68: =D32*Tablas!$K$2 -> 130.9793333 | E68: =E32*Tablas!$K$2 -> 122.2526667 | F68: =F32*Tablas!$K$2 -> 98.92866667 | G68: =G32*Tablas!$K$2 -> 88.69466667
A69: Total de Prima neta | C69: =SUM(C66:C68) -> 1782.015333 | D69: =SUM(D66:D68) -> 1565.752667 | E69: =SUM(E66:E68) -> 1207.483333 | F69: =SUM(F66:F68) -> 877.9326667 | G69: =SUM(G66:G68) -> 715.8546667
A70: Ajuste por la variante con coaseguro fuera del país de residencia | C70: =IF('INGRESO DE DATOS'!$P$3,C69*-15%,0) -> 0 | D70: =IF('INGRESO DE DATOS'!$P$3,D69*-15%,0) -> 0 | E70: =IF('INGRESO DE DATOS'!$P$3,E69*-15%,0) -> 0 | F70: =IF('INGRESO DE DATOS'!$P$3,F69*-15%,0) -> 0
A71: =A58 -> Contribución 3.5% Superintendencia de Bancos Contribución 0.5% Seguro Social Campesino | C71: =C69*Tablas!$X$3 -> 71.28061333 | D71: =D69*Tablas!$X$3 -> 62.63010667 | E71: =E69*Tablas!$X$3 -> 48.29933333 | F71: =F69*Tablas!$X$3 -> 35.11730667 | G71: =G69*Tablas!$X$3 -> 28.63418667
A72: VAT (5%) :
A73: ITBMS (7%)
A74: TOTAL de primera cuota | C74: =SUM(C69:C73) -> 1853.295947 | D74: =SUM(D69:D73) -> 1628.382773 | E74: =SUM(E69:E73) -> 1255.782667 | F74: =SUM(F69:F73) -> 913.0499733 | G74: =SUM(G69:G73) -> 744.4888533
A75: Costo de Tarifa mensual de 2 a 12 | C75: =C69+C71-78 -> 1775.295947 | D75: =D69+D71-78 -> 1550.382773 | E75: 1177.782667 | F75: 835.0499733 | G75: =G69+G71-78 -> 666.4888533
A76: TOTAL ANUAL | C76: =C74+(C75*11) -> 21381.55136 | D76: =D74+(D75*11) -> 18682.59328 | E76: =E74+(E75*11) -> 14211.392 | F76: =F74+(F75*11) -> 10098.59968 | G76: =G74+(G75*11) -> 8075.86624
A78: Este presupuesto solamente tiene carácter informativo y en ningún momento expresa compromiso legal para suministrarle cobertura de seguro. La emisión de una póliza de seguro Bupa está sujeta a todas las evaluaciones de riesgo por parte de Bupa y a la recepción de todos los pagos de prima requeridos.

Sheet Global Select
J1: RESUMEN DE BENEFICIOS | Y1: RESUMEN DE BENEFICIOS | AN1: RESUMEN DE BENEFICIOS
A5: Cotización de Seguro Médico Internacional Global Select Health Plan Tarifas en US$ | Validas: 1 de enero de 2025 | G5: REGIÓN
G7: ='INGRESO DE DATOS'!W20 -> Resto de Ecuador
A13: Nombre del Asegurado Titular | B13: =+'INGRESO DE DATOS'!$C$37 -> John Doe
A15: Número de adultos en la póliza | B15: =+'INGRESO DE DATOS'!$C$39 -> 2
A17: Número de Dependientes en la póliza | B17: =+'INGRESO DE DATOS'!$C$41 -> 2 | C17: =IF('INGRESO DE DATOS'!$P$2=TRUE, "Cotización para dependiente de 24 años","") -> 
A19: Edad del Asegurado Titular | B19: =+'INGRESO DE DATOS'!$C$43 -> 32 | E19: Edad del/la conyuge | G19: =+'INGRESO DE DATOS'!$C$45 -> 32
A21: Fecha de la cotización | B21: =NOW() -> 2025-01-07T11:38:50.610 | K21: FALSE
A23: =IF('INGRESO DE DATOS'!P3=TRUE,"Variante con coaseguro fuera del país de residencia: SI","Variante con coaseguro fuera del país de residencia: NO") -> Variante con coaseguro fuera del país de residencia: NO
A25: DEDUCIBLES | C25: PLAN 1 | D25: PLAN 2 | E25: PLAN 3 | F25: PLAN 4 | G25: PLAN 5
A26: En el país de residencia | C26: 250 | D26: 2000 | E26: 5000 | F26: 10000 | G26: 20000
A27: Fuera del país de residencia | C27: 5000 | D27: 2000 | E27: 5000 | F27: 10000 | G27: 20000
A29: TARIFAS ANUALES
A30: Prima para Asegurado Titular | C30: =VLOOKUP($B$19,Tablas!$A$156:$G$222,3,TRUE)+75 -> 5472.5 | D30: =VLOOKUP($B$19,Tablas!$A$156:$G$222,4,TRUE)+75 -> 5254.9 | E30: =VLOOKUP($B$19,Tablas!$A$156:$G$222,5,TRUE)+75 -> 3760.6 | F30: =VLOOKUP($B$19,Tablas!$A$156:$G$222,6,TRUE)+75 -> 2630.95 | G30: =VLOOKUP($B$19,Tablas!$A$156:$G$222,7,TRUE)+75 -> 2081
A31: Prima para conyuge | C31: =IF($B$15=1,0,(VLOOKUP($G$19,Tablas!$A$156:$G$222,3,TRUE))) -> 5397.5 | D31: =IF($B$15=1,0,(VLOOKUP($G$19,Tablas!$A$156:$G$222,4,TRUE))) -> 5179.9 | E31: =IF($B$15=1,0,(VLOOKUP($G$19,Tablas!$A$156:$G$222,5,TRUE))) -> 3685.6 | F31: =IF($B$15=1,0,(VLOOKUP($G$19,Tablas!$A$156:$G$222,6,TRUE))) -> 2555.95 | G31: =IF($B$15=1,0,(VLOOKUP($G$19,Tablas!$A$156:$G$222,7,TRUE))) -> 2006
A32: Prima para hijo (s) | C32: =IF($B$17=0,0,(VLOOKUP($B$17,Tablas!$A$223:$G$225,3,TRUE))) -> 1547 | D32: =IF($B$17=0,0,(VLOOKUP($B$17,Tablas!$A$223:$G$225,4,TRUE))) -> 1159.4 | E32: =IF($B$17=0,0,(VLOOKUP($B$17,Tablas!$A$223:$G$225,5,TRUE))) -> 758.2 | F32: =IF($B$17=0,0,(VLOOKUP($B$17,Tablas!$A$223:$G$225,6,TRUE))) -> 797.3 | G32: =IF($B$17=0,0,(VLOOKUP($B$17,Tablas!$A$223:$G$225,7,TRUE))) -> 731
A33: Total de Prima neta | C33: =SUM(C30:C32) -> 12417 | D33: =SUM(D30:D32) -> 11594.2 | E33: =SUM(E30:E32) -> 8204.4 | F33: =SUM(F30:F32) -> 5984.2 | G33: =SUM(G30:G32) -> 4818
A34: Ajuste por la variante con coaseguro fuera del país de residencia | C34: =IF('INGRESO DE DATOS'!$P$3,C33*-15%,0) -> 0 | D34: =IF('INGRESO DE DATOS'!$P$3,D33*-15%,0) -> 0 | E34: =IF('INGRESO DE DATOS'!$P$3,E33*-15%,0) -> 0 | F34: =IF('INGRESO DE DATOS'!$P$3,F33*-15%,0) -> 0
A35: Contribución 3.5% Superintendencia de Bancos Contribución 0.5% Seguro Social Campesino | C35: =C33*Tablas!$X$3 -> 496.68 | D35: =D33*Tablas!$X$3 -> 463.768 | E35: =E33*Tablas!$X$3 -> 328.176 | F35: =F33*Tablas!$X$3 -> 239.368 | G35: =G33*Tablas!$X$3 -> 192.72
A36: VAT (5%) :
A37: ITBMS (7%)
A38: TOTAL ANUAL | C38: =SUM(C33:C37) -> 12913.68 | D38: =SUM(D33:D37) -> 12057.968 | E38: =SUM(E33:E37) -> 8532.576 | F38: =SUM(F33:F37) -> 6223.568 | G38: =SUM(G33:G37) -> 5010.72
A40: TARIFAS SEMESTRALES
A41: Prima para Asegurado Titular | C41: =(C30-75)*Tablas!$K$4+75 -> 2935.675 | D41: =(D30-75)*Tablas!$K$4+75 -> 2820.347 | E41: =(E30-75)*Tablas!$K$4+75 -> 2028.368 | F41: =(F30-75)*Tablas!$K$4+75 -> 1429.6535 | G41: =(G30-75)*Tablas!$K$4+75 -> 1138.18
A42: Prima para conyuge | C42: =C31*Tablas!$K$4 -> 2860.675 | D42: =D31*Tablas!$K$4 -> 2745.347 | E42: =E31*Tablas!$K$4 -> 1953.368 | F42: =F31*Tablas!$K$4 -> 1354.6535 | G42: =G31*Tablas!$K$4 -> 1063.18
A43: Prima para hijo (s) | C43: =C32*Tablas!$K$4 -> 819.91 | D43: =D32*Tablas!$K$4 -> 614.482 | E43: =E32*Tablas!$K$4 -> 401.846 | F43: =F32*Tablas!$K$4 -> 422.569 | G43: =G32*Tablas!$K$4 -> 387.43
A44: Total de Prima neta | C44: =SUM(C41:C43) -> 6616.26 | D44: =SUM(D41:D43) -> 6180.176 | E44: =SUM(E41:E43) -> 4383.582 | F44: =SUM(F41:F43) -> 3206.876 | G44: =SUM(G41:G43) -> 2588.79
A45: Ajuste por la variante con coaseguro fuera del país de residencia | C45: =IF('INGRESO DE DATOS'!$P$3,C44*-15%,0) -> 0 | D45: =IF('INGRESO DE DATOS'!$P$3,D44*-15%,0) -> 0 | E45: =IF('INGRESO DE DATOS'!$P$3,E44*-15%,0) -> 0 | F45: =IF('INGRESO DE DATOS'!$P$3,F44*-15%,0) -> 0
A46: =A35 -> Contribución 3.5% Superintendencia de Bancos Contribución 0.5% Seguro Social Campesino | C46: =C44*Tablas!$X$3 -> 264.6504 | D46: =D44*Tablas!$X$3 -> 247.20704 | E46: =E44*Tablas!$X$3 -> 175.34328 | F46: =F44*Tablas!$X$3 -> 128.27504 | G46: =G44*Tablas!$X$3 -> 103.5516
A47: VAT (5%) :
A48: ITBMS (7%)
A49: TOTAL de primera cuota | C49: =SUM(C44:C48) -> 6880.9104 | D49: =SUM(D44:D48) -> 6427.38304 | E49: =SUM(E44:E48) -> 4558.92528 | F49: =SUM(F44:F48) -> 3335.15104 | G49: =SUM(G44:G48) -> 2692.3416
A50: Costo de segunda cuota | C50: =C44+C46-78 -> 6802.9104 | D50: =D44+D46-78 -> 6349.38304 | E50: 4480.92528 | F50: 3257.15104 | G50: 2614.3416
A51: TOTAL ANUAL | C51: =C49+C50 -> 13683.8208 | D51: =D49+D50 -> 12776.76608 | E51: =E49+E50 -> 9039.85056 | F51: =F49+F50 -> 6592.30208 | G51: =G49+G50 -> 5306.6832
A53: TARIFAS TRIMESTRALES
A54: Prima para Asegurado Titular | C54: =(C30-75)*Tablas!$K$3+75 -> 1559.3125 | D54: =(D30-75)*Tablas!$K$3+75 -> 1499.4725 | E54: =(E30-75)*Tablas!$K$3+75 -> 1088.54 | F54: =(F30-75)*Tablas!$K$3+75 -> 777.88625 | G54: =(G30-75)*Tablas!$K$3+75 -> 626.65
A55: Prima para conyuge | C55: =C31*Tablas!$K$3 -> 1484.3125 | D55: =D31*Tablas!$K$3 -> 1424.4725 | E55: =E31*Tablas!$K$3 -> 1013.54 | F55: =F31*Tablas!$K$3 -> 702.88625 | G55: =G31*Tablas!$K$3 -> 551.65
A56: Prima para hijo (s) | C56: =C32*Tablas!$K$3 -> 425.425 | D56: =D32*Tablas!$K$3 -> 318.835 | E56: =E32*Tablas!$K$3 -> 208.505 | F56: =F32*Tablas!$K$3 -> 219.2575 | G56: =G32*Tablas!$K$3 -> 201.025
A57: Total de Prima neta | C57: =SUM(C54:C56) -> 3469.05 | D57: =SUM(D54:D56) -> 3242.78 | E57: =SUM(E54:E56) -> 2310.585 | F57: =SUM(F54:F56) -> 1700.03 | G57: =SUM(G54:G56) -> 1379.325
A58: Ajuste por la variante con coaseguro fuera del país de residencia | C58: =IF('INGRESO DE DATOS'!$P$3,C57*-15%,0) -> 0 | D58: =IF('INGRESO DE DATOS'!$P$3,D57*-15%,0) -> 0 | E58: =IF('INGRESO DE DATOS'!$P$3,E57*-15%,0) -> 0 | F58: =IF('INGRESO DE DATOS'!$P$3,F57*-15%,0) -> 0
A59: =A35 -> Contribución 3.5% Superintendencia de Bancos Contribución 0.5% Seguro Social Campesino | C59: =C57*Tablas!$X$3 -> 138.762 | D59: =D57*Tablas!$X$3 -> 129.7112 | E59: =E57*Tablas!$X$3 -> 92.4234 | F59: =F57*Tablas!$X$3 -> 68.0012 | G59: =G57*Tablas!$X$3 -> 55.173
A60: VAT (5%) :
A61: ITBMS (7%)
A62: TOTAL de primera cuota | C62: =SUM(C57:C61) -> 3607.812 | D62: =SUM(D57:D61) -> 3372.4912 | E62: =SUM(E57:E61) -> 2403.0084 | F62: =SUM(F57:F61) -> 1768.0312 | G62: =SUM(G57:G61) -> 1434.498
A63: Costo de tarifa trimestral 2 a 4 | C63: =C57+C59-78 -> 3529.812 | D63: =D57+D59-78 -> 3294.4912 | E63: 2325.0084 | F63: 1690.0312 | G63: 1356.498
A64: TOTAL ANUAL | C64: =C62+(C63*3) -> 14197.248 | D64: =D62+(D63*3) -> 13255.9648 | E64: =E62+(E63*3) -> 9378.0336 | F64: =F62+(F63*3) -> 6838.1248 | G64: =G62+(G63*3) -> 5503.992
A66: TARIFAS MENSUALES
A67: Prima para Asegurado Titular | C67: =(C30-75)*Tablas!$K$2+75 -> 578.7666667 | D67: =(D30-75)*Tablas!$K$2+75 -> 558.4573333 | E67: =(E30-75)*Tablas!$K$2+75 -> 418.9893333 | F67: =(F30-75)*Tablas!$K$2+75 -> 313.5553333 | G67: =(G30-75)*Tablas!$K$2+75 -> 262.2266667
A68: Prima para conyuge | C68: =C31*Tablas!$K$2 -> 503.7666667 | D68: =D31*Tablas!$K$2 -> 483.4573333 | E68: =E31*Tablas!$K$2 -> 343.9893333 | F68: =F31*Tablas!$K$2 -> 238.5553333 | G68: =G31*Tablas!$K$2 -> 187.2266667
A69: Prima para hijo (s) | C69: =C32*Tablas!$K$2 -> 144.3866667 | D69: =D32*Tablas!$K$2 -> 108.2106667 | E69: =E32*Tablas!$K$2 -> 70.76533333 | F69: =F32*Tablas!$K$2 -> 74.41466667 | G69: =G32*Tablas!$K$2 -> 68.22666667
A70: Total de Prima neta | C70: =SUM(C67:C69) -> 1226.92 | D70: =SUM(D67:D69) -> 1150.125333 | E70: =SUM(E67:E69) -> 833.744 | F70: =SUM(F67:F69) -> 626.5253333 | G70: =SUM(G67:G69) -> 517.68
A71: Ajuste por la variante con coaseguro fuera del país de residencia | C71: =IF('INGRESO DE DATOS'!$P$3,C70*-15%,0) -> 0 | D71: =IF('INGRESO DE DATOS'!$P$3,D70*-15%,0) -> 0 | E71: =IF('INGRESO DE DATOS'!$P$3,E70*-15%,0) -> 0 | F71: =IF('INGRESO DE DATOS'!$P$3,F70*-15%,0) -> 0
A72: =A59 -> Contribución 3.5% Superintendencia de Bancos Contribución 0.5% Seguro Social Campesino | C72: =C70*Tablas!$X$3 -> 49.0768 | D72: =D70*Tablas!$X$3 -> 46.00501333 | E72: =E70*Tablas!$X$3 -> 33.34976 | F72: =F70*Tablas!$X$3 -> 25.06101333 | G72: =G70*Tablas!$X$3 -> 20.7072
A73: VAT (5%) :
A74: ITBMS (7%)
A75: TOTAL de primera cuota | C75: =SUM(C70:C74) -> 1275.9968 | D75: =SUM(D70:D74) -> 1196.130347 | E75: =SUM(E70:E74) -> 867.09376 | F75: =SUM(F70:F74) -> 651.5863467 | G75: =SUM(G70:G74) -> 538.3872
A76: Costo de Tarifa mensual de 2 a 12 | C76: =C70+C72-78 -> 1197.9968 | D76: =D70+D72-78 -> 1118.130347 | E76: 789.09376 | F76: 573.5863467 | G76: 460.3872
A77: TOTAL ANUAL | C77: =C75+(C76*11) -> 14453.9616 | D77: =D75+(D76*11) -> 13495.56416 | E77: =E75+(E76*11) -> 9547.12512 | F77: =F75+(F76*11) -> 6961.03616 | G77: =G75+(G76*11) -> 5602.6464
A79: Este presupuesto solamente tiene carácter informativo y en ningún momento expresa compromiso legal para suministrarle cobertura de seguro. La emisión de una póliza de seguro Bupa está sujeta a todas las evaluaciones de riesgo por parte de Bupa y a la recepción de todos los pagos de prima requeridos.

Sheet Resumen Tarifas
A5: Cotización de Seguro Médico Internacional Global Major Health Plans Resumen de Tarifas Tarifas en US$ | Validas: 1 de enero de 2025 | F5: REGIÓN
F7: ='INGRESO DE DATOS'!W20 -> Resto de Ecuador
A13: Nombre del Asegurado Titular | B13: =+'INGRESO DE DATOS'!$C$37 -> John Doe
A15: Número de adultos en la póliza | B15: =+'INGRESO DE DATOS'!$C$39 -> 2
A17: Número de Dependientes en la póliza | B17: =+'INGRESO DE DATOS'!$C$41 -> 2 | C17: =IF('INGRESO DE DATOS'!$P$2=TRUE, "Cotización para dependiente de 24 años","") -> 
A19: Edad del Asegurado Titular | B19: =+'INGRESO DE DATOS'!$C$43 -> 32 | E19: Edad del/la conyuge | F19: =+'INGRESO DE DATOS'!$C$45 -> 32
A21: Fecha de la cotización | B21: =NOW() -> 2025-01-07T11:38:50.610
A23: GLOBAL ULTIMATE HEALTH PLAN
A24: DEDUCIBLES | B24: PLAN 1 | C24: PLAN 2
A25: En el país de residencia | B25: $0 | C25: 1000
A26: Fuera del país de residencia | B26: $0 | C26: 1000
B27: TARIFAS ANUALES
B28: ='Global Ultimate'!C38 -> 88015.2 | C28: ='Global Ultimate'!D38 -> 58233.76
B29: TARIFAS SEMESTRALES
B30: ='Global Ultimate'!C51 -> 93291.432 | C30: ='Global Ultimate'!D51 -> 61723.1056
B31: TARIFAS TRIMESTRALES
B32: ='Global Ultimate'!C64 -> 96808.92 | C32: ='Global Ultimate'!D64 -> 64049.336
B33: TARIFAS MENSUALES
B34: ='Global Ultimate'!C77 -> 98567.664 | C34: ='Global Ultimate'!D77 -> 65212.4512
A35: Ahorros en tarifas de prima para Dependientes * | B35: ='Global Ultimate'!C39 -> 10447 | C35: ='Global Ultimate'!D39 -> 7687
A37: GLOBAL ELITE HEALTH PLAN
A38: DEDUCIBLES | B38: PLAN 1 | C38: PLAN 2 | D38: PLAN 3 | E38: PLAN 4 | F38: PLAN 5
A39: En el país de residencia | B39: 250 | C39: 2000 | D39: 3500 | E39: 5000 | F39: 10000
A40: Fuera del país de residencia | B40: 5000 | C40: 2000 | D40: 3500 | E40: 5000 | F40: 10000
B41: TARIFAS ANUALES
B42: =+'Global Elite'!C40 -> 30531.8 | C42: =+'Global Elite'!D40 -> 25978.316 | D42: =+'Global Elite'!E40 -> 19705.452 | E42: =+'Global Elite'!F40 -> 16858.972 | F42: =+'Global Elite'!G40 -> 13601.432
B43: TARIFAS SEMESTRALES
B44: =+'Global Elite'!C54 -> 32359.028 | C44: =+'Global Elite'!D54 -> 27532.33496 | D44: =+'Global Elite'!E54 -> 20883.09912 | E44: =+'Global Elite'!F54 -> 17865.83032 | F44: =+'Global Elite'!G54 -> 14412.83792
B45: TARIFAS TRIMESTRALES
B46: =+'Global Elite'!C68 -> 33577.18 | C46: =+'Global Elite'!D68 -> 28568.3476 | D46: =+'Global Elite'!E68 -> 21668.1972 | E46: =+'Global Elite'!F68 -> 18537.0692 | F46: =+'Global Elite'!G68 -> 14953.7752
B47: TARIFAS MENSUALES
B48: =+'Global Elite'!C82 -> 34186.256 | C48: =+'Global Elite'!D82 -> 29086.35392 | D48: =+'Global Elite'!E82 -> 22060.74624 | E48: =+'Global Elite'!F82 -> 18872.68864 | F48: =+'Global Elite'!G82 -> 15224.24384
A49: Ahorros en tarifas de prima para Dependientes* | B49: =+'Global Elite'!C41 -> 2731.9 | C49: =+'Global Elite'!D41 -> 1626.05 | D49: =+'Global Elite'!E41 -> 1178.95 | E49: =+'Global Elite'!F41 -> 1093.95 | F49: =+'Global Elite'!G41 -> 1373.6
A51: GLOBAL PREMIER HEALTH PLAN
A52: DEDUCIBLES | B52: PLAN 1 | C52: PLAN 2 | D52: PLAN 3 | E52: PLAN 4 | F52: PLAN 4
A53: En el país de residencia | B53: 250 | C53: 2000 | D53: 5000 | E53: 10000 | F53: 10000
A54: Fuera del país de residencia | B54: 5000 | C54: 2000 | D54: 5000 | E54: 10000 | F54: 10000
B55: TARIFAS ANUALES
B56: =+'Global Premier'!C37 -> 19099.028 | C56: =+'Global Premier'!D37 -> 16689.244 | D56: =+'Global Premier'!E37 -> 12697.1 | E56: =+'Global Premier'!F37 -> 9024.964 | F56: ='Global Premier'!G37 -> 7218.952
B57: TARIFAS SEMESTRALES
B58: =+'Global Premier'!C50 -> 20240.28968 | C58: =+'Global Premier'!D50 -> 17685.91864 | D58: =+'Global Premier'!E50 -> 13454.246 | E58: =+'Global Premier'!F50 -> 9561.78184 | F58: ='Global Premier'!G50 -> 7647.40912
B59: TARIFAS TRIMESTRALES
B60: =+'Global Premier'!C63 -> 21001.1308 | C60: =+'Global Premier'!D63 -> 18350.3684 | D60: =+'Global Premier'!E63 -> 13959.01 | E60: =+'Global Premier'!F63 -> 9919.6604 | F60: ='Global Premier'!G63 -> 7933.0472
B61: TARIFAS MENSUALES
B62: =+'Global Premier'!C76 -> 21381.55136 | C62: =+'Global Premier'!D76 -> 18682.59328 | D62: =+'Global Premier'!E76 -> 14211.392 | E62: =+'Global Premier'!F76 -> 10098.59968 | F62: ='Global Premier'!G76 -> 8075.86624
A64: GLOBAL SELECT HEALTH PLAN
A65: DEDUCIBLES | B65: PLAN 1 | C65: PLAN 2 | D65: PLAN 3 | E65: PLAN 4 | F65: PLAN 5
A66: En el país de residencia | B66: 250 | C66: 2000 | D66: 5000 | E66: 10000 | F66: 20000
A67: Fuera del país de residencia | B67: 5000 | C67: 2000 | D67: 5000 | E67: 10000 | F67: 20000
B68: TARIFAS ANUALES
B69: =+'Global Select'!C38 -> 12913.68 | C69: =+'Global Select'!D38 -> 12057.968 | D69: =+'Global Select'!E38 -> 8532.576 | E69: =+'Global Select'!F38 -> 6223.568 | F69: =+'Global Select'!G38 -> 5010.72
B70: TARIFAS SEMESTRALES
B71: =+'Global Select'!C51 -> 13683.8208 | C71: =+'Global Select'!D51 -> 12776.76608 | D71: =+'Global Select'!E51 -> 9039.85056 | E71: =+'Global Select'!F51 -> 6592.30208 | F71: =+'Global Select'!G51 -> 5306.6832
B72: TARIFAS TRIMESTRALES
B73: =+'Global Select'!C64 -> 14197.248 | C73: =+'Global Select'!D64 -> 13255.9648 | D73: =+'Global Select'!E64 -> 9378.0336 | E73: =+'Global Select'!F64 -> 6838.1248 | F73: =+'Global Select'!G64 -> 5503.992
B74: TARIFAS MENSUALES
B75: =+'Global Select'!C77 -> 14453.9616 | C75: =+'Global Select'!D77 -> 13495.56416 | D75: =+'Global Select'!E77 -> 9547.12512 | E75: =+'Global Select'!F77 -> 6961.03616 | F75: =+'Global Select'!G77 -> 5602.6464
A77: Este presupuesto solamente tiene carácter informativo y en ningún momento expresa compromiso legal para suministrarle cobertura de seguro. La emisión de una póliza de seguro Bupa está sujeta a todas las evaluaciones de riesgo por parte de Bupa y a la recepción de todos los pagos de prima requeridos. Una tarifa administrativa de US$75 se cargará automáticamente al primer pago. *Basado en un modo de pago anual

Sheet Tablas (hidden)
A2: BUPA GLOBAL ELITE | I2: FACTOR MENSUAL: | K2: 0.09333333333 | M2: Descuento de 24 años | N2: ='INGRESO DE DATOS'!P30 -> 1 | O2: Ultimate | P2: Elite | Q2: Premier | R2: Select | S2: Major Medical | U2: Impuesto (14.94%) | X2: 1
A3: TARIFAS ANUALES | I3: FACTOR TRIMESTRAL: | K3: 0.275 | M3: Descuento de producto (%) | O3: ='INGRESO DE DATOS'!O39 -> 0 | P3: ='INGRESO DE DATOS'!P39 -> 0.15 | Q3: ='INGRESO DE DATOS'!Q39 -> 0.15 | R3: ='INGRESO DE DATOS'!R39 -> 0.15 | S3: ='INGRESO DE DATOS'!S39 -> 0 | U3: Total impuestos Bolivia | X3: 0.04
I4: FACTOR SEMIANUAL: | K4: 0.53 | M4: Factor para el descuento combinado | O4: ='INGRESO DE DATOS'!O47 -> 1 | P4: ='INGRESO DE DATOS'!P47 -> 0.85 | Q4: ='INGRESO DE DATOS'!Q47 -> 0.85 | R4: ='INGRESO DE DATOS'!R47 -> 0.85 | S4: ='INGRESO DE DATOS'!S47 -> 0
A5: EDAD | C5: 250 | D5: 2000 | E5: 3500 | F5: 5000 | G5: 10000 | I5: TARIFAS BASE | O5: TARIFAS BASE CON DESCUENTO
A6: 18 | C6: =O6*$X$2 -> 11024.5 | D6: =P6*$X$2 -> 9792.85 | E6: =Q6*$X$2 -> 6870.55 | F6: =R6*$X$2 -> 6696.3 | G6: =S6*$X$2 -> 4962.3 | I6: =IF('INGRESO DE DATOS'!$W$19=1,'Tablas Guyanas y Santa Elena'!C6,'Tablas Resto de Ecuador'!C6) -> 12970 | J6: =IF('INGRESO DE DATOS'!$W$19=1,'Tablas Guyanas y Santa Elena'!D6,'Tablas Resto de Ecuador'!D6) -> 11521 | K6: =IF('INGRESO DE DATOS'!$W$19=1,'Tablas Guyanas y Santa Elena'!E6,'Tablas Resto de Ecuador'!E6) -> 8083 | L6: =IF('INGRESO DE DATOS'!$W$19=1,'Tablas Guyanas y Santa Elena'!F6,'Tablas Resto de Ecuador'!F6) -> 7878 | M6: =IF('INGRESO DE DATOS'!$W$19=1,'Tablas Guyanas y Santa Elena'!G6,'Tablas Resto de Ecuador'!G6) -> 5838 | O6: =I6*$P$4 -> 11024.5 | P6: =J6*$P$4 -> 9792.85 | Q6: =K6*$P$4 -> 6870.55 | R6: =L6*$P$4 -> 6696.3 | S6: =M6*$P$4 -> 4962.3
A7: 19 | C7: =O7*$X$2 -> 11024.5 | D7: =P7*$X$2 -> 9792.85 | E7: =Q7*$X$2 -> 6870.55 | F7: =R7*$X$2 -> 6696.3 | G7: =S7*$X$2 -> 4962.3 | I7: =IF('INGRESO DE DATOS'!$W$19=1,'Tablas Guyanas y Santa Elena'!C7,'Tablas Resto de Ecuador'!C7) -> 12970 | J7: =IF('INGRESO DE DATOS'!$W$19=1,'Tablas Guyanas y Santa Elena'!D7,'Tablas Resto de Ecuador'!D7) -> 11521 | K7: =IF('INGRESO DE DATOS'!$W$19=1,'Tablas Guyanas y Santa Elena'!E7,'Tablas Resto de Ecuador'!E7) -> 8083 | L7: =IF('INGRESO DE DATOS'!$W$19=1,'Tablas Guyanas y Santa Elena'!F7,'Tablas Resto de Ecuador'!F7) -> 7878 | M7: =IF('INGRESO DE DATOS'!$W$19=1,'Tablas Guyanas y Santa Elena'!G7,'Tablas Resto de Ecuador'!G7) -> 5838 | O7: =I7*$P$4 -> 11024.5 | P7: =J7*$P$4 -> 9792.85 | Q7: =K7*$P$4 -> 6870.55 | R7: =L7*$P$4 -> 6696.3 | S7: =M7*$P$4 -> 4962.3
A8: 20 | C8: 11024.5 | D8: 9792.85 | E8: 6870.55 | F8: 6696.3 | G8: 4962.3 | I8: =IF('INGRESO DE DATOS'!$W$19=1,'Tablas Guyanas y Santa Elena'!C8,'Tablas Resto de Ecuador'!C8) -> 12970 | J8: =IF('INGRESO DE DATOS'!$W$19=1,'Tablas Guyanas y Santa Elena'!D8,'Tablas Resto de Ecuador'!D8) -> 11521 | K8: =IF('INGRESO DE DATOS'!$W$19=1,'Tablas Guyanas y Santa Elena'!E8,'Tablas Resto de Ecuador'!E8) -> 8083 | L8: =IF('INGRESO DE DATOS'!$W$19=1,'Tablas Guyanas y Santa Elena'!F8,'Tablas Resto de Ecuador'!F8) -> 7878 | M8: =IF('INGRESO DE DATOS'!$W$19=1,'Tablas Guyanas y Santa Elena'!G8,'Tablas Resto de Ecuador'!G8) -> 5838 | O8: 11024.5 | P8: 9792.85 | Q8: 6870.55 | R8: 6696.3 | S8: 4962.3
A9: 21 | C9: 11024.5 | D9: 9792.85 | E9: 6870.55 | F9: 6696.3 | G9: 4962.3 | I9: =IF('INGRESO DE DATOS'!$W$19=1,'Tablas Guyanas y Santa Elena'!C9,'Tablas Resto de Ecuador'!C9) -> 12970 | J9: =IF('INGRESO DE DATOS'!$W$19=1,'Tablas Guyanas y Santa Elena'!D9,'Tablas Resto de Ecuador'!D9) -> 11521 | K9: =IF('INGRESO DE DATOS'!$W$19=1,'Tablas Guyanas y Santa Elena'!E9,'Tablas Resto de Ecuador'!E9) -> 8083 | L9: =IF('INGRESO DE DATOS'!$W$19=1,'Tablas Guyanas y Santa Elena'!F9,'Tablas Resto de Ecuador'!F9) -> 7878 | M9: =IF('INGRESO DE DATOS'!$W$19=1,'Tablas Guyanas y Santa Elena'!G9,'Tablas Resto de Ecuador'!G9) -> 5838 | O9: 11024.5 | P9: 9792.85 | Q9: 6870.55 | R9: 6696.3 | S9: 4962.3
A10: 22 | C10: 11024.5 | D10: 9792.85 | E10: 6870.55 | F10: 6696.3 | G10: 4962.3 | I10: =IF('INGRESO DE DATOS'!$W$19=1,'Tablas Guyanas y Santa Elena'!C10,'Tablas Resto de Ecuador'!C10) -> 12970 | J10: =IF('INGRESO DE DATOS'!$W$19=1,'Tablas Guyanas y Santa Elena'!D10,'Tablas Resto de Ecuador'!D10) -> 11521 | K10: =IF('INGRESO DE DATOS'!$W$19=1,'Tablas Guyanas y Santa Elena'!E10,'Tablas Resto de Ecuador'!E10) -> 8083 | L10: =IF('INGRESO DE DATOS'!$W$19=1,'Tablas Guyanas y Santa Elena'!F10,'Tablas Resto de Ecuador'!F10) -> 7878 | M10: =IF('INGRESO DE DATOS'!$W$19=1,'Tablas Guyanas y Santa Elena'!G10,'Tablas Resto de Ecuador'!G10) -> 5838 | O10: 11024.5 | P10: 9792.85 | Q10: 6870.55 | R10: 6696.3 | S10: 4962.3
A11: 23 | C11: 11024.5 | D11: 9792.85 | E11: 6870.55 | F11: 6696.3 | G11: 4962.3 | I11: =IF('INGRESO DE DATOS'!$W$19=1,'Tablas Guyanas y Santa Elena'!C11,'Tablas Resto de Ecuador'!C11) -> 12970 | J11: =IF('INGRESO DE DATOS'!$W$19=1,'Tablas Guyanas y Santa Elena'!D11,'Tablas Resto de Ecuador'!D11) -> 11521 | K11: =IF('INGRESO DE DATOS'!$W$19=1,'Tablas Guyanas y Santa Elena'!E11,'Tablas Resto de Ecuador'!E11) -> 8083 | L11: =IF('INGRESO DE DATOS'!$W$19=1,'Tablas Guyanas y Santa Elena'!F11,'Tablas Resto de Ecuador'!F11) -> 7878 | M11: =IF('INGRESO DE DATOS'!$W$19=1,'Tablas Guyanas y Santa Elena'!G11,'Tablas Resto de Ecuador'!G11) -> 5838 | O11: 11024.5 | P11: 9792.85 | Q11: 6870.55 | R11: 6696.3 | S11: 4962.3
A12: 24 | C12: 11024.5 | D12: 9792.85 | E12: 6870.55 | F12: 6696.3 | G12: 4962.3 | I12: =IF('INGRESO DE DATOS'!$W$19=1,'Tablas Guyanas y Santa Elena'!C12,'Tablas Resto de Ecuador'!C12) -> 12970 | J12: =IF('INGRESO DE DATOS'!$W$19=1,'Tablas Guyanas y Santa Elena'!D12,'Tablas Resto de Ecuador'!D12) -> 11521 | K12: =IF('INGRESO DE DATOS'!$W$19=1,'Tablas Guyanas y Santa Elena'!E12,'Tablas Resto de Ecuador'!E12) -> 8083 | L12: =IF('INGRESO DE DATOS'!$W$19=1,'Tablas Guyanas y Santa Elena'!F12,'Tablas Resto de Ecuador'!F12) -> 7878 | M12: =IF('INGRESO DE DATOS'!$W$19=1,'Tablas Guyanas y Santa Elena'!G12,'Tablas Resto de Ecuador'!G12) -> 5838 | O12: 11024.5 | P12: 9792.85 | Q12: 6870.55 | R12: 6696.3 | S12: 4962.3
A13: 25 | C13: 11940.8 | D13: 10465.2 | E13: 7547.15 | F13: 7280.25 | G13: 5268.3 | I13: =IF('INGRESO DE DATOS'!$W$19=1,'Tablas Guyanas y Santa Elena'!C13,'Tablas Resto de Ecuador'!C13) -> 14048 | J13: =IF('INGRESO DE DATOS'!$W$19=1,'Tablas Guyanas y Santa Elena'!D13,'Tablas Resto de Ecuador'!D13) -> 12312 | K13: =IF('INGRESO DE DATOS'!$W$19=1,'Tablas Guyanas y Santa Elena'!E13,'Tablas Resto de Ecuador'!E13) -> 8879 | L13: =IF('INGRESO DE DATOS'!$W$19=1,'Tablas Guyanas y Santa Elena'!F13,'Tablas Resto de Ecuador'!F13) -> 8565 | M13: =IF('INGRESO DE DATOS'!$W$19=1,'Tablas Guyanas y Santa Elena'!G13,'Tablas Resto de Ecuador'!G13) -> 6198 | O13: 11940.8 | P13: 10465.2 | Q13: 7547.15 | R13: 7280.25 | S13: 5268.3
A14: 26 | C14: 11940.8 | D14: 10465.2 | E14: 7547.15 | F14: 7280.25 | G14: 5268.3 | I14: =IF('INGRESO DE DATOS'!$W$19=1,'Tablas Guyanas y Santa Elena'!C14,'Tablas Resto de Ecuador'!C14) -> 14048 | J14: =IF('INGRESO DE DATOS'!$W$19=1,'Tablas Guyanas y Santa Elena'!D14,'Tablas Resto de Ecuador'!D14) -> 12312 | K14: =IF('INGRESO DE DATOS'!$W$19=1,'Tablas Guyanas y Santa Elena'!E14,'Tablas Resto de Ecuador'!E14) -> 8879 | L14: =IF('INGRESO DE DATOS'!$W$19=1,'Tablas Guyanas y Santa Elena'!F14,'Tablas Resto de Ecuador'!F14) -> 8565 | M14: =IF('INGRESO DE DATOS'!$W$19=1,'Tablas Guyanas y Santa Elena'!G14,'Tablas Resto de Ecuador'!G14) -> 6198 | O14: 11940.8 | P14: 10465.2 | Q14: 7547.15 | R14: 7280.25 | S14: 5268.3
A15: 27 | C15: 11940.8 | D15: 10465.2 | E15: 7547.15 | F15: 7280.25 | G15: 5268.3 | I15: =IF('INGRESO DE DATOS'!$W$19=1,'Tablas Guyanas y Santa Elena'!C15,'Tablas Resto de Ecuador'!C15) -> 14048 | J15: =IF('INGRESO DE DATOS'!$W$19=1,'Tablas Guyanas y Santa Elena'!D15,'Tablas Resto de Ecuador'!D15) -> 12312 | K15: =IF('INGRESO DE DATOS'!$W$19=1,'Tablas Guyanas y Santa Elena'!E15,'Tablas Resto de Ecuador'!E15) -> 8879 | L15: =IF('INGRESO DE DATOS'!$W$19=1,'Tablas Guyanas y Santa Elena'!F15,'Tablas Resto de Ecuador'!F15) -> 8565 | M15: =IF('INGRESO DE DATOS'!$W$19=1,'Tablas Guyanas y Santa Elena'!G15,'Tablas Resto de Ecuador'!G15) -> 6198 | O15: 11940.8 | P15: 10465.2 | Q15: 7547.15 | R15: 7280.25 | S15: 5268.3
A16: 28 | C16: 11940.8 | D16: 10465.2 | E16: 7547.15 | F16: 7280.25 | G16: 5268.3 | I16: =IF('INGRESO DE DATOS'!$W$19=1,'Tablas Guyanas y Santa Elena'!C16,'Tablas Resto de Ecuador'!C16) -> 14048 | J16: =IF('INGRESO DE DATOS'!$W$19=1,'Tablas Guyanas y Santa Elena'!D16,'Tablas Resto de Ecuador'!D16) -> 12312 | K16: =IF('INGRESO DE DATOS'!$W$19=1,'Tablas Guyanas y Santa Elena'!E16,'Tablas Resto de Ecuador'!E16) -> 8879 | L16: =IF('INGRESO DE DATOS'!$W$19=1,'Tablas Guyanas y Santa Elena'!F16,'Tablas Resto de Ecuador'!F16) -> 8565 | M16: =IF('INGRESO DE DATOS'!$W$19=1,'Tablas Guyanas y Santa Elena'!G16,'Tablas Resto de Ecuador'!G16) -> 6198 | O16: 11940.8 | P16: 10465.2 | Q16: 7547.15 | R16: 7280.25 | S16: 5268.3
A17: 29 | C17: 11940.8 | D17: 10465.2 | E17: 7547.15 | F17: 7280.25 | G17: 5268.3 | I17: =IF('INGRESO DE DATOS'!$W$19=1,'Tablas Guyanas y Santa Elena'!C17,'Tablas Resto de Ecuador'!C17) -> 14048 | J17: =IF('INGRESO DE DATOS'!$W$19=1,'Tablas Guyanas y Santa Elena'!D17,'Tablas Resto de Ecuador'!D17) -> 12312 | K17: =IF('INGRESO DE DATOS'!$W$19=1,'Tablas Guyanas y Santa Elena'!E17,'Tablas Resto de Ecuador'!E17) -> 8879 | L17: =IF('INGRESO DE DATOS'!$W$19=1,'Tablas Guyanas y Santa Elena'!F17,'Tablas Resto de Ecuador'!F17) -> 8565 | M17: =IF('INGRESO DE DATOS'!$W$19=1,'Tablas Guyanas y Santa Elena'!G17,'Tablas Resto de Ecuador'!G17) -> 6198 | O17: 11940.8 | P17: 10465.2 | Q17: 7547.15 | R17: 7280.25 | S17: 5268.3
A18: 30 | C18: 13275.3 | D18: 11639.05 | E18: 8846.8 | F18: 7520.8 | G18: 5814.85 | I18: =IF('INGRESO DE DATOS'!$W$19=1,'Tablas Guyanas y Santa Elena'!C18,'Tablas Resto de Ecuador'!C18) -> 15618 | J18: =IF('INGRESO DE DATOS'!$W$19=1,'Tablas Guyanas y Santa Elena'!D18,'Tablas Resto de Ecuador'!D18) -> 13693 | K18: =IF('INGRESO DE DATOS'!$W$19=1,'Tablas Guyanas y Santa Elena'!E18,'Tablas Resto de Ecuador'!E18) -> 10408 | L18: =IF('INGRESO DE DATOS'!$W$19=1,'Tablas Guyanas y Santa Elena'!F18,'Tablas Resto de Ecuador'!F18) -> 8848 | M18: =IF('INGRESO DE DATOS'!$W$19=1,'Tablas Guyanas y Santa Elena'!G18,'Tablas Resto de Ecuador'!G18) -> 6841 | O18: 13275.3 | P18: 11639.05 | Q18: 8846.8 | R18: 7520.8 | S18: 5814.85
A19: 31 | C19: 13275.3 | D19: 11639.05 | E19: 8846.8 | F19: 7520.8 | G19: 5814.85 | I19: =IF('INGRESO DE DATOS'!$W$19=1,'Tablas Guyanas y Santa Elena'!C19,'Tablas Resto de Ecuador'!C19) -> 15618 | J19: =IF('INGRESO DE DATOS'!$W$19=1,'Tablas Guyanas y Santa Elena'!D19,'Tablas Resto de Ecuador'!D19) -> 13693 | K19: =IF('INGRESO DE DATOS'!$W$19=1,'Tablas Guyanas y Santa Elena'!E19,'Tablas Resto de Ecuador'!E19) -> 10408 | L19: =IF('INGRESO DE DATOS'!$W$19=1,'Tablas Guyanas y Santa Elena'!F19,'Tablas Resto de Ecuador'!F19) -> 8848 | M19: =IF('INGRESO DE DATOS'!$W$19=1,'Tablas Guyanas y Santa Elena'!G19,'Tablas Resto de Ecuador'!G19) -> 6841 | O19: 13275.3 | P19: 11639.05 | Q19: 8846.8 | R19: 7520.8 | S19: 5814.85
A20: 32 | C20: 13275.3 | D20: 11639.05 | E20: 8846.8 | F20: 7520.8 | G20: 5814.85 | I20: =IF('INGRESO DE DATOS'!$W$19=1,'Tablas Guyanas y Santa Elena'!C20,'Tablas Resto de Ecuador'!C20) -> 15618 | J20: =IF('INGRESO DE DATOS'!$W$19=1,'Tablas Guyanas y Santa Elena'!D20,'Tablas Resto de Ecuador'!D20) -> 13693 | K20: =IF('INGRESO DE DATOS'!$W$19=1,'Tablas Guyanas y Santa Elena'!E20,'Tablas Resto de Ecuador'!E20) -> 10408 | L20: =IF('INGRESO DE DATOS'!$W$19=1,'Tablas Guyanas y Santa Elena'!F20,'Tablas Resto de Ecuador'!F20) -> 8848 | M20: =IF('INGRESO DE DATOS'!$W$19=1,'Tablas Guyanas y Santa Elena'!G20,'Tablas Resto de Ecuador'!G20) -> 6841 | O20: 13275.3 | P20: 11639.05 | Q20: 8846.8 | R20: 7520.8 | S20: 5814.85
A21: 33 | C21: 13275.3 | D21: 11639.05 | E21: 8846.8 | F21: 7520.8 | G21: 5814.85 | I21: =IF('INGRESO DE DATOS'!$W$19=1,'Tablas Guyanas y Santa Elena'!C21,'Tablas Resto de Ecuador'!C21) -> 15618 | J21: =IF('INGRESO DE DATOS'!$W$19=1,'Tablas Guyanas y Santa Elena'!D21,'Tablas Resto de Ecuador'!D21) -> 13693 | K21: =IF('INGRESO DE DATOS'!$W$19=1,'Tablas Guyanas y Santa Elena'!E21,'Tablas Resto de Ecuador'!E21) -> 10408 | L21: =IF('INGRESO DE DATOS'!$W$19=1,'Tablas Guyanas y Santa Elena'!F21,'Tablas Resto de Ecuador'!F21) -> 8848 | M21: =IF('INGRESO DE DATOS'!$W$19=1,'Tablas Guyanas y Santa Elena'!G21,'Tablas Resto de Ecuador'!G21) -> 6841 | O21: 13275.3 | P21: 11639.05 | Q21: 8846.8 | R21: 7520.8 | S21: 5814.85
A22: 34 | C22: 13275.3 | D22: 11639.05 | E22: 8846.8 | F22: 7520.8 | G22: 5814.85 | I22: =IF('INGRESO DE DATOS'!$W$19=1,'Tablas Guyanas y Santa Elena'!C22,'Tablas Resto de Ecuador'!C22) -> 15618 | J22: =IF('INGRESO DE DATOS'!$W$19=1,'Tablas Guyanas y Santa Elena'!D22,'Tablas Resto de Ecuador'!D22) -> 13693 | K22: =IF('INGRESO DE DATOS'!$W$19=1,'Tablas Guyanas y Santa Elena'!E22,'Tablas Resto de Ecuador'!E22) -> 10408 | L22: =IF('INGRESO DE DATOS'!$W$19=1,'Tablas Guyanas y Santa Elena'!F22,'Tablas Resto de Ecuador'!F22) -> 8848 | M22: =IF('INGRESO DE DATOS'!$W$19=1,'Tablas Guyanas y Santa Elena'!G22,'Tablas Resto de Ecuador'!G22) -> 6841 | O22: 13275.3 | P22: 11639.05 | Q22: 8846.8 | R22: 7520.8 | S22: 5814.85
A23: 35 | C23: 14825.7 | D23: 12991.4 | E23: 10284.15 | F23: 8918.2 | G23: 6454.9 | I23: =IF('INGRESO DE DATOS'!$W$19=1,'Tablas Guyanas y Santa Elena'!C23,'Tablas Resto de Ecuador'!C23) -> 17442 | J23: =IF('INGRESO DE DATOS'!$W$19=1,'Tablas Guyanas y Santa Elena'!D23,'Tablas Resto de Ecuador'!D23) -> 15284 | K23: =IF('INGRESO DE DATOS'!$W$19=1,'Tablas Guyanas y Santa Elena'!E23,'Tablas Resto de Ecuador'!E23) -> 12099 | L23: =IF('INGRESO DE DATOS'!$W$19=1,'Tablas Guyanas y Santa Elena'!F23,'Tablas Resto de Ecuador'!F23) -> 10492 | M23: =IF('INGRESO DE DATOS'!$W$19=1,'Tablas Guyanas y Santa Elena'!G23,'Tablas Resto de Ecuador'!G23) -> 7594 | O23: 14825.7 | P23: 12991.4 | Q23: 10284.15 | R23: 8918.2 | S23: 6454.9
A24: 36 | C24: 14825.7 | D24: 12991.4 | E24: 10284.15 | F24: 8918.2 | G24: 6454.9 | I24: =IF('INGRESO DE DATOS'!$W$19=1,'Tablas Guyanas y Santa Elena'!C24,'Tablas Resto de Ecuador'!C24) -> 17442 | J24: =IF('INGRESO DE DATOS'!$W$19=1,'Tablas Guyanas y Santa Elena'!D24,'Tablas Resto de Ecuador'!D24) -> 15284 | K24: =IF('INGRESO DE DATOS'!$W$19=1,'Tablas Guyanas y Santa Elena'!E24,'Tablas Resto de Ecuador'!E24) -> 12099 | L24: =IF('INGRESO DE DATOS'!$W$19=1,'Tablas Guyanas y Santa Elena'!F24,'Tablas Resto de Ecuador'!F24) -> 10492 | M24: =IF('INGRESO DE DATOS'!$W$19=1,'Tablas Guyanas y Santa Elena'!G24,'Tablas Resto de Ecuador'!G24) -> 7594 | O24: 14825.7 | P24: 12991.4 | Q24: 10284.15 | R24: 8918.2 | S24: 6454.9
A25: 37 | C25: 14825.7 | D25: 12991.4 | E25: 10284.15 | F25: 8918.2 | G25: 6454.9 | I25: =IF('INGRESO DE DATOS'!$W$19=1,'Tablas Guyanas y Santa Elena'!C25,'Tablas Resto de Ecuador'!C25) -> 17442 | J25: =IF('INGRESO DE DATOS'!$W$19=1,'Tablas Guyanas y Santa Elena'!D25,'Tablas Resto de Ecuador'!D25) -> 15284 | K25: =IF('INGRESO DE DATOS'!$W$19=1,'Tablas Guyanas y Santa Elena'!E25,'Tablas Resto de Ecuador'!E25) -> 12099 | L25: =IF('INGRESO DE DATOS'!$W$19=1,'Tablas Guyanas y Santa Elena'!F25,'Tablas Resto de Ecuador'!F25) -> 10492 | M25: =IF('INGRESO DE DATOS'!$W$19=1,'Tablas Guyanas y Santa Elena'!G25,'Tablas Resto de Ecuador'!G25) -> 7594 | O25: 14825.7 | P25: 12991.4 | Q25: 10284.15 | R25: 8918.2 | S25: 6454.9
A26: 38 | C26: 14825.7 | D26: 12991.4 | E26: 10284.15 | F26: 8918.2 | G26: 6454.9 | I26: =IF('INGRESO DE DATOS'!$W$19=1,'Tablas Guyanas y Santa Elena'!C26,'Tablas Resto de Ecuador'!C26) -> 17442 | J26: =IF('INGRESO DE DATOS'!$W$19=1,'Tablas Guyanas y Santa Elena'!D26,'Tablas Resto de Ecuador'!D26) -> 15284 | K26: =IF('INGRESO DE DATOS'!$W$19=1,'Tablas Guyanas y Santa Elena'!E26,'Tablas Resto de Ecuador'!E26) -> 12099 | L26: =IF('INGRESO DE DATOS'!$W$19=1,'Tablas Guyanas y Santa Elena'!F26,'Tablas Resto de Ecuador'!F26) -> 10492 | M26: =IF('INGRESO DE DATOS'!$W$19=1,'Tablas Guyanas y Santa Elena'!G26,'Tablas Resto de Ecuador'!G26) -> 7594 | O26: 14825.7 | P26: 12991.4 | Q26: 10284.15 | R26: 8918.2 | S26: 6454.9
A27: 39 | C27: 14825.7 | D27: 12991.4 | E27: 10284.15 | F27: 8918.2 | G27: 6454.9 | I27: =IF('INGRESO DE DATOS'!$W$19=1,'Tablas Guyanas y Santa Elena'!C27,'Tablas Resto de Ecuador'!C27) -> 17442 | J27: =IF('INGRESO DE DATOS'!$W$19=1,'Tablas Guyanas y Santa Elena'!D27,'Tablas Resto de Ecuador'!D27) -> 15284 | K27: =IF('INGRESO DE DATOS'!$W$19=1,'Tablas Guyanas y Santa Elena'!E27,'Tablas Resto de Ecuador'!E27) -> 12099 | L27: =IF('INGRESO DE DATOS'!$W$19=1,'Tablas Guyanas y Santa Elena'!F27,'Tablas Resto de Ecuador'!F27) -> 10492 | M27: =IF('INGRESO DE DATOS'!$W$19=1,'Tablas Guyanas y Santa Elena'!G27,'Tablas Resto de Ecuador'!G27) -> 7594 | O27: 14825.7 | P27: 12991.4 | Q27: 10284.15 | R27: 8918.2 | S27: 6454.9
A28: 40 | C28: 16603.9 | D28: 14556.25 | E28: 11469.05 | F28: 9946.7 | G28: 7196.95 | I28: =IF('INGRESO DE DATOS'!$W$19=1,'Tablas Guyanas y Santa Elena'!C28,'Tablas Resto de Ecuador'!C28) -> 19534 | J28: =IF('INGRESO DE DATOS'!$W$19=1,'Tablas Guyanas y Santa Elena'!D28,'Tablas Resto de Ecuador'!D28) -> 17125 | K28: =IF('INGRESO DE DATOS'!$W$19=1,'Tablas Guyanas y Santa Elena'!E28,'Tablas Resto de Ecuador'!E28) -> 13493 | L28: =IF('INGRESO DE DATOS'!$W$19=1,'Tablas Guyanas y Santa Elena'!F28,'Tablas Resto de Ecuador'!F28) -> 11702 | M28: =IF('INGRESO DE DATOS'!$W$19=1,'Tablas Guyanas y Santa Elena'!G28,'Tablas Resto de Ecuador'!G28) -> 8467 | O28: 16603.9 | P28: 14556.25 | Q28: 11469.05 | R28: 9946.7 | S28: 7196.95
A29: 41 | C29: 16603.9 | D29: 14556.25 | E29: 11469.05 | F29: 9946.7 | G29: 7196.95 | I29: =IF('INGRESO DE DATOS'!$W$19=1,'Tablas Guyanas y Santa Elena'!C29,'Tablas Resto de Ecuador'!C29) -> 19534 | J29: =IF('INGRESO DE DATOS'!$W$19=1,'Tablas Guyanas y Santa Elena'!D29,'Tablas Resto de Ecuador'!D29) -> 17125 | K29: =IF('INGRESO DE DATOS'!$W$19=1,'Tablas Guyanas y Santa Elena'!E29,'Tablas Resto de Ecuador'!E29) -> 13493 | L29: =IF('INGRESO DE DATOS'!$W$19=1,'Tablas Guyanas y Santa Elena'!F29,'Tablas Resto de Ecuador'!F29) -> 11702 | M29: =IF('INGRESO DE DATOS'!$W$19=1,'Tablas Guyanas y Santa Elena'!G29,'Tablas Resto de Ecuador'!G29) -> 8467 | O29: 16603.9 | P29: 14556.25 | Q29: 11469.05 | R29: 9946.7 | S29: 7196.95
A30: 42 | C30: 16603.9 | D30: 14556.25 | E30: 11469.05 | F30: 9946.7 | G30: 7196.95 | I30: =IF('INGRESO DE DATOS'!$W$19=1,'Tablas Guyanas y Santa Elena'!C30,'Tablas Resto de Ecuador'!C30) -> 19534 | J30: =IF('INGRESO DE DATOS'!$W$19=1,'Tablas Guyanas y Santa Elena'!D30,'Tablas Resto de Ecuador'!D30) -> 17125 | K30: =IF('INGRESO DE DATOS'!$W$19=1,'Tablas Guyanas y Santa Elena'!E30,'Tablas Resto de Ecuador'!E30) -> 13493 | L30: =IF('INGRESO DE DATOS'!$W$19=1,'Tablas Guyanas y Santa Elena'!F30,'Tablas Resto de Ecuador'!F30) -> 11702 | M30: =IF('INGRESO DE DATOS'!$W$19=1,'Tablas Guyanas y Santa Elena'!G30,'Tablas Resto de Ecuador'!G30) -> 8467 | O30: 16603.9 | P30: 14556.25 | Q30: 11469.05 | R30: 9946.7 | S30: 7196.95
A31: 43 | C31: 16603.9 | D31: 14556.25 | E31: 11469.05 | F31: 9946.7 | G31: 7196.95 | I31: =IF('INGRESO DE DATOS'!$W$19=1,'Tablas Guyanas y Santa Elena'!C31,'Tablas Resto de Ecuador'!C31) -> 19534 | J31: =IF('INGRESO DE DATOS'!$W$19=1,'Tablas Guyanas y Santa Elena'!D31,'Tablas Resto de Ecuador'!D31) -> 17125 | K31: =IF('INGRESO DE DATOS'!$W$19=1,'Tablas Guyanas y Santa Elena'!E31,'Tablas Resto de Ecuador'!E31) -> 13493 | L31: =IF('INGRESO DE DATOS'!$W$19=1,'Tablas Guyanas y Santa Elena'!F31,'Tablas Resto de Ecuador'!F31) -> 11702 | M31: =IF('INGRESO DE DATOS'!$W$19=1,'Tablas Guyanas y Santa Elena'!G31,'Tablas Resto de Ecuador'!G31) -> 8467 | O31: 16603.9 | P31: 14556.25 | Q31: 11469.05 | R31: 9946.7 | S31: 7196.95
A32: 44 | C32: 16603.9 | D32: 14556.25 | E32: 11469.05 | F32: 9946.7 | G32: 7196.95 | I32: =IF('INGRESO DE DATOS'!$W$19=1,'Tablas Guyanas y Santa Elena'!C32,'Tablas Resto de Ecuador'!C32) -> 19534 | J32: =IF('INGRESO DE DATOS'!$W$19=1,'Tablas Guyanas y Santa Elena'!D32,'Tablas Resto de Ecuador'!D32) -> 17125 | K32: =IF('INGRESO DE DATOS'!$W$19=1,'Tablas Guyanas y Santa Elena'!E32,'Tablas Resto de Ecuador'!E32) -> 13493 | L32: =IF('INGRESO DE DATOS'!$W$19=1,'Tablas Guyanas y Santa Elena'!F32,'Tablas Resto de Ecuador'!F32) -> 11702 | M32: =IF('INGRESO DE DATOS'!$W$19=1,'Tablas Guyanas y Santa Elena'!G32,'Tablas Resto de Ecuador'!G32) -> 8467 | O32: 16603.9 | P32: 14556.25 | Q32: 11469.05 | R32: 9946.7 | S32: 7196.95
A33: 45 | C33: 18582.7 | D33: 16026.75 | E33: 12796.75 | F33: 11096.75 | G33: 8030.8 | I33: =IF('INGRESO DE DATOS'!$W$19=1,'Tablas Guyanas y Santa Elena'!C33,'Tablas Resto de Ecuador'!C33) -> 21862 | J33: =IF('INGRESO DE DATOS'!$W$19=1,'Tablas Guyanas y Santa Elena'!D33,'Tablas Resto de Ecuador'!D33) -> 18855 | K33: =IF('INGRESO DE DATOS'!$W$19=1,'Tablas Guyanas y Santa Elena'!E33,'Tablas Resto de Ecuador'!E33) -> 15055 | L33: =IF('INGRESO DE DATOS'!$W$19=1,'Tablas Guyanas y Santa Elena'!F33,'Tablas Resto de Ecuador'!F33) -> 13055 | M33: =IF('INGRESO DE DATOS'!$W$19=1,'Tablas Guyanas y Santa Elena'!G33,'Tablas Resto de Ecuador'!G33) -> 9448 | O33: 18582.7 | P33: 16026.75 | Q33: 12796.75 | R33: 11096.75 | S33: 8030.8
A34: 46 | C34: 18582.7 | D34: 16026.75 | E34: 12796.75 | F34: 11096.75 | G34: 8030.8 | I34: =IF('INGRESO DE DATOS'!$W$19=1,'Tablas Guyanas y Santa Elena'!C34,'Tablas Resto de Ecuador'!C34) -> 21862 | J34: =IF('INGRESO DE DATOS'!$W$19=1,'Tablas Guyanas y Santa Elena'!D34,'Tablas Resto de Ecuador'!D34) -> 18855 | K34: =IF('INGRESO DE DATOS'!$W$19=1,'Tablas Guyanas y Santa Elena'!E34,'Tablas Resto de Ecuador'!E34) -> 15055 | L34: =IF('INGRESO DE DATOS'!$W$19=1,'Tablas Guyanas y Santa Elena'!F34,'Tablas Resto de Ecuador'!F34) -> 13055 | M34: =IF('INGRESO DE DATOS'!$W$19=1,'Tablas Guyanas y Santa Elena'!G34,'Tablas Resto de Ecuador'!G34) -> 9448 | O34: 18582.7 | P34: 16026.75 | Q34: 12796.75 | R34: 11096.75 | S34: 8030.8
A35: 47 | C35: 18582.7 | D35: 16026.75 | E35: 12796.75 | F35: 11096.75 | G35: 8030.8 | I35: =IF('INGRESO DE DATOS'!$W$19=1,'Tablas Guyanas y Santa Elena'!C35,'Tablas Resto de Ecuador'!C35) -> 21862 | J35: =IF('INGRESO DE DATOS'!$W$19=1,'Tablas Guyanas y Santa Elena'!D35,'Tablas Resto de Ecuador'!D35) -> 18855 | K35: =IF('INGRESO DE DATOS'!$W$19=1,'Tablas Guyanas y Santa Elena'!E35,'Tablas Resto de Ecuador'!E35) -> 15055 | L35: =IF('INGRESO DE DATOS'!$W$19=1,'Tablas Guyanas y Santa Elena'!F35,'Tablas Resto de Ecuador'!F35) -> 13055 | M35: =IF('INGRESO DE DATOS'!$W$19=1,'Tablas Guyanas y Santa Elena'!G35,'Tablas Resto de Ecuador'!G35) -> 9448 | O35: 18582.7 | P35: 16026.75 | Q35: 12796.75 | R35: 11096.75 | S35: 8030.8
A36: 48 | C36: 18582.7 | D36: 16026.75 | E36: 12796.75 | F36: 11096.75 | G36: 8030.8 | I36: =IF('INGRESO DE DATOS'!$W$19=1,'Tablas Guyanas y Santa Elena'!C36,'Tablas Resto de Ecuador'!C36) -> 21862 | J36: =IF('INGRESO DE DATOS'!$W$19=1,'Tablas Guyanas y Santa Elena'!D36,'Tablas Resto de Ecuador'!D36) -> 18855 | K36: =IF('INGRESO DE DATOS'!$W$19=1,'Tablas Guyanas y Santa Elena'!E36,'Tablas Resto de Ecuador'!E36) -> 15055 | L36: =IF('INGRESO DE DATOS'!$W$19=1,'Tablas Guyanas y Santa Elena'!F36,'Tablas Resto de Ecuador'!F36) -> 13055 | M36: =IF('INGRESO DE DATOS'!$W$19=1,'Tablas Guyanas y Santa Elena'!G36,'Tablas Resto de Ecuador'!G36) -> 9448 | O36: 18582.7 | P36: 16026.75 | Q36: 12796.75 | R36: 11096.75 | S36: 8030.8
A37: 49 | C37: 18582.7 | D37: 16026.75 | E37: 12796.75 | F37: 11096.75 | G37: 8030.8 | I37: =IF('INGRESO DE DATOS'!$W$19=1,'Tablas Guyanas y Santa Elena'!C37,'Tablas Resto de Ecuador'!C37) -> 21862 | J37: =IF('INGRESO DE DATOS'!$W$19=1,'Tablas Guyanas y Santa Elena'!D37,'Tablas Resto de Ecuador'!D37) -> 18855 | K37: =IF('INGRESO DE DATOS'!$W$19=1,'Tablas Guyanas y Santa Elena'!E37,'Tablas Resto de Ecuador'!E37) -> 15055 | L37: =IF('INGRESO DE DATOS'!$W$19=1,'Tablas Guyanas y Santa Elena'!F37,'Tablas Resto de Ecuador'!F37) -> 13055 | M37: =IF('INGRESO DE DATOS'!$W$19=1,'Tablas Guyanas y Santa Elena'!G37,'Tablas Resto de Ecuador'!G37) -> 9448 | O37: 18582.7 | P37: 16026.75 | Q37: 12796.75 | R37: 11096.75 | S37: 8030.8
A38: 50 | C38: 20811.4 | D38: 17457.3 | E38: 14109.15 | F38: 12400.65 | G38: 8973.45 | I38: =IF('INGRESO DE DATOS'!$W$19=1,'Tablas Guyanas y Santa Elena'!C38,'Tablas Resto de Ecuador'!C38) -> 24484 | J38: =IF('INGRESO DE DATOS'!$W$19=1,'Tablas Guyanas y Santa Elena'!D38,'Tablas Resto de Ecuador'!D38) -> 20538 | K38: =IF('INGRESO DE DATOS'!$W$19=1,'Tablas Guyanas y Santa Elena'!E38,'Tablas Resto de Ecuador'!E38) -> 16599 | L38: =IF('INGRESO DE DATOS'!$W$19=1,'Tablas Guyanas y Santa Elena'!F38,'Tablas Resto de Ecuador'!F38) -> 14589 | M38: =IF('INGRESO DE DATOS'!$W$19=1,'Tablas Guyanas y Santa Elena'!G38,'Tablas Resto de Ecuador'!G38) -> 10557 | O38: 20811.4 | P38: 17457.3 | Q38: 14109.15 | R38: 12400.65 | S38: 8973.45
A39: 51 | C39: 20811.4 | D39: 17457.3 | E39: 14109.15 | F39: 12400.65 | G39: 8973.45 | I39: =IF('INGRESO DE DATOS'!$W$19=1,'Tablas Guyanas y Santa Elena'!C39,'Tablas Resto de Ecuador'!C39) -> 24484 | J39: =IF('INGRESO DE DATOS'!$W$19=1,'Tablas Guyanas y Santa Elena'!D39,'Tablas Resto de Ecuador'!D39) -> 20538 | K39: =IF('INGRESO DE DATOS'!$W$19=1,'Tablas Guyanas y Santa Elena'!E39,'Tablas Resto de Ecuador'!E39) -> 16599 | L39: =IF('INGRESO DE DATOS'!$W$19=1,'Tablas Guyanas y Santa Elena'!F39,'Tablas Resto de Ecuador'!F39) -> 14589 | M39: =IF('INGRESO DE DATOS'!$W$19=1,'Tablas Guyanas y Santa Elena'!G39,'Tablas Resto de Ecuador'!G39) -> 10557 | O39: 20811.4 | P39: 17457.3 | Q39: 14109.15 | R39: 12400.65 | S39: 8973.45
A40: 52 | C40: 20811.4 | D40: 17457.3 | E40: 14109.15 | F40: 12400.65 | G40: 8973.45 | I40: =IF('INGRESO DE DATOS'!$W$19=1,'Tablas Guyanas y Santa Elena'!C40,'Tablas Resto de Ecuador'!C40) -> 24484 | J40: =IF('INGRESO DE DATOS'!$W$19=1,'Tablas Guyanas y Santa Elena'!D40,'Tablas Resto de Ecuador'!D40) -> 20538 | K40: =IF('INGRESO DE DATOS'!$W$19=1,'Tablas Guyanas y Santa Elena'!E40,'Tablas Resto de Ecuador'!E40) -> 16599 | L40: =IF('INGRESO DE DATOS'!$W$19=1,'Tablas Guyanas y Santa Elena'!F40,'Tablas Resto de Ecuador'!F40) -> 14589 | M40: =IF('INGRESO DE DATOS'!$W$19=1,'Tablas Guyanas y Santa Elena'!G40,'Tablas Resto de Ecuador'!G40) -> 10557 | O40: 20811.4 | P40: 17457.3 | Q40: 14109.15 | R40: 12400.65 | S40: 8973.45
A41: 53 | C41: 20811.4 | D41: 17457.3 | E41: 14109.15 | F41: 12400.65 | G41: 8973.45 | I41: =IF('INGRESO DE DATOS'!$W$19=1,'Tablas Guyanas y Santa Elena'!C41,'Tablas Resto de Ecuador'!C41) -> 24484 | J41: =IF('INGRESO DE DATOS'!$W$19=1,'Tablas Guyanas y Santa Elena'!D41,'Tablas Resto de Ecuador'!D41) -> 20538 | K41: =IF('INGRESO DE DATOS'!$W$19=1,'Tablas Guyanas y Santa Elena'!E41,'Tablas Resto de Ecuador'!E41) -> 16599 | L41: =IF('INGRESO DE DATOS'!$W$19=1,'Tablas Guyanas y Santa Elena'!F41,'Tablas Resto de Ecuador'!F41) -> 14589 | M41: =IF('INGRESO DE DATOS'!$W$19=1,'Tablas Guyanas y Santa Elena'!G41,'Tablas Resto de Ecuador'!G41) -> 10557 | O41: 20811.4 | P41: 17457.3 | Q41: 14109.15 | R41: 12400.65 | S41: 8973.45
A42: 54 | C42: 20811.4 | D42: 17457.3 | E42: 14109.15 | F42: 12400.65 | G42: 8973.45 | I42: =IF('INGRESO DE DATOS'!$W$19=1,'Tablas Guyanas y Santa Elena'!C42,'Tablas Resto de Ecuador'!C42) -> 24484 | J42: =IF('INGRESO DE DATOS'!$W$19=1,'Tablas Guyanas y Santa Elena'!D42,'Tablas Resto de Ecuador'!D42) -> 20538 | K42: =IF('INGRESO DE DATOS'!$W$19=1,'Tablas Guyanas y Santa Elena'!E42,'Tablas Resto de Ecuador'!E42) -> 16599 | L42: =IF('INGRESO DE DATOS'!$W$19=1,'Tablas Guyanas y Santa Elena'!F42,'Tablas Resto de Ecuador'!F42) -> 14589 | M42: =IF('INGRESO DE DATOS'!$W$19=1,'Tablas Guyanas y Santa Elena'!G42,'Tablas Resto de Ecuador'!G42) -> 10557 | O42: 20811.4 | P42: 17457.3 | Q42: 14109.15 | R42: 12400.65 | S42: 8973.45
A43: 55 | C43: 23264.5 | D43: 20394.05 | E43: 15959.6 | F43: 13841.4 | G43: 10018.1 | I43: =IF('INGRESO DE DATOS'!$W$19=1,'Tablas Guyanas y Santa Elena'!C43,'Tablas Resto de Ecuador'!C43) -> 27370 | J43: =IF('INGRESO DE DATOS'!$W$19=1,'Tablas Guyanas y Santa Elena'!D43,'Tablas Resto de Ecuador'!D43) -> 23993 | K43: =IF('INGRESO DE DATOS'!$W$19=1,'Tablas Guyanas y Santa Elena'!E43,'Tablas Resto de Ecuador'!E43) -> 18776 | L43: =IF('INGRESO DE DATOS'!$W$19=1,'Tablas Guyanas y Santa Elena'!F43,'Tablas Resto de Ecuador'!F43) -> 16284 | M43: =IF('INGRESO DE DATOS'!$W$19=1,'Tablas Guyanas y Santa Elena'!G43,'Tablas Resto de Ecuador'!G43) -> 11786 | O43: 23264.5 | P43: 20394.05 | Q43: 15959.6 | R43: 13841.4 | S43: 10018.1
A44: 56 | C44: 23264.5 | D44: 20394.05 | E44: 15959.6 | F44: 13841.4 | G44: 10018.1 | I44: =IF('INGRESO DE DATOS'!$W$19=1,'Tablas Guyanas y Santa Elena'!C44,'Tablas Resto de Ecuador'!C44) -> 27370 | J44: =IF('INGRESO DE DATOS'!$W$19=1,'Tablas Guyanas y Santa Elena'!D44,'Tablas Resto de Ecuador'!D44) -> 23993 | K44: =IF('INGRESO DE DATOS'!$W$19=1,'Tablas Guyanas y Santa Elena'!E44,'Tablas Resto de Ecuador'!E44) -> 18776 | L44: =IF('INGRESO DE DATOS'!$W$19=1,'Tablas Guyanas y Santa Elena'!F44,'Tablas Resto de Ecuador'!F44) -> 16284 | M44: =IF('INGRESO DE DATOS'!$W$19=1,'Tablas Guyanas y Santa Elena'!G44,'Tablas Resto de Ecuador'!G44) -> 11786 | O44: 23264.5 | P44: 20394.05 | Q44: 15959.6 | R44: 13841.4 | S44: 10018.1
A45: 57 | C45: 23264.5 | D45: 20394.05 | E45: 15959.6 | F45: 13841.4 | G45: 10018.1 | I45: =IF('INGRESO DE DATOS'!$W$19=1,'Tablas Guyanas y Santa Elena'!C45,'Tablas Resto de Ecuador'!C45) -> 27370 | J45: =IF('INGRESO DE DATOS'!$W$19=1,'Tablas Guyanas y Santa Elena'!D45,'Tablas Resto de Ecuador'!D45) -> 23993 | K45: =IF('INGRESO DE DATOS'!$W$19=1,'Tablas Guyanas y Santa Elena'!E45,'Tablas Resto de Ecuador'!E45) -> 18776 | L45: =IF('INGRESO DE DATOS'!$W$19=1,'Tablas Guyanas y Santa Elena'!F45,'Tablas Resto de Ecuador'!F45) -> 16284 | M45: =IF('INGRESO DE DATOS'!$W$19=1,'Tablas Guyanas y Santa Elena'!G45,'Tablas Resto de Ecuador'!G45) -> 11786 | O45: 23264.5 | P45: 20394.05 | Q45: 15959.6 | R45: 13841.4 | S45: 10018.1
A46: 58 | C46: 23264.5 | D46: 20394.05 | E46: 15959.6 | F46: 13841.4 | G46: 10018.1 | I46: =IF('INGRESO DE DATOS'!$W$19=1,'Tablas Guyanas y Santa Elena'!C46,'Tablas Resto de Ecuador'!C46) -> 27370 | J46: =IF('INGRESO DE DATOS'!$W$19=1,'Tablas Guyanas y Santa Elena'!D46,'Tablas Resto de Ecuador'!D46) -> 23993 | K46: =IF('INGRESO DE DATOS'!$W$19=1,'Tablas Guyanas y Santa Elena'!E46,'Tablas Resto de Ecuador'!E46) -> 18776 | L46: =IF('INGRESO DE DATOS'!$W$19=1,'Tablas Guyanas y Santa Elena'!F46,'Tablas Resto de Ecuador'!F46) -> 16284 | M46: =IF('INGRESO DE DATOS'!$W$19=1,'Tablas Guyanas y Santa Elena'!G46,'Tablas Resto de Ecuador'!G46) -> 11786 | O46: 23264.5 | P46: 20394.05 | Q46: 15959.6 | R46: 13841.4 | S46: 10018.1
A47: 59 | C47: 23264.5 | D47: 20394.05 | E47: 15959.6 | F47: 13841.4 | G47: 10018.1 | I47: =IF('INGRESO DE DATOS'!$W$19=1,'Tablas Guyanas y Santa Elena'!C47,'Tablas Resto de Ecuador'!C47) -> 27370 | J47: =IF('INGRESO DE DATOS'!$W$19=1,'Tablas Guyanas y Santa Elena'!D47,'Tablas Resto de Ecuador'!D47) -> 23993 | K47: =IF('INGRESO DE DATOS'!$W$19=1,'Tablas Guyanas y Santa Elena'!E47,'Tablas Resto de Ecuador'!E47) -> 18776 | L47: =IF('INGRESO DE DATOS'!$W$19=1,'Tablas Guyanas y Santa Elena'!F47,'Tablas Resto de Ecuador'!F47) -> 16284 | M47: =IF('INGRESO DE DATOS'!$W$19=1,'Tablas Guyanas y Santa Elena'!G47,'Tablas Resto de Ecuador'!G47) -> 11786 | O47: 23264.5 | P47: 20394.05 | Q47: 15959.6 | R47: 13841.4 | S47: 10018.1
A48: 60 | C48: 24900.75 | D48: 21826.3 | E48: 17073.1 | F48: 14802.75 | G48: 10713.4 | I48: =IF('INGRESO DE DATOS'!$W$19=1,'Tablas Guyanas y Santa Elena'!C48,'Tablas Resto de Ecuador'!C48) -> 29295 | J48: =IF('INGRESO DE DATOS'!$W$19=1,'Tablas Guyanas y Santa Elena'!D48,'Tablas Resto de Ecuador'!D48) -> 25678 | K48: =IF('INGRESO DE DATOS'!$W$19=1,'Tablas Guyanas y Santa Elena'!E48,'Tablas Resto de Ecuador'!E48) -> 20086 | L48: =IF('INGRESO DE DATOS'!$W$19=1,'Tablas Guyanas y Santa Elena'!F48,'Tablas Resto de Ecuador'!F48) -> 17415 | M48: =IF('INGRESO DE DATOS'!$W$19=1,'Tablas Guyanas y Santa Elena'!G48,'Tablas Resto de Ecuador'!G48) -> 12604 | O48: 24900.75 | P48: 21826.3 | Q48: 17073.1 | R48: 14802.75 | S48: 10713.4
A49: 61 | C49: 27750.8 | D49: 24321.05 | E49: 19011.1 | F49: 16485.75 | G49: 11930.6 | I49: =IF('INGRESO DE DATOS'!$W$19=1,'Tablas Guyanas y Santa Elena'!C49,'Tablas Resto de Ecuador'!C49) -> 32648 | J49: =IF('INGRESO DE DATOS'!$W$19=1,'Tablas Guyanas y Santa Elena'!D49,'Tablas Resto de Ecuador'!D49) -> 28613 | K49: =IF('INGRESO DE DATOS'!$W$19=1,'Tablas Guyanas y Santa Elena'!E49,'Tablas Resto de Ecuador'!E49) -> 22366 | L49: =IF('INGRESO DE DATOS'!$W$19=1,'Tablas Guyanas y Santa Elena'!F49,'Tablas Resto de Ecuador'!F49) -> 19395 | M49: =IF('INGRESO DE DATOS'!$W$19=1,'Tablas Guyanas y Santa Elena'!G49,'Tablas Resto de Ecuador'!G49) -> 14036 | O49: 27750.8 | P49: 24321.05 | Q49: 19011.1 | R49: 16485.75 | S49: 11930.6
A50: 62 | C50: 30828.65 | D50: 25862.95 | E50: 21114.85 | F50: 18310.7 | G50: 13248.95 | I50: =IF('INGRESO DE DATOS'!$W$19=1,'Tablas Guyanas y Santa Elena'!C50,'Tablas Resto de Ecuador'!C50) -> 36269 | J50: =IF('INGRESO DE DATOS'!$W$19=1,'Tablas Guyanas y Santa Elena'!D50,'Tablas Resto de Ecuador'!D50) -> 30427 | K50: =IF('INGRESO DE DATOS'!$W$19=1,'Tablas Guyanas y Santa Elena'!E50,'Tablas Resto de Ecuador'!E50) -> 24841 | L50: =IF('INGRESO DE DATOS'!$W$19=1,'Tablas Guyanas y Santa Elena'!F50,'Tablas Resto de Ecuador'!F50) -> 21542 | M50: =IF('INGRESO DE DATOS'!$W$19=1,'Tablas Guyanas y Santa Elena'!G50,'Tablas Resto de Ecuador'!G50) -> 15587 | O50: 30828.65 | P50: 25862.95 | Q50: 21114.85 | R50: 18310.7 | S50: 13248.95
A51: 63 | C51: 32426.65 | D51: 26929.7 | E51: 23383.5 | F51: 20279.3 | G51: 14675.25 | I51: =IF('INGRESO DE DATOS'!$W$19=1,'Tablas Guyanas y Santa Elena'!C51,'Tablas Resto de Ecuador'!C51) -> 38149 | J51: =IF('INGRESO DE DATOS'!$W$19=1,'Tablas Guyanas y Santa Elena'!D51,'Tablas Resto de Ecuador'!D51) -> 31682 | K51: =IF('INGRESO DE DATOS'!$W$19=1,'Tablas Guyanas y Santa Elena'!E51,'Tablas Resto de Ecuador'!E51) -> 27510 | L51: =IF('INGRESO DE DATOS'!$W$19=1,'Tablas Guyanas y Santa Elena'!F51,'Tablas Resto de Ecuador'!F51) -> 23858 | M51: =IF('INGRESO DE DATOS'!$W$19=1,'Tablas Guyanas y Santa Elena'!G51,'Tablas Resto de Ecuador'!G51) -> 17265 | O51: 32426.65 | P51: 26929.7 | Q51: 23383.5 | R51: 20279.3 | S51: 14675.25
A52: 64 | C52: 34109.65 | D52: 28451.2 | E52: 25002.75 | F52: 22163.75 | G52: 16201 | I52: =IF('INGRESO DE DATOS'!$W$19=1,'Tablas Guyanas y Santa Elena'!C52,'Tablas Resto de Ecuador'!C52) -> 40129 | J52: =IF('INGRESO DE DATOS'!$W$19=1,'Tablas Guyanas y Santa Elena'!D52,'Tablas Resto de Ecuador'!D52) -> 33472 | K52: =IF('INGRESO DE DATOS'!$W$19=1,'Tablas Guyanas y Santa Elena'!E52,'Tablas Resto de Ecuador'!E52) -> 29415 | L52: =IF('INGRESO DE DATOS'!$W$19=1,'Tablas Guyanas y Santa Elena'!F52,'Tablas Resto de Ecuador'!F52) -> 26075 | M52: =IF('INGRESO DE DATOS'!$W$19=1,'Tablas Guyanas y Santa Elena'!G52,'Tablas Resto de Ecuador'!G52) -> 19060 | O52: 34109.65 | P52: 28451.2 | Q52: 25002.75 | R52: 22163.75 | S52: 16201
A53: 65 | C53: 36403.8 | D53: 30651.85 | E53: 27023.2 | F53: 24051.6 | G53: 17831.3 | I53: =IF('INGRESO DE DATOS'!$W$19=1,'Tablas Guyanas y Santa Elena'!C53,'Tablas Resto de Ecuador'!C53) -> 42828 | J53: =IF('INGRESO DE DATOS'!$W$19=1,'Tablas Guyanas y Santa Elena'!D53,'Tablas Resto de Ecuador'!D53) -> 36061 | K53: =IF('INGRESO DE DATOS'!$W$19=1,'Tablas Guyanas y Santa Elena'!E53,'Tablas Resto de Ecuador'!E53) -> 31792 | L53: =IF('INGRESO DE DATOS'!$W$19=1,'Tablas Guyanas y Santa Elena'!F53,'Tablas Resto de Ecuador'!F53) -> 28296 | M53: =IF('INGRESO DE DATOS'!$W$19=1,'Tablas Guyanas y Santa Elena'!G53,'Tablas Resto de Ecuador'!G53) -> 20978 | O53: 36403.8 | P53: 30651.85 | Q53: 27023.2 | R53: 24051.6 | S53: 17831.3
A54: 66 | C54: 39498.65 | D54: 33745 | E54: 29653.1 | F54: 26663.65 | G54: 19561.9 | I54: =IF('INGRESO DE DATOS'!$W$19=1,'Tablas Guyanas y Santa Elena'!C54,'Tablas Resto de Ecuador'!C54) -> 46469 | J54: =IF('INGRESO DE DATOS'!$W$19=1,'Tablas Guyanas y Santa Elena'!D54,'Tablas Resto de Ecuador'!D54) -> 39700 | K54: =IF('INGRESO DE DATOS'!$W$19=1,'Tablas Guyanas y Santa Elena'!E54,'Tablas Resto de Ecuador'!E54) -> 34886 | L54: =IF('INGRESO DE DATOS'!$W$19=1,'Tablas Guyanas y Santa Elena'!F54,'Tablas Resto de Ecuador'!F54) -> 31369 | M54: =IF('INGRESO DE DATOS'!$W$19=1,'Tablas Guyanas y Santa Elena'!G54,'Tablas Resto de Ecuador'!G54) -> 23014 | O54: 39498.65 | P54: 33745 | Q54: 29653.1 | R54: 26663.65 | S54: 19561.9
A55: 67 | C55: 43253.95 | D55: 37579.35 | E55: 32804.9 | F55: 29573.2 | G55: 21397.9 | I55: =IF('INGRESO DE DATOS'!$W$19=1,'Tablas Guyanas y Santa Elena'!C55,'Tablas Resto de Ecuador'!C55) -> 50887 | J55: =IF('INGRESO DE DATOS'!$W$19=1,'Tablas Guyanas y Santa Elena'!D55,'Tablas Resto de Ecuador'!D55) -> 44211 | K55: =IF('INGRESO DE DATOS'!$W$19=1,'Tablas Guyanas y Santa Elena'!E55,'Tablas Resto de Ecuador'!E55) -> 38594 | L55: =IF('INGRESO DE DATOS'!$W$19=1,'Tablas Guyanas y Santa Elena'!F55,'Tablas Resto de Ecuador'!F55) -> 34792 | M55: =IF('INGRESO DE DATOS'!$W$19=1,'Tablas Guyanas y Santa Elena'!G55,'Tablas Resto de Ecuador'!G55) -> 25174 | O55: 43253.95 | P55: 37579.35 | Q55: 32804.9 | R55: 29573.2 | S55: 21397.9
A56: 68 | C56: 47386.65 | D56: 41837 | E56: 36253.35 | F56: 32256.65 | G56: 23341.85 | I56: =IF('INGRESO DE DATOS'!$W$19=1,'Tablas Guyanas y Santa Elena'!C56,'Tablas Resto de Ecuador'!C56) -> 55749 | J56: =IF('INGRESO DE DATOS'!$W$19=1,'Tablas Guyanas y Santa Elena'!D56,'Tablas Resto de Ecuador'!D56) -> 49220 | K56: =IF('INGRESO DE DATOS'!$W$19=1,'Tablas Guyanas y Santa Elena'!E56,'Tablas Resto de Ecuador'!E56) -> 42651 | L56: =IF('INGRESO DE DATOS'!$W$19=1,'Tablas Guyanas y Santa Elena'!F56,'Tablas Resto de Ecuador'!F56) -> 37949 | M56: =IF('INGRESO DE DATOS'!$W$19=1,'Tablas Guyanas y Santa Elena'!G56,'Tablas Resto de Ecuador'!G56) -> 27461 | O56: 47386.65 | P56: 41837 | Q56: 36253.35 | R56: 32256.65 | S56: 23341.85
A57: 69 | C57: 51613.7 | D57: 46200.9 | E57: 39777.45 | F57: 35081.2 | G57: 25384.4 | I57: =IF('INGRESO DE DATOS'!$W$19=1,'Tablas Guyanas y Santa Elena'!C57,'Tablas Resto de Ecuador'!C57) -> 60722 | J57: =IF('INGRESO DE DATOS'!$W$19=1,'Tablas Guyanas y Santa Elena'!D57,'Tablas Resto de Ecuador'!D57) -> 54354 | K57: =IF('INGRESO DE DATOS'!$W$19=1,'Tablas Guyanas y Santa Elena'!E57,'Tablas Resto de Ecuador'!E57) -> 46797 | L57: =IF('INGRESO DE DATOS'!$W$19=1,'Tablas Guyanas y Santa Elena'!F57,'Tablas Resto de Ecuador'!F57) -> 41272 | M57: =IF('INGRESO DE DATOS'!$W$19=1,'Tablas Guyanas y Santa Elena'!G57,'Tablas Resto de Ecuador'!G57) -> 29864 | O57: 51613.7 | P57: 46200.9 | Q57: 39777.45 | R57: 35081.2 | S57: 25384.4
A58: 70 | C58: 55652.05 | D58: 50353.15 | E58: 43151.95 | F58: 38046 | G58: 27528.1 | I58: =IF('INGRESO DE DATOS'!$W$19=1,'Tablas Guyanas y Santa Elena'!C58,'Tablas Resto de Ecuador'!C58) -> 65473 | J58: =IF('INGRESO DE DATOS'!$W$19=1,'Tablas Guyanas y Santa Elena'!D58,'Tablas Resto de Ecuador'!D58) -> 59239 | K58: =IF('INGRESO DE DATOS'!$W$19=1,'Tablas Guyanas y Santa Elena'!E58,'Tablas Resto de Ecuador'!E58) -> 50767 | L58: =IF('INGRESO DE DATOS'!$W$19=1,'Tablas Guyanas y Santa Elena'!F58,'Tablas Resto de Ecuador'!F58) -> 44760 | M58: =IF('INGRESO DE DATOS'!$W$19=1,'Tablas Guyanas y Santa Elena'!G58,'Tablas Resto de Ecuador'!G58) -> 32386 | O58: 55652.05 | P58: 50353.15 | Q58: 43151.95 | R58: 38046 | S58: 27528.1
A59: 71 | C59: 59501.7 | D59: 54292.9 | E59: 46377.7 | F59: 41153.6 | G59: 29779.75 | I59: =IF('INGRESO DE DATOS'!$W$19=1,'Tablas Guyanas y Santa Elena'!C59,'Tablas Resto de Ecuador'!C59) -> 70002 | J59: =IF('INGRESO DE DATOS'!$W$19=1,'Tablas Guyanas y Santa Elena'!D59,'Tablas Resto de Ecuador'!D59) -> 63874 | K59: =IF('INGRESO DE DATOS'!$W$19=1,'Tablas Guyanas y Santa Elena'!E59,'Tablas Resto de Ecuador'!E59) -> 54562 | L59: =IF('INGRESO DE DATOS'!$W$19=1,'Tablas Guyanas y Santa Elena'!F59,'Tablas Resto de Ecuador'!F59) -> 48416 | M59: =IF('INGRESO DE DATOS'!$W$19=1,'Tablas Guyanas y Santa Elena'!G59,'Tablas Resto de Ecuador'!G59) -> 35035 | O59: 59501.7 | P59: 54292.9 | Q59: 46377.7 | R59: 41153.6 | S59: 29779.75
A60: 72 | C60: 63350.5 | D60: 58233.5 | E60: 49603.45 | F60: 44404.85 | G60: 32129.15 | I60: =IF('INGRESO DE DATOS'!$W$19=1,'Tablas Guyanas y Santa Elena'!C60,'Tablas Resto de Ecuador'!C60) -> 74530 | J60: =IF('INGRESO DE DATOS'!$W$19=1,'Tablas Guyanas y Santa Elena'!D60,'Tablas Resto de Ecuador'!D60) -> 68510 | K60: =IF('INGRESO DE DATOS'!$W$19=1,'Tablas Guyanas y Santa Elena'!E60,'Tablas Resto de Ecuador'!E60) -> 58357 | L60: =IF('INGRESO DE DATOS'!$W$19=1,'Tablas Guyanas y Santa Elena'!F60,'Tablas Resto de Ecuador'!F60) -> 52241 | M60: =IF('INGRESO DE DATOS'!$W$19=1,'Tablas Guyanas y Santa Elena'!G60,'Tablas Resto de Ecuador'!G60) -> 37799 | O60: 63350.5 | P60: 58233.5 | Q60: 49603.45 | R60: 44404.85 | S60: 32129.15
A61: 73 | C61: 67200.15 | D61: 62173.25 | E61: 52829.2 | F61: 47799.75 | G61: 34589.05 | I61: =IF('INGRESO DE DATOS'!$W$19=1,'Tablas Guyanas y Santa Elena'!C61,'Tablas Resto de Ecuador'!C61) -> 79059 | J61: =IF('INGRESO DE DATOS'!$W$19=1,'Tablas Guyanas y Santa Elena'!D61,'Tablas Resto de Ecuador'!D61) -> 73145 | K61: =IF('INGRESO DE DATOS'!$W$19=1,'Tablas Guyanas y Santa Elena'!E61,'Tablas Resto de Ecuador'!E61) -> 62152 | L61: =IF('INGRESO DE DATOS'!$W$19=1,'Tablas Guyanas y Santa Elena'!F61,'Tablas Resto de Ecuador'!F61) -> 56235 | M61: =IF('INGRESO DE DATOS'!$W$19=1,'Tablas Guyanas y Santa Elena'!G61,'Tablas Resto de Ecuador'!G61) -> 40693 | O61: 67200.15 | P61: 62173.25 | Q61: 52829.2 | R61: 47799.75 | S61: 34589.05
A62: 74 | C62: 71049.8 | D62: 66113.85 | E62: 56054.95 | F62: 51336.6 | G62: 37147.55 | I62: =IF('INGRESO DE DATOS'!$W$19=1,'Tablas Guyanas y Santa Elena'!C62,'Tablas Resto de Ecuador'!C62) -> 83588 | J62: =IF('INGRESO DE DATOS'!$W$19=1,'Tablas Guyanas y Santa Elena'!D62,'Tablas Resto de Ecuador'!D62) -> 77781 | K62: =IF('INGRESO DE DATOS'!$W$19=1,'Tablas Guyanas y Santa Elena'!E62,'Tablas Resto de Ecuador'!E62) -> 65947 | L62: =IF('INGRESO DE DATOS'!$W$19=1,'Tablas Guyanas y Santa Elena'!F62,'Tablas Resto de Ecuador'!F62) -> 60396 | M62: =IF('INGRESO DE DATOS'!$W$19=1,'Tablas Guyanas y Santa Elena'!G62,'Tablas Resto de Ecuador'!G62) -> 43703 | O62: 71049.8 | P62: 66113.85 | Q62: 56054.95 | R62: 51336.6 | S62: 37147.55
A63: 75 | C63: 74835.7 | D63: 69989.85 | E63: 59216.95 | F63: 55014.55 | G63: 39805.5 | I63: =IF('INGRESO DE DATOS'!$W$19=1,'Tablas Guyanas y Santa Elena'!C63,'Tablas Resto de Ecuador'!C63) -> 88042 | J63: =IF('INGRESO DE DATOS'!$W$19=1,'Tablas Guyanas y Santa Elena'!D63,'Tablas Resto de Ecuador'!D63) -> 82341 | K63: =IF('INGRESO DE DATOS'!$W$19=1,'Tablas Guyanas y Santa Elena'!E63,'Tablas Resto de Ecuador'!E63) -> 69667 | L63: =IF('INGRESO DE DATOS'!$W$19=1,'Tablas Guyanas y Santa Elena'!F63,'Tablas Resto de Ecuador'!F63) -> 64723 | M63: =IF('INGRESO DE DATOS'!$W$19=1,'Tablas Guyanas y Santa Elena'!G63,'Tablas Resto de Ecuador'!G63) -> 46830 | O63: 74835.7 | P63: 69989.85 | Q63: 59216.95 | R63: 55014.55 | S63: 39805.5
A64: 76 | C64: 74835.7 | D64: 69989.85 | E64: 59216.95 | F64: 55014.55 | G64: 39805.5 | I64: =IF('INGRESO DE DATOS'!$W$19=1,'Tablas Guyanas y Santa Elena'!C64,'Tablas Resto de Ecuador'!C64) -> 88042 | J64: =IF('INGRESO DE DATOS'!$W$19=1,'Tablas Guyanas y Santa Elena'!D64,'Tablas Resto de Ecuador'!D64) -> 82341 | K64: =IF('INGRESO DE DATOS'!$W$19=1,'Tablas Guyanas y Santa Elena'!E64,'Tablas Resto de Ecuador'!E64) -> 69667 | L64: =IF('INGRESO DE DATOS'!$W$19=1,'Tablas Guyanas y Santa Elena'!F64,'Tablas Resto de Ecuador'!F64) -> 64723 | M64: =IF('INGRESO DE DATOS'!$W$19=1,'Tablas Guyanas y Santa Elena'!G64,'Tablas Resto de Ecuador'!G64) -> 46830 | O64: 74835.7 | P64: 69989.85 | Q64: 59216.95 | R64: 55014.55 | S64: 39805.5
A65: 77 | C65: 74835.7 | D65: 69989.85 | E65: 59216.95 | F65: 55014.55 | G65: 39805.5 | I65: =IF('INGRESO DE DATOS'!$W$19=1,'Tablas Guyanas y Santa Elena'!C65,'Tablas Resto de Ecuador'!C65) -> 88042 | J65: =IF('INGRESO DE DATOS'!$W$19=1,'Tablas Guyanas y Santa Elena'!D65,'Tablas Resto de Ecuador'!D65) -> 82341 | K65: =IF('INGRESO DE DATOS'!$W$19=1,'Tablas Guyanas y Santa Elena'!E65,'Tablas Resto de Ecuador'!E65) -> 69667 | L65: =IF('INGRESO DE DATOS'!$W$19=1,'Tablas Guyanas y Santa Elena'!F65,'Tablas Resto de Ecuador'!F65) -> 64723 | M65: =IF('INGRESO DE DATOS'!$W$19=1,'Tablas Guyanas y Santa Elena'!G65,'Tablas Resto de Ecuador'!G65) -> 46830 | O65: 74835.7 | P65: 69989.85 | Q65: 59216.95 | R65: 55014.55 | S65: 39805.5
A66: 78 | C66: 74835.7 | D66: 69989.85 | E66: 59216.95 | F66: 55014.55 | G66: 39805.5 | I66: =IF('INGRESO DE DATOS'!$W$19=1,'Tablas Guyanas y Santa Elena'!C66,'Tablas Resto de Ecuador'!C66) -> 88042 | J66: =IF('INGRESO DE DATOS'!$W$19=1,'Tablas Guyanas y Santa Elena'!D66,'Tablas Resto de Ecuador'!D66) -> 82341 | K66: =IF('INGRESO DE DATOS'!$W$19=1,'Tablas Guyanas y Santa Elena'!E66,'Tablas Resto de Ecuador'!E66) -> 69667 | L66: =IF('INGRESO DE DATOS'!$W$19=1,'Tablas Guyanas y Santa Elena'!F66,'Tablas Resto de Ecuador'!F66) -> 64723 | M66: =IF('INGRESO DE DATOS'!$W$19=1,'Tablas Guyanas y Santa Elena'!G66,'Tablas Resto de Ecuador'!G66) -> 46830 | O66: 74835.7 | P66: 69989.85 | Q66: 59216.95 | R66: 55014.55 | S66: 39805.5
A67: 79 | C67: 74835.7 | D67: 69989.85 | E67: 59216.95 | F67: 55014.55 | G67: 39805.5 | I67: =IF('INGRESO DE DATOS'!$W$19=1,'Tablas Guyanas y Santa Elena'!C67,'Tablas Resto de Ecuador'!C67) -> 88042 | J67: =IF('INGRESO DE DATOS'!$W$19=1,'Tablas Guyanas y Santa Elena'!D67,'Tablas Resto de Ecuador'!D67) -> 82341 | K67: =IF('INGRESO DE DATOS'!$W$19=1,'Tablas Guyanas y Santa Elena'!E67,'Tablas Resto de Ecuador'!E67) -> 69667 | L67: =IF('INGRESO DE DATOS'!$W$19=1,'Tablas Guyanas y Santa Elena'!F67,'Tablas Resto de Ecuador'!F67) -> 64723 | M67: =IF('INGRESO DE DATOS'!$W$19=1,'Tablas Guyanas y Santa Elena'!G67,'Tablas Resto de Ecuador'!G67) -> 46830 | O67: 74835.7 | P67: 69989.85 | Q67: 59216.95 | R67: 55014.55 | S67: 39805.5
A68: 80 | C68: 74835.7 | D68: 69989.85 | E68: 59216.95 | F68: 55014.55 | G68: 39805.5 | I68: =IF('INGRESO DE DATOS'!$W$19=1,'Tablas Guyanas y Santa Elena'!C68,'Tablas Resto de Ecuador'!C68) -> 88042 | J68: =IF('INGRESO DE DATOS'!$W$19=1,'Tablas Guyanas y Santa Elena'!D68,'Tablas Resto de Ecuador'!D68) -> 82341 | K68: =IF('INGRESO DE DATOS'!$W$19=1,'Tablas Guyanas y Santa Elena'!E68,'Tablas Resto de Ecuador'!E68) -> 69667 | L68: =IF('INGRESO DE DATOS'!$W$19=1,'Tablas Guyanas y Santa Elena'!F68,'Tablas Resto de Ecuador'!F68) -> 64723 | M68: =IF('INGRESO DE DATOS'!$W$19=1,'Tablas Guyanas y Santa Elena'!G68,'Tablas Resto de Ecuador'!G68) -> 46830 | O68: 74835.7 | P68: 69989.85 | Q68: 59216.95 | R68: 55014.55 | S68: 39805.5
A69: 81 | C69: 74835.7 | D69: 69989.85 | E69: 59216.95 | F69: 55014.55 | G69: 39805.5 | I69: =IF('INGRESO DE DATOS'!$W$19=1,'Tablas Guyanas y Santa Elena'!C69,'Tablas Resto de Ecuador'!C69) -> 88042 | J69: =IF('INGRESO DE DATOS'!$W$19=1,'Tablas Guyanas y Santa Elena'!D69,'Tablas Resto de Ecuador'!D69) -> 82341 | K69: =IF('INGRESO DE DATOS'!$W$19=1,'Tablas Guyanas y Santa Elena'!E69,'Tablas Resto de Ecuador'!E69) -> 69667 | L69: =IF('INGRESO DE DATOS'!$W$19=1,'Tablas Guyanas y Santa Elena'!F69,'Tablas Resto de Ecuador'!F69) -> 64723 | M69: =IF('INGRESO DE DATOS'!$W$19=1,'Tablas Guyanas y Santa Elena'!G69,'Tablas Resto de Ecuador'!G69) -> 46830 | O69: 74835.7 | P69: 69989.85 | Q69: 59216.95 | R69: 55014.55 | S69: 39805.5
A70: 82 | C70: 74835.7 | D70: 69989.85 | E70: 59216.95 | F70: 55014.55 | G70: 39805.5 | I70: =IF('INGRESO DE DATOS'!$W$19=1,'Tablas Guyanas y Santa Elena'!C70,'Tablas Resto de Ecuador'!C70) -> 88042 | J70: =IF('INGRESO DE DATOS'!$W$19=1,'Tablas Guyanas y Santa Elena'!D70,'Tablas Resto de Ecuador'!D70) -> 82341 | K70: =IF('INGRESO DE DATOS'!$W$19=1,'Tablas Guyanas y Santa Elena'!E70,'Tablas Resto de Ecuador'!E70) -> 69667 | L70: =IF('INGRESO DE DATOS'!$W$19=1,'Tablas Guyanas y Santa Elena'!F70,'Tablas Resto de Ecuador'!F70) -> 64723 | M70: =IF('INGRESO DE DATOS'!$W$19=1,'Tablas Guyanas y Santa Elena'!G70,'Tablas Resto de Ecuador'!G70) -> 46830 | O70: 74835.7 | P70: 69989.85 | Q70: 59216.95 | R70: 55014.55 | S70: 39805.5
A71: 83 | C71: =O71*$X$2 -> 74835.7 | D71: 69989.85 | E71: 59216.95 | F71: 55014.55 | G71: 39805.5 | I71: =IF('INGRESO DE DATOS'!$W$19=1,'Tablas Guyanas y Santa Elena'!C71,'Tablas Resto de Ecuador'!C71) -> 88042 | J71: =IF('INGRESO DE DATOS'!$W$19=1,'Tablas Guyanas y Santa Elena'!D71,'Tablas Resto de Ecuador'!D71) -> 82341 | K71: =IF('INGRESO DE DATOS'!$W$19=1,'Tablas Guyanas y Santa Elena'!E71,'Tablas Resto de Ecuador'!E71) -> 69667 | L71: =IF('INGRESO DE DATOS'!$W$19=1,'Tablas Guyanas y Santa Elena'!F71,'Tablas Resto de Ecuador'!F71) -> 64723 | M71: =IF('INGRESO DE DATOS'!$W$19=1,'Tablas Guyanas y Santa Elena'!G71,'Tablas Resto de Ecuador'!G71) -> 46830 | O71: =I71*$P$4 -> 74835.7 | P71: 69989.85 | Q71: 59216.95 | R71: 55014.55 | S71: 39805.5
A72: 84 | B72: o más | C72: 74835.7 | D72: 69989.85 | E72: 59216.95 | F72: 55014.55 | G72: 39805.5 | I72: =IF('INGRESO DE DATOS'!$W$19=1,'Tablas Guyanas y Santa Elena'!C72,'Tablas Resto de Ecuador'!C72) -> 88042 | J72: =IF('INGRESO DE DATOS'!$W$19=1,'Tablas Guyanas y Santa Elena'!D72,'Tablas Resto de Ecuador'!D72) -> 82341 | K72: =IF('INGRESO DE DATOS'!$W$19=1,'Tablas Guyanas y Santa Elena'!E72,'Tablas Resto de Ecuador'!E72) -> 69667 | L72: =IF('INGRESO DE DATOS'!$W$19=1,'Tablas Guyanas y Santa Elena'!F72,'Tablas Resto de Ecuador'!F72) -> 64723 | M72: =IF('INGRESO DE DATOS'!$W$19=1,'Tablas Guyanas y Santa Elena'!G72,'Tablas Resto de Ecuador'!G72) -> 46830 | O72: 74835.7 | P72: 69989.85 | Q72: 59216.95 | R72: 55014.55 | S72: 39805.5
A73: 1 | B73: Hijo | C73: 2731.9 | D73: 1626.05 | E73: 1178.95 | F73: 1093.95 | G73: 1373.6 | I73: =IF('INGRESO DE DATOS'!$W$19=1,'Tablas Guyanas y Santa Elena'!C73,'Tablas Resto de Ecuador'!C73) -> 3214 | J73: =IF('INGRESO DE DATOS'!$W$19=1,'Tablas Guyanas y Santa Elena'!D73,'Tablas Resto de Ecuador'!D73) -> 1913 | K73: =IF('INGRESO DE DATOS'!$W$19=1,'Tablas Guyanas y Santa Elena'!E73,'Tablas Resto de Ecuador'!E73) -> 1387 | L73: =IF('INGRESO DE DATOS'!$W$19=1,'Tablas Guyanas y Santa Elena'!F73,'Tablas Resto de Ecuador'!F73) -> 1287 | M73: =IF('INGRESO DE DATOS'!$W$19=1,'Tablas Guyanas y Santa Elena'!G73,'Tablas Resto de Ecuador'!G73) -> 1616 | O73: 2731.9 | P73: 1626.05 | Q73: 1178.95 | R73: 1093.95 | S73: 1373.6
A74: 2 | B74: Hijos | C74: 4946.15 | D74: 2856 | E74: 2097.8 | F74: 1945.65 | G74: 2391.9 | I74: =IF('INGRESO DE DATOS'!$W$19=1,'Tablas Guyanas y Santa Elena'!C74,'Tablas Resto de Ecuador'!C74) -> 5819 | J74: =IF('INGRESO DE DATOS'!$W$19=1,'Tablas Guyanas y Santa Elena'!D74,'Tablas Resto de Ecuador'!D74) -> 3360 | K74: =IF('INGRESO DE DATOS'!$W$19=1,'Tablas Guyanas y Santa Elena'!E74,'Tablas Resto de Ecuador'!E74) -> 2468 | L74: =IF('INGRESO DE DATOS'!$W$19=1,'Tablas Guyanas y Santa Elena'!F74,'Tablas Resto de Ecuador'!F74) -> 2289 | M74: =IF('INGRESO DE DATOS'!$W$19=1,'Tablas Guyanas y Santa Elena'!G74,'Tablas Resto de Ecuador'!G74) -> 2814 | O74: 4946.15 | P74: 2856 | Q74: 2097.8 | R74: 1945.65 | S74: 2391.9
A75: 3 | B75: Hijos o más | C75: 7040.55 | D75: 4042.6 | E75: 2983.5 | F75: 2768.45 | G75: 3328.6 | I75: =IF('INGRESO DE DATOS'!$W$19=1,'Tablas Guyanas y Santa Elena'!C75,'Tablas Resto de Ecuador'!C75) -> 8283 | J75: =IF('INGRESO DE DATOS'!$W$19=1,'Tablas Guyanas y Santa Elena'!D75,'Tablas Resto de Ecuador'!D75) -> 4756 | K75: =IF('INGRESO DE DATOS'!$W$19=1,'Tablas Guyanas y Santa Elena'!E75,'Tablas Resto de Ecuador'!E75) -> 3510 | L75: =IF('INGRESO DE DATOS'!$W$19=1,'Tablas Guyanas y Santa Elena'!F75,'Tablas Resto de Ecuador'!F75) -> 3257 | M75: =IF('INGRESO DE DATOS'!$W$19=1,'Tablas Guyanas y Santa Elena'!G75,'Tablas Resto de Ecuador'!G75) -> 3916 | O75: 7040.55 | P75: 4042.6 | Q75: 2983.5 | R75: 2768.45 | S75: 3328.6
A77: BUPA GLOBAL PREMIER
A78: TARIFAS ANUALES
A80: EDAD | C80: 250 | D80: 2000 | E80: 3500 | F80: 5000 | G80: 10000 | I80: TARIFAS BASE | O80: TARIFAS BASE COND ESCUENTO
A81: 18 | C81: =O81*$X$2 -> 7087.3 | D81: =P81*$X$2 -> 5683.95 | E81: =Q81*$X$2 -> 4064.7 | F81: =R81*$X$2 -> 3252.95 | G81: 2550.85 | I81: =IF('INGRESO DE DATOS'!$W$19=1,'Tablas Guyanas y Santa Elena'!C81,'Tablas Resto de Ecuador'!C81) -> 8338 | J81: =IF('INGRESO DE DATOS'!$W$19=1,'Tablas Guyanas y Santa Elena'!D81,'Tablas Resto de Ecuador'!D81) -> 6687 | K81: =IF('INGRESO DE DATOS'!$W$19=1,'Tablas Guyanas y Santa Elena'!E81,'Tablas Resto de Ecuador'!E81) -> 4782 | L81: =IF('INGRESO DE DATOS'!$W$19=1,'Tablas Guyanas y Santa Elena'!F81,'Tablas Resto de Ecuador'!F81) -> 3827 | M81: =IF('INGRESO DE DATOS'!$W$19=1,'Tablas Guyanas y Santa Elena'!G81,'Tablas Resto de Ecuador'!G81) -> 3001 | O81: =I81*$Q$4 -> 7087.3 | P81: =J81*$Q$4 -> 5683.95 | Q81: =K81*$Q$4 -> 4064.7 | R81: =L81*$Q$4 -> 3252.95 | S81: =M81*$Q$4 -> 2550.85
A82: 19 | C82: 7087.3 | D82: 5683.95 | E82: 4064.7 | F82: =R82*$X$2 -> 3252.95 | G82: =S82*$X$2 -> 2550.85 | I82: =IF('INGRESO DE DATOS'!$W$19=1,'Tablas Guyanas y Santa Elena'!C82,'Tablas Resto de Ecuador'!C82) -> 8338 | J82: =IF('INGRESO DE DATOS'!$W$19=1,'Tablas Guyanas y Santa Elena'!D82,'Tablas Resto de Ecuador'!D82) -> 6687 | K82: =IF('INGRESO DE DATOS'!$W$19=1,'Tablas Guyanas y Santa Elena'!E82,'Tablas Resto de Ecuador'!E82) -> 4782 | L82: =IF('INGRESO DE DATOS'!$W$19=1,'Tablas Guyanas y Santa Elena'!F82,'Tablas Resto de Ecuador'!F82) -> 3827 | M82: =IF('INGRESO DE DATOS'!$W$19=1,'Tablas Guyanas y Santa Elena'!G82,'Tablas Resto de Ecuador'!G82) -> 3001 | O82: =I82*$Q$4 -> 7087.3 | P82: =J82*$Q$4 -> 5683.95 | Q82: =K82*$Q$4 -> 4064.7 | R82: =L82*$Q$4 -> 3252.95 | S82: =M82*$Q$4 -> 2550.85
A83: 20 | C83: 7087.3 | D83: 5683.95 | E83: 4064.7 | F83: 3252.95 | G83: 2550.85 | I83: =IF('INGRESO DE DATOS'!$W$19=1,'Tablas Guyanas y Santa Elena'!C83,'Tablas Resto de Ecuador'!C83) -> 8338 | J83: =IF('INGRESO DE DATOS'!$W$19=1,'Tablas Guyanas y Santa Elena'!D83,'Tablas Resto de Ecuador'!D83) -> 6687 | K83: =IF('INGRESO DE DATOS'!$W$19=1,'Tablas Guyanas y Santa Elena'!E83,'Tablas Resto de Ecuador'!E83) -> 4782 | L83: =IF('INGRESO DE DATOS'!$W$19=1,'Tablas Guyanas y Santa Elena'!F83,'Tablas Resto de Ecuador'!F83) -> 3827 | M83: =IF('INGRESO DE DATOS'!$W$19=1,'Tablas Guyanas y Santa Elena'!G83,'Tablas Resto de Ecuador'!G83) -> 3001 | O83: 7087.3 | P83: 5683.95 | Q83: 4064.7 | R83: 3252.95 | S83: 2550.85
A84: 21 | C84: 7087.3 | D84: 5683.95 | E84: 4064.7 | F84: 3252.95 | G84: 2550.85 | I84: =IF('INGRESO DE DATOS'!$W$19=1,'Tablas Guyanas y Santa Elena'!C84,'Tablas Resto de Ecuador'!C84) -> 8338 | J84: =IF('INGRESO DE DATOS'!$W$19=1,'Tablas Guyanas y Santa Elena'!D84,'Tablas Resto de Ecuador'!D84) -> 6687 | K84: =IF('INGRESO DE DATOS'!$W$19=1,'Tablas Guyanas y Santa Elena'!E84,'Tablas Resto de Ecuador'!E84) -> 4782 | L84: =IF('INGRESO DE DATOS'!$W$19=1,'Tablas Guyanas y Santa Elena'!F84,'Tablas Resto de Ecuador'!F84) -> 3827 | M84: =IF('INGRESO DE DATOS'!$W$19=1,'Tablas Guyanas y Santa Elena'!G84,'Tablas Resto de Ecuador'!G84) -> 3001 | O84: 7087.3 | P84: 5683.95 | Q84: 4064.7 | R84: 3252.95 | S84: 2550.85
A85: 22 | C85: 7087.3 | D85: 5683.95 | E85: 4064.7 | F85: 3252.95 | G85: 2550.85 | I85: =IF('INGRESO DE DATOS'!$W$19=1,'Tablas Guyanas y Santa Elena'!C85,'Tablas Resto de Ecuador'!C85) -> 8338 | J85: =IF('INGRESO DE DATOS'!$W$19=1,'Tablas Guyanas y Santa Elena'!D85,'Tablas Resto de Ecuador'!D85) -> 6687 | K85: =IF('INGRESO DE DATOS'!$W$19=1,'Tablas Guyanas y Santa Elena'!E85,'Tablas Resto de Ecuador'!E85) -> 4782 | L85: =IF('INGRESO DE DATOS'!$W$19=1,'Tablas Guyanas y Santa Elena'!F85,'Tablas Resto de Ecuador'!F85) -> 3827 | M85: =IF('INGRESO DE DATOS'!$W$19=1,'Tablas Guyanas y Santa Elena'!G85,'Tablas Resto de Ecuador'!G85) -> 3001 | O85: 7087.3 | P85: 5683.95 | Q85: 4064.7 | R85: 3252.95 | S85: 2550.85
A86: 23 | C86: 7087.3 | D86: 5683.95 | E86: 4064.7 | F86: 3252.95 | G86: 2550.85 | I86: =IF('INGRESO DE DATOS'!$W$19=1,'Tablas Guyanas y Santa Elena'!C86,'Tablas Resto de Ecuador'!C86) -> 8338 | J86: =IF('INGRESO DE DATOS'!$W$19=1,'Tablas Guyanas y Santa Elena'!D86,'Tablas Resto de Ecuador'!D86) -> 6687 | K86: =IF('INGRESO DE DATOS'!$W$19=1,'Tablas Guyanas y Santa Elena'!E86,'Tablas Resto de Ecuador'!E86) -> 4782 | L86: =IF('INGRESO DE DATOS'!$W$19=1,'Tablas Guyanas y Santa Elena'!F86,'Tablas Resto de Ecuador'!F86) -> 3827 | M86: =IF('INGRESO DE DATOS'!$W$19=1,'Tablas Guyanas y Santa Elena'!G86,'Tablas Resto de Ecuador'!G86) -> 3001 | O86: 7087.3 | P86: 5683.95 | Q86: 4064.7 | R86: 3252.95 | S86: 2550.85
A87: 24 | C87: 7087.3 | D87: 5683.95 | E87: 4064.7 | F87: 3252.95 | G87: 2550.85 | I87: =IF('INGRESO DE DATOS'!$W$19=1,'Tablas Guyanas y Santa Elena'!C87,'Tablas Resto de Ecuador'!C87) -> 8338 | J87: =IF('INGRESO DE DATOS'!$W$19=1,'Tablas Guyanas y Santa Elena'!D87,'Tablas Resto de Ecuador'!D87) -> 6687 | K87: =IF('INGRESO DE DATOS'!$W$19=1,'Tablas Guyanas y Santa Elena'!E87,'Tablas Resto de Ecuador'!E87) -> 4782 | L87: =IF('INGRESO DE DATOS'!$W$19=1,'Tablas Guyanas y Santa Elena'!F87,'Tablas Resto de Ecuador'!F87) -> 3827 | M87: =IF('INGRESO DE DATOS'!$W$19=1,'Tablas Guyanas y Santa Elena'!G87,'Tablas Resto de Ecuador'!G87) -> 3001 | O87: 7087.3 | P87: 5683.95 | Q87: 4064.7 | R87: 3252.95 | S87: 2550.85
A88: 25 | C88: 7572.65 | D88: 6259.4 | E88: 4139.5 | F88: 3320.1 | G88: 2696.2 | I88: =IF('INGRESO DE DATOS'!$W$19=1,'Tablas Guyanas y Santa Elena'!C88,'Tablas Resto de Ecuador'!C88) -> 8909 | J88: =IF('INGRESO DE DATOS'!$W$19=1,'Tablas Guyanas y Santa Elena'!D88,'Tablas Resto de Ecuador'!D88) -> 7364 | K88: =IF('INGRESO DE DATOS'!$W$19=1,'Tablas Guyanas y Santa Elena'!E88,'Tablas Resto de Ecuador'!E88) -> 4870 | L88: =IF('INGRESO DE DATOS'!$W$19=1,'Tablas Guyanas y Santa Elena'!F88,'Tablas Resto de Ecuador'!F88) -> 3906 | M88: =IF('INGRESO DE DATOS'!$W$19=1,'Tablas Guyanas y Santa Elena'!G88,'Tablas Resto de Ecuador'!G88) -> 3172 | O88: 7572.65 | P88: 6259.4 | Q88: 4139.5 | R88: 3320.1 | S88: 2696.2
A89: 26 | C89: 7572.65 | D89: 6259.4 | E89: 4139.5 | F89: 3320.1 | G89: 2696.2 | I89: =IF('INGRESO DE DATOS'!$W$19=1,'Tablas Guyanas y Santa Elena'!C89,'Tablas Resto de Ecuador'!C89) -> 8909 | J89: =IF('INGRESO DE DATOS'!$W$19=1,'Tablas Guyanas y Santa Elena'!D89,'Tablas Resto de Ecuador'!D89) -> 7364 | K89: =IF('INGRESO DE DATOS'!$W$19=1,'Tablas Guyanas y Santa Elena'!E89,'Tablas Resto de Ecuador'!E89) -> 4870 | L89: =IF('INGRESO DE DATOS'!$W$19=1,'Tablas Guyanas y Santa Elena'!F89,'Tablas Resto de Ecuador'!F89) -> 3906 | M89: =IF('INGRESO DE DATOS'!$W$19=1,'Tablas Guyanas y Santa Elena'!G89,'Tablas Resto de Ecuador'!G89) -> 3172 | O89: 7572.65 | P89: 6259.4 | Q89: 4139.5 | R89: 3320.1 | S89: 2696.2
A90: 27 | C90: 7572.65 | D90: 6259.4 | E90: 4139.5 | F90: 3320.1 | G90: 2696.2 | I90: =IF('INGRESO DE DATOS'!$W$19=1,'Tablas Guyanas y Santa Elena'!C90,'Tablas Resto de Ecuador'!C90) -> 8909 | J90: =IF('INGRESO DE DATOS'!$W$19=1,'Tablas Guyanas y Santa Elena'!D90,'Tablas Resto de Ecuador'!D90) -> 7364 | K90: =IF('INGRESO DE DATOS'!$W$19=1,'Tablas Guyanas y Santa Elena'!E90,'Tablas Resto de Ecuador'!E90) -> 4870 | L90: =IF('INGRESO DE DATOS'!$W$19=1,'Tablas Guyanas y Santa Elena'!F90,'Tablas Resto de Ecuador'!F90) -> 3906 | M90: =IF('INGRESO DE DATOS'!$W$19=1,'Tablas Guyanas y Santa Elena'!G90,'Tablas Resto de Ecuador'!G90) -> 3172 | O90: 7572.65 | P90: 6259.4 | Q90: 4139.5 | R90: 3320.1 | S90: 2696.2
A91: 28 | C91: 7572.65 | D91: 6259.4 | E91: 4139.5 | F91: 3320.1 | G91: 2696.2 | I91: =IF('INGRESO DE DATOS'!$W$19=1,'Tablas Guyanas y Santa Elena'!C91,'Tablas Resto de Ecuador'!C91) -> 8909 | J91: =IF('INGRESO DE DATOS'!$W$19=1,'Tablas Guyanas y Santa Elena'!D91,'Tablas Resto de Ecuador'!D91) -> 7364 | K91: =IF('INGRESO DE DATOS'!$W$19=1,'Tablas Guyanas y Santa Elena'!E91,'Tablas Resto de Ecuador'!E91) -> 4870 | L91: =IF('INGRESO DE DATOS'!$W$19=1,'Tablas Guyanas y Santa Elena'!F91,'Tablas Resto de Ecuador'!F91) -> 3906 | M91: =IF('INGRESO DE DATOS'!$W$19=1,'Tablas Guyanas y Santa Elena'!G91,'Tablas Resto de Ecuador'!G91) -> 3172 | O91: 7572.65 | P91: 6259.4 | Q91: 4139.5 | R91: 3320.1 | S91: 2696.2
A92: 29 | C92: 7572.65 | D92: 6259.4 | E92: 4139.5 | F92: 3320.1 | G92: 2696.2 | I92: =IF('INGRESO DE DATOS'!$W$19=1,'Tablas Guyanas y Santa Elena'!C92,'Tablas Resto de Ecuador'!C92) -> 8909 | J92: =IF('INGRESO DE DATOS'!$W$19=1,'Tablas Guyanas y Santa Elena'!D92,'Tablas Resto de Ecuador'!D92) -> 7364 | K92: =IF('INGRESO DE DATOS'!$W$19=1,'Tablas Guyanas y Santa Elena'!E92,'Tablas Resto de Ecuador'!E92) -> 4870 | L92: =IF('INGRESO DE DATOS'!$W$19=1,'Tablas Guyanas y Santa Elena'!F92,'Tablas Resto de Ecuador'!F92) -> 3906 | M92: =IF('INGRESO DE DATOS'!$W$19=1,'Tablas Guyanas y Santa Elena'!G92,'Tablas Resto de Ecuador'!G92) -> 3172 | O92: 7572.65 | P92: 6259.4 | Q92: 4139.5 | R92: 3320.1 | S92: 2696.2
A93: 30 | C93: 8421.8 | D93: 7284.5 | E93: 5411.95 | F93: 3771.45 | G93: 2958 | I93: =IF('INGRESO DE DATOS'!$W$19=1,'Tablas Guyanas y Santa Elena'!C93,'Tablas Resto de Ecuador'!C93) -> 9908 | J93: =IF('INGRESO DE DATOS'!$W$19=1,'Tablas Guyanas y Santa Elena'!D93,'Tablas Resto de Ecuador'!D93) -> 8570 | K93: =IF('INGRESO DE DATOS'!$W$19=1,'Tablas Guyanas y Santa Elena'!E93,'Tablas Resto de Ecuador'!E93) -> 6367 | L93: =IF('INGRESO DE DATOS'!$W$19=1,'Tablas Guyanas y Santa Elena'!F93,'Tablas Resto de Ecuador'!F93) -> 4437 | M93: =IF('INGRESO DE DATOS'!$W$19=1,'Tablas Guyanas y Santa Elena'!G93,'Tablas Resto de Ecuador'!G93) -> 3480 | O93: 8421.8 | P93: 7284.5 | Q93: 5411.95 | R93: 3771.45 | S93: 2958
A94: 31 | C94: 8421.8 | D94: 7284.5 | E94: 5411.95 | F94: 3771.45 | G94: 2958 | I94: =IF('INGRESO DE DATOS'!$W$19=1,'Tablas Guyanas y Santa Elena'!C94,'Tablas Resto de Ecuador'!C94) -> 9908 | J94: =IF('INGRESO DE DATOS'!$W$19=1,'Tablas Guyanas y Santa Elena'!D94,'Tablas Resto de Ecuador'!D94) -> 8570 | K94: =IF('INGRESO DE DATOS'!$W$19=1,'Tablas Guyanas y Santa Elena'!E94,'Tablas Resto de Ecuador'!E94) -> 6367 | L94: =IF('INGRESO DE DATOS'!$W$19=1,'Tablas Guyanas y Santa Elena'!F94,'Tablas Resto de Ecuador'!F94) -> 4437 | M94: =IF('INGRESO DE DATOS'!$W$19=1,'Tablas Guyanas y Santa Elena'!G94,'Tablas Resto de Ecuador'!G94) -> 3480 | O94: 8421.8 | P94: 7284.5 | Q94: 5411.95 | R94: 3771.45 | S94: 2958
A95: 32 | C95: 8421.8 | D95: 7284.5 | E95: 5411.95 | F95: 3771.45 | G95: 2958 | I95: =IF('INGRESO DE DATOS'!$W$19=1,'Tablas Guyanas y Santa Elena'!C95,'Tablas Resto de Ecuador'!C95) -> 9908 | J95: =IF('INGRESO DE DATOS'!$W$19=1,'Tablas Guyanas y Santa Elena'!D95,'Tablas Resto de Ecuador'!D95) -> 8570 | K95: =IF('INGRESO DE DATOS'!$W$19=1,'Tablas Guyanas y Santa Elena'!E95,'Tablas Resto de Ecuador'!E95) -> 6367 | L95: =IF('INGRESO DE DATOS'!$W$19=1,'Tablas Guyanas y Santa Elena'!F95,'Tablas Resto de Ecuador'!F95) -> 4437 | M95: =IF('INGRESO DE DATOS'!$W$19=1,'Tablas Guyanas y Santa Elena'!G95,'Tablas Resto de Ecuador'!G95) -> 3480 | O95: 8421.8 | P95: 7284.5 | Q95: 5411.95 | R95: 3771.45 | S95: 2958
A96: 33 | C96: 8421.8 | D96: 7284.5 | E96: 5411.95 | F96: 3771.45 | G96: 2958 | I96: =IF('INGRESO DE DATOS'!$W$19=1,'Tablas Guyanas y Santa Elena'!C96,'Tablas Resto de Ecuador'!C96) -> 9908 | J96: =IF('INGRESO DE DATOS'!$W$19=1,'Tablas Guyanas y Santa Elena'!D96,'Tablas Resto de Ecuador'!D96) -> 8570 | K96: =IF('INGRESO DE DATOS'!$W$19=1,'Tablas Guyanas y Santa Elena'!E96,'Tablas Resto de Ecuador'!E96) -> 6367 | L96: =IF('INGRESO DE DATOS'!$W$19=1,'Tablas Guyanas y Santa Elena'!F96,'Tablas Resto de Ecuador'!F96) -> 4437 | M96: =IF('INGRESO DE DATOS'!$W$19=1,'Tablas Guyanas y Santa Elena'!G96,'Tablas Resto de Ecuador'!G96) -> 3480 | O96: 8421.8 | P96: 7284.5 | Q96: 5411.95 | R96: 3771.45 | S96: 2958
A97: 34 | C97: 8421.8 | D97: 7284.5 | E97: 5411.95 | F97: 3771.45 | G97: 2958 | I97: =IF('INGRESO DE DATOS'!$W$19=1,'Tablas Guyanas y Santa Elena'!C97,'Tablas Resto de Ecuador'!C97) -> 9908 | J97: =IF('INGRESO DE DATOS'!$W$19=1,'Tablas Guyanas y Santa Elena'!D97,'Tablas Resto de Ecuador'!D97) -> 8570 | K97: =IF('INGRESO DE DATOS'!$W$19=1,'Tablas Guyanas y Santa Elena'!E97,'Tablas Resto de Ecuador'!E97) -> 6367 | L97: =IF('INGRESO DE DATOS'!$W$19=1,'Tablas Guyanas y Santa Elena'!F97,'Tablas Resto de Ecuador'!F97) -> 4437 | M97: =IF('INGRESO DE DATOS'!$W$19=1,'Tablas Guyanas y Santa Elena'!G97,'Tablas Resto de Ecuador'!G97) -> 3480 | O97: 8421.8 | P97: 7284.5 | Q97: 5411.95 | R97: 3771.45 | S97: 2958
A98: 35 | C98: 9400.15 | D98: 8532.3 | E98: 6002.7 | F98: 4169.25 | G98: 3270.8 | I98: =IF('INGRESO DE DATOS'!$W$19=1,'Tablas Guyanas y Santa Elena'!C98,'Tablas Resto de Ecuador'!C98) -> 11059 | J98: =IF('INGRESO DE DATOS'!$W$19=1,'Tablas Guyanas y Santa Elena'!D98,'Tablas Resto de Ecuador'!D98) -> 10038 | K98: =IF('INGRESO DE DATOS'!$W$19=1,'Tablas Guyanas y Santa Elena'!E98,'Tablas Resto de Ecuador'!E98) -> 7062 | L98: =IF('INGRESO DE DATOS'!$W$19=1,'Tablas Guyanas y Santa Elena'!F98,'Tablas Resto de Ecuador'!F98) -> 4905 | M98: =IF('INGRESO DE DATOS'!$W$19=1,'Tablas Guyanas y Santa Elena'!G98,'Tablas Resto de Ecuador'!G98) -> 3848 | O98: 9400.15 | P98: 8532.3 | Q98: 6002.7 | R98: 4169.25 | S98: 3270.8
A99: 36 | C99: 9400.15 | D99: 8532.3 | E99: 6002.7 | F99: 4169.25 | G99: 3270.8 | I99: =IF('INGRESO DE DATOS'!$W$19=1,'Tablas Guyanas y Santa Elena'!C99,'Tablas Resto de Ecuador'!C99) -> 11059 | J99: =IF('INGRESO DE DATOS'!$W$19=1,'Tablas Guyanas y Santa Elena'!D99,'Tablas Resto de Ecuador'!D99) -> 10038 | K99: =IF('INGRESO DE DATOS'!$W$19=1,'Tablas Guyanas y Santa Elena'!E99,'Tablas Resto de Ecuador'!E99) -> 7062 | L99: =IF('INGRESO DE DATOS'!$W$19=1,'Tablas Guyanas y Santa Elena'!F99,'Tablas Resto de Ecuador'!F99) -> 4905 | M99: =IF('INGRESO DE DATOS'!$W$19=1,'Tablas Guyanas y Santa Elena'!G99,'Tablas Resto de Ecuador'!G99) -> 3848 | O99: 9400.15 | P99: 8532.3 | Q99: 6002.7 | R99: 4169.25 | S99: 3270.8
A100: 37 | C100: 9400.15 | D100: 8532.3 | E100: 6002.7 | F100: 4169.25 | G100: 3270.8 | I100: =IF('INGRESO DE DATOS'!$W$19=1,'Tablas Guyanas y Santa Elena'!C100,'Tablas Resto de Ecuador'!C100) -> 11059 | J100: =IF('INGRESO DE DATOS'!$W$19=1,'Tablas Guyanas y Santa Elena'!D100,'Tablas Resto de Ecuador'!D100) -> 10038 | K100: =IF('INGRESO DE DATOS'!$W$19=1,'Tablas Guyanas y Santa Elena'!E100,'Tablas Resto de Ecuador'!E100) -> 7062 | L100: =IF('INGRESO DE DATOS'!$W$19=1,'Tablas Guyanas y Santa Elena'!F100,'Tablas Resto de Ecuador'!F100) -> 4905 | M100: =IF('INGRESO DE DATOS'!$W$19=1,'Tablas Guyanas y Santa Elena'!G100,'Tablas Resto de Ecuador'!G100) -> 3848 | O100: 9400.15 | P100: 8532.3 | Q100: 6002.7 | R100: 4169.25 | S100: 3270.8
A101: 38 | C101: 9400.15 | D101: 8532.3 | E101: 6002.7 | F101: 4169.25 | G101: 3270.8 | I101: =IF('INGRESO DE DATOS'!$W$19=1,'Tablas Guyanas y Santa Elena'!C101,'Tablas Resto de Ecuador'!C101) -> 11059 | J101: =IF('INGRESO DE DATOS'!$W$19=1,'Tablas Guyanas y Santa Elena'!D101,'Tablas Resto de Ecuador'!D101) -> 10038 | K101: =IF('INGRESO DE DATOS'!$W$19=1,'Tablas Guyanas y Santa Elena'!E101,'Tablas Resto de Ecuador'!E101) -> 7062 | L101: =IF('INGRESO DE DATOS'!$W$19=1,'Tablas Guyanas y Santa Elena'!F101,'Tablas Resto de Ecuador'!F101) -> 4905 | M101: =IF('INGRESO DE DATOS'!$W$19=1,'Tablas Guyanas y Santa Elena'!G101,'Tablas Resto de Ecuador'!G101) -> 3848 | O101: 9400.15 | P101: 8532.3 | Q101: 6002.7 | R101: 4169.25 | S101: 3270.8
A102: 39 | C102: 9400.15 | D102: 8532.3 | E102: 6002.7 | F102: 4169.25 | G102: 3270.8 | I102: =IF('INGRESO DE DATOS'!$W$19=1,'Tablas Guyanas y Santa Elena'!C102,'Tablas Resto de Ecuador'!C102) -> 11059 | J102: =IF('INGRESO DE DATOS'!$W$19=1,'Tablas Guyanas y Santa Elena'!D102,'Tablas Resto de Ecuador'!D102) -> 10038 | K102: =IF('INGRESO DE DATOS'!$W$19=1,'Tablas Guyanas y Santa Elena'!E102,'Tablas Resto de Ecuador'!E102) -> 7062 | L102: =IF('INGRESO DE DATOS'!$W$19=1,'Tablas Guyanas y Santa Elena'!F102,'Tablas Resto de Ecuador'!F102) -> 4905 | M102: =IF('INGRESO DE DATOS'!$W$19=1,'Tablas Guyanas y Santa Elena'!G102,'Tablas Resto de Ecuador'!G102) -> 3848 | O102: 9400.15 | P102: 8532.3 | Q102: 6002.7 | R102: 4169.25 | S102: 3270.8
A103: 40 | C103: 10530.65 | D103: 9555.7 | E103: 6675.05 | F103: 4634.2 | G103: 3635.45 | I103: =IF('INGRESO DE DATOS'!$W$19=1,'Tablas Guyanas y Santa Elena'!C103,'Tablas Resto de Ecuador'!C103) -> 12389 | J103: =IF('INGRESO DE DATOS'!$W$19=1,'Tablas Guyanas y Santa Elena'!D103,'Tablas Resto de Ecuador'!D103) -> 11242 | K103: =IF('INGRESO DE DATOS'!$W$19=1,'Tablas Guyanas y Santa Elena'!E103,'Tablas Resto de Ecuador'!E103) -> 7853 | L103: =IF('INGRESO DE DATOS'!$W$19=1,'Tablas Guyanas y Santa Elena'!F103,'Tablas Resto de Ecuador'!F103) -> 5452 | M103: =IF('INGRESO DE DATOS'!$W$19=1,'Tablas Guyanas y Santa Elena'!G103,'Tablas Resto de Ecuador'!G103) -> 4277 | O103: 10530.65 | P103: 9555.7 | Q103: 6675.05 | R103: 4634.2 | S103: 3635.45
A104: 41 | C104: 10530.65 | D104: 9555.7 | E104: 6675.05 | F104: 4634.2 | G104: 3635.45 | I104: =IF('INGRESO DE DATOS'!$W$19=1,'Tablas Guyanas y Santa Elena'!C104,'Tablas Resto de Ecuador'!C104) -> 12389 | J104: =IF('INGRESO DE DATOS'!$W$19=1,'Tablas Guyanas y Santa Elena'!D104,'Tablas Resto de Ecuador'!D104) -> 11242 | K104: =IF('INGRESO DE DATOS'!$W$19=1,'Tablas Guyanas y Santa Elena'!E104,'Tablas Resto de Ecuador'!E104) -> 7853 | L104: =IF('INGRESO DE DATOS'!$W$19=1,'Tablas Guyanas y Santa Elena'!F104,'Tablas Resto de Ecuador'!F104) -> 5452 | M104: =IF('INGRESO DE DATOS'!$W$19=1,'Tablas Guyanas y Santa Elena'!G104,'Tablas Resto de Ecuador'!G104) -> 4277 | O104: 10530.65 | P104: 9555.7 | Q104: 6675.05 | R104: 4634.2 | S104: 3635.45
A105: 42 | C105: 10530.65 | D105: 9555.7 | E105: 6675.05 | F105: 4634.2 | G105: 3635.45 | I105: =IF('INGRESO DE DATOS'!$W$19=1,'Tablas Guyanas y Santa Elena'!C105,'Tablas Resto de Ecuador'!C105) -> 12389 | J105: =IF('INGRESO DE DATOS'!$W$19=1,'Tablas Guyanas y Santa Elena'!D105,'Tablas Resto de Ecuador'!D105) -> 11242 | K105: =IF('INGRESO DE DATOS'!$W$19=1,'Tablas Guyanas y Santa Elena'!E105,'Tablas Resto de Ecuador'!E105) -> 7853 | L105: =IF('INGRESO DE DATOS'!$W$19=1,'Tablas Guyanas y Santa Elena'!F105,'Tablas Resto de Ecuador'!F105) -> 5452 | M105: =IF('INGRESO DE DATOS'!$W$19=1,'Tablas Guyanas y Santa Elena'!G105,'Tablas Resto de Ecuador'!G105) -> 4277 | O105: 10530.65 | P105: 9555.7 | Q105: 6675.05 | R105: 4634.2 | S105: 3635.45
A106: 43 | C106: 10530.65 | D106: 9555.7 | E106: 6675.05 | F106: 4634.2 | G106: 3635.45 | I106: =IF('INGRESO DE DATOS'!$W$19=1,'Tablas Guyanas y Santa Elena'!C106,'Tablas Resto de Ecuador'!C106) -> 12389 | J106: =IF('INGRESO DE DATOS'!$W$19=1,'Tablas Guyanas y Santa Elena'!D106,'Tablas Resto de Ecuador'!D106) -> 11242 | K106: =IF('INGRESO DE DATOS'!$W$19=1,'Tablas Guyanas y Santa Elena'!E106,'Tablas Resto de Ecuador'!E106) -> 7853 | L106: =IF('INGRESO DE DATOS'!$W$19=1,'Tablas Guyanas y Santa Elena'!F106,'Tablas Resto de Ecuador'!F106) -> 5452 | M106: =IF('INGRESO DE DATOS'!$W$19=1,'Tablas Guyanas y Santa Elena'!G106,'Tablas Resto de Ecuador'!G106) -> 4277 | O106: 10530.65 | P106: 9555.7 | Q106: 6675.05 | R106: 4634.2 | S106: 3635.45
A107: 44 | C107: 10530.65 | D107: 9555.7 | E107: 6675.05 | F107: 4634.2 | G107: 3635.45 | I107: =IF('INGRESO DE DATOS'!$W$19=1,'Tablas Guyanas y Santa Elena'!C107,'Tablas Resto de Ecuador'!C107) -> 12389 | J107: =IF('INGRESO DE DATOS'!$W$19=1,'Tablas Guyanas y Santa Elena'!D107,'Tablas Resto de Ecuador'!D107) -> 11242 | K107: =IF('INGRESO DE DATOS'!$W$19=1,'Tablas Guyanas y Santa Elena'!E107,'Tablas Resto de Ecuador'!E107) -> 7853 | L107: =IF('INGRESO DE DATOS'!$W$19=1,'Tablas Guyanas y Santa Elena'!F107,'Tablas Resto de Ecuador'!F107) -> 5452 | M107: =IF('INGRESO DE DATOS'!$W$19=1,'Tablas Guyanas y Santa Elena'!G107,'Tablas Resto de Ecuador'!G107) -> 4277 | O107: 10530.65 | P107: 9555.7 | Q107: 6675.05 | R107: 4634.2 | S107: 3635.45
A108: 45 | C108: 11783.55 | D108: 10383.6 | E108: 7428.15 | F108: 5156.95 | G108: 4046 | I108: =IF('INGRESO DE DATOS'!$W$19=1,'Tablas Guyanas y Santa Elena'!C108,'Tablas Resto de Ecuador'!C108) -> 13863 | J108: =IF('INGRESO DE DATOS'!$W$19=1,'Tablas Guyanas y Santa Elena'!D108,'Tablas Resto de Ecuador'!D108) -> 12216 | K108: =IF('INGRESO DE DATOS'!$W$19=1,'Tablas Guyanas y Santa Elena'!E108,'Tablas Resto de Ecuador'!E108) -> 8739 | L108: =IF('INGRESO DE DATOS'!$W$19=1,'Tablas Guyanas y Santa Elena'!F108,'Tablas Resto de Ecuador'!F108) -> 6067 | M108: =IF('INGRESO DE DATOS'!$W$19=1,'Tablas Guyanas y Santa Elena'!G108,'Tablas Resto de Ecuador'!G108) -> 4760 | O108: 11783.55 | P108: 10383.6 | Q108: 7428.15 | R108: 5156.95 | S108: 4046
A109: 46 | C109: 11783.55 | D109: 10383.6 | E109: 7428.15 | F109: 5156.95 | G109: 4046 | I109: =IF('INGRESO DE DATOS'!$W$19=1,'Tablas Guyanas y Santa Elena'!C109,'Tablas Resto de Ecuador'!C109) -> 13863 | J109: =IF('INGRESO DE DATOS'!$W$19=1,'Tablas Guyanas y Santa Elena'!D109,'Tablas Resto de Ecuador'!D109) -> 12216 | K109: =IF('INGRESO DE DATOS'!$W$19=1,'Tablas Guyanas y Santa Elena'!E109,'Tablas Resto de Ecuador'!E109) -> 8739 | L109: =IF('INGRESO DE DATOS'!$W$19=1,'Tablas Guyanas y Santa Elena'!F109,'Tablas Resto de Ecuador'!F109) -> 6067 | M109: =IF('INGRESO DE DATOS'!$W$19=1,'Tablas Guyanas y Santa Elena'!G109,'Tablas Resto de Ecuador'!G109) -> 4760 | O109: 11783.55 | P109: 10383.6 | Q109: 7428.15 | R109: 5156.95 | S109: 4046
A110: 47 | C110: 11783.55 | D110: 10383.6 | E110: 7428.15 | F110: 5156.95 | G110: 4046 | I110: =IF('INGRESO DE DATOS'!$W$19=1,'Tablas Guyanas y Santa Elena'!C110,'Tablas Resto de Ecuador'!C110) -> 13863 | J110: =IF('INGRESO DE DATOS'!$W$19=1,'Tablas Guyanas y Santa Elena'!D110,'Tablas Resto de Ecuador'!D110) -> 12216 | K110: =IF('INGRESO DE DATOS'!$W$19=1,'Tablas Guyanas y Santa Elena'!E110,'Tablas Resto de Ecuador'!E110) -> 8739 | L110: =IF('INGRESO DE DATOS'!$W$19=1,'Tablas Guyanas y Santa Elena'!F110,'Tablas Resto de Ecuador'!F110) -> 6067 | M110: =IF('INGRESO DE DATOS'!$W$19=1,'Tablas Guyanas y Santa Elena'!G110,'Tablas Resto de Ecuador'!G110) -> 4760 | O110: 11783.55 | P110: 10383.6 | Q110: 7428.15 | R110: 5156.95 | S110: 4046
A111: 48 | C111: 11783.55 | D111: 10383.6 | E111: 7428.15 | F111: 5156.95 | G111: 4046 | I111: =IF('INGRESO DE DATOS'!$W$19=1,'Tablas Guyanas y Santa Elena'!C111,'Tablas Resto de Ecuador'!C111) -> 13863 | J111: =IF('INGRESO DE DATOS'!$W$19=1,'Tablas Guyanas y Santa Elena'!D111,'Tablas Resto de Ecuador'!D111) -> 12216 | K111: =IF('INGRESO DE DATOS'!$W$19=1,'Tablas Guyanas y Santa Elena'!E111,'Tablas Resto de Ecuador'!E111) -> 8739 | L111: =IF('INGRESO DE DATOS'!$W$19=1,'Tablas Guyanas y Santa Elena'!F111,'Tablas Resto de Ecuador'!F111) -> 6067 | M111: =IF('INGRESO DE DATOS'!$W$19=1,'Tablas Guyanas y Santa Elena'!G111,'Tablas Resto de Ecuador'!G111) -> 4760 | O111: 11783.55 | P111: 10383.6 | Q111: 7428.15 | R111: 5156.95 | S111: 4046
A112: 49 | C112: 11783.55 | D112: 10383.6 | E112: 7428.15 | F112: 5156.95 | G112: 4046 | I112: =IF('INGRESO DE DATOS'!$W$19=1,'Tablas Guyanas y Santa Elena'!C112,'Tablas Resto de Ecuador'!C112) -> 13863 | J112: =IF('INGRESO DE DATOS'!$W$19=1,'Tablas Guyanas y Santa Elena'!D112,'Tablas Resto de Ecuador'!D112) -> 12216 | K112: =IF('INGRESO DE DATOS'!$W$19=1,'Tablas Guyanas y Santa Elena'!E112,'Tablas Resto de Ecuador'!E112) -> 8739 | L112: =IF('INGRESO DE DATOS'!$W$19=1,'Tablas Guyanas y Santa Elena'!F112,'Tablas Resto de Ecuador'!F112) -> 6067 | M112: =IF('INGRESO DE DATOS'!$W$19=1,'Tablas Guyanas y Santa Elena'!G112,'Tablas Resto de Ecuador'!G112) -> 4760 | O112: 11783.55 | P112: 10383.6 | Q112: 7428.15 | R112: 5156.95 | S112: 4046
A113: 50 | C113: =O113*$X$2 -> 13197.1 | D113: =P113*$X$2 -> 10967.55 | E113: =Q113*$X$2 -> 8286.65 | F113: 5753.65 | G113: 4514.35 | I113: =IF('INGRESO DE DATOS'!$W$19=1,'Tablas Guyanas y Santa Elena'!C113,'Tablas Resto de Ecuador'!C113) -> 15526 | J113: =IF('INGRESO DE DATOS'!$W$19=1,'Tablas Guyanas y Santa Elena'!D113,'Tablas Resto de Ecuador'!D113) -> 12903 | K113: =IF('INGRESO DE DATOS'!$W$19=1,'Tablas Guyanas y Santa Elena'!E113,'Tablas Resto de Ecuador'!E113) -> 9749 | L113: =IF('INGRESO DE DATOS'!$W$19=1,'Tablas Guyanas y Santa Elena'!F113,'Tablas Resto de Ecuador'!F113) -> 6769 | M113: =IF('INGRESO DE DATOS'!$W$19=1,'Tablas Guyanas y Santa Elena'!G113,'Tablas Resto de Ecuador'!G113) -> 5311 | O113: 13197.1 | P113: 10967.55 | Q113: 8286.65 | R113: 5753.65 | S113: 4514.35
A114: 51 | C114: 13197.1 | D114: 10967.55 | E114: 8286.65 | F114: 5753.65 | G114: 4514.35 | I114: =IF('INGRESO DE DATOS'!$W$19=1,'Tablas Guyanas y Santa Elena'!C114,'Tablas Resto de Ecuador'!C114) -> 15526 | J114: =IF('INGRESO DE DATOS'!$W$19=1,'Tablas Guyanas y Santa Elena'!D114,'Tablas Resto de Ecuador'!D114) -> 12903 | K114: =IF('INGRESO DE DATOS'!$W$19=1,'Tablas Guyanas y Santa Elena'!E114,'Tablas Resto de Ecuador'!E114) -> 9749 | L114: =IF('INGRESO DE DATOS'!$W$19=1,'Tablas Guyanas y Santa Elena'!F114,'Tablas Resto de Ecuador'!F114) -> 6769 | M114: =IF('INGRESO DE DATOS'!$W$19=1,'Tablas Guyanas y Santa Elena'!G114,'Tablas Resto de Ecuador'!G114) -> 5311 | O114: 13197.1 | P114: 10967.55 | Q114: 8286.65 | R114: 5753.65 | S114: 4514.35
A115: 52 | C115: 13197.1 | D115: 10967.55 | E115: 8286.65 | F115: 5753.65 | G115: 4514.35 | I115: =IF('INGRESO DE DATOS'!$W$19=1,'Tablas Guyanas y Santa Elena'!C115,'Tablas Resto de Ecuador'!C115) -> 15526 | J115: =IF('INGRESO DE DATOS'!$W$19=1,'Tablas Guyanas y Santa Elena'!D115,'Tablas Resto de Ecuador'!D115) -> 12903 | K115: =IF('INGRESO DE DATOS'!$W$19=1,'Tablas Guyanas y Santa Elena'!E115,'Tablas Resto de Ecuador'!E115) -> 9749 | L115: =IF('INGRESO DE DATOS'!$W$19=1,'Tablas Guyanas y Santa Elena'!F115,'Tablas Resto de Ecuador'!F115) -> 6769 | M115: =IF('INGRESO DE DATOS'!$W$19=1,'Tablas Guyanas y Santa Elena'!G115,'Tablas Resto de Ecuador'!G115) -> 5311 | O115: 13197.1 | P115: 10967.55 | Q115: 8286.65 | R115: 5753.65 | S115: 4514.35
A116: 53 | C116: 13197.1 | D116: 10967.55 | E116: 8286.65 | F116: 5753.65 | G116: 4514.35 | I116: =IF('INGRESO DE DATOS'!$W$19=1,'Tablas Guyanas y Santa Elena'!C116,'Tablas Resto de Ecuador'!C116) -> 15526 | J116: =IF('INGRESO DE DATOS'!$W$19=1,'Tablas Guyanas y Santa Elena'!D116,'Tablas Resto de Ecuador'!D116) -> 12903 | K116: =IF('INGRESO DE DATOS'!$W$19=1,'Tablas Guyanas y Santa Elena'!E116,'Tablas Resto de Ecuador'!E116) -> 9749 | L116: =IF('INGRESO DE DATOS'!$W$19=1,'Tablas Guyanas y Santa Elena'!F116,'Tablas Resto de Ecuador'!F116) -> 6769 | M116: =IF('INGRESO DE DATOS'!$W$19=1,'Tablas Guyanas y Santa Elena'!G116,'Tablas Resto de Ecuador'!G116) -> 5311 | O116: 13197.1 | P116: 10967.55 | Q116: 8286.65 | R116: 5753.65 | S116: 4514.35
A117: 54 | C117: 13197.1 | D117: 10967.55 | E117: 8286.65 | F117: 5753.65 | G117: 4514.35 | I117: =IF('INGRESO DE DATOS'!$W$19=1,'Tablas Guyanas y Santa Elena'!C117,'Tablas Resto de Ecuador'!C117) -> 15526 | J117: =IF('INGRESO DE DATOS'!$W$19=1,'Tablas Guyanas y Santa Elena'!D117,'Tablas Resto de Ecuador'!D117) -> 12903 | K117: =IF('INGRESO DE DATOS'!$W$19=1,'Tablas Guyanas y Santa Elena'!E117,'Tablas Resto de Ecuador'!E117) -> 9749 | L117: =IF('INGRESO DE DATOS'!$W$19=1,'Tablas Guyanas y Santa Elena'!F117,'Tablas Resto de Ecuador'!F117) -> 6769 | M117: =IF('INGRESO DE DATOS'!$W$19=1,'Tablas Guyanas y Santa Elena'!G117,'Tablas Resto de Ecuador'!G117) -> 5311 | O117: 13197.1 | P117: 10967.55 | Q117: 8286.65 | R117: 5753.65 | S117: 4514.35
A118: 55 | C118: 14758.55 | D118: 12800.15 | E118: 9240.35 | F118: 6412.4 | G118: 5032 | I118: =IF('INGRESO DE DATOS'!$W$19=1,'Tablas Guyanas y Santa Elena'!C118,'Tablas Resto de Ecuador'!C118) -> 17363 | J118: =IF('INGRESO DE DATOS'!$W$19=1,'Tablas Guyanas y Santa Elena'!D118,'Tablas Resto de Ecuador'!D118) -> 15059 | K118: =IF('INGRESO DE DATOS'!$W$19=1,'Tablas Guyanas y Santa Elena'!E118,'Tablas Resto de Ecuador'!E118) -> 10871 | L118: =IF('INGRESO DE DATOS'!$W$19=1,'Tablas Guyanas y Santa Elena'!F118,'Tablas Resto de Ecuador'!F118) -> 7544 | M118: =IF('INGRESO DE DATOS'!$W$19=1,'Tablas Guyanas y Santa Elena'!G118,'Tablas Resto de Ecuador'!G118) -> 5920 | O118: 14758.55 | P118: 12800.15 | Q118: 9240.35 | R118: 6412.4 | S118: 5032
A119: 56 | C119: 14758.55 | D119: 12800.15 | E119: 9240.35 | F119: 6412.4 | G119: 5032 | I119: =IF('INGRESO DE DATOS'!$W$19=1,'Tablas Guyanas y Santa Elena'!C119,'Tablas Resto de Ecuador'!C119) -> 17363 | J119: =IF('INGRESO DE DATOS'!$W$19=1,'Tablas Guyanas y Santa Elena'!D119,'Tablas Resto de Ecuador'!D119) -> 15059 | K119: =IF('INGRESO DE DATOS'!$W$19=1,'Tablas Guyanas y Santa Elena'!E119,'Tablas Resto de Ecuador'!E119) -> 10871 | L119: =IF('INGRESO DE DATOS'!$W$19=1,'Tablas Guyanas y Santa Elena'!F119,'Tablas Resto de Ecuador'!F119) -> 7544 | M119: =IF('INGRESO DE DATOS'!$W$19=1,'Tablas Guyanas y Santa Elena'!G119,'Tablas Resto de Ecuador'!G119) -> 5920 | O119: 14758.55 | P119: 12800.15 | Q119: 9240.35 | R119: 6412.4 | S119: 5032
A120: 57 | C120: 14758.55 | D120: 12800.15 | E120: 9240.35 | F120: 6412.4 | G120: 5032 | I120: =IF('INGRESO DE DATOS'!$W$19=1,'Tablas Guyanas y Santa Elena'!C120,'Tablas Resto de Ecuador'!C120) -> 17363 | J120: =IF('INGRESO DE DATOS'!$W$19=1,'Tablas Guyanas y Santa Elena'!D120,'Tablas Resto de Ecuador'!D120) -> 15059 | K120: =IF('INGRESO DE DATOS'!$W$19=1,'Tablas Guyanas y Santa Elena'!E120,'Tablas Resto de Ecuador'!E120) -> 10871 | L120: =IF('INGRESO DE DATOS'!$W$19=1,'Tablas Guyanas y Santa Elena'!F120,'Tablas Resto de Ecuador'!F120) -> 7544 | M120: =IF('INGRESO DE DATOS'!$W$19=1,'Tablas Guyanas y Santa Elena'!G120,'Tablas Resto de Ecuador'!G120) -> 5920 | O120: 14758.55 | P120: 12800.15 | Q120: 9240.35 | R120: 6412.4 | S120: 5032
A121: 58 | C121: 14758.55 | D121: 12800.15 | E121: 9240.35 | F121: 6412.4 | G121: 5032 | I121: =IF('INGRESO DE DATOS'!$W$19=1,'Tablas Guyanas y Santa Elena'!C121,'Tablas Resto de Ecuador'!C121) -> 17363 | J121: =IF('INGRESO DE DATOS'!$W$19=1,'Tablas Guyanas y Santa Elena'!D121,'Tablas Resto de Ecuador'!D121) -> 15059 | K121: =IF('INGRESO DE DATOS'!$W$19=1,'Tablas Guyanas y Santa Elena'!E121,'Tablas Resto de Ecuador'!E121) -> 10871 | L121: =IF('INGRESO DE DATOS'!$W$19=1,'Tablas Guyanas y Santa Elena'!F121,'Tablas Resto de Ecuador'!F121) -> 7544 | M121: =IF('INGRESO DE DATOS'!$W$19=1,'Tablas Guyanas y Santa Elena'!G121,'Tablas Resto de Ecuador'!G121) -> 5920 | O121: 14758.55 | P121: 12800.15 | Q121: 9240.35 | R121: 6412.4 | S121: 5032
A122: 59 | C122: 14758.55 | D122: 12800.15 | E122: 9240.35 | F122: 6412.4 | G122: 5032 | I122: =IF('INGRESO DE DATOS'!$W$19=1,'Tablas Guyanas y Santa Elena'!C122,'Tablas Resto de Ecuador'!C122) -> 17363 | J122: =IF('INGRESO DE DATOS'!$W$19=1,'Tablas Guyanas y Santa Elena'!D122,'Tablas Resto de Ecuador'!D122) -> 15059 | K122: =IF('INGRESO DE DATOS'!$W$19=1,'Tablas Guyanas y Santa Elena'!E122,'Tablas Resto de Ecuador'!E122) -> 10871 | L122: =IF('INGRESO DE DATOS'!$W$19=1,'Tablas Guyanas y Santa Elena'!F122,'Tablas Resto de Ecuador'!F122) -> 7544 | M122: =IF('INGRESO DE DATOS'!$W$19=1,'Tablas Guyanas y Santa Elena'!G122,'Tablas Resto de Ecuador'!G122) -> 5920 | O122: 14758.55 | P122: 12800.15 | Q122: 9240.35 | R122: 6412.4 | S122: 5032
A123: 60 | C123: 15790.45 | D123: 14331.85 | E123: 9877.85 | F123: 6857.8 | G123: 5380.5 | I123: =IF('INGRESO DE DATOS'!$W$19=1,'Tablas Guyanas y Santa Elena'!C123,'Tablas Resto de Ecuador'!C123) -> 18577 | J123: =IF('INGRESO DE DATOS'!$W$19=1,'Tablas Guyanas y Santa Elena'!D123,'Tablas Resto de Ecuador'!D123) -> 16861 | K123: =IF('INGRESO DE DATOS'!$W$19=1,'Tablas Guyanas y Santa Elena'!E123,'Tablas Resto de Ecuador'!E123) -> 11621 | L123: =IF('INGRESO DE DATOS'!$W$19=1,'Tablas Guyanas y Santa Elena'!F123,'Tablas Resto de Ecuador'!F123) -> 8068 | M123: =IF('INGRESO DE DATOS'!$W$19=1,'Tablas Guyanas y Santa Elena'!G123,'Tablas Resto de Ecuador'!G123) -> 6330 | O123: 15790.45 | P123: 14331.85 | Q123: 9877.85 | R123: 6857.8 | S123: 5380.5
A124: 61 | C124: 17595 | D124: 15971.5 | E124: 10993.9 | F124: 7633 | G124: 5987.4 | I124: =IF('INGRESO DE DATOS'!$W$19=1,'Tablas Guyanas y Santa Elena'!C124,'Tablas Resto de Ecuador'!C124) -> 20700 | J124: =IF('INGRESO DE DATOS'!$W$19=1,'Tablas Guyanas y Santa Elena'!D124,'Tablas Resto de Ecuador'!D124) -> 18790 | K124: =IF('INGRESO DE DATOS'!$W$19=1,'Tablas Guyanas y Santa Elena'!E124,'Tablas Resto de Ecuador'!E124) -> 12934 | L124: =IF('INGRESO DE DATOS'!$W$19=1,'Tablas Guyanas y Santa Elena'!F124,'Tablas Resto de Ecuador'!F124) -> 8980 | M124: =IF('INGRESO DE DATOS'!$W$19=1,'Tablas Guyanas y Santa Elena'!G124,'Tablas Resto de Ecuador'!G124) -> 7044 | O124: 17595 | P124: 15971.5 | Q124: 10993.9 | R124: 7633 | S124: 5987.4
A125: 62 | C125: 19550 | D125: 17743.75 | E125: 12209.4 | F125: 8473.65 | G125: 6647 | I125: =IF('INGRESO DE DATOS'!$W$19=1,'Tablas Guyanas y Santa Elena'!C125,'Tablas Resto de Ecuador'!C125) -> 23000 | J125: =IF('INGRESO DE DATOS'!$W$19=1,'Tablas Guyanas y Santa Elena'!D125,'Tablas Resto de Ecuador'!D125) -> 20875 | K125: =IF('INGRESO DE DATOS'!$W$19=1,'Tablas Guyanas y Santa Elena'!E125,'Tablas Resto de Ecuador'!E125) -> 14364 | L125: =IF('INGRESO DE DATOS'!$W$19=1,'Tablas Guyanas y Santa Elena'!F125,'Tablas Resto de Ecuador'!F125) -> 9969 | M125: =IF('INGRESO DE DATOS'!$W$19=1,'Tablas Guyanas y Santa Elena'!G125,'Tablas Resto de Ecuador'!G125) -> 7820 | O125: 19550 | P125: 17743.75 | Q125: 12209.4 | R125: 8473.65 | S125: 6647
A126: 63 | C126: 21649.5 | D126: 19524.5 | E126: 13521.8 | F126: 9384 | G126: 7361.85 | I126: =IF('INGRESO DE DATOS'!$W$19=1,'Tablas Guyanas y Santa Elena'!C126,'Tablas Resto de Ecuador'!C126) -> 25470 | J126: =IF('INGRESO DE DATOS'!$W$19=1,'Tablas Guyanas y Santa Elena'!D126,'Tablas Resto de Ecuador'!D126) -> 22970 | K126: =IF('INGRESO DE DATOS'!$W$19=1,'Tablas Guyanas y Santa Elena'!E126,'Tablas Resto de Ecuador'!E126) -> 15908 | L126: =IF('INGRESO DE DATOS'!$W$19=1,'Tablas Guyanas y Santa Elena'!F126,'Tablas Resto de Ecuador'!F126) -> 11040 | M126: =IF('INGRESO DE DATOS'!$W$19=1,'Tablas Guyanas y Santa Elena'!G126,'Tablas Resto de Ecuador'!G126) -> 8661 | O126: 21649.5 | P126: 19524.5 | Q126: 13521.8 | R126: 9384 | S126: 7361.85
A127: 64 | C127: 23898.6 | D127: 20717.9 | E127: 14931.1 | F127: 10361.5 | G127: 8129.4 | I127: =IF('INGRESO DE DATOS'!$W$19=1,'Tablas Guyanas y Santa Elena'!C127,'Tablas Resto de Ecuador'!C127) -> 28116 | J127: =IF('INGRESO DE DATOS'!$W$19=1,'Tablas Guyanas y Santa Elena'!D127,'Tablas Resto de Ecuador'!D127) -> 24374 | K127: =IF('INGRESO DE DATOS'!$W$19=1,'Tablas Guyanas y Santa Elena'!E127,'Tablas Resto de Ecuador'!E127) -> 17566 | L127: =IF('INGRESO DE DATOS'!$W$19=1,'Tablas Guyanas y Santa Elena'!F127,'Tablas Resto de Ecuador'!F127) -> 12190 | M127: =IF('INGRESO DE DATOS'!$W$19=1,'Tablas Guyanas y Santa Elena'!G127,'Tablas Resto de Ecuador'!G127) -> 9564 | O127: 23898.6 | P127: 20717.9 | Q127: 14931.1 | R127: 10361.5 | S127: 8129.4
A128: 65 | C128: 26162.15 | D128: 22191.8 | E128: 16439.85 | F128: 11409.55 | G128: 8953.05 | I128: =IF('INGRESO DE DATOS'!$W$19=1,'Tablas Guyanas y Santa Elena'!C128,'Tablas Resto de Ecuador'!C128) -> 30779 | J128: =IF('INGRESO DE DATOS'!$W$19=1,'Tablas Guyanas y Santa Elena'!D128,'Tablas Resto de Ecuador'!D128) -> 26108 | K128: =IF('INGRESO DE DATOS'!$W$19=1,'Tablas Guyanas y Santa Elena'!E128,'Tablas Resto de Ecuador'!E128) -> 19341 | L128: =IF('INGRESO DE DATOS'!$W$19=1,'Tablas Guyanas y Santa Elena'!F128,'Tablas Resto de Ecuador'!F128) -> 13423 | M128: =IF('INGRESO DE DATOS'!$W$19=1,'Tablas Guyanas y Santa Elena'!G128,'Tablas Resto de Ecuador'!G128) -> 10533 | O128: 26162.15 | P128: 22191.8 | Q128: 16439.85 | R128: 11409.55 | S128: 8953.05
A129: 66 | C129: 28021.1 | D129: 24032.9 | E129: 18040.4 | F129: 12523.05 | G129: 9826.85 | I129: =IF('INGRESO DE DATOS'!$W$19=1,'Tablas Guyanas y Santa Elena'!C129,'Tablas Resto de Ecuador'!C129) -> 32966 | J129: =IF('INGRESO DE DATOS'!$W$19=1,'Tablas Guyanas y Santa Elena'!D129,'Tablas Resto de Ecuador'!D129) -> 28274 | K129: =IF('INGRESO DE DATOS'!$W$19=1,'Tablas Guyanas y Santa Elena'!E129,'Tablas Resto de Ecuador'!E129) -> 21224 | L129: =IF('INGRESO DE DATOS'!$W$19=1,'Tablas Guyanas y Santa Elena'!F129,'Tablas Resto de Ecuador'!F129) -> 14733 | M129: =IF('INGRESO DE DATOS'!$W$19=1,'Tablas Guyanas y Santa Elena'!G129,'Tablas Resto de Ecuador'!G129) -> 11561 | O129: 28021.1 | P129: 24032.9 | Q129: 18040.4 | R129: 12523.05 | S129: 9826.85
A130: 67 | C130: 30214.1 | D130: 26180.85 | E130: 19742.95 | F130: 13702.85 | G130: 10750.8 | I130: =IF('INGRESO DE DATOS'!$W$19=1,'Tablas Guyanas y Santa Elena'!C130,'Tablas Resto de Ecuador'!C130) -> 35546 | J130: =IF('INGRESO DE DATOS'!$W$19=1,'Tablas Guyanas y Santa Elena'!D130,'Tablas Resto de Ecuador'!D130) -> 30801 | K130: =IF('INGRESO DE DATOS'!$W$19=1,'Tablas Guyanas y Santa Elena'!E130,'Tablas Resto de Ecuador'!E130) -> 23227 | L130: =IF('INGRESO DE DATOS'!$W$19=1,'Tablas Guyanas y Santa Elena'!F130,'Tablas Resto de Ecuador'!F130) -> 16121 | M130: =IF('INGRESO DE DATOS'!$W$19=1,'Tablas Guyanas y Santa Elena'!G130,'Tablas Resto de Ecuador'!G130) -> 12648 | O130: 30214.1 | P130: 26180.85 | Q130: 19742.95 | R130: 13702.85 | S130: 10750.8
A131: 68 | C131: 32596.65 | D131: 28503.9 | E131: 21544.1 | F131: 14953.2 | G131: 11730.85 | I131: =IF('INGRESO DE DATOS'!$W$19=1,'Tablas Guyanas y Santa Elena'!C131,'Tablas Resto de Ecuador'!C131) -> 38349 | J131: =IF('INGRESO DE DATOS'!$W$19=1,'Tablas Guyanas y Santa Elena'!D131,'Tablas Resto de Ecuador'!D131) -> 33534 | K131: =IF('INGRESO DE DATOS'!$W$19=1,'Tablas Guyanas y Santa Elena'!E131,'Tablas Resto de Ecuador'!E131) -> 25346 | L131: =IF('INGRESO DE DATOS'!$W$19=1,'Tablas Guyanas y Santa Elena'!F131,'Tablas Resto de Ecuador'!F131) -> 17592 | M131: =IF('INGRESO DE DATOS'!$W$19=1,'Tablas Guyanas y Santa Elena'!G131,'Tablas Resto de Ecuador'!G131) -> 13801 | O131: 32596.65 | P131: 28503.9 | Q131: 21544.1 | R131: 14953.2 | S131: 11730.85
A132: 69 | C132: 35027.65 | D132: 30870.3 | E132: 23437.05 | F132: 16267.3 | G132: 12761.9 | I132: =IF('INGRESO DE DATOS'!$W$19=1,'Tablas Guyanas y Santa Elena'!C132,'Tablas Resto de Ecuador'!C132) -> 41209 | J132: =IF('INGRESO DE DATOS'!$W$19=1,'Tablas Guyanas y Santa Elena'!D132,'Tablas Resto de Ecuador'!D132) -> 36318 | K132: =IF('INGRESO DE DATOS'!$W$19=1,'Tablas Guyanas y Santa Elena'!E132,'Tablas Resto de Ecuador'!E132) -> 27573 | L132: =IF('INGRESO DE DATOS'!$W$19=1,'Tablas Guyanas y Santa Elena'!F132,'Tablas Resto de Ecuador'!F132) -> 19138 | M132: =IF('INGRESO DE DATOS'!$W$19=1,'Tablas Guyanas y Santa Elena'!G132,'Tablas Resto de Ecuador'!G132) -> 15014 | O132: 35027.65 | P132: 30870.3 | Q132: 23437.05 | R132: 16267.3 | S132: 12761.9
A133: 70 | C133: 37363.45 | D133: 33149.15 | E133: 25432.85 | F133: 17651.1 | G133: 13845.65 | I133: =IF('INGRESO DE DATOS'!$W$19=1,'Tablas Guyanas y Santa Elena'!C133,'Tablas Resto de Ecuador'!C133) -> 43957 | J133: =IF('INGRESO DE DATOS'!$W$19=1,'Tablas Guyanas y Santa Elena'!D133,'Tablas Resto de Ecuador'!D133) -> 38999 | K133: =IF('INGRESO DE DATOS'!$W$19=1,'Tablas Guyanas y Santa Elena'!E133,'Tablas Resto de Ecuador'!E133) -> 29921 | L133: =IF('INGRESO DE DATOS'!$W$19=1,'Tablas Guyanas y Santa Elena'!F133,'Tablas Resto de Ecuador'!F133) -> 20766 | M133: =IF('INGRESO DE DATOS'!$W$19=1,'Tablas Guyanas y Santa Elena'!G133,'Tablas Resto de Ecuador'!G133) -> 16289 | O133: 37363.45 | P133: 33149.15 | Q133: 25432.85 | R133: 17651.1 | S133: 13845.65
A134: 71 | C134: 39604.05 | D134: 35341.3 | E134: 27523.85 | F134: 19102.9 | G134: 14986.35 | I134: =IF('INGRESO DE DATOS'!$W$19=1,'Tablas Guyanas y Santa Elena'!C134,'Tablas Resto de Ecuador'!C134) -> 46593 | J134: =IF('INGRESO DE DATOS'!$W$19=1,'Tablas Guyanas y Santa Elena'!D134,'Tablas Resto de Ecuador'!D134) -> 41578 | K134: =IF('INGRESO DE DATOS'!$W$19=1,'Tablas Guyanas y Santa Elena'!E134,'Tablas Resto de Ecuador'!E134) -> 32381 | L134: =IF('INGRESO DE DATOS'!$W$19=1,'Tablas Guyanas y Santa Elena'!F134,'Tablas Resto de Ecuador'!F134) -> 22474 | M134: =IF('INGRESO DE DATOS'!$W$19=1,'Tablas Guyanas y Santa Elena'!G134,'Tablas Resto de Ecuador'!G134) -> 17631 | O134: 39604.05 | P134: 35341.3 | Q134: 27523.85 | R134: 19102.9 | S134: 14986.35
A135: 72 | C135: 41843.8 | D135: 37532.6 | E135: 29712.6 | F135: 20623.55 | G135: 16180.6 | I135: =IF('INGRESO DE DATOS'!$W$19=1,'Tablas Guyanas y Santa Elena'!C135,'Tablas Resto de Ecuador'!C135) -> 49228 | J135: =IF('INGRESO DE DATOS'!$W$19=1,'Tablas Guyanas y Santa Elena'!D135,'Tablas Resto de Ecuador'!D135) -> 44156 | K135: =IF('INGRESO DE DATOS'!$W$19=1,'Tablas Guyanas y Santa Elena'!E135,'Tablas Resto de Ecuador'!E135) -> 34956 | L135: =IF('INGRESO DE DATOS'!$W$19=1,'Tablas Guyanas y Santa Elena'!F135,'Tablas Resto de Ecuador'!F135) -> 24263 | M135: =IF('INGRESO DE DATOS'!$W$19=1,'Tablas Guyanas y Santa Elena'!G135,'Tablas Resto de Ecuador'!G135) -> 19036 | O135: 41843.8 | P135: 37532.6 | Q135: 29712.6 | R135: 20623.55 | S135: 16180.6
A136: 73 | C136: 44084.4 | D136: 39723.9 | E136: 31999.1 | F136: 22209.65 | G136: 17424.15 | I136: =IF('INGRESO DE DATOS'!$W$19=1,'Tablas Guyanas y Santa Elena'!C136,'Tablas Resto de Ecuador'!C136) -> 51864 | J136: =IF('INGRESO DE DATOS'!$W$19=1,'Tablas Guyanas y Santa Elena'!D136,'Tablas Resto de Ecuador'!D136) -> 46734 | K136: =IF('INGRESO DE DATOS'!$W$19=1,'Tablas Guyanas y Santa Elena'!E136,'Tablas Resto de Ecuador'!E136) -> 37646 | L136: =IF('INGRESO DE DATOS'!$W$19=1,'Tablas Guyanas y Santa Elena'!F136,'Tablas Resto de Ecuador'!F136) -> 26129 | M136: =IF('INGRESO DE DATOS'!$W$19=1,'Tablas Guyanas y Santa Elena'!G136,'Tablas Resto de Ecuador'!G136) -> 20499 | O136: 44084.4 | P136: 39723.9 | Q136: 31999.1 | R136: 22209.65 | S136: 17424.15
A137: 74 | C137: 46324.15 | D137: 41915.2 | E137: 33843.6 | F137: 23863.75 | G137: 18721.25 | I137: =IF('INGRESO DE DATOS'!$W$19=1,'Tablas Guyanas y Santa Elena'!C137,'Tablas Resto de Ecuador'!C137) -> 54499 | J137: =IF('INGRESO DE DATOS'!$W$19=1,'Tablas Guyanas y Santa Elena'!D137,'Tablas Resto de Ecuador'!D137) -> 49312 | K137: =IF('INGRESO DE DATOS'!$W$19=1,'Tablas Guyanas y Santa Elena'!E137,'Tablas Resto de Ecuador'!E137) -> 39816 | L137: =IF('INGRESO DE DATOS'!$W$19=1,'Tablas Guyanas y Santa Elena'!F137,'Tablas Resto de Ecuador'!F137) -> 28075 | M137: =IF('INGRESO DE DATOS'!$W$19=1,'Tablas Guyanas y Santa Elena'!G137,'Tablas Resto de Ecuador'!G137) -> 22025 | O137: 46324.15 | P137: 41915.2 | Q137: 33843.6 | R137: 23863.75 | S137: 18721.25
A138: 75 | C138: 48501 | D138: 44042.75 | E138: 35605.65 | F138: 25586.7 | G138: 20071.9 | I138: =IF('INGRESO DE DATOS'!$W$19=1,'Tablas Guyanas y Santa Elena'!C138,'Tablas Resto de Ecuador'!C138) -> 57060 | J138: =IF('INGRESO DE DATOS'!$W$19=1,'Tablas Guyanas y Santa Elena'!D138,'Tablas Resto de Ecuador'!D138) -> 51815 | K138: =IF('INGRESO DE DATOS'!$W$19=1,'Tablas Guyanas y Santa Elena'!E138,'Tablas Resto de Ecuador'!E138) -> 41889 | L138: =IF('INGRESO DE DATOS'!$W$19=1,'Tablas Guyanas y Santa Elena'!F138,'Tablas Resto de Ecuador'!F138) -> 30102 | M138: =IF('INGRESO DE DATOS'!$W$19=1,'Tablas Guyanas y Santa Elena'!G138,'Tablas Resto de Ecuador'!G138) -> 23614 | O138: 48501 | P138: 44042.75 | Q138: 35605.65 | R138: 25586.7 | S138: 20071.9
A139: 76 | C139: 48501 | D139: 44042.75 | E139: 35605.65 | F139: 25586.7 | G139: 20071.9 | I139: =IF('INGRESO DE DATOS'!$W$19=1,'Tablas Guyanas y Santa Elena'!C139,'Tablas Resto de Ecuador'!C139) -> 57060 | J139: =IF('INGRESO DE DATOS'!$W$19=1,'Tablas Guyanas y Santa Elena'!D139,'Tablas Resto de Ecuador'!D139) -> 51815 | K139: =IF('INGRESO DE DATOS'!$W$19=1,'Tablas Guyanas y Santa Elena'!E139,'Tablas Resto de Ecuador'!E139) -> 41889 | L139: =IF('INGRESO DE DATOS'!$W$19=1,'Tablas Guyanas y Santa Elena'!F139,'Tablas Resto de Ecuador'!F139) -> 30102 | M139: =IF('INGRESO DE DATOS'!$W$19=1,'Tablas Guyanas y Santa Elena'!G139,'Tablas Resto de Ecuador'!G139) -> 23614 | O139: 48501 | P139: 44042.75 | Q139: 35605.65 | R139: 25586.7 | S139: 20071.9
A140: 77 | C140: 48501 | D140: 44042.75 | E140: 35605.65 | F140: 25586.7 | G140: 20071.9 | I140: =IF('INGRESO DE DATOS'!$W$19=1,'Tablas Guyanas y Santa Elena'!C140,'Tablas Resto de Ecuador'!C140) -> 57060 | J140: =IF('INGRESO DE DATOS'!$W$19=1,'Tablas Guyanas y Santa Elena'!D140,'Tablas Resto de Ecuador'!D140) -> 51815 | K140: =IF('INGRESO DE DATOS'!$W$19=1,'Tablas Guyanas y Santa Elena'!E140,'Tablas Resto de Ecuador'!E140) -> 41889 | L140: =IF('INGRESO DE DATOS'!$W$19=1,'Tablas Guyanas y Santa Elena'!F140,'Tablas Resto de Ecuador'!F140) -> 30102 | M140: =IF('INGRESO DE DATOS'!$W$19=1,'Tablas Guyanas y Santa Elena'!G140,'Tablas Resto de Ecuador'!G140) -> 23614 | O140: 48501 | P140: 44042.75 | Q140: 35605.65 | R140: 25586.7 | S140: 20071.9
A141: 78 | C141: 48501 | D141: 44042.75 | E141: 35605.65 | F141: 25586.7 | G141: 20071.9 | I141: =IF('INGRESO DE DATOS'!$W$19=1,'Tablas Guyanas y Santa Elena'!C141,'Tablas Resto de Ecuador'!C141) -> 57060 | J141: =IF('INGRESO DE DATOS'!$W$19=1,'Tablas Guyanas y Santa Elena'!D141,'Tablas Resto de Ecuador'!D141) -> 51815 | K141: =IF('INGRESO DE DATOS'!$W$19=1,'Tablas Guyanas y Santa Elena'!E141,'Tablas Resto de Ecuador'!E141) -> 41889 | L141: =IF('INGRESO DE DATOS'!$W$19=1,'Tablas Guyanas y Santa Elena'!F141,'Tablas Resto de Ecuador'!F141) -> 30102 | M141: =IF('INGRESO DE DATOS'!$W$19=1,'Tablas Guyanas y Santa Elena'!G141,'Tablas Resto de Ecuador'!G141) -> 23614 | O141: 48501 | P141: 44042.75 | Q141: 35605.65 | R141: 25586.7 | S141: 20071.9
A142: 79 | C142: 48501 | D142: 44042.75 | E142: 35605.65 | F142: 25586.7 | G142: 20071.9 | I142: =IF('INGRESO DE DATOS'!$W$19=1,'Tablas Guyanas y Santa Elena'!C142,'Tablas Resto de Ecuador'!C142) -> 57060 | J142: =IF('INGRESO DE DATOS'!$W$19=1,'Tablas Guyanas y Santa Elena'!D142,'Tablas Resto de Ecuador'!D142) -> 51815 | K142: =IF('INGRESO DE DATOS'!$W$19=1,'Tablas Guyanas y Santa Elena'!E142,'Tablas Resto de Ecuador'!E142) -> 41889 | L142: =IF('INGRESO DE DATOS'!$W$19=1,'Tablas Guyanas y Santa Elena'!F142,'Tablas Resto de Ecuador'!F142) -> 30102 | M142: =IF('INGRESO DE DATOS'!$W$19=1,'Tablas Guyanas y Santa Elena'!G142,'Tablas Resto de Ecuador'!G142) -> 23614 | O142: 48501 | P142: 44042.75 | Q142: 35605.65 | R142: 25586.7 | S142: 20071.9
A143: 80 | C143: 48501 | D143: 44042.75 | E143: 35605.65 | F143: 25586.7 | G143: 20071.9 | I143: =IF('INGRESO DE DATOS'!$W$19=1,'Tablas Guyanas y Santa Elena'!C143,'Tablas Resto de Ecuador'!C143) -> 57060 | J143: =IF('INGRESO DE DATOS'!$W$19=1,'Tablas Guyanas y Santa Elena'!D143,'Tablas Resto de Ecuador'!D143) -> 51815 | K143: =IF('INGRESO DE DATOS'!$W$19=1,'Tablas Guyanas y Santa Elena'!E143,'Tablas Resto de Ecuador'!E143) -> 41889 | L143: =IF('INGRESO DE DATOS'!$W$19=1,'Tablas Guyanas y Santa Elena'!F143,'Tablas Resto de Ecuador'!F143) -> 30102 | M143: =IF('INGRESO DE DATOS'!$W$19=1,'Tablas Guyanas y Santa Elena'!G143,'Tablas Resto de Ecuador'!G143) -> 23614 | O143: 48501 | P143: 44042.75 | Q143: 35605.65 | R143: 25586.7 | S143: 20071.9
A144: 81 | C144: 48501 | D144: 44042.75 | E144: 35605.65 | F144: 25586.7 | G144: 20071.9 | I144: =IF('INGRESO DE DATOS'!$W$19=1,'Tablas Guyanas y Santa Elena'!C144,'Tablas Resto de Ecuador'!C144) -> 57060 | J144: =IF('INGRESO DE DATOS'!$W$19=1,'Tablas Guyanas y Santa Elena'!D144,'Tablas Resto de Ecuador'!D144) -> 51815 | K144: =IF('INGRESO DE DATOS'!$W$19=1,'Tablas Guyanas y Santa Elena'!E144,'Tablas Resto de Ecuador'!E144) -> 41889 | L144: =IF('INGRESO DE DATOS'!$W$19=1,'Tablas Guyanas y Santa Elena'!F144,'Tablas Resto de Ecuador'!F144) -> 30102 | M144: =IF('INGRESO DE DATOS'!$W$19=1,'Tablas Guyanas y Santa Elena'!G144,'Tablas Resto de Ecuador'!G144) -> 23614 | O144: 48501 | P144: 44042.75 | Q144: 35605.65 | R144: 25586.7 | S144: 20071.9
A145: 82 | C145: =O145*$X$2 -> 48501 | D145: =P145*$X$2 -> 44042.75 | E145: =Q145*$X$2 -> 35605.65 | F145: 25586.7 | G145: 20071.9 | I145: =IF('INGRESO DE DATOS'!$W$19=1,'Tablas Guyanas y Santa Elena'!C145,'Tablas Resto de Ecuador'!C145) -> 57060 | J145: =IF('INGRESO DE DATOS'!$W$19=1,'Tablas Guyanas y Santa Elena'!D145,'Tablas Resto de Ecuador'!D145) -> 51815 | K145: =IF('INGRESO DE DATOS'!$W$19=1,'Tablas Guyanas y Santa Elena'!E145,'Tablas Resto de Ecuador'!E145) -> 41889 | L145: =IF('INGRESO DE DATOS'!$W$19=1,'Tablas Guyanas y Santa Elena'!F145,'Tablas Resto de Ecuador'!F145) -> 30102 | M145: =IF('INGRESO DE DATOS'!$W$19=1,'Tablas Guyanas y Santa Elena'!G145,'Tablas Resto de Ecuador'!G145) -> 23614 | O145: 48501 | P145: 44042.75 | Q145: 35605.65 | R145: 25586.7 | S145: 20071.9
A146: 83 | C146: 48501 | D146: 44042.75 | E146: 35605.65 | F146: =R146*$X$2 -> 25586.7 | G146: =S146*$X$2 -> 20071.9 | I146: =IF('INGRESO DE DATOS'!$W$19=1,'Tablas Guyanas y Santa Elena'!C146,'Tablas Resto de Ecuador'!C146) -> 57060 | J146: =IF('INGRESO DE DATOS'!$W$19=1,'Tablas Guyanas y Santa Elena'!D146,'Tablas Resto de Ecuador'!D146) -> 51815 | K146: =IF('INGRESO DE DATOS'!$W$19=1,'Tablas Guyanas y Santa Elena'!E146,'Tablas Resto de Ecuador'!E146) -> 41889 | L146: =IF('INGRESO DE DATOS'!$W$19=1,'Tablas Guyanas y Santa Elena'!F146,'Tablas Resto de Ecuador'!F146) -> 30102 | M146: =IF('INGRESO DE DATOS'!$W$19=1,'Tablas Guyanas y Santa Elena'!G146,'Tablas Resto de Ecuador'!G146) -> 23614 | O146: =I146*$Q$4 -> 48501 | P146: 44042.75 | Q146: 35605.65 | R146: 25586.7 | S146: 20071.9
A147: 84 | B147: o más | C147: 48501 | D147: 44042.75 | E147: 35605.65 | F147: 25586.7 | G147: 20071.9 | I147: =IF('INGRESO DE DATOS'!$W$19=1,'Tablas Guyanas y Santa Elena'!C147,'Tablas Resto de Ecuador'!C147) -> 57060 | J147: =IF('INGRESO DE DATOS'!$W$19=1,'Tablas Guyanas y Santa Elena'!D147,'Tablas Resto de Ecuador'!D147) -> 51815 | K147: =IF('INGRESO DE DATOS'!$W$19=1,'Tablas Guyanas y Santa Elena'!E147,'Tablas Resto de Ecuador'!E147) -> 41889 | L147: =IF('INGRESO DE DATOS'!$W$19=1,'Tablas Guyanas y Santa Elena'!F147,'Tablas Resto de Ecuador'!F147) -> 30102 | M147: =IF('INGRESO DE DATOS'!$W$19=1,'Tablas Guyanas y Santa Elena'!G147,'Tablas Resto de Ecuador'!G147) -> 23614 | O147: 48501 | P147: 44042.75 | Q147: 35605.65 | R147: 25586.7 | S147: 20071.9
A148: 1 | B148: Hijo | C148: 735.25 | D148: 713.15 | E148: 696.15 | F148: 551.65 | G148: 498.1 | I148: =IF('INGRESO DE DATOS'!$W$19=1,'Tablas Guyanas y Santa Elena'!C148,'Tablas Resto de Ecuador'!C148) -> 865 | J148: =IF('INGRESO DE DATOS'!$W$19=1,'Tablas Guyanas y Santa Elena'!D148,'Tablas Resto de Ecuador'!D148) -> 839 | K148: =IF('INGRESO DE DATOS'!$W$19=1,'Tablas Guyanas y Santa Elena'!E148,'Tablas Resto de Ecuador'!E148) -> 819 | L148: =IF('INGRESO DE DATOS'!$W$19=1,'Tablas Guyanas y Santa Elena'!F148,'Tablas Resto de Ecuador'!F148) -> 649 | M148: =IF('INGRESO DE DATOS'!$W$19=1,'Tablas Guyanas y Santa Elena'!G148,'Tablas Resto de Ecuador'!G148) -> 586 | O148: 735.25 | P148: 713.15 | Q148: 696.15 | R148: 551.65 | S148: 498.1
A149: 2 | B149: Hijos | C149: 1445.85 | D149: 1403.35 | E149: 1309.85 | F149: 1059.95 | G149: 950.3 | I149: =IF('INGRESO DE DATOS'!$W$19=1,'Tablas Guyanas y Santa Elena'!C149,'Tablas Resto de Ecuador'!C149) -> 1701 | J149: =IF('INGRESO DE DATOS'!$W$19=1,'Tablas Guyanas y Santa Elena'!D149,'Tablas Resto de Ecuador'!D149) -> 1651 | K149: =IF('INGRESO DE DATOS'!$W$19=1,'Tablas Guyanas y Santa Elena'!E149,'Tablas Resto de Ecuador'!E149) -> 1541 | L149: =IF('INGRESO DE DATOS'!$W$19=1,'Tablas Guyanas y Santa Elena'!F149,'Tablas Resto de Ecuador'!F149) -> 1247 | M149: =IF('INGRESO DE DATOS'!$W$19=1,'Tablas Guyanas y Santa Elena'!G149,'Tablas Resto de Ecuador'!G149) -> 1118 | O149: 1445.85 | P149: 1403.35 | Q149: 1309.85 | R149: 1059.95 | S149: 950.3
A150: 3 | B150: Hijos o más | C150: 2136.9 | D150: 2074 | E150: 1875.95 | F150: 1539.35 | G150: 1373.6 | I150: =IF('INGRESO DE DATOS'!$W$19=1,'Tablas Guyanas y Santa Elena'!C150,'Tablas Resto de Ecuador'!C150) -> 2514 | J150: =IF('INGRESO DE DATOS'!$W$19=1,'Tablas Guyanas y Santa Elena'!D150,'Tablas Resto de Ecuador'!D150) -> 2440 | K150: =IF('INGRESO DE DATOS'!$W$19=1,'Tablas Guyanas y Santa Elena'!E150,'Tablas Resto de Ecuador'!E150) -> 2207 | L150: =IF('INGRESO DE DATOS'!$W$19=1,'Tablas Guyanas y Santa Elena'!F150,'Tablas Resto de Ecuador'!F150) -> 1811 | M150: =IF('INGRESO DE DATOS'!$W$19=1,'Tablas Guyanas y Santa Elena'!G150,'Tablas Resto de Ecuador'!G150) -> 1616 | O150: 2136.9 | P150: 2074 | Q150: 1875.95 | R150: 1539.35 | S150: 1373.6
A152: BUPA GLOBAL SELECT
A153: TARIFAS ANUALES
A155: EDAD | C155: 250 | D155: 2000 | E155: 5000 | F155: 10000 | G155: 20000 | I155: TARIFAS BASE | O155: TARIFAS BASE CON DESCUENTO
A156: 18 | C156: =O156*$X$2 -> 4435.3 | D156: =P156*$X$2 -> 3482.45 | E156: =Q156*$X$2 -> 3106.75 | F156: =R156*$X$2 -> 2153.9 | G156: 1693.2 | I156: =IF('INGRESO DE DATOS'!$W$19=1,'Tablas Guyanas y Santa Elena'!C156,'Tablas Resto de Ecuador'!C156) -> 5218 | J156: =IF('INGRESO DE DATOS'!$W$19=1,'Tablas Guyanas y Santa Elena'!D156,'Tablas Resto de Ecuador'!D156) -> 4097 | K156: =IF('INGRESO DE DATOS'!$W$19=1,'Tablas Guyanas y Santa Elena'!E156,'Tablas Resto de Ecuador'!E156) -> 3655 | L156: =IF('INGRESO DE DATOS'!$W$19=1,'Tablas Guyanas y Santa Elena'!F156,'Tablas Resto de Ecuador'!F156) -> 2534 | M156: =IF('INGRESO DE DATOS'!$W$19=1,'Tablas Guyanas y Santa Elena'!G156,'Tablas Resto de Ecuador'!G156) -> 1992 | O156: =I156*$R$4 -> 4435.3 | P156: =J156*$R$4 -> 3482.45 | Q156: =K156*$R$4 -> 3106.75 | R156: =L156*$R$4 -> 2153.9 | S156: =M156*$R$4 -> 1693.2
A157: 19 | C157: 4435.3 | D157: 3482.45 | E157: 3106.75 | F157: 2153.9 | G157: 1693.2 | I157: =IF('INGRESO DE DATOS'!$W$19=1,'Tablas Guyanas y Santa Elena'!C157,'Tablas Resto de Ecuador'!C157) -> 5218 | J157: =IF('INGRESO DE DATOS'!$W$19=1,'Tablas Guyanas y Santa Elena'!D157,'Tablas Resto de Ecuador'!D157) -> 4097 | K157: =IF('INGRESO DE DATOS'!$W$19=1,'Tablas Guyanas y Santa Elena'!E157,'Tablas Resto de Ecuador'!E157) -> 3655 | L157: =IF('INGRESO DE DATOS'!$W$19=1,'Tablas Guyanas y Santa Elena'!F157,'Tablas Resto de Ecuador'!F157) -> 2534 | M157: =IF('INGRESO DE DATOS'!$W$19=1,'Tablas Guyanas y Santa Elena'!G157,'Tablas Resto de Ecuador'!G157) -> 1992 | O157: =I157*$R$4 -> 4435.3 | P157: =J157*$R$4 -> 3482.45 | Q157: =K157*$R$4 -> 3106.75 | R157: =L157*$R$4 -> 2153.9 | S157: =M157*$R$4 -> 1693.2
A158: 20 | C158: 4435.3 | D158: 3482.45 | E158: 3106.75 | F158: 2153.9 | G158: 1693.2 | I158: =IF('INGRESO DE DATOS'!$W$19=1,'Tablas Guyanas y Santa Elena'!C158,'Tablas Resto de Ecuador'!C158) -> 5218 | J158: =IF('INGRESO DE DATOS'!$W$19=1,'Tablas Guyanas y Santa Elena'!D158,'Tablas Resto de Ecuador'!D158) -> 4097 | K158: =IF('INGRESO DE DATOS'!$W$19=1,'Tablas Guyanas y Santa Elena'!E158,'Tablas Resto de Ecuador'!E158) -> 3655 | L158: =IF('INGRESO DE DATOS'!$W$19=1,'Tablas Guyanas y Santa Elena'!F158,'Tablas Resto de Ecuador'!F158) -> 2534 | M158: =IF('INGRESO DE DATOS'!$W$19=1,'Tablas Guyanas y Santa Elena'!G158,'Tablas Resto de Ecuador'!G158) -> 1992 | O158: 4435.3 | P158: 3482.45 | Q158: 3106.75 | R158: 2153.9 | S158: 1693.2
A159: 21 | C159: 4435.3 | D159: 3482.45 | E159: 3106.75 | F159: 2153.9 | G159: 1693.2 | I159: =IF('INGRESO DE DATOS'!$W$19=1,'Tablas Guyanas y Santa Elena'!C159,'Tablas Resto de Ecuador'!C159) -> 5218 | J159: =IF('INGRESO DE DATOS'!$W$19=1,'Tablas Guyanas y Santa Elena'!D159,'Tablas Resto de Ecuador'!D159) -> 4097 | K159: =IF('INGRESO DE DATOS'!$W$19=1,'Tablas Guyanas y Santa Elena'!E159,'Tablas Resto de Ecuador'!E159) -> 3655 | L159: =IF('INGRESO DE DATOS'!$W$19=1,'Tablas Guyanas y Santa Elena'!F159,'Tablas Resto de Ecuador'!F159) -> 2534 | M159: =IF('INGRESO DE DATOS'!$W$19=1,'Tablas Guyanas y Santa Elena'!G159,'Tablas Resto de Ecuador'!G159) -> 1992 | O159: 4435.3 | P159: 3482.45 | Q159: 3106.75 | R159: 2153.9 | S159: 1693.2
A160: 22 | C160: 4435.3 | D160: 3482.45 | E160: 3106.75 | F160: 2153.9 | G160: 1693.2 | I160: =IF('INGRESO DE DATOS'!$W$19=1,'Tablas Guyanas y Santa Elena'!C160,'Tablas Resto de Ecuador'!C160) -> 5218 | J160: =IF('INGRESO DE DATOS'!$W$19=1,'Tablas Guyanas y Santa Elena'!D160,'Tablas Resto de Ecuador'!D160) -> 4097 | K160: =IF('INGRESO DE DATOS'!$W$19=1,'Tablas Guyanas y Santa Elena'!E160,'Tablas Resto de Ecuador'!E160) -> 3655 | L160: =IF('INGRESO DE DATOS'!$W$19=1,'Tablas Guyanas y Santa Elena'!F160,'Tablas Resto de Ecuador'!F160) -> 2534 | M160: =IF('INGRESO DE DATOS'!$W$19=1,'Tablas Guyanas y Santa Elena'!G160,'Tablas Resto de Ecuador'!G160) -> 1992 | O160: 4435.3 | P160: 3482.45 | Q160: 3106.75 | R160: 2153.9 | S160: 1693.2
A161: 23 | C161: 4435.3 | D161: 3482.45 | E161: 3106.75 | F161: 2153.9 | G161: 1693.2 | I161: =IF('INGRESO DE DATOS'!$W$19=1,'Tablas Guyanas y Santa Elena'!C161,'Tablas Resto de Ecuador'!C161) -> 5218 | J161: =IF('INGRESO DE DATOS'!$W$19=1,'Tablas Guyanas y Santa Elena'!D161,'Tablas Resto de Ecuador'!D161) -> 4097 | K161: =IF('INGRESO DE DATOS'!$W$19=1,'Tablas Guyanas y Santa Elena'!E161,'Tablas Resto de Ecuador'!E161) -> 3655 | L161: =IF('INGRESO DE DATOS'!$W$19=1,'Tablas Guyanas y Santa Elena'!F161,'Tablas Resto de Ecuador'!F161) -> 2534 | M161: =IF('INGRESO DE DATOS'!$W$19=1,'Tablas Guyanas y Santa Elena'!G161,'Tablas Resto de Ecuador'!G161) -> 1992 | O161: 4435.3 | P161: 3482.45 | Q161: 3106.75 | R161: 2153.9 | S161: 1693.2
A162: 24 | C162: 4435.3 | D162: 3482.45 | E162: 3106.75 | F162: 2153.9 | G162: 1693.2 | I162: =IF('INGRESO DE DATOS'!$W$19=1,'Tablas Guyanas y Santa Elena'!C162,'Tablas Resto de Ecuador'!C162) -> 5218 | J162: =IF('INGRESO DE DATOS'!$W$19=1,'Tablas Guyanas y Santa Elena'!D162,'Tablas Resto de Ecuador'!D162) -> 4097 | K162: =IF('INGRESO DE DATOS'!$W$19=1,'Tablas Guyanas y Santa Elena'!E162,'Tablas Resto de Ecuador'!E162) -> 3655 | L162: =IF('INGRESO DE DATOS'!$W$19=1,'Tablas Guyanas y Santa Elena'!F162,'Tablas Resto de Ecuador'!F162) -> 2534 | M162: =IF('INGRESO DE DATOS'!$W$19=1,'Tablas Guyanas y Santa Elena'!G162,'Tablas Resto de Ecuador'!G162) -> 1992 | O162: 4435.3 | P162: 3482.45 | Q162: 3106.75 | R162: 2153.9 | S162: 1693.2
A163: 25 | C163: 4784.65 | D163: 4494.8 | E163: 3207.9 | F163: 2298.4 | G163: 1803.7 | I163: =IF('INGRESO DE DATOS'!$W$19=1,'Tablas Guyanas y Santa Elena'!C163,'Tablas Resto de Ecuador'!C163) -> 5629 | J163: =IF('INGRESO DE DATOS'!$W$19=1,'Tablas Guyanas y Santa Elena'!D163,'Tablas Resto de Ecuador'!D163) -> 5288 | K163: =IF('INGRESO DE DATOS'!$W$19=1,'Tablas Guyanas y Santa Elena'!E163,'Tablas Resto de Ecuador'!E163) -> 3774 | L163: =IF('INGRESO DE DATOS'!$W$19=1,'Tablas Guyanas y Santa Elena'!F163,'Tablas Resto de Ecuador'!F163) -> 2704 | M163: =IF('INGRESO DE DATOS'!$W$19=1,'Tablas Guyanas y Santa Elena'!G163,'Tablas Resto de Ecuador'!G163) -> 2122 | O163: 4784.65 | P163: 4494.8 | Q163: 3207.9 | R163: 2298.4 | S163: 1803.7
A164: 26 | C164: 4784.65 | D164: 4494.8 | E164: 3207.9 | F164: 2298.4 | G164: 1803.7 | I164: =IF('INGRESO DE DATOS'!$W$19=1,'Tablas Guyanas y Santa Elena'!C164,'Tablas Resto de Ecuador'!C164) -> 5629 | J164: =IF('INGRESO DE DATOS'!$W$19=1,'Tablas Guyanas y Santa Elena'!D164,'Tablas Resto de Ecuador'!D164) -> 5288 | K164: =IF('INGRESO DE DATOS'!$W$19=1,'Tablas Guyanas y Santa Elena'!E164,'Tablas Resto de Ecuador'!E164) -> 3774 | L164: =IF('INGRESO DE DATOS'!$W$19=1,'Tablas Guyanas y Santa Elena'!F164,'Tablas Resto de Ecuador'!F164) -> 2704 | M164: =IF('INGRESO DE DATOS'!$W$19=1,'Tablas Guyanas y Santa Elena'!G164,'Tablas Resto de Ecuador'!G164) -> 2122 | O164: 4784.65 | P164: 4494.8 | Q164: 3207.9 | R164: 2298.4 | S164: 1803.7
A165: 27 | C165: 4784.65 | D165: 4494.8 | E165: 3207.9 | F165: 2298.4 | G165: 1803.7 | I165: =IF('INGRESO DE DATOS'!$W$19=1,'Tablas Guyanas y Santa Elena'!C165,'Tablas Resto de Ecuador'!C165) -> 5629 | J165: =IF('INGRESO DE DATOS'!$W$19=1,'Tablas Guyanas y Santa Elena'!D165,'Tablas Resto de Ecuador'!D165) -> 5288 | K165: =IF('INGRESO DE DATOS'!$W$19=1,'Tablas Guyanas y Santa Elena'!E165,'Tablas Resto de Ecuador'!E165) -> 3774 | L165: =IF('INGRESO DE DATOS'!$W$19=1,'Tablas Guyanas y Santa Elena'!F165,'Tablas Resto de Ecuador'!F165) -> 2704 | M165: =IF('INGRESO DE DATOS'!$W$19=1,'Tablas Guyanas y Santa Elena'!G165,'Tablas Resto de Ecuador'!G165) -> 2122 | O165: 4784.65 | P165: 4494.8 | Q165: 3207.9 | R165: 2298.4 | S165: 1803.7
A166: 28 | C166: 4784.65 | D166: 4494.8 | E166: 3207.9 | F166: 2298.4 | G166: 1803.7 | I166: =IF('INGRESO DE DATOS'!$W$19=1,'Tablas Guyanas y Santa Elena'!C166,'Tablas Resto de Ecuador'!C166) -> 5629 | J166: =IF('INGRESO DE DATOS'!$W$19=1,'Tablas Guyanas y Santa Elena'!D166,'Tablas Resto de Ecuador'!D166) -> 5288 | K166: =IF('INGRESO DE DATOS'!$W$19=1,'Tablas Guyanas y Santa Elena'!E166,'Tablas Resto de Ecuador'!E166) -> 3774 | L166: =IF('INGRESO DE DATOS'!$W$19=1,'Tablas Guyanas y Santa Elena'!F166,'Tablas Resto de Ecuador'!F166) -> 2704 | M166: =IF('INGRESO DE DATOS'!$W$19=1,'Tablas Guyanas y Santa Elena'!G166,'Tablas Resto de Ecuador'!G166) -> 2122 | O166: 4784.65 | P166: 4494.8 | Q166: 3207.9 | R166: 2298.4 | S166: 1803.7
A167: 29 | C167: 4784.65 | D167: 4494.8 | E167: 3207.9 | F167: 2298.4 | G167: 1803.7 | I167: =IF('INGRESO DE DATOS'!$W$19=1,'Tablas Guyanas y Santa Elena'!C167,'Tablas Resto de Ecuador'!C167) -> 5629 | J167: =IF('INGRESO DE DATOS'!$W$19=1,'Tablas Guyanas y Santa Elena'!D167,'Tablas Resto de Ecuador'!D167) -> 5288 | K167: =IF('INGRESO DE DATOS'!$W$19=1,'Tablas Guyanas y Santa Elena'!E167,'Tablas Resto de Ecuador'!E167) -> 3774 | L167: =IF('INGRESO DE DATOS'!$W$19=1,'Tablas Guyanas y Santa Elena'!F167,'Tablas Resto de Ecuador'!F167) -> 2704 | M167: =IF('INGRESO DE DATOS'!$W$19=1,'Tablas Guyanas y Santa Elena'!G167,'Tablas Resto de Ecuador'!G167) -> 2122 | O167: 4784.65 | P167: 4494.8 | Q167: 3207.9 | R167: 2298.4 | S167: 1803.7
A168: 30 | C168: 5397.5 | D168: 5179.9 | E168: 3685.6 | F168: 2555.95 | G168: 2006 | I168: =IF('INGRESO DE DATOS'!$W$19=1,'Tablas Guyanas y Santa Elena'!C168,'Tablas Resto de Ecuador'!C168) -> 6350 | J168: =IF('INGRESO DE DATOS'!$W$19=1,'Tablas Guyanas y Santa Elena'!D168,'Tablas Resto de Ecuador'!D168) -> 6094 | K168: =IF('INGRESO DE DATOS'!$W$19=1,'Tablas Guyanas y Santa Elena'!E168,'Tablas Resto de Ecuador'!E168) -> 4336 | L168: =IF('INGRESO DE DATOS'!$W$19=1,'Tablas Guyanas y Santa Elena'!F168,'Tablas Resto de Ecuador'!F168) -> 3007 | M168: =IF('INGRESO DE DATOS'!$W$19=1,'Tablas Guyanas y Santa Elena'!G168,'Tablas Resto de Ecuador'!G168) -> 2360 | O168: 5397.5 | P168: 5179.9 | Q168: 3685.6 | R168: 2555.95 | S168: 2006
A169: 31 | C169: 5397.5 | D169: 5179.9 | E169: 3685.6 | F169: 2555.95 | G169: 2006 | I169: =IF('INGRESO DE DATOS'!$W$19=1,'Tablas Guyanas y Santa Elena'!C169,'Tablas Resto de Ecuador'!C169) -> 6350 | J169: =IF('INGRESO DE DATOS'!$W$19=1,'Tablas Guyanas y Santa Elena'!D169,'Tablas Resto de Ecuador'!D169) -> 6094 | K169: =IF('INGRESO DE DATOS'!$W$19=1,'Tablas Guyanas y Santa Elena'!E169,'Tablas Resto de Ecuador'!E169) -> 4336 | L169: =IF('INGRESO DE DATOS'!$W$19=1,'Tablas Guyanas y Santa Elena'!F169,'Tablas Resto de Ecuador'!F169) -> 3007 | M169: =IF('INGRESO DE DATOS'!$W$19=1,'Tablas Guyanas y Santa Elena'!G169,'Tablas Resto de Ecuador'!G169) -> 2360 | O169: 5397.5 | P169: 5179.9 | Q169: 3685.6 | R169: 2555.95 | S169: 2006
A170: 32 | C170: 5397.5 | D170: 5179.9 | E170: 3685.6 | F170: 2555.95 | G170: 2006 | I170: =IF('INGRESO DE DATOS'!$W$19=1,'Tablas Guyanas y Santa Elena'!C170,'Tablas Resto de Ecuador'!C170) -> 6350 | J170: =IF('INGRESO DE DATOS'!$W$19=1,'Tablas Guyanas y Santa Elena'!D170,'Tablas Resto de Ecuador'!D170) -> 6094 | K170: =IF('INGRESO DE DATOS'!$W$19=1,'Tablas Guyanas y Santa Elena'!E170,'Tablas Resto de Ecuador'!E170) -> 4336 | L170: =IF('INGRESO DE DATOS'!$W$19=1,'Tablas Guyanas y Santa Elena'!F170,'Tablas Resto de Ecuador'!F170) -> 3007 | M170: =IF('INGRESO DE DATOS'!$W$19=1,'Tablas Guyanas y Santa Elena'!G170,'Tablas Resto de Ecuador'!G170) -> 2360 | O170: 5397.5 | P170: 5179.9 | Q170: 3685.6 | R170: 2555.95 | S170: 2006
A171: 33 | C171: 5397.5 | D171: 5179.9 | E171: 3685.6 | F171: 2555.95 | G171: 2006 | I171: =IF('INGRESO DE DATOS'!$W$19=1,'Tablas Guyanas y Santa Elena'!C171,'Tablas Resto de Ecuador'!C171) -> 6350 | J171: =IF('INGRESO DE DATOS'!$W$19=1,'Tablas Guyanas y Santa Elena'!D171,'Tablas Resto de Ecuador'!D171) -> 6094 | K171: =IF('INGRESO DE DATOS'!$W$19=1,'Tablas Guyanas y Santa Elena'!E171,'Tablas Resto de Ecuador'!E171) -> 4336 | L171: =IF('INGRESO DE DATOS'!$W$19=1,'Tablas Guyanas y Santa Elena'!F171,'Tablas Resto de Ecuador'!F171) -> 3007 | M171: =IF('INGRESO DE DATOS'!$W$19=1,'Tablas Guyanas y Santa Elena'!G171,'Tablas Resto de Ecuador'!G171) -> 2360 | O171: 5397.5 | P171: 5179.9 | Q171: 3685.6 | R171: 2555.95 | S171: 2006
A172: 34 | C172: 5397.5 | D172: 5179.9 | E172: 3685.6 | F172: 2555.95 | G172: 2006 | I172: =IF('INGRESO DE DATOS'!$W$19=1,'Tablas Guyanas y Santa Elena'!C172,'Tablas Resto de Ecuador'!C172) -> 6350 | J172: =IF('INGRESO DE DATOS'!$W$19=1,'Tablas Guyanas y Santa Elena'!D172,'Tablas Resto de Ecuador'!D172) -> 6094 | K172: =IF('INGRESO DE DATOS'!$W$19=1,'Tablas Guyanas y Santa Elena'!E172,'Tablas Resto de Ecuador'!E172) -> 4336 | L172: =IF('INGRESO DE DATOS'!$W$19=1,'Tablas Guyanas y Santa Elena'!F172,'Tablas Resto de Ecuador'!F172) -> 3007 | M172: =IF('INGRESO DE DATOS'!$W$19=1,'Tablas Guyanas y Santa Elena'!G172,'Tablas Resto de Ecuador'!G172) -> 2360 | O172: 5397.5 | P172: 5179.9 | Q172: 3685.6 | R172: 2555.95 | S172: 2006
A173: 35 | C173: 6109.8 | D173: 5861.6 | E173: 4125.9 | F173: 2862.8 | G173: 2245.7 | I173: =IF('INGRESO DE DATOS'!$W$19=1,'Tablas Guyanas y Santa Elena'!C173,'Tablas Resto de Ecuador'!C173) -> 7188 | J173: =IF('INGRESO DE DATOS'!$W$19=1,'Tablas Guyanas y Santa Elena'!D173,'Tablas Resto de Ecuador'!D173) -> 6896 | K173: =IF('INGRESO DE DATOS'!$W$19=1,'Tablas Guyanas y Santa Elena'!E173,'Tablas Resto de Ecuador'!E173) -> 4854 | L173: =IF('INGRESO DE DATOS'!$W$19=1,'Tablas Guyanas y Santa Elena'!F173,'Tablas Resto de Ecuador'!F173) -> 3368 | M173: =IF('INGRESO DE DATOS'!$W$19=1,'Tablas Guyanas y Santa Elena'!G173,'Tablas Resto de Ecuador'!G173) -> 2642 | O173: 6109.8 | P173: 5861.6 | Q173: 4125.9 | R173: 2862.8 | S173: 2245.7
A174: 36 | C174: 6109.8 | D174: 5861.6 | E174: 4125.9 | F174: 2862.8 | G174: 2245.7 | I174: =IF('INGRESO DE DATOS'!$W$19=1,'Tablas Guyanas y Santa Elena'!C174,'Tablas Resto de Ecuador'!C174) -> 7188 | J174: =IF('INGRESO DE DATOS'!$W$19=1,'Tablas Guyanas y Santa Elena'!D174,'Tablas Resto de Ecuador'!D174) -> 6896 | K174: =IF('INGRESO DE DATOS'!$W$19=1,'Tablas Guyanas y Santa Elena'!E174,'Tablas Resto de Ecuador'!E174) -> 4854 | L174: =IF('INGRESO DE DATOS'!$W$19=1,'Tablas Guyanas y Santa Elena'!F174,'Tablas Resto de Ecuador'!F174) -> 3368 | M174: =IF('INGRESO DE DATOS'!$W$19=1,'Tablas Guyanas y Santa Elena'!G174,'Tablas Resto de Ecuador'!G174) -> 2642 | O174: 6109.8 | P174: 5861.6 | Q174: 4125.9 | R174: 2862.8 | S174: 2245.7
A175: 37 | C175: 6109.8 | D175: 5861.6 | E175: 4125.9 | F175: 2862.8 | G175: 2245.7 | I175: =IF('INGRESO DE DATOS'!$W$19=1,'Tablas Guyanas y Santa Elena'!C175,'Tablas Resto de Ecuador'!C175) -> 7188 | J175: =IF('INGRESO DE DATOS'!$W$19=1,'Tablas Guyanas y Santa Elena'!D175,'Tablas Resto de Ecuador'!D175) -> 6896 | K175: =IF('INGRESO DE DATOS'!$W$19=1,'Tablas Guyanas y Santa Elena'!E175,'Tablas Resto de Ecuador'!E175) -> 4854 | L175: =IF('INGRESO DE DATOS'!$W$19=1,'Tablas Guyanas y Santa Elena'!F175,'Tablas Resto de Ecuador'!F175) -> 3368 | M175: =IF('INGRESO DE DATOS'!$W$19=1,'Tablas Guyanas y Santa Elena'!G175,'Tablas Resto de Ecuador'!G175) -> 2642 | O175: 6109.8 | P175: 5861.6 | Q175: 4125.9 | R175: 2862.8 | S175: 2245.7
A176: 38 | C176: 6109.8 | D176: 5861.6 | E176: 4125.9 | F176: 2862.8 | G176: 2245.7 | I176: =IF('INGRESO DE DATOS'!$W$19=1,'Tablas Guyanas y Santa Elena'!C176,'Tablas Resto de Ecuador'!C176) -> 7188 | J176: =IF('INGRESO DE DATOS'!$W$19=1,'Tablas Guyanas y Santa Elena'!D176,'Tablas Resto de Ecuador'!D176) -> 6896 | K176: =IF('INGRESO DE DATOS'!$W$19=1,'Tablas Guyanas y Santa Elena'!E176,'Tablas Resto de Ecuador'!E176) -> 4854 | L176: =IF('INGRESO DE DATOS'!$W$19=1,'Tablas Guyanas y Santa Elena'!F176,'Tablas Resto de Ecuador'!F176) -> 3368 | M176: =IF('INGRESO DE DATOS'!$W$19=1,'Tablas Guyanas y Santa Elena'!G176,'Tablas Resto de Ecuador'!G176) -> 2642 | O176: 6109.8 | P176: 5861.6 | Q176: 4125.9 | R176: 2862.8 | S176: 2245.7
A177: 39 | C177: 6109.8 | D177: 5861.6 | E177: 4125.9 | F177: 2862.8 | G177: 2245.7 | I177: =IF('INGRESO DE DATOS'!$W$19=1,'Tablas Guyanas y Santa Elena'!C177,'Tablas Resto de Ecuador'!C177) -> 7188 | J177: =IF('INGRESO DE DATOS'!$W$19=1,'Tablas Guyanas y Santa Elena'!D177,'Tablas Resto de Ecuador'!D177) -> 6896 | K177: =IF('INGRESO DE DATOS'!$W$19=1,'Tablas Guyanas y Santa Elena'!E177,'Tablas Resto de Ecuador'!E177) -> 4854 | L177: =IF('INGRESO DE DATOS'!$W$19=1,'Tablas Guyanas y Santa Elena'!F177,'Tablas Resto de Ecuador'!F177) -> 3368 | M177: =IF('INGRESO DE DATOS'!$W$19=1,'Tablas Guyanas y Santa Elena'!G177,'Tablas Resto de Ecuador'!G177) -> 2642 | O177: 6109.8 | P177: 5861.6 | Q177: 4125.9 | R177: 2862.8 | S177: 2245.7
A178: 40 | C178: 6930.05 | D178: 6530.55 | E178: 4644.4 | F178: 3219.8 | G178: 2526.2 | I178: =IF('INGRESO DE DATOS'!$W$19=1,'Tablas Guyanas y Santa Elena'!C178,'Tablas Resto de Ecuador'!C178) -> 8153 | J178: =IF('INGRESO DE DATOS'!$W$19=1,'Tablas Guyanas y Santa Elena'!D178,'Tablas Resto de Ecuador'!D178) -> 7683 | K178: =IF('INGRESO DE DATOS'!$W$19=1,'Tablas Guyanas y Santa Elena'!E178,'Tablas Resto de Ecuador'!E178) -> 5464 | L178: =IF('INGRESO DE DATOS'!$W$19=1,'Tablas Guyanas y Santa Elena'!F178,'Tablas Resto de Ecuador'!F178) -> 3788 | M178: =IF('INGRESO DE DATOS'!$W$19=1,'Tablas Guyanas y Santa Elena'!G178,'Tablas Resto de Ecuador'!G178) -> 2972 | O178: 6930.05 | P178: 6530.55 | Q178: 4644.4 | R178: 3219.8 | S178: 2526.2
A179: 41 | C179: 6930.05 | D179: 6530.55 | E179: 4644.4 | F179: 3219.8 | G179: 2526.2 | I179: =IF('INGRESO DE DATOS'!$W$19=1,'Tablas Guyanas y Santa Elena'!C179,'Tablas Resto de Ecuador'!C179) -> 8153 | J179: =IF('INGRESO DE DATOS'!$W$19=1,'Tablas Guyanas y Santa Elena'!D179,'Tablas Resto de Ecuador'!D179) -> 7683 | K179: =IF('INGRESO DE DATOS'!$W$19=1,'Tablas Guyanas y Santa Elena'!E179,'Tablas Resto de Ecuador'!E179) -> 5464 | L179: =IF('INGRESO DE DATOS'!$W$19=1,'Tablas Guyanas y Santa Elena'!F179,'Tablas Resto de Ecuador'!F179) -> 3788 | M179: =IF('INGRESO DE DATOS'!$W$19=1,'Tablas Guyanas y Santa Elena'!G179,'Tablas Resto de Ecuador'!G179) -> 2972 | O179: 6930.05 | P179: 6530.55 | Q179: 4644.4 | R179: 3219.8 | S179: 2526.2
A180: 42 | C180: 6930.05 | D180: 6530.55 | E180: 4644.4 | F180: 3219.8 | G180: 2526.2 | I180: =IF('INGRESO DE DATOS'!$W$19=1,'Tablas Guyanas y Santa Elena'!C180,'Tablas Resto de Ecuador'!C180) -> 8153 | J180: =IF('INGRESO DE DATOS'!$W$19=1,'Tablas Guyanas y Santa Elena'!D180,'Tablas Resto de Ecuador'!D180) -> 7683 | K180: =IF('INGRESO DE DATOS'!$W$19=1,'Tablas Guyanas y Santa Elena'!E180,'Tablas Resto de Ecuador'!E180) -> 5464 | L180: =IF('INGRESO DE DATOS'!$W$19=1,'Tablas Guyanas y Santa Elena'!F180,'Tablas Resto de Ecuador'!F180) -> 3788 | M180: =IF('INGRESO DE DATOS'!$W$19=1,'Tablas Guyanas y Santa Elena'!G180,'Tablas Resto de Ecuador'!G180) -> 2972 | O180: 6930.05 | P180: 6530.55 | Q180: 4644.4 | R180: 3219.8 | S180: 2526.2
A181: 43 | C181: 6930.05 | D181: 6530.55 | E181: 4644.4 | F181: 3219.8 | G181: 2526.2 | I181: =IF('INGRESO DE DATOS'!$W$19=1,'Tablas Guyanas y Santa Elena'!C181,'Tablas Resto de Ecuador'!C181) -> 8153 | J181: =IF('INGRESO DE DATOS'!$W$19=1,'Tablas Guyanas y Santa Elena'!D181,'Tablas Resto de Ecuador'!D181) -> 7683 | K181: =IF('INGRESO DE DATOS'!$W$19=1,'Tablas Guyanas y Santa Elena'!E181,'Tablas Resto de Ecuador'!E181) -> 5464 | L181: =IF('INGRESO DE DATOS'!$W$19=1,'Tablas Guyanas y Santa Elena'!F181,'Tablas Resto de Ecuador'!F181) -> 3788 | M181: =IF('INGRESO DE DATOS'!$W$19=1,'Tablas Guyanas y Santa Elena'!G181,'Tablas Resto de Ecuador'!G181) -> 2972 | O181: 6930.05 | P181: 6530.55 | Q181: 4644.4 | R181: 3219.8 | S181: 2526.2
A182: 44 | C182: 6930.05 | D182: 6530.55 | E182: 4644.4 | F182: 3219.8 | G182: 2526.2 | I182: =IF('INGRESO DE DATOS'!$W$19=1,'Tablas Guyanas y Santa Elena'!C182,'Tablas Resto de Ecuador'!C182) -> 8153 | J182: =IF('INGRESO DE DATOS'!$W$19=1,'Tablas Guyanas y Santa Elena'!D182,'Tablas Resto de Ecuador'!D182) -> 7683 | K182: =IF('INGRESO DE DATOS'!$W$19=1,'Tablas Guyanas y Santa Elena'!E182,'Tablas Resto de Ecuador'!E182) -> 5464 | L182: =IF('INGRESO DE DATOS'!$W$19=1,'Tablas Guyanas y Santa Elena'!F182,'Tablas Resto de Ecuador'!F182) -> 3788 | M182: =IF('INGRESO DE DATOS'!$W$19=1,'Tablas Guyanas y Santa Elena'!G182,'Tablas Resto de Ecuador'!G182) -> 2972 | O182: 6930.05 | P182: 6530.55 | Q182: 4644.4 | R182: 3219.8 | S182: 2526.2
A183: 45 | C183: 7842.1 | D183: 7117.9 | E183: 5031.15 | F183: 3625.25 | G183: 2845.8 | I183: =IF('INGRESO DE DATOS'!$W$19=1,'Tablas Guyanas y Santa Elena'!C183,'Tablas Resto de Ecuador'!C183) -> 9226 | J183: =IF('INGRESO DE DATOS'!$W$19=1,'Tablas Guyanas y Santa Elena'!D183,'Tablas Resto de Ecuador'!D183) -> 8374 | K183: =IF('INGRESO DE DATOS'!$W$19=1,'Tablas Guyanas y Santa Elena'!E183,'Tablas Resto de Ecuador'!E183) -> 5919 | L183: =IF('INGRESO DE DATOS'!$W$19=1,'Tablas Guyanas y Santa Elena'!F183,'Tablas Resto de Ecuador'!F183) -> 4265 | M183: =IF('INGRESO DE DATOS'!$W$19=1,'Tablas Guyanas y Santa Elena'!G183,'Tablas Resto de Ecuador'!G183) -> 3348 | O183: 7842.1 | P183: 7117.9 | Q183: 5031.15 | R183: 3625.25 | S183: 2845.8
A184: 46 | C184: 7842.1 | D184: 7117.9 | E184: 5031.15 | F184: 3625.25 | G184: 2845.8 | I184: =IF('INGRESO DE DATOS'!$W$19=1,'Tablas Guyanas y Santa Elena'!C184,'Tablas Resto de Ecuador'!C184) -> 9226 | J184: =IF('INGRESO DE DATOS'!$W$19=1,'Tablas Guyanas y Santa Elena'!D184,'Tablas Resto de Ecuador'!D184) -> 8374 | K184: =IF('INGRESO DE DATOS'!$W$19=1,'Tablas Guyanas y Santa Elena'!E184,'Tablas Resto de Ecuador'!E184) -> 5919 | L184: =IF('INGRESO DE DATOS'!$W$19=1,'Tablas Guyanas y Santa Elena'!F184,'Tablas Resto de Ecuador'!F184) -> 4265 | M184: =IF('INGRESO DE DATOS'!$W$19=1,'Tablas Guyanas y Santa Elena'!G184,'Tablas Resto de Ecuador'!G184) -> 3348 | O184: 7842.1 | P184: 7117.9 | Q184: 5031.15 | R184: 3625.25 | S184: 2845.8
A185: 47 | C185: 7842.1 | D185: 7117.9 | E185: 5031.15 | F185: 3625.25 | G185: 2845.8 | I185: =IF('INGRESO DE DATOS'!$W$19=1,'Tablas Guyanas y Santa Elena'!C185,'Tablas Resto de Ecuador'!C185) -> 9226 | J185: =IF('INGRESO DE DATOS'!$W$19=1,'Tablas Guyanas y Santa Elena'!D185,'Tablas Resto de Ecuador'!D185) -> 8374 | K185: =IF('INGRESO DE DATOS'!$W$19=1,'Tablas Guyanas y Santa Elena'!E185,'Tablas Resto de Ecuador'!E185) -> 5919 | L185: =IF('INGRESO DE DATOS'!$W$19=1,'Tablas Guyanas y Santa Elena'!F185,'Tablas Resto de Ecuador'!F185) -> 4265 | M185: =IF('INGRESO DE DATOS'!$W$19=1,'Tablas Guyanas y Santa Elena'!G185,'Tablas Resto de Ecuador'!G185) -> 3348 | O185: 7842.1 | P185: 7117.9 | Q185: 5031.15 | R185: 3625.25 | S185: 2845.8
A186: 48 | C186: 7842.1 | D186: 7117.9 | E186: 5031.15 | F186: 3625.25 | G186: 2845.8 | I186: =IF('INGRESO DE DATOS'!$W$19=1,'Tablas Guyanas y Santa Elena'!C186,'Tablas Resto de Ecuador'!C186) -> 9226 | J186: =IF('INGRESO DE DATOS'!$W$19=1,'Tablas Guyanas y Santa Elena'!D186,'Tablas Resto de Ecuador'!D186) -> 8374 | K186: =IF('INGRESO DE DATOS'!$W$19=1,'Tablas Guyanas y Santa Elena'!E186,'Tablas Resto de Ecuador'!E186) -> 5919 | L186: =IF('INGRESO DE DATOS'!$W$19=1,'Tablas Guyanas y Santa Elena'!F186,'Tablas Resto de Ecuador'!F186) -> 4265 | M186: =IF('INGRESO DE DATOS'!$W$19=1,'Tablas Guyanas y Santa Elena'!G186,'Tablas Resto de Ecuador'!G186) -> 3348 | O186: 7842.1 | P186: 7117.9 | Q186: 5031.15 | R186: 3625.25 | S186: 2845.8
A187: 49 | C187: 7842.1 | D187: 7117.9 | E187: 5031.15 | F187: 3625.25 | G187: 2845.8 | I187: =IF('INGRESO DE DATOS'!$W$19=1,'Tablas Guyanas y Santa Elena'!C187,'Tablas Resto de Ecuador'!C187) -> 9226 | J187: =IF('INGRESO DE DATOS'!$W$19=1,'Tablas Guyanas y Santa Elena'!D187,'Tablas Resto de Ecuador'!D187) -> 8374 | K187: =IF('INGRESO DE DATOS'!$W$19=1,'Tablas Guyanas y Santa Elena'!E187,'Tablas Resto de Ecuador'!E187) -> 5919 | L187: =IF('INGRESO DE DATOS'!$W$19=1,'Tablas Guyanas y Santa Elena'!F187,'Tablas Resto de Ecuador'!F187) -> 4265 | M187: =IF('INGRESO DE DATOS'!$W$19=1,'Tablas Guyanas y Santa Elena'!G187,'Tablas Resto de Ecuador'!G187) -> 3348 | O187: 7842.1 | P187: 7117.9 | Q187: 5031.15 | R187: 3625.25 | S187: 2845.8
A188: 50 | C188: =O188*$X$2 -> 8873.15 | D188: =P188*$X$2 -> 7890.55 | E188: =Q188*$X$2 -> 5474 | F188: =R188*$X$2 -> 4085.1 | G188: 3204.5 | I188: =IF('INGRESO DE DATOS'!$W$19=1,'Tablas Guyanas y Santa Elena'!C188,'Tablas Resto de Ecuador'!C188) -> 10439 | J188: =IF('INGRESO DE DATOS'!$W$19=1,'Tablas Guyanas y Santa Elena'!D188,'Tablas Resto de Ecuador'!D188) -> 9283 | K188: =IF('INGRESO DE DATOS'!$W$19=1,'Tablas Guyanas y Santa Elena'!E188,'Tablas Resto de Ecuador'!E188) -> 6440 | L188: =IF('INGRESO DE DATOS'!$W$19=1,'Tablas Guyanas y Santa Elena'!F188,'Tablas Resto de Ecuador'!F188) -> 4806 | M188: =IF('INGRESO DE DATOS'!$W$19=1,'Tablas Guyanas y Santa Elena'!G188,'Tablas Resto de Ecuador'!G188) -> 3770 | O188: 8873.15 | P188: 7890.55 | Q188: 5474 | R188: 4085.1 | S188: 3204.5
A189: 51 | C189: 8873.15 | D189: 7890.55 | E189: 5474 | F189: 4085.1 | G189: 3204.5 | I189: =IF('INGRESO DE DATOS'!$W$19=1,'Tablas Guyanas y Santa Elena'!C189,'Tablas Resto de Ecuador'!C189) -> 10439 | J189: =IF('INGRESO DE DATOS'!$W$19=1,'Tablas Guyanas y Santa Elena'!D189,'Tablas Resto de Ecuador'!D189) -> 9283 | K189: =IF('INGRESO DE DATOS'!$W$19=1,'Tablas Guyanas y Santa Elena'!E189,'Tablas Resto de Ecuador'!E189) -> 6440 | L189: =IF('INGRESO DE DATOS'!$W$19=1,'Tablas Guyanas y Santa Elena'!F189,'Tablas Resto de Ecuador'!F189) -> 4806 | M189: =IF('INGRESO DE DATOS'!$W$19=1,'Tablas Guyanas y Santa Elena'!G189,'Tablas Resto de Ecuador'!G189) -> 3770 | O189: 8873.15 | P189: 7890.55 | Q189: 5474 | R189: 4085.1 | S189: 3204.5
A190: 52 | C190: 8873.15 | D190: 7890.55 | E190: 5474 | F190: 4085.1 | G190: 3204.5 | I190: =IF('INGRESO DE DATOS'!$W$19=1,'Tablas Guyanas y Santa Elena'!C190,'Tablas Resto de Ecuador'!C190) -> 10439 | J190: =IF('INGRESO DE DATOS'!$W$19=1,'Tablas Guyanas y Santa Elena'!D190,'Tablas Resto de Ecuador'!D190) -> 9283 | K190: =IF('INGRESO DE DATOS'!$W$19=1,'Tablas Guyanas y Santa Elena'!E190,'Tablas Resto de Ecuador'!E190) -> 6440 | L190: =IF('INGRESO DE DATOS'!$W$19=1,'Tablas Guyanas y Santa Elena'!F190,'Tablas Resto de Ecuador'!F190) -> 4806 | M190: =IF('INGRESO DE DATOS'!$W$19=1,'Tablas Guyanas y Santa Elena'!G190,'Tablas Resto de Ecuador'!G190) -> 3770 | O190: 8873.15 | P190: 7890.55 | Q190: 5474 | R190: 4085.1 | S190: 3204.5
A191: 53 | C191: 8873.15 | D191: 7890.55 | E191: 5474 | F191: 4085.1 | G191: 3204.5 | I191: =IF('INGRESO DE DATOS'!$W$19=1,'Tablas Guyanas y Santa Elena'!C191,'Tablas Resto de Ecuador'!C191) -> 10439 | J191: =IF('INGRESO DE DATOS'!$W$19=1,'Tablas Guyanas y Santa Elena'!D191,'Tablas Resto de Ecuador'!D191) -> 9283 | K191: =IF('INGRESO DE DATOS'!$W$19=1,'Tablas Guyanas y Santa Elena'!E191,'Tablas Resto de Ecuador'!E191) -> 6440 | L191: =IF('INGRESO DE DATOS'!$W$19=1,'Tablas Guyanas y Santa Elena'!F191,'Tablas Resto de Ecuador'!F191) -> 4806 | M191: =IF('INGRESO DE DATOS'!$W$19=1,'Tablas Guyanas y Santa Elena'!G191,'Tablas Resto de Ecuador'!G191) -> 3770 | O191: 8873.15 | P191: 7890.55 | Q191: 5474 | R191: 4085.1 | S191: 3204.5
A192: 54 | C192: 8873.15 | D192: 7890.55 | E192: 5474 | F192: 4085.1 | G192: 3204.5 | I192: =IF('INGRESO DE DATOS'!$W$19=1,'Tablas Guyanas y Santa Elena'!C192,'Tablas Resto de Ecuador'!C192) -> 10439 | J192: =IF('INGRESO DE DATOS'!$W$19=1,'Tablas Guyanas y Santa Elena'!D192,'Tablas Resto de Ecuador'!D192) -> 9283 | K192: =IF('INGRESO DE DATOS'!$W$19=1,'Tablas Guyanas y Santa Elena'!E192,'Tablas Resto de Ecuador'!E192) -> 6440 | L192: =IF('INGRESO DE DATOS'!$W$19=1,'Tablas Guyanas y Santa Elena'!F192,'Tablas Resto de Ecuador'!F192) -> 4806 | M192: =IF('INGRESO DE DATOS'!$W$19=1,'Tablas Guyanas y Santa Elena'!G192,'Tablas Resto de Ecuador'!G192) -> 3770 | O192: 8873.15 | P192: 7890.55 | Q192: 5474 | R192: 4085.1 | S192: 3204.5
A193: 55 | C193: 10009.6 | D193: 9602.45 | E193: 6629.15 | F193: 4593.4 | G193: 3606.55 | I193: =IF('INGRESO DE DATOS'!$W$19=1,'Tablas Guyanas y Santa Elena'!C193,'Tablas Resto de Ecuador'!C193) -> 11776 | J193: =IF('INGRESO DE DATOS'!$W$19=1,'Tablas Guyanas y Santa Elena'!D193,'Tablas Resto de Ecuador'!D193) -> 11297 | K193: =IF('INGRESO DE DATOS'!$W$19=1,'Tablas Guyanas y Santa Elena'!E193,'Tablas Resto de Ecuador'!E193) -> 7799 | L193: =IF('INGRESO DE DATOS'!$W$19=1,'Tablas Guyanas y Santa Elena'!F193,'Tablas Resto de Ecuador'!F193) -> 5404 | M193: =IF('INGRESO DE DATOS'!$W$19=1,'Tablas Guyanas y Santa Elena'!G193,'Tablas Resto de Ecuador'!G193) -> 4243 | O193: 10009.6 | P193: 9602.45 | Q193: 6629.15 | R193: 4593.4 | S193: 3606.55
A194: 56 | C194: 10009.6 | D194: 9602.45 | E194: 6629.15 | F194: 4593.4 | G194: 3606.55 | I194: =IF('INGRESO DE DATOS'!$W$19=1,'Tablas Guyanas y Santa Elena'!C194,'Tablas Resto de Ecuador'!C194) -> 11776 | J194: =IF('INGRESO DE DATOS'!$W$19=1,'Tablas Guyanas y Santa Elena'!D194,'Tablas Resto de Ecuador'!D194) -> 11297 | K194: =IF('INGRESO DE DATOS'!$W$19=1,'Tablas Guyanas y Santa Elena'!E194,'Tablas Resto de Ecuador'!E194) -> 7799 | L194: =IF('INGRESO DE DATOS'!$W$19=1,'Tablas Guyanas y Santa Elena'!F194,'Tablas Resto de Ecuador'!F194) -> 5404 | M194: =IF('INGRESO DE DATOS'!$W$19=1,'Tablas Guyanas y Santa Elena'!G194,'Tablas Resto de Ecuador'!G194) -> 4243 | O194: 10009.6 | P194: 9602.45 | Q194: 6629.15 | R194: 4593.4 | S194: 3606.55
A195: 57 | C195: 10009.6 | D195: 9602.45 | E195: 6629.15 | F195: 4593.4 | G195: 3606.55 | I195: =IF('INGRESO DE DATOS'!$W$19=1,'Tablas Guyanas y Santa Elena'!C195,'Tablas Resto de Ecuador'!C195) -> 11776 | J195: =IF('INGRESO DE DATOS'!$W$19=1,'Tablas Guyanas y Santa Elena'!D195,'Tablas Resto de Ecuador'!D195) -> 11297 | K195: =IF('INGRESO DE DATOS'!$W$19=1,'Tablas Guyanas y Santa Elena'!E195,'Tablas Resto de Ecuador'!E195) -> 7799 | L195: =IF('INGRESO DE DATOS'!$W$19=1,'Tablas Guyanas y Santa Elena'!F195,'Tablas Resto de Ecuador'!F195) -> 5404 | M195: =IF('INGRESO DE DATOS'!$W$19=1,'Tablas Guyanas y Santa Elena'!G195,'Tablas Resto de Ecuador'!G195) -> 4243 | O195: 10009.6 | P195: 9602.45 | Q195: 6629.15 | R195: 4593.4 | S195: 3606.55
A196: 58 | C196: 10009.6 | D196: 9602.45 | E196: 6629.15 | F196: 4593.4 | G196: 3606.55 | I196: =IF('INGRESO DE DATOS'!$W$19=1,'Tablas Guyanas y Santa Elena'!C196,'Tablas Resto de Ecuador'!C196) -> 11776 | J196: =IF('INGRESO DE DATOS'!$W$19=1,'Tablas Guyanas y Santa Elena'!D196,'Tablas Resto de Ecuador'!D196) -> 11297 | K196: =IF('INGRESO DE DATOS'!$W$19=1,'Tablas Guyanas y Santa Elena'!E196,'Tablas Resto de Ecuador'!E196) -> 7799 | L196: =IF('INGRESO DE DATOS'!$W$19=1,'Tablas Guyanas y Santa Elena'!F196,'Tablas Resto de Ecuador'!F196) -> 5404 | M196: =IF('INGRESO DE DATOS'!$W$19=1,'Tablas Guyanas y Santa Elena'!G196,'Tablas Resto de Ecuador'!G196) -> 4243 | O196: 10009.6 | P196: 9602.45 | Q196: 6629.15 | R196: 4593.4 | S196: 3606.55
A197: 59 | C197: 10009.6 | D197: 9602.45 | E197: 6629.15 | F197: 4593.4 | G197: 3606.55 | I197: =IF('INGRESO DE DATOS'!$W$19=1,'Tablas Guyanas y Santa Elena'!C197,'Tablas Resto de Ecuador'!C197) -> 11776 | J197: =IF('INGRESO DE DATOS'!$W$19=1,'Tablas Guyanas y Santa Elena'!D197,'Tablas Resto de Ecuador'!D197) -> 11297 | K197: =IF('INGRESO DE DATOS'!$W$19=1,'Tablas Guyanas y Santa Elena'!E197,'Tablas Resto de Ecuador'!E197) -> 7799 | L197: =IF('INGRESO DE DATOS'!$W$19=1,'Tablas Guyanas y Santa Elena'!F197,'Tablas Resto de Ecuador'!F197) -> 5404 | M197: =IF('INGRESO DE DATOS'!$W$19=1,'Tablas Guyanas y Santa Elena'!G197,'Tablas Resto de Ecuador'!G197) -> 4243 | O197: 10009.6 | P197: 9602.45 | Q197: 6629.15 | R197: 4593.4 | S197: 3606.55
A198: 60 | C198: 10766.1 | D198: 10330.05 | E198: 7122.15 | F198: 4935.95 | G198: 3873.45 | I198: =IF('INGRESO DE DATOS'!$W$19=1,'Tablas Guyanas y Santa Elena'!C198,'Tablas Resto de Ecuador'!C198) -> 12666 | J198: =IF('INGRESO DE DATOS'!$W$19=1,'Tablas Guyanas y Santa Elena'!D198,'Tablas Resto de Ecuador'!D198) -> 12153 | K198: =IF('INGRESO DE DATOS'!$W$19=1,'Tablas Guyanas y Santa Elena'!E198,'Tablas Resto de Ecuador'!E198) -> 8379 | L198: =IF('INGRESO DE DATOS'!$W$19=1,'Tablas Guyanas y Santa Elena'!F198,'Tablas Resto de Ecuador'!F198) -> 5807 | M198: =IF('INGRESO DE DATOS'!$W$19=1,'Tablas Guyanas y Santa Elena'!G198,'Tablas Resto de Ecuador'!G198) -> 4557 | O198: 10766.1 | P198: 10330.05 | Q198: 7122.15 | R198: 4935.95 | S198: 3873.45
A199: 61 | C199: 12085.3 | D199: 11596.55 | E199: 7988.3 | F199: 5538.6 | G199: 4344.35 | I199: =IF('INGRESO DE DATOS'!$W$19=1,'Tablas Guyanas y Santa Elena'!C199,'Tablas Resto de Ecuador'!C199) -> 14218 | J199: =IF('INGRESO DE DATOS'!$W$19=1,'Tablas Guyanas y Santa Elena'!D199,'Tablas Resto de Ecuador'!D199) -> 13643 | K199: =IF('INGRESO DE DATOS'!$W$19=1,'Tablas Guyanas y Santa Elena'!E199,'Tablas Resto de Ecuador'!E199) -> 9398 | L199: =IF('INGRESO DE DATOS'!$W$19=1,'Tablas Guyanas y Santa Elena'!F199,'Tablas Resto de Ecuador'!F199) -> 6516 | M199: =IF('INGRESO DE DATOS'!$W$19=1,'Tablas Guyanas y Santa Elena'!G199,'Tablas Resto de Ecuador'!G199) -> 5111 | O199: 12085.3 | P199: 11596.55 | Q199: 7988.3 | R199: 5538.6 | S199: 4344.35
A200: 62 | C200: 13514.15 | D200: 12968.45 | E200: 8928.4 | F200: 6187.15 | G200: 4855.2 | I200: =IF('INGRESO DE DATOS'!$W$19=1,'Tablas Guyanas y Santa Elena'!C200,'Tablas Resto de Ecuador'!C200) -> 15899 | J200: =IF('INGRESO DE DATOS'!$W$19=1,'Tablas Guyanas y Santa Elena'!D200,'Tablas Resto de Ecuador'!D200) -> 15257 | K200: =IF('INGRESO DE DATOS'!$W$19=1,'Tablas Guyanas y Santa Elena'!E200,'Tablas Resto de Ecuador'!E200) -> 10504 | L200: =IF('INGRESO DE DATOS'!$W$19=1,'Tablas Guyanas y Santa Elena'!F200,'Tablas Resto de Ecuador'!F200) -> 7279 | M200: =IF('INGRESO DE DATOS'!$W$19=1,'Tablas Guyanas y Santa Elena'!G200,'Tablas Resto de Ecuador'!G200) -> 5712 | O200: 13514.15 | P200: 12968.45 | Q200: 8928.4 | R200: 6187.15 | S200: 4855.2
A201: 63 | C201: 15048.4 | D201: 14440.65 | E201: 9945.85 | F201: 6894.35 | G201: 5410.25 | I201: =IF('INGRESO DE DATOS'!$W$19=1,'Tablas Guyanas y Santa Elena'!C201,'Tablas Resto de Ecuador'!C201) -> 17704 | J201: =IF('INGRESO DE DATOS'!$W$19=1,'Tablas Guyanas y Santa Elena'!D201,'Tablas Resto de Ecuador'!D201) -> 16989 | K201: =IF('INGRESO DE DATOS'!$W$19=1,'Tablas Guyanas y Santa Elena'!E201,'Tablas Resto de Ecuador'!E201) -> 11701 | L201: =IF('INGRESO DE DATOS'!$W$19=1,'Tablas Guyanas y Santa Elena'!F201,'Tablas Resto de Ecuador'!F201) -> 8111 | M201: =IF('INGRESO DE DATOS'!$W$19=1,'Tablas Guyanas y Santa Elena'!G201,'Tablas Resto de Ecuador'!G201) -> 6365 | O201: 15048.4 | P201: 14440.65 | Q201: 9945.85 | R201: 6894.35 | S201: 5410.25
A202: 64 | C202: 16694.85 | D202: 16019.1 | E202: 11037.25 | F202: 7650 | G202: 5999.3 | I202: =IF('INGRESO DE DATOS'!$W$19=1,'Tablas Guyanas y Santa Elena'!C202,'Tablas Resto de Ecuador'!C202) -> 19641 | J202: =IF('INGRESO DE DATOS'!$W$19=1,'Tablas Guyanas y Santa Elena'!D202,'Tablas Resto de Ecuador'!D202) -> 18846 | K202: =IF('INGRESO DE DATOS'!$W$19=1,'Tablas Guyanas y Santa Elena'!E202,'Tablas Resto de Ecuador'!E202) -> 12985 | L202: =IF('INGRESO DE DATOS'!$W$19=1,'Tablas Guyanas y Santa Elena'!F202,'Tablas Resto de Ecuador'!F202) -> 9000 | M202: =IF('INGRESO DE DATOS'!$W$19=1,'Tablas Guyanas y Santa Elena'!G202,'Tablas Resto de Ecuador'!G202) -> 7058 | O202: 16694.85 | P202: 16019.1 | Q202: 11037.25 | R202: 7650 | S202: 5999.3
A203: 65 | C203: 18450.95 | D203: 17702.1 | E203: 12205.15 | F203: 8458.35 | G203: 6635.95 | I203: =IF('INGRESO DE DATOS'!$W$19=1,'Tablas Guyanas y Santa Elena'!C203,'Tablas Resto de Ecuador'!C203) -> 21707 | J203: =IF('INGRESO DE DATOS'!$W$19=1,'Tablas Guyanas y Santa Elena'!D203,'Tablas Resto de Ecuador'!D203) -> 20826 | K203: =IF('INGRESO DE DATOS'!$W$19=1,'Tablas Guyanas y Santa Elena'!E203,'Tablas Resto de Ecuador'!E203) -> 14359 | L203: =IF('INGRESO DE DATOS'!$W$19=1,'Tablas Guyanas y Santa Elena'!F203,'Tablas Resto de Ecuador'!F203) -> 9951 | M203: =IF('INGRESO DE DATOS'!$W$19=1,'Tablas Guyanas y Santa Elena'!G203,'Tablas Resto de Ecuador'!G203) -> 7807 | O203: 18450.95 | P203: 17702.1 | Q203: 12205.15 | R203: 8458.35 | S203: 6635.95
A204: 66 | C204: 20312.45 | D204: 19389.35 | E204: 13450.4 | F204: 9321.95 | G204: 7315.1 | I204: =IF('INGRESO DE DATOS'!$W$19=1,'Tablas Guyanas y Santa Elena'!C204,'Tablas Resto de Ecuador'!C204) -> 23897 | J204: =IF('INGRESO DE DATOS'!$W$19=1,'Tablas Guyanas y Santa Elena'!D204,'Tablas Resto de Ecuador'!D204) -> 22811 | K204: =IF('INGRESO DE DATOS'!$W$19=1,'Tablas Guyanas y Santa Elena'!E204,'Tablas Resto de Ecuador'!E204) -> 15824 | L204: =IF('INGRESO DE DATOS'!$W$19=1,'Tablas Guyanas y Santa Elena'!F204,'Tablas Resto de Ecuador'!F204) -> 10967 | M204: =IF('INGRESO DE DATOS'!$W$19=1,'Tablas Guyanas y Santa Elena'!G204,'Tablas Resto de Ecuador'!G204) -> 8606 | O204: 20312.45 | P204: 19389.35 | Q204: 13450.4 | R204: 9321.95 | S204: 7315.1
A205: 67 | C205: 22283.6 | D205: 21036.65 | E205: 14768.75 | F205: 10235.7 | G205: 8029.95 | I205: =IF('INGRESO DE DATOS'!$W$19=1,'Tablas Guyanas y Santa Elena'!C205,'Tablas Resto de Ecuador'!C205) -> 26216 | J205: =IF('INGRESO DE DATOS'!$W$19=1,'Tablas Guyanas y Santa Elena'!D205,'Tablas Resto de Ecuador'!D205) -> 24749 | K205: =IF('INGRESO DE DATOS'!$W$19=1,'Tablas Guyanas y Santa Elena'!E205,'Tablas Resto de Ecuador'!E205) -> 17375 | L205: =IF('INGRESO DE DATOS'!$W$19=1,'Tablas Guyanas y Santa Elena'!F205,'Tablas Resto de Ecuador'!F205) -> 12042 | M205: =IF('INGRESO DE DATOS'!$W$19=1,'Tablas Guyanas y Santa Elena'!G205,'Tablas Resto de Ecuador'!G205) -> 9447 | O205: 22283.6 | P205: 21036.65 | Q205: 14768.75 | R205: 10235.7 | S205: 8029.95
... 93 more rows

Sheet Tablas Guyanas y Santa Elena (hidden)
A2: BUPA GLOBAL ELITE
A3: TARIFAS ANUALES
A5: EDAD | C5: 250 | D5: 2000 | E5: 3500 | F5: 5000 | G5: 10000
A6: 18 | C6: 12970 | D6: 12091 | E6: 8083 | F6: 7878 | G6: 6350
A7: 19 | C7: 12970 | D7: 12091 | E7: 8083 | F7: 7878 | G7: 6350
A8: 20 | C8: 12970 | D8: 12091 | E8: 8083 | F8: 7878 | G8: 6350
A9: 21 | C9: 12970 | D9: 12091 | E9: 8083 | F9: 7878 | G9: 6350
A10: 22 | C10: 12970 | D10: 12091 | E10: 8083 | F10: 7878 | G10: 6350
A11: 23 | C11: 12970 | D11: 12091 | E11: 8083 | F11: 7878 | G11: 6350
A12: 24 | C12: 12970 | D12: 12091 | E12: 8083 | F12: 7878 | G12: 6350
A13: 25 | C13: 15180 | D13: 12354 | E13: 8879 | F13: 9072 | G13: 6742
A14: 26 | C14: 15180 | D14: 12354 | E14: 8879 | F14: 9072 | G14: 6742
A15: 27 | C15: 15180 | D15: 12354 | E15: 8879 | F15: 9072 | G15: 6742
A16: 28 | C16: 15180 | D16: 12354 | E16: 8879 | F16: 9072 | G16: 6742
A17: 29 | C17: 15180 | D17: 12354 | E17: 8879 | F17: 9072 | G17: 6742
A18: 30 | C18: 16878 | D18: 14102 | E18: 10408 | F18: 8848 | G18: 7441
A19: 31 | C19: 16878 | D19: 14102 | E19: 10408 | F19: 8848 | G19: 7441
A20: 32 | C20: 16878 | D20: 14102 | E20: 10408 | F20: 8848 | G20: 7441
A21: 33 | C21: 16878 | D21: 14102 | E21: 10408 | F21: 8848 | G21: 7441
A22: 34 | C22: 16878 | D22: 14102 | E22: 10408 | F22: 8848 | G22: 7441
A23: 35 | C23: 18849 | D23: 15797 | E23: 13116 | F23: 11373 | G23: 8261
A24: 36 | C24: 18849 | D24: 15797 | E24: 13116 | F24: 11373 | G24: 8261
A25: 37 | C25: 18849 | D25: 15797 | E25: 13116 | F25: 11373 | G25: 8261
A26: 38 | C26: 18849 | D26: 15797 | E26: 13116 | F26: 11373 | G26: 8261
A27: 39 | C27: 18849 | D27: 15797 | E27: 13116 | F27: 11373 | G27: 8261
A28: 40 | C28: 21110 | D28: 17772 | E28: 14333 | F28: 12684 | G28: 9211
A29: 41 | C29: 21110 | D29: 17772 | E29: 14333 | F29: 12684 | G29: 9211
A30: 42 | C30: 21110 | D30: 17772 | E30: 14333 | F30: 12684 | G30: 9211
A31: 43 | C31: 21110 | D31: 17772 | E31: 14333 | F31: 12684 | G31: 9211
A32: 44 | C32: 21110 | D32: 17772 | E32: 14333 | F32: 12684 | G32: 9211
A33: 45 | C33: 23517 | D33: 18855 | E33: 16095 | F33: 13660 | G33: 10276
A34: 46 | C34: 23517 | D34: 18855 | E34: 16095 | F34: 13660 | G34: 10276
A35: 47 | C35: 23517 | D35: 18855 | E35: 16095 | F35: 13660 | G35: 10276
A36: 48 | C36: 23517 | D36: 18855 | E36: 16095 | F36: 13660 | G36: 10276
A37: 49 | C37: 23517 | D37: 18855 | E37: 16095 | F37: 13660 | G37: 10276
A38: 50 | C38: 25394 | D38: 20538 | E38: 16599 | F38: 15096 | G38: 11252
A39: 51 | C39: 25394 | D39: 20538 | E39: 16599 | F39: 15096 | G39: 11252
A40: 52 | C40: 25394 | D40: 20538 | E40: 16599 | F40: 15096 | G40: 11252
A41: 53 | C41: 25394 | D41: 20538 | E41: 16599 | F41: 15096 | G41: 11252
A42: 54 | C42: 25394 | D42: 20538 | E42: 16599 | F42: 15096 | G42: 11252
A43: 55 | C43: 28791 | D43: 25245 | E43: 20239 | F43: 17473 | G43: 12818
A44: 56 | C44: 28791 | D44: 25245 | E44: 20239 | F44: 17473 | G44: 12818
A45: 57 | C45: 28791 | D45: 25245 | E45: 20239 | F45: 17473 | G45: 12818
A46: 58 | C46: 28791 | D46: 25245 | E46: 20239 | F46: 17473 | G46: 12818
A47: 59 | C47: 28791 | D47: 25245 | E47: 20239 | F47: 17473 | G47: 12818
A48: 60 | C48: 31658 | D48: 27749 | E48: 21774 | F48: 18878 | G48: 13710
A49: 61 | C49: 35281 | D49: 29440 | E49: 24245 | F49: 21026 | G49: 15266
A50: 62 | C50: 36642 | D50: 30427 | E50: 26127 | F50: 23352 | G50: 16955
A51: 63 | C51: 38149 | D51: 31682 | E51: 27577 | F51: 24507 | G51: 18780
A52: 64 | C52: 40129 | D52: 33472 | E52: 29415 | F52: 26075 | G52: 20293
A53: 65 | C53: 42828 | D53: 36061 | E53: 31792 | F53: 28296 | G53: 22246
A54: 66 | C54: 46469 | D54: 39700 | E54: 34886 | F54: 31369 | G54: 24999
A55: 67 | C55: 50887 | D55: 44211 | E55: 38594 | F55: 35142 | G55: 27384
A56: 68 | C56: 55749 | D56: 49220 | E56: 42651 | F56: 39315 | G56: 29869
A57: 69 | C57: 60722 | D57: 54354 | E57: 46797 | F57: 43588 | G57: 32484
A58: 70 | C58: 65473 | D58: 59239 | E58: 50767 | F58: 47661 | G58: 35227
A59: 71 | C59: 70002 | D59: 63874 | E59: 54562 | F59: 51533 | G59: 38108
A60: 72 | C60: 74530 | D60: 68510 | E60: 58357 | F60: 55406 | G60: 41115
A61: 73 | C61: 79059 | D61: 73145 | E61: 62152 | F61: 59279 | G61: 44261
A62: 74 | C62: 83588 | D62: 77781 | E62: 65947 | F62: 63152 | G62: 47535
A63: 75 | C63: 88042 | D63: 82341 | E63: 69667 | F63: 66950 | G63: 50938
A64: 76 | C64: 88042 | D64: 82341 | E64: 69667 | F64: 66950 | G64: 50938
A65: 77 | C65: 88042 | D65: 82341 | E65: 69667 | F65: 66950 | G65: 50938
A66: 78 | C66: 88042 | D66: 82341 | E66: 69667 | F66: 66950 | G66: 50938
A67: 79 | C67: 88042 | D67: 82341 | E67: 69667 | F67: 66950 | G67: 50938
A68: 80 | C68: 88042 | D68: 82341 | E68: 69667 | F68: 66950 | G68: 50938
A69: 81 | C69: 88042 | D69: 82341 | E69: 69667 | F69: 66950 | G69: 50938
A70: 82 | C70: 88042 | D70: 82341 | E70: 69667 | F70: 66950 | G70: 50938
A71: 83 | C71: 88042 | D71: 82341 | E71: 69667 | F71: 66950 | G71: 50938
A72: 84 | B72: o más | C72: 88042 | D72: 82341 | E72: 69667 | F72: 66950 | G72: 50938
A73: 1 | B73: Hijo | C73: 3214 | D73: 1913 | E73: 1387 | F73: 1381 | G73: 1616
A74: 2 | B74: Hijos | C74: 5819 | D74: 3360 | E74: 2468 | F74: 2289 | G74: 2814
A75: 3 | B75: Hijos o más | C75: 8283 | D75: 4756 | E75: 3510 | F75: 3257 | G75: 3916
A77: BUPA GLOBAL PREMIER
A78: TARIFAS ANUALES
A80: EDAD | C80: 250 | D80: 2000 | E80: 3500 | F80: 5000 | G80: 10000
A81: 18 | C81: 8944 | D81: 6687 | E81: 4782 | F81: 3915 | G81: 3265
A82: 19 | C82: 8944 | D82: 6687 | E82: 4782 | F82: 3915 | G82: 3265
A83: 20 | C83: 8944 | D83: 6687 | E83: 4782 | F83: 3915 | G83: 3265
A84: 21 | C84: 8944 | D84: 6687 | E84: 4782 | F84: 3915 | G84: 3265
A85: 22 | C85: 8944 | D85: 6687 | E85: 4782 | F85: 3915 | G85: 3265
A86: 23 | C86: 8944 | D86: 6687 | E86: 4782 | F86: 3915 | G86: 3265
A87: 24 | C87: 8944 | D87: 6687 | E87: 4782 | F87: 3915 | G87: 3265
A88: 25 | C88: 8992 | D88: 7364 | E88: 4870 | F88: 3906 | G88: 3451
A89: 26 | C89: 8992 | D89: 7364 | E89: 4870 | F89: 3906 | G89: 3451
A90: 27 | C90: 8992 | D90: 7364 | E90: 4870 | F90: 3906 | G90: 3451
A91: 28 | C91: 8992 | D91: 7364 | E91: 4870 | F91: 3906 | G91: 3451
A92: 29 | C92: 8992 | D92: 7364 | E92: 4870 | F92: 3906 | G92: 3451
A93: 30 | C93: 10708 | D93: 8570 | E93: 6367 | F93: 4827 | G93: 3785
A94: 31 | C94: 10708 | D94: 8570 | E94: 6367 | F94: 4827 | G94: 3785
A95: 32 | C95: 10708 | D95: 8570 | E95: 6367 | F95: 4827 | G95: 3785
A96: 33 | C96: 10708 | D96: 8570 | E96: 6367 | F96: 4827 | G96: 3785
A97: 34 | C97: 10708 | D97: 8570 | E97: 6367 | F97: 4827 | G97: 3785
A98: 35 | C98: 11950 | D98: 10353 | E98: 7656 | F98: 5337 | G98: 4185
A99: 36 | C99: 11950 | D99: 10353 | E99: 7656 | F99: 5337 | G99: 4185
A100: 37 | C100: 11950 | D100: 10353 | E100: 7656 | F100: 5337 | G100: 4185
A101: 38 | C101: 11950 | D101: 10353 | E101: 7656 | F101: 5337 | G101: 4185
A102: 39 | C102: 11950 | D102: 10353 | E102: 7656 | F102: 5337 | G102: 4185
A103: 40 | C103: 13388 | D103: 12148 | E103: 8512 | F103: 5929 | G103: 4652
A104: 41 | C104: 13388 | D104: 12148 | E104: 8512 | F104: 5929 | G104: 4652
A105: 42 | C105: 13388 | D105: 12148 | E105: 8512 | F105: 5929 | G105: 4652
A106: 43 | C106: 13388 | D106: 12148 | E106: 8512 | F106: 5929 | G106: 4652
A107: 44 | C107: 13388 | D107: 12148 | E107: 8512 | F107: 5929 | G107: 4652
A108: 45 | C108: 14982 | D108: 12216 | E108: 9383 | F108: 6598 | G108: 5176
A109: 46 | C109: 14982 | D109: 12216 | E109: 9383 | F109: 6598 | G109: 5176
A110: 47 | C110: 14982 | D110: 12216 | E110: 9383 | F110: 6598 | G110: 5176
A111: 48 | C111: 14982 | D111: 12216 | E111: 9383 | F111: 6598 | G111: 5176
A112: 49 | C112: 14982 | D112: 12216 | E112: 9383 | F112: 6598 | G112: 5176
A113: 50 | C113: 16778 | D113: 12903 | E113: 10137 | F113: 7362 | G113: 5775
A114: 51 | C114: 16778 | D114: 12903 | E114: 10137 | F114: 7362 | G114: 5775
A115: 52 | C115: 16778 | D115: 12903 | E115: 10137 | F115: 7362 | G115: 5775
A116: 53 | C116: 16778 | D116: 12903 | E116: 10137 | F116: 7362 | G116: 5775
A117: 54 | C117: 16778 | D117: 12903 | E117: 10137 | F117: 7362 | G117: 5775
A118: 55 | C118: 18763 | D118: 15059 | E118: 11783 | F118: 8206 | G118: 6441
A119: 56 | C119: 18763 | D119: 15059 | E119: 11783 | F119: 8206 | G119: 6441
A120: 57 | C120: 18763 | D120: 15059 | E120: 11783 | F120: 8206 | G120: 6441
A121: 58 | C121: 18763 | D121: 15059 | E121: 11783 | F121: 8206 | G121: 6441
A122: 59 | C122: 18763 | D122: 15059 | E122: 11783 | F122: 8206 | G122: 6441
A123: 60 | C123: 20074 | D123: 18222 | E123: 12599 | F123: 8776 | G123: 6884
A124: 61 | C124: 22371 | D124: 20303 | E124: 14021 | F124: 9768 | G124: 7661
A125: 62 | C125: 24856 | D125: 21787 | E125: 15570 | F125: 10843 | G125: 8506
A126: 63 | C126: 27525 | D126: 22970 | E126: 17247 | F126: 12010 | G126: 9422
A127: 64 | C127: 29076 | D127: 24374 | E127: 19042 | F127: 13259 | G127: 10404
A128: 65 | C128: 30779 | D128: 26108 | E128: 20484 | F128: 14600 | G128: 11456
A129: 66 | C129: 32966 | D129: 28274 | E129: 22257 | F129: 16025 | G129: 12575
A130: 67 | C130: 35546 | D130: 30801 | E130: 24358 | F130: 17536 | G130: 13756
A131: 68 | C131: 38349 | D131: 33534 | E131: 26647 | F131: 19135 | G131: 15012
A132: 69 | C132: 41209 | D132: 36318 | E132: 28982 | F132: 20816 | G132: 16331
A133: 70 | C133: 43957 | D133: 38999 | E133: 31224 | F133: 22588 | G133: 17719
A134: 71 | C134: 46593 | D134: 41578 | E134: 33372 | F134: 24445 | G134: 19178
A135: 72 | C135: 49228 | D135: 44156 | E135: 35520 | F135: 26391 | G135: 20705
A136: 73 | C136: 51864 | D136: 46734 | E136: 37668 | F136: 28421 | G136: 22297
A137: 74 | C137: 54499 | D137: 49312 | E137: 39816 | F137: 30537 | G137: 23958
A138: 75 | C138: 57060 | D138: 51815 | E138: 41889 | F138: 32740 | G138: 25244
A139: 76 | C139: 57060 | D139: 51815 | E139: 41889 | F139: 32740 | G139: 25244
A140: 77 | C140: 57060 | D140: 51815 | E140: 41889 | F140: 32740 | G140: 25244
A141: 78 | C141: 57060 | D141: 51815 | E141: 41889 | F141: 32740 | G141: 25244
A142: 79 | C142: 57060 | D142: 51815 | E142: 41889 | F142: 32740 | G142: 25244
A143: 80 | C143: 57060 | D143: 51815 | E143: 41889 | F143: 32740 | G143: 25244
A144: 81 | C144: 57060 | D144: 51815 | E144: 41889 | F144: 32740 | G144: 25244
A145: 82 | C145: 57060 | D145: 51815 | E145: 41889 | F145: 32740 | G145: 25244
A146: 83 | C146: 57060 | D146: 51815 | E146: 41889 | F146: 32740 | G146: 25244
A147: 84 | B147: o más | C147: 57060 | D147: 51815 | E147: 41889 | F147: 32740 | G147: 25244
A148: 1 | B148: Hijo | C148: 865 | D148: 801 | E148: 801 | F148: 649 | G148: 586
A149: 2 | B149: Hijos | C149: 1701 | D149: 1652 | E149: 1541 | F149: 1247 | G149: 1118
A150: 3 | B150: Hijos o más | C150: 2514 | D150: 2440 | E150: 2207 | F150: 1811 | G150: 1616
A152: BUPA GLOBAL SELECT
A153: TARIFAS ANUALES
A155: EDAD | C155: 250 | D155: 2000 | E155: 5000 | F155: 10000 | G155: 20000
A156: 18 | C156: 5652 | D156: 4097 | E156: 3736 | F156: 2764 | G156: 2172
A157: 19 | C157: 5652 | D157: 4097 | E157: 3736 | F157: 2764 | G157: 2172
A158: 20 | C158: 5652 | D158: 4097 | E158: 3736 | F158: 2764 | G158: 2172
A159: 21 | C159: 5652 | D159: 4097 | E159: 3736 | F159: 2764 | G159: 2172
A160: 22 | C160: 5652 | D160: 4097 | E160: 3736 | F160: 2764 | G160: 2172
A161: 23 | C161: 5652 | D161: 4097 | E161: 3736 | F161: 2764 | G161: 2172
A162: 24 | C162: 5652 | D162: 4097 | E162: 3736 | F162: 2764 | G162: 2172
A163: 25 | C163: 6099 | D163: 5288 | E163: 3774 | F163: 2949 | G163: 2314
A164: 26 | C164: 6099 | D164: 5288 | E164: 3774 | F164: 2949 | G164: 2314
A165: 27 | C165: 6099 | D165: 5288 | E165: 3774 | F165: 2949 | G165: 2314
A166: 28 | C166: 6099 | D166: 5288 | E166: 3774 | F166: 2949 | G166: 2314
A167: 29 | C167: 6099 | D167: 5288 | E167: 3774 | F167: 2949 | G167: 2314
A168: 30 | C168: 6880 | D168: 6601 | E168: 4491 | F168: 3280 | G168: 2575
A169: 31 | C169: 6880 | D169: 6601 | E169: 4491 | F169: 3280 | G169: 2575
A170: 32 | C170: 6880 | D170: 6601 | E170: 4491 | F170: 3280 | G170: 2575
A171: 33 | C171: 6880 | D171: 6601 | E171: 4491 | F171: 3280 | G171: 2575
A172: 34 | C172: 6880 | D172: 6601 | E172: 4491 | F172: 3280 | G172: 2575
A173: 35 | C173: 7787 | D173: 7384 | E173: 5130 | F173: 3674 | G173: 2882
A174: 36 | C174: 7787 | D174: 7384 | E174: 5130 | F174: 3674 | G174: 2882
A175: 37 | C175: 7787 | D175: 7384 | E175: 5130 | F175: 3674 | G175: 2882
A176: 38 | C176: 7787 | D176: 7384 | E176: 5130 | F176: 3674 | G176: 2882
A177: 39 | C177: 7787 | D177: 7384 | E177: 5130 | F177: 3674 | G177: 2882
A178: 40 | C178: 8832 | D178: 7683 | E178: 5491 | F178: 4134 | G178: 3243
A179: 41 | C179: 8832 | D179: 7683 | E179: 5491 | F179: 4134 | G179: 3243
A180: 42 | C180: 8832 | D180: 7683 | E180: 5491 | F180: 4134 | G180: 3243
A181: 43 | C181: 8832 | D181: 7683 | E181: 5491 | F181: 4134 | G181: 3243
A182: 44 | C182: 8832 | D182: 7683 | E182: 5491 | F182: 4134 | G182: 3243
A183: 45 | C183: 9995 | D183: 8374 | E183: 5919 | F183: 4652 | G183: 3652
A184: 46 | C184: 9995 | D184: 8374 | E184: 5919 | F184: 4652 | G184: 3652
A185: 47 | C185: 9995 | D185: 8374 | E185: 5919 | F185: 4652 | G185: 3652
A186: 48 | C186: 9995 | D186: 8374 | E186: 5919 | F186: 4652 | G186: 3652
A187: 49 | C187: 9995 | D187: 8374 | E187: 5919 | F187: 4652 | G187: 3652
A188: 50 | C188: 11310 | D188: 9283 | E188: 6440 | F188: 5107 | G188: 4113
A189: 51 | C189: 11310 | D189: 9283 | E189: 6440 | F189: 5107 | G189: 4113
A190: 52 | C190: 11310 | D190: 9283 | E190: 6440 | F190: 5107 | G190: 4113
A191: 53 | C191: 11310 | D191: 9283 | E191: 6440 | F191: 5107 | G191: 4113
A192: 54 | C192: 11310 | D192: 9283 | E192: 6440 | F192: 5107 | G192: 4113
A193: 55 | C193: 12757 | D193: 12137 | E193: 8477 | F193: 5895 | G193: 4628
A194: 56 | C194: 12757 | D194: 12137 | E194: 8477 | F194: 5895 | G194: 4628
A195: 57 | C195: 12757 | D195: 12137 | E195: 8477 | F195: 5895 | G195: 4628
A196: 58 | C196: 12757 | D196: 12137 | E196: 8477 | F196: 5895 | G196: 4628
A197: 59 | C197: 12757 | D197: 12137 | E197: 8477 | F197: 5895 | G197: 4628
A198: 60 | C198: 13721 | D198: 13165 | E198: 9107 | F198: 6335 | G198: 4971
A199: 61 | C199: 15402 | D199: 14779 | E199: 10216 | F199: 7106 | G199: 5574
A200: 62 | C200: 17224 | D200: 16528 | E200: 11416 | F200: 7940 | G200: 6232
A201: 63 | C201: 19179 | D201: 18326 | E201: 12718 | F201: 8847 | G201: 6944
A202: 64 | C202: 21278 | D202: 19622 | E202: 14115 | F202: 9819 | G202: 7700
A203: 65 | C203: 23514 | D203: 21096 | E203: 15607 | F203: 10856 | G203: 8517
A204: 66 | C204: 25887 | D204: 22811 | E204: 17201 | F204: 11963 | G204: 9387
A205: 67 | C205: 28399 | D205: 24749 | E205: 18885 | F205: 13135 | G205: 10306
A206: 68 | C206: 31049 | D206: 26815 | E206: 20670 | F206: 14378 | G206: 11282
... 92 more rows

Sheet Tablas Resto de Ecuador (hidden)
A2: BUPA GLOBAL ELITE
A3: TARIFAS ANUALES
A5: EDAD | C5: 250 | D5: 2000 | E5: 3500 | F5: 5000 | G5: 10000
A6: 18 | C6: 12970 | D6: 11521 | E6: 8083 | F6: 7878 | G6: 5838
A7: 19 | C7: 12970 | D7: 11521 | E7: 8083 | F7: 7878 | G7: 5838
A8: 20 | C8: 12970 | D8: 11521 | E8: 8083 | F8: 7878 | G8: 5838
A9: 21 | C9: 12970 | D9: 11521 | E9: 8083 | F9: 7878 | G9: 5838
A10: 22 | C10: 12970 | D10: 11521 | E10: 8083 | F10: 7878 | G10: 5838
A11: 23 | C11: 12970 | D11: 11521 | E11: 8083 | F11: 7878 | G11: 5838
A12: 24 | C12: 12970 | D12: 11521 | E12: 8083 | F12: 7878 | G12: 5838
A13: 25 | C13: 14048 | D13: 12312 | E13: 8879 | F13: 8565 | G13: 6198
A14: 26 | C14: 14048 | D14: 12312 | E14: 8879 | F14: 8565 | G14: 6198
A15: 27 | C15: 14048 | D15: 12312 | E15: 8879 | F15: 8565 | G15: 6198
A16: 28 | C16: 14048 | D16: 12312 | E16: 8879 | F16: 8565 | G16: 6198
A17: 29 | C17: 14048 | D17: 12312 | E17: 8879 | F17: 8565 | G17: 6198
A18: 30 | C18: 15618 | D18: 13693 | E18: 10408 | F18: 8848 | G18: 6841
A19: 31 | C19: 15618 | D19: 13693 | E19: 10408 | F19: 8848 | G19: 6841
A20: 32 | C20: 15618 | D20: 13693 | E20: 10408 | F20: 8848 | G20: 6841
A21: 33 | C21: 15618 | D21: 13693 | E21: 10408 | F21: 8848 | G21: 6841
A22: 34 | C22: 15618 | D22: 13693 | E22: 10408 | F22: 8848 | G22: 6841
A23: 35 | C23: 17442 | D23: 15284 | E23: 12099 | F23: 10492 | G23: 7594
A24: 36 | C24: 17442 | D24: 15284 | E24: 12099 | F24: 10492 | G24: 7594
A25: 37 | C25: 17442 | D25: 15284 | E25: 12099 | F25: 10492 | G25: 7594
A26: 38 | C26: 17442 | D26: 15284 | E26: 12099 | F26: 10492 | G26: 7594
A27: 39 | C27: 17442 | D27: 15284 | E27: 12099 | F27: 10492 | G27: 7594
A28: 40 | C28: 19534 | D28: 17125 | E28: 13493 | F28: 11702 | G28: 8467
A29: 41 | C29: 19534 | D29: 17125 | E29: 13493 | F29: 11702 | G29: 8467
A30: 42 | C30: 19534 | D30: 17125 | E30: 13493 | F30: 11702 | G30: 8467
A31: 43 | C31: 19534 | D31: 17125 | E31: 13493 | F31: 11702 | G31: 8467
A32: 44 | C32: 19534 | D32: 17125 | E32: 13493 | F32: 11702 | G32: 8467
A33: 45 | C33: 21862 | D33: 18855 | E33: 15055 | F33: 13055 | G33: 9448
A34: 46 | C34: 21862 | D34: 18855 | E34: 15055 | F34: 13055 | G34: 9448
A35: 47 | C35: 21862 | D35: 18855 | E35: 15055 | F35: 13055 | G35: 9448
A36: 48 | C36: 21862 | D36: 18855 | E36: 15055 | F36: 13055 | G36: 9448
A37: 49 | C37: 21862 | D37: 18855 | E37: 15055 | F37: 13055 | G37: 9448
A38: 50 | C38: 24484 | D38: 20538 | E38: 16599 | F38: 14589 | G38: 10557
A39: 51 | C39: 24484 | D39: 20538 | E39: 16599 | F39: 14589 | G39: 10557
A40: 52 | C40: 24484 | D40: 20538 | E40: 16599 | F40: 14589 | G40: 10557
A41: 53 | C41: 24484 | D41: 20538 | E41: 16599 | F41: 14589 | G41: 10557
A42: 54 | C42: 24484 | D42: 20538 | E42: 16599 | F42: 14589 | G42: 10557
A43: 55 | C43: 27370 | D43: 23993 | E43: 18776 | F43: 16284 | G43: 11786
A44: 56 | C44: 27370 | D44: 23993 | E44: 18776 | F44: 16284 | G44: 11786
A45: 57 | C45: 27370 | D45: 23993 | E45: 18776 | F45: 16284 | G45: 11786
A46: 58 | C46: 27370 | D46: 23993 | E46: 18776 | F46: 16284 | G46: 11786
A47: 59 | C47: 27370 | D47: 23993 | E47: 18776 | F47: 16284 | G47: 11786
A48: 60 | C48: 29295 | D48: 25678 | E48: 20086 | F48: 17415 | G48: 12604
A49: 61 | C49: 32648 | D49: 28613 | E49: 22366 | F49: 19395 | G49: 14036
A50: 62 | C50: 36269 | D50: 30427 | E50: 24841 | F50: 21542 | G50: 15587
A51: 63 | C51: 38149 | D51: 31682 | E51: 27510 | F51: 23858 | G51: 17265
A52: 64 | C52: 40129 | D52: 33472 | E52: 29415 | F52: 26075 | G52: 19060
A53: 65 | C53: 42828 | D53: 36061 | E53: 31792 | F53: 28296 | G53: 20978
A54: 66 | C54: 46469 | D54: 39700 | E54: 34886 | F54: 31369 | G54: 23014
A55: 67 | C55: 50887 | D55: 44211 | E55: 38594 | F55: 34792 | G55: 25174
A56: 68 | C56: 55749 | D56: 49220 | E56: 42651 | F56: 37949 | G56: 27461
A57: 69 | C57: 60722 | D57: 54354 | E57: 46797 | F57: 41272 | G57: 29864
A58: 70 | C58: 65473 | D58: 59239 | E58: 50767 | F58: 44760 | G58: 32386
A59: 71 | C59: 70002 | D59: 63874 | E59: 54562 | F59: 48416 | G59: 35035
A60: 72 | C60: 74530 | D60: 68510 | E60: 58357 | F60: 52241 | G60: 37799
A61: 73 | C61: 79059 | D61: 73145 | E61: 62152 | F61: 56235 | G61: 40693
A62: 74 | C62: 83588 | D62: 77781 | E62: 65947 | F62: 60396 | G62: 43703
A63: 75 | C63: 88042 | D63: 82341 | E63: 69667 | F63: 64723 | G63: 46830
A64: 76 | C64: 88042 | D64: 82341 | E64: 69667 | F64: 64723 | G64: 46830
A65: 77 | C65: 88042 | D65: 82341 | E65: 69667 | F65: 64723 | G65: 46830
A66: 78 | C66: 88042 | D66: 82341 | E66: 69667 | F66: 64723 | G66: 46830
A67: 79 | C67: 88042 | D67: 82341 | E67: 69667 | F67: 64723 | G67: 46830
A68: 80 | C68: 88042 | D68: 82341 | E68: 69667 | F68: 64723 | G68: 46830
A69: 81 | C69: 88042 | D69: 82341 | E69: 69667 | F69: 64723 | G69: 46830
A70: 82 | C70: 88042 | D70: 82341 | E70: 69667 | F70: 64723 | G70: 46830
A71: 83 | C71: 88042 | D71: 82341 | E71: 69667 | F71: 64723 | G71: 46830
A72: 84 | B72: o más | C72: 88042 | D72: 82341 | E72: 69667 | F72: 64723 | G72: 46830
A73: 1 | B73: Hijo | C73: 3214 | D73: 1913 | E73: 1387 | F73: 1287 | G73: 1616
A74: 2 | B74: Hijos | C74: 5819 | D74: 3360 | E74: 2468 | F74: 2289 | G74: 2814
A75: 3 | B75: Hijos o más | C75: 8283 | D75: 4756 | E75: 3510 | F75: 3257 | G75: 3916
A77: BUPA GLOBAL PREMIER
A78: TARIFAS ANUALES
A80: EDAD | C80: 250 | D80: 2000 | E80: 5000 | F80: 10000 | G80: 20000
A81: 18 | C81: 8338 | D81: 6687 | E81: 4782 | F81: 3827 | G81: 3001
A82: 19 | C82: 8338 | D82: 6687 | E82: 4782 | F82: 3827 | G82: 3001
A83: 20 | C83: 8338 | D83: 6687 | E83: 4782 | F83: 3827 | G83: 3001
A84: 21 | C84: 8338 | D84: 6687 | E84: 4782 | F84: 3827 | G84: 3001
A85: 22 | C85: 8338 | D85: 6687 | E85: 4782 | F85: 3827 | G85: 3001
A86: 23 | C86: 8338 | D86: 6687 | E86: 4782 | F86: 3827 | G86: 3001
A87: 24 | C87: 8338 | D87: 6687 | E87: 4782 | F87: 3827 | G87: 3001
A88: 25 | C88: 8909 | D88: 7364 | E88: 4870 | F88: 3906 | G88: 3172
A89: 26 | C89: 8909 | D89: 7364 | E89: 4870 | F89: 3906 | G89: 3172
A90: 27 | C90: 8909 | D90: 7364 | E90: 4870 | F90: 3906 | G90: 3172
A91: 28 | C91: 8909 | D91: 7364 | E91: 4870 | F91: 3906 | G91: 3172
A92: 29 | C92: 8909 | D92: 7364 | E92: 4870 | F92: 3906 | G92: 3172
A93: 30 | C93: 9908 | D93: 8570 | E93: 6367 | F93: 4437 | G93: 3480
A94: 31 | C94: 9908 | D94: 8570 | E94: 6367 | F94: 4437 | G94: 3480
A95: 32 | C95: 9908 | D95: 8570 | E95: 6367 | F95: 4437 | G95: 3480
A96: 33 | C96: 9908 | D96: 8570 | E96: 6367 | F96: 4437 | G96: 3480
A97: 34 | C97: 9908 | D97: 8570 | E97: 6367 | F97: 4437 | G97: 3480
A98: 35 | C98: 11059 | D98: 10038 | E98: 7062 | F98: 4905 | G98: 3848
A99: 36 | C99: 11059 | D99: 10038 | E99: 7062 | F99: 4905 | G99: 3848
A100: 37 | C100: 11059 | D100: 10038 | E100: 7062 | F100: 4905 | G100: 3848
A101: 38 | C101: 11059 | D101: 10038 | E101: 7062 | F101: 4905 | G101: 3848
A102: 39 | C102: 11059 | D102: 10038 | E102: 7062 | F102: 4905 | G102: 3848
A103: 40 | C103: 12389 | D103: 11242 | E103: 7853 | F103: 5452 | G103: 4277
A104: 41 | C104: 12389 | D104: 11242 | E104: 7853 | F104: 5452 | G104: 4277
A105: 42 | C105: 12389 | D105: 11242 | E105: 7853 | F105: 5452 | G105: 4277
A106: 43 | C106: 12389 | D106: 11242 | E106: 7853 | F106: 5452 | G106: 4277
A107: 44 | C107: 12389 | D107: 11242 | E107: 7853 | F107: 5452 | G107: 4277
A108: 45 | C108: 13863 | D108: 12216 | E108: 8739 | F108: 6067 | G108: 4760
A109: 46 | C109: 13863 | D109: 12216 | E109: 8739 | F109: 6067 | G109: 4760
A110: 47 | C110: 13863 | D110: 12216 | E110: 8739 | F110: 6067 | G110: 4760
A111: 48 | C111: 13863 | D111: 12216 | E111: 8739 | F111: 6067 | G111: 4760
A112: 49 | C112: 13863 | D112: 12216 | E112: 8739 | F112: 6067 | G112: 4760
A113: 50 | C113: 15526 | D113: 12903 | E113: 9749 | F113: 6769 | G113: 5311
A114: 51 | C114: 15526 | D114: 12903 | E114: 9749 | F114: 6769 | G114: 5311
A115: 52 | C115: 15526 | D115: 12903 | E115: 9749 | F115: 6769 | G115: 5311
A116: 53 | C116: 15526 | D116: 12903 | E116: 9749 | F116: 6769 | G116: 5311
A117: 54 | C117: 15526 | D117: 12903 | E117: 9749 | F117: 6769 | G117: 5311
A118: 55 | C118: 17363 | D118: 15059 | E118: 10871 | F118: 7544 | G118: 5920
A119: 56 | C119: 17363 | D119: 15059 | E119: 10871 | F119: 7544 | G119: 5920
A120: 57 | C120: 17363 | D120: 15059 | E120: 10871 | F120: 7544 | G120: 5920
A121: 58 | C121: 17363 | D121: 15059 | E121: 10871 | F121: 7544 | G121: 5920
A122: 59 | C122: 17363 | D122: 15059 | E122: 10871 | F122: 7544 | G122: 5920
A123: 60 | C123: 18577 | D123: 16861 | E123: 11621 | F123: 8068 | G123: 6330
A124: 61 | C124: 20700 | D124: 18790 | E124: 12934 | F124: 8980 | G124: 7044
A125: 62 | C125: 23000 | D125: 20875 | E125: 14364 | F125: 9969 | G125: 7820
A126: 63 | C126: 25470 | D126: 22970 | E126: 15908 | F126: 11040 | G126: 8661
A127: 64 | C127: 28116 | D127: 24374 | E127: 17566 | F127: 12190 | G127: 9564
A128: 65 | C128: 30779 | D128: 26108 | E128: 19341 | F128: 13423 | G128: 10533
A129: 66 | C129: 32966 | D129: 28274 | E129: 21224 | F129: 14733 | G129: 11561
A130: 67 | C130: 35546 | D130: 30801 | E130: 23227 | F130: 16121 | G130: 12648
A131: 68 | C131: 38349 | D131: 33534 | E131: 25346 | F131: 17592 | G131: 13801
A132: 69 | C132: 41209 | D132: 36318 | E132: 27573 | F132: 19138 | G132: 15014
A133: 70 | C133: 43957 | D133: 38999 | E133: 29921 | F133: 20766 | G133: 16289
A134: 71 | C134: 46593 | D134: 41578 | E134: 32381 | F134: 22474 | G134: 17631
A135: 72 | C135: 49228 | D135: 44156 | E135: 34956 | F135: 24263 | G135: 19036
A136: 73 | C136: 51864 | D136: 46734 | E136: 37646 | F136: 26129 | G136: 20499
A137: 74 | C137: 54499 | D137: 49312 | E137: 39816 | F137: 28075 | G137: 22025
A138: 75 | C138: 57060 | D138: 51815 | E138: 41889 | F138: 30102 | G138: 23614
A139: 76 | C139: 57060 | D139: 51815 | E139: 41889 | F139: 30102 | G139: 23614
A140: 77 | C140: 57060 | D140: 51815 | E140: 41889 | F140: 30102 | G140: 23614
A141: 78 | C141: 57060 | D141: 51815 | E141: 41889 | F141: 30102 | G141: 23614
A142: 79 | C142: 57060 | D142: 51815 | E142: 41889 | F142: 30102 | G142: 23614
A143: 80 | C143: 57060 | D143: 51815 | E143: 41889 | F143: 30102 | G143: 23614
A144: 81 | C144: 57060 | D144: 51815 | E144: 41889 | F144: 30102 | G144: 23614
A145: 82 | C145: 57060 | D145: 51815 | E145: 41889 | F145: 30102 | G145: 23614
A146: 83 | C146: 57060 | D146: 51815 | E146: 41889 | F146: 30102 | G146: 23614
A147: 84 | B147: o más | C147: 57060 | D147: 51815 | E147: 41889 | F147: 30102 | G147: 23614
A148: 1 | B148: Hijo | C148: 865 | D148: 839 | E148: 819 | F148: 649 | G148: 586
A149: 2 | B149: Hijos | C149: 1701 | D149: 1651 | E149: 1541 | F149: 1247 | G149: 1118
A150: 3 | B150: Hijos o más | C150: 2514 | D150: 2440 | E150: 2207 | F150: 1811 | G150: 1616
A152: BUPA GLOBAL SELECT
A153: TARIFAS ANUALES
A155: EDAD | C155: 250 | D155: 2000 | E155: 5000 | F155: 10000 | G155: 20000
A156: 18 | C156: 5218 | D156: 4097 | E156: 3655 | F156: 2534 | G156: 1992
A157: 19 | C157: 5218 | D157: 4097 | E157: 3655 | F157: 2534 | G157: 1992
A158: 20 | C158: 5218 | D158: 4097 | E158: 3655 | F158: 2534 | G158: 1992
A159: 21 | C159: 5218 | D159: 4097 | E159: 3655 | F159: 2534 | G159: 1992
A160: 22 | C160: 5218 | D160: 4097 | E160: 3655 | F160: 2534 | G160: 1992
A161: 23 | C161: 5218 | D161: 4097 | E161: 3655 | F161: 2534 | G161: 1992
A162: 24 | C162: 5218 | D162: 4097 | E162: 3655 | F162: 2534 | G162: 1992
A163: 25 | C163: 5629 | D163: 5288 | E163: 3774 | F163: 2704 | G163: 2122
A164: 26 | C164: 5629 | D164: 5288 | E164: 3774 | F164: 2704 | G164: 2122
A165: 27 | C165: 5629 | D165: 5288 | E165: 3774 | F165: 2704 | G165: 2122
A166: 28 | C166: 5629 | D166: 5288 | E166: 3774 | F166: 2704 | G166: 2122
A167: 29 | C167: 5629 | D167: 5288 | E167: 3774 | F167: 2704 | G167: 2122
A168: 30 | C168: 6350 | D168: 6094 | E168: 4336 | F168: 3007 | G168: 2360
A169: 31 | C169: 6350 | D169: 6094 | E169: 4336 | F169: 3007 | G169: 2360
A170: 32 | C170: 6350 | D170: 6094 | E170: 4336 | F170: 3007 | G170: 2360
A171: 33 | C171: 6350 | D171: 6094 | E171: 4336 | F171: 3007 | G171: 2360
A172: 34 | C172: 6350 | D172: 6094 | E172: 4336 | F172: 3007 | G172: 2360
A173: 35 | C173: 7188 | D173: 6896 | E173: 4854 | F173: 3368 | G173: 2642
A174: 36 | C174: 7188 | D174: 6896 | E174: 4854 | F174: 3368 | G174: 2642
A175: 37 | C175: 7188 | D175: 6896 | E175: 4854 | F175: 3368 | G175: 2642
A176: 38 | C176: 7188 | D176: 6896 | E176: 4854 | F176: 3368 | G176: 2642
A177: 39 | C177: 7188 | D177: 6896 | E177: 4854 | F177: 3368 | G177: 2642
A178: 40 | C178: 8153 | D178: 7683 | E178: 5464 | F178: 3788 | G178: 2972
A179: 41 | C179: 8153 | D179: 7683 | E179: 5464 | F179: 3788 | G179: 2972
A180: 42 | C180: 8153 | D180: 7683 | E180: 5464 | F180: 3788 | G180: 2972
A181: 43 | C181: 8153 | D181: 7683 | E181: 5464 | F181: 3788 | G181: 2972
A182: 44 | C182: 8153 | D182: 7683 | E182: 5464 | F182: 3788 | G182: 2972
A183: 45 | C183: 9226 | D183: 8374 | E183: 5919 | F183: 4265 | G183: 3348
A184: 46 | C184: 9226 | D184: 8374 | E184: 5919 | F184: 4265 | G184: 3348
A185: 47 | C185: 9226 | D185: 8374 | E185: 5919 | F185: 4265 | G185: 3348
A186: 48 | C186: 9226 | D186: 8374 | E186: 5919 | F186: 4265 | G186: 3348
A187: 49 | C187: 9226 | D187: 8374 | E187: 5919 | F187: 4265 | G187: 3348
A188: 50 | C188: 10439 | D188: 9283 | E188: 6440 | F188: 4806 | G188: 3770
A189: 51 | C189: 10439 | D189: 9283 | E189: 6440 | F189: 4806 | G189: 3770
A190: 52 | C190: 10439 | D190: 9283 | E190: 6440 | F190: 4806 | G190: 3770
A191: 53 | C191: 10439 | D191: 9283 | E191: 6440 | F191: 4806 | G191: 3770
A192: 54 | C192: 10439 | D192: 9283 | E192: 6440 | F192: 4806 | G192: 3770
A193: 55 | C193: 11776 | D193: 11297 | E193: 7799 | F193: 5404 | G193: 4243
A194: 56 | C194: 11776 | D194: 11297 | E194: 7799 | F194: 5404 | G194: 4243
A195: 57 | C195: 11776 | D195: 11297 | E195: 7799 | F195: 5404 | G195: 4243
A196: 58 | C196: 11776 | D196: 11297 | E196: 7799 | F196: 5404 | G196: 4243
A197: 59 | C197: 11776 | D197: 11297 | E197: 7799 | F197: 5404 | G197: 4243
A198: 60 | C198: 12666 | D198: 12153 | E198: 8379 | F198: 5807 | G198: 4557
A199: 61 | C199: 14218 | D199: 13643 | E199: 9398 | F199: 6516 | G199: 5111
A200: 62 | C200: 15899 | D200: 15257 | E200: 10504 | F200: 7279 | G200: 5712
A201: 63 | C201: 17704 | D201: 16989 | E201: 11701 | F201: 8111 | G201: 6365
A202: 64 | C202: 19641 | D202: 18846 | E202: 12985 | F202: 9000 | G202: 7058
A203: 65 | C203: 21707 | D203: 20826 | E203: 14359 | F203: 9951 | G203: 7807
A204: 66 | C204: 23897 | D204: 22811 | E204: 15824 | F204: 10967 | G204: 8606
A205: 67 | C205: 26216 | D205: 24749 | E205: 17375 | F205: 12042 | G205: 9447
A206: 68 | C206: 28662 | D206: 26815 | E206: 19017 | F206: 13180 | G206: 10342
... 92 more rows
